Workbook

Sheet Summary
B2: Aldrin_Cells_Pos | D2: Relevant peaks in positive mode of Aldrin-exposed cells intracellular metabolomics at time 0h a nd 5h (triplicates)
B3: Aldrin_Cells_Neg | D3: Relevant peaks in negative mode of Aldrin-exposed cells intracellular metabolomics at time 0h a nd 5h (triplicates)
B4: Control_Cells_Pos | D4: Relevant peaks in positive mode of Non-exposed cells intracellular metabolomics at time 0h a nd 5h (triplicates)
B5: Control_Cells_Neg | D5: Relevant peaks in negative mode of Non-exposed cells intracellular metabolomics at time 0h a nd 5h (triplicates)
B6: Aldrin_Cell | D6: Summary of all the relevant peaks of Aldrin-exposed cells intracellular metabolomics
B7: Control_Cell | D7: Summary of all the relevant peaks of Non-exposed cells intracellular metabolomics
B8: Aldrin_Med_Pos | D8: Relevant peaks in positive mode of Aldrin-exposed cells extracellular metabolomics at time 0h a nd 5h (triplicates)
B9: Aldrin_Med_Neg | D9: Relevant peaks in negative mode of Aldrin-exposed cells extracellular metabolomics at time 0h a nd 5h (triplicates)
B10: Control_Med_Pos | D10: Relevant peaks in positive mode of Non-exposed cells extracellular metabolomics at time 0h a nd 5h (triplicates)
B11: Control_Med_Neg | D11: Relevant peaks in negative mode of Non-exposed cells extracellular metabolomics at time 0h a nd 5h (triplicates)
B12: Aldrin_Cell | D12: Summary of all the relevant peaks of Aldrin-exposed cells extracellular metabolomics
B13: Control_Cell | D13: Summary of all the relevant peaks of Non-exposed cells extracellular metabolomics

Sheet Aldrin_Cells_Pos
D4: M+H=1,0073 | E4: M+NH4=18,0338
D5: 1.0073 | E5: 18.0338 | F5: Normalized Areas (per prot)
A6: nºROI | B6: ret time (min) | C6: mzROI | D6: Ad_1 | E6: Ad_2 | F6: A01 | G6: A02 | H6: A03 | I6: A51 | J6: A52 | K6: A53 | L6: mean T0 | M6: SD T0 | N6: mean T5 | O6: SD T5 | Q6: T0_min | R6: T0_max | S6: T5_min | T6: T5_max | U6: LB | V6: UB
A7: 351 | B7: 3.065187455 | C7: 796.6210527 | D7: =C7-D$5 -> 795.6137527 | E7: =C7-E$5 -> 778.5872527 | F7: 5101247.732 | G7: 6166799.073 | H7: 4394168.455 | I7: 2417202.513 | J7: 2500718.679 | K7: 992623.8863 | L7: =STDEV(E7:G7) -> 3295704.118 | M7: =STDEV(F7:H7) -> 892335.8928 | N7: =STDEV(H7:J7) -> 1118072.846 | O7: =STDEV(I7:K7) -> 847619.1282 | P7: =K7-L7 -> -2303080.231 | Q7: =K7+L7 -> 4288328.004 | R7: =M7-N7 -> -225736.9533 | S7: =M7+N7 -> 2010408.739 | T7: =R7-Q7 -> -4514064.957 | U7: =S7-P7 -> 4313488.97 | V7: =T7-Q7 -> -8802392.961
A8: 2 | B8: 9.384474833 | C8: 86.09620501 | D8: =C8-D$5 -> 85.08890501 | E8: =C8-E$5 -> 68.06240501 | F8: -51509.24737 | G8: 171573.1368 | H8: 20874.62003 | I8: -110526.9777 | J8: -91983.50292 | K8: 24821410.92 | L8: =STDEV(E8:G8) -> 116790.3817 | M8: =STDEV(F8:H8) -> 113809.2097 | N8: =STDEV(H8:J8) -> 71118.67577 | O8: =STDEV(I8:K8) -> 14389111 | P8: =K8-L8 -> 24704620.54 | Q8: =K8+L8 -> 24938201.3 | R8: =M8-N8 -> 42690.53396 | S8: =M8+N8 -> 184927.8855 | T8: =R8-Q8 -> -24895510.77 | U8: =S8-P8 -> -24519692.65 | V8: =T8-Q8 -> -49833712.07
A9: 3 | B9: 13.09954483 | C9: 90.05478458 | D9: =C9-D$5 -> 89.04748458 | E9: =C9-E$5 -> 72.02098458 | F9: 13172.51726 | G9: 7246.01813 | H9: 61997.58452 | I9: -79089.06742 | J9: 31536.09076 | K9: 15381453.48 | L9: =STDEV(E9:G9) -> 6560.14011 | M9: =STDEV(F9:H9) -> 30046.4768 | N9: =STDEV(H9:J9) -> 74242.02716 | O9: =STDEV(I9:K9) -> 8894385.659 | P9: =K9-L9 -> 15374893.34 | Q9: =K9+L9 -> 15388013.62 | R9: =M9-N9 -> -44195.55036 | S9: =M9+N9 -> 104288.504 | T9: =R9-Q9 -> -15432209.17 | U9: =S9-P9 -> -15270604.83 | V9: =T9-Q9 -> -30820222.78
A10: 4 | B10: 9.103534594 | C10: 90.97640254 | D10: =C10-D$5 -> 89.96910254 | E10: =C10-E$5 -> 72.94260254 | F10: 8915317.393 | G10: 42061308.25 | H10: 18377307.83 | I10: 40526427.98 | J10: 9161142.015 | K10: 136778.9158 | L10: =STDEV(E10:G10) -> 22163354.93 | M10: =STDEV(F10:H10) -> 17073946.28 | N10: =STDEV(H10:J10) -> 16120909.82 | O10: =STDEV(I10:K10) -> 21199622.82 | P10: =K10-L10 -> -22026576.01 | Q10: =K10+L10 -> 22300133.84 | R10: =M10-N10 -> 953036.4631 | S10: =M10+N10 -> 33194856.1 | T10: =R10-Q10 -> -21347097.38 | U10: =S10-P10 -> 55221432.11 | V10: =T10-Q10 -> -43647231.22
A11: 392 | B11: 2.729563235 | C11: 904.5905178 | D11: =C11-D$5 -> 903.5832178 | E11: =C11-E$5 -> 886.5567178 | F11: 7598040.023 | G11: 10611346.22 | H11: 7101115.51 | I11: 2693684.941 | J11: 3197501.941 | K11: 403197.1471 | L11: =STDEV(E11:G11) -> 5467763.244 | M11: =STDEV(F11:H11) -> 1899502.912 | N11: =STDEV(H11:J11) -> 2412380.384 | O11: =STDEV(I11:K11) -> 1489312.212 | P11: =K11-L11 -> -5064566.097 | Q11: =K11+L11 -> 5870960.391 | R11: =M11-N11 -> -512877.4719 | S11: =M11+N11 -> 4311883.296 | T11: =R11-Q11 -> -6383837.863 | U11: =S11-P11 -> 9376449.393 | V11: =T11-Q11 -> -12254798.25
A12: 6 | B12: 10.48470968 | C12: 102.0547637 | D12: =C12-D$5 -> 101.0474637 | E12: =C12-E$5 -> 84.02096367 | F12: 1342601.35 | G12: 899072.0782 | H12: 109838.5379 | I12: 89573.71225 | J12: -68639.02268 | K12: 34114599.24 | L12: =STDEV(E12:G12) -> 684013.9522 | M12: =STDEV(F12:H12) -> 624407.9792 | N12: =STDEV(H12:J12) -> 97720.83732 | O12: =STDEV(I12:K12) -> 19690188.64 | P12: =K12-L12 -> 33430585.29 | Q12: =K12+L12 -> 34798613.19 | R12: =M12-N12 -> 526687.1419 | S12: =M12+N12 -> 722128.8166 | T12: =R12-Q12 -> -34271926.05 | U12: =S12-P12 -> -32708456.47 | V12: =T12-Q12 -> -69070539.24
A13: 7 | B13: 12.62218271 | C13: 104.106786 | D13: =C13-D$5 -> 103.099486 | E13: =C13-E$5 -> 86.07298598 | F13: 550449279.1 | G13: 358659955.8 | H13: 209612931.2 | I13: 459514958.8 | J13: 320156693.3 | K13: 39646431.72 | L13: =STDEV(E13:G13) -> 279408411 | M13: =STDEV(F13:H13) -> 170864262 | N13: =STDEV(H13:J13) -> 125227574.8 | O13: =STDEV(I13:K13) -> 213852095.7 | P13: =K13-L13 -> -239761979.3 | Q13: =K13+L13 -> 319054842.7 | R13: =M13-N13 -> 45636687.17 | S13: =M13+N13 -> 296091836.8 | T13: =R13-Q13 -> -273418155.5 | U13: =S13-P13 -> 535853816 | V13: =T13-Q13 -> -592472998.2
A14: 232 | B14: 3.421270548 | C14: 550.349555 | D14: =C14-D$5 -> 549.342255 | E14: =C14-E$5 -> 532.315755 | F14: 3819601.77 | G14: 1014783.223 | H14: 14032442.42 | I14: 21336682.29 | J14: 29927590.07 | K14: 31431361.38 | L14: =STDEV(E14:G14) -> 1978256.955 | M14: =STDEV(F14:H14) -> 6851138.252 | N14: =STDEV(H14:J14) -> 7956248.439 | O14: =STDEV(I14:K14) -> 5446215.36 | P14: =K14-L14 -> 29453104.42 | Q14: =K14+L14 -> 33409618.33 | R14: =M14-N14 -> -1105110.188 | S14: =M14+N14 -> 14807386.69 | T14: =R14-Q14 -> -34514728.52 | U14: =S14-P14 -> -14645717.73 | V14: =T14-Q14 -> -67924346.86
A15: 223 | B15: 3.464280548 | C15: 524.3338866 | D15: =C15-D$5 -> 523.3265866 | E15: =C15-E$5 -> 506.3000866 | F15: 4528466.124 | G15: 1828543.247 | H15: 14028116.73 | I15: 19279307.11 | J15: 25542370.69 | K15: 28214240.44 | L15: =STDEV(E15:G15) -> 2277927.523 | M15: =STDEV(F15:H15) -> 6407840.75 | N15: =STDEV(H15:J15) -> 5764532.505 | O15: =STDEV(I15:K15) -> 4586172.824 | P15: =K15-L15 -> 25936312.92 | Q15: =K15+L15 -> 30492167.97 | R15: =M15-N15 -> 643308.2442 | S15: =M15+N15 -> 12172373.25 | T15: =R15-Q15 -> -29848859.72 | U15: =S15-P15 -> -13763939.67 | V15: =T15-Q15 -> -60341027.69
A16: 10 | B16: 7.813877333 | C16: 114.0660136 | D16: =C16-D$5 -> 113.0587136 | E16: =C16-E$5 -> 96.03221359 | F16: 56770.87546 | G16: 6385800.043 | H16: -45039.06718 | I16: -64921.90463 | J16: 77492.88092 | K16: 1771.247109 | L16: =STDEV(E16:G16) -> 3670536.699 | M16: =STDEV(F16:H16) -> 3683808.426 | N16: =STDEV(H16:J16) -> 77126.92642 | O16: =STDEV(I16:K16) -> 71255.07404 | P16: =K16-L16 -> -3668765.452 | Q16: =K16+L16 -> 3672307.946 | R16: =M16-N16 -> 3606681.5 | S16: =M16+N16 -> 3760935.352 | T16: =R16-Q16 -> -65626.44631 | U16: =S16-P16 -> 7429700.804 | V16: =T16-Q16 -> -3737934.392
A17: 11 | B17: 11.84833442 | C17: 116.0704308 | D17: =C17-D$5 -> 115.0631308 | E17: =C17-E$5 -> 98.03663076 | F17: 15133.59099 | G17: -47950.43586 | H17: 74924.50397 | I17: 104204.0456 | J17: 29675.80495 | K17: 139527079 | L17: =STDEV(E17:G17) -> 32950.26061 | M17: =STDEV(F17:H17) -> 61444.82424 | N17: =STDEV(H17:J17) -> 37548.18011 | O17: =STDEV(I17:K17) -> 80517357.48 | P17: =K17-L17 -> 139494128.8 | Q17: =K17+L17 -> 139560029.3 | R17: =M17-N17 -> 23896.64413 | S17: =M17+N17 -> 98993.00435 | T17: =R17-Q17 -> -139536132.6 | U17: =S17-P17 -> -139395135.8 | V17: =T17-Q17 -> -279096161.9
A18: 12 | B18: 11.35415 | C18: 118.0860581 | D18: =C18-D$5 -> 117.0787581 | E18: =C18-E$5 -> 100.0522581 | F18: -35802.52718 | G18: 23973.93457 | H18: 100516.1272 | I18: -103090.7865 | J18: -86576.3276 | K18: 81749254.9 | L18: =STDEV(E18:G18) -> 30089.264 | M18: =STDEV(F18:H18) -> 68330.94488 | N18: =STDEV(H18:J18) -> 113087.053 | O18: =STDEV(I18:K18) -> 47252707.23 | P18: =K18-L18 -> 81719165.64 | Q18: =K18+L18 -> 81779344.17 | R18: =M18-N18 -> -44756.10809 | S18: =M18+N18 -> 181417.9978 | T18: =R18-Q18 -> -81824100.28 | U18: =S18-P18 -> -81537747.64 | V18: =T18-Q18 -> -163603444.4
A19: 13 | B19: 4.398893402 | C19: 121.0521576 | D19: =C19-D$5 -> 120.0448576 | E19: =C19-E$5 -> 103.0183576 | F19: 8313515.126 | G19: 16043652.53 | H19: 7519412.541 | I19: 31361.02516 | J19: 6743929.8 | K19: 11285898.12 | L19: =STDEV(E19:G19) -> 8023541.677 | M19: =STDEV(F19:H19) -> 4709003.623 | N19: =STDEV(H19:J19) -> 4117662.536 | O19: =STDEV(I19:K19) -> 5662047.052 | P19: =K19-L19 -> 3262356.441 | Q19: =K19+L19 -> 19309439.79 | R19: =M19-N19 -> 591341.0872 | S19: =M19+N19 -> 8826666.158 | T19: =R19-Q19 -> -18718098.71 | U19: =S19-P19 -> 5564309.717 | V19: =T19-Q19 -> -38027538.5
A20: 261 | B20: 2.732991667 | C20: 628.5367737 | D20: =C20-D$5 -> 627.5294737 | E20: =C20-E$5 -> 610.5029737 | F20: 2866337.216 | G20: 3852883.656 | H20: 2175842.9 | I20: -104262.0256 | J20: -63124.51488 | K20: 8211.076758 | L20: =STDEV(E20:G20) -> 2001069.377 | M20: =STDEV(F20:H20) -> 842864.3597 | N20: =STDEV(H20:J20) -> 1304705.96 | O20: =STDEV(I20:K20) -> 56908.20121 | P20: =K20-L20 -> -1992858.3 | Q20: =K20+L20 -> 2009280.454 | R20: =M20-N20 -> -461841.6004 | S20: =M20+N20 -> 2147570.32 | T20: =R20-Q20 -> -2471122.054 | U20: =S20-P20 -> 4140428.62 | V20: =T20-Q20 -> -4480402.508
A21: 264 | B21: 3.295762464 | C21: 650.4384664 | D21: =C21-D$5 -> 649.4311664 | E21: =C21-E$5 -> 632.4046664 | F21: 4009923.279 | G21: 628256.7998 | H21: 12938394.16 | I21: 16248139.84 | J21: 23042733 | K21: 24690371.14 | L21: =STDEV(E21:G21) -> 2156540.203 | M21: =STDEV(F21:H21) -> 6359936.351 | N21: =STDEV(H21:J21) -> 5151352.186 | O21: =STDEV(I21:K21) -> 4474976.296 | P21: =K21-L21 -> 22533830.94 | Q21: =K21+L21 -> 26846911.34 | R21: =M21-N21 -> 1208584.165 | S21: =M21+N21 -> 11511288.54 | T21: =R21-Q21 -> -25638327.18 | U21: =S21-P21 -> -11022542.4 | V21: =T21-Q21 -> -52485238.52
A22: 16 | B22: 3.301746667 | C22: 129.0544866 | D22: =C22-D$5 -> 128.0471866 | E22: =C22-E$5 -> 111.0206866 | F22: 128039.6271 | G22: 63744.8337 | H22: 1283946.6 | I22: -34345.28497 | J22: -178914.4039 | K22: 3037785.321 | L22: =STDEV(E22:G22) -> 63964.58779 | M22: =STDEV(F22:H22) -> 686676.4283 | N22: =STDEV(H22:J22) -> 806097.1864 | O22: =STDEV(I22:K22) -> 1816867.442 | P22: =K22-L22 -> 2973820.733 | Q22: =K22+L22 -> 3101749.908 | R22: =M22-N22 -> -119420.7581 | S22: =M22+N22 -> 1492773.615 | T22: =R22-Q22 -> -3221170.666 | U22: =S22-P22 -> -1481047.118 | V22: =T22-Q22 -> -6322920.575
A23: 17 | B23: 10.431195 | C23: 130.0497144 | D23: =C23-D$5 -> 129.0424144 | E23: =C23-E$5 -> 112.0159144 | F23: 322382.4108 | G23: 19695.42315 | H23: -165670.4046 | I23: -59562.06971 | J23: 143177.9773 | K23: 36749912.54 | L23: =STDEV(E23:G23) -> 180675.1826 | M23: =STDEV(F23:H23) -> 246365.3971 | N23: =STDEV(H23:J23) -> 156923.4571 | O23: =STDEV(I23:K23) -> 21193676.49 | P23: =K23-L23 -> 36569237.35 | Q23: =K23+L23 -> 36930587.72 | R23: =M23-N23 -> 89441.93993 | S23: =M23+N23 -> 403288.8542 | T23: =R23-Q23 -> -36841145.78 | U23: =S23-P23 -> -36165948.5 | V23: =T23-Q23 -> -73771733.5
A24: 18 | B24: 5.336748571 | C24: 130.0859887 | D24: =C24-D$5 -> 129.0786887 | E24: =C24-E$5 -> 112.0521887 | F24: 4973246.327 | G24: -14134.13674 | H24: -116826.5531 | I24: -94493.02681 | J24: -31263.1274 | K24: 30450.49446 | L24: =STDEV(E24:G24) -> 2875361.756 | M24: =STDEV(F24:H24) -> 2909563.299 | N24: =STDEV(H24:J24) -> 44380.75105 | O24: =STDEV(I24:K24) -> 62473.29404 | P24: =K24-L24 -> -2844911.261 | Q24: =K24+L24 -> 2905812.25 | R24: =M24-N24 -> 2865182.548 | S24: =M24+N24 -> 2953944.05 | T24: =R24-Q24 -> -40629.70224 | U24: =S24-P24 -> 5798855.312 | V24: =T24-Q24 -> -2946441.953
A25: 237 | B25: 3.38210486 | C25: 554.2866599 | D25: =C25-D$5 -> 553.2793599 | E25: =C25-E$5 -> 536.2528599 | F25: 2061214.989 | G25: 32675.14448 | H25: 9079211.818 | I25: 10787131.32 | J25: 18558084.55 | K25: 21134414.81 | L25: =STDEV(E25:G25) -> 1180565.095 | M25: =STDEV(F25:H25) -> 4747053.107 | N25: =STDEV(H25:J25) -> 5052288.782 | O25: =STDEV(I25:K25) -> 5386580.045 | P25: =K25-L25 -> 19953849.71 | Q25: =K25+L25 -> 22314979.9 | R25: =M25-N25 -> -305235.6751 | S25: =M25+N25 -> 9799341.888 | T25: =R25-Q25 -> -22620215.58 | U25: =S25-P25 -> -10154507.82 | V25: =T25-Q25 -> -44935195.48
A26: 20 | B26: 7.937119106 | C26: 132.0814364 | D26: =C26-D$5 -> 131.0741364 | E26: =C26-E$5 -> 114.0476364 | F26: 9929510.503 | G26: 7527413.494 | H26: 19848706.41 | I26: 2169703.823 | J26: 22897853.8 | K26: 110976196.4 | L26: =STDEV(E26:G26) -> 5180463.637 | M26: =STDEV(F26:H26) -> 6531650.847 | N26: =STDEV(H26:J26) -> 11191519.36 | O26: =STDEV(I26:K26) -> 57772980.23 | P26: =K26-L26 -> 105795732.8 | Q26: =K26+L26 -> 116156660.1 | R26: =M26-N26 -> -4659868.514 | S26: =M26+N26 -> 17723170.21 | T26: =R26-Q26 -> -120816528.6 | U26: =S26-P26 -> -88072562.57 | V26: =T26-Q26 -> -236973188.6
A27: 21 | B27: 5.346715833 | C27: 133.0856724 | D27: =C27-D$5 -> 132.0783724 | E27: =C27-E$5 -> 115.0518724 | F27: 8084006.7 | G27: -867.7392087 | H27: -6918.218783 | I27: 901400.829 | J27: 48800.88978 | K27: -15063.68189 | L27: =STDEV(E27:G27) -> 4667520.752 | M27: =STDEV(F27:H27) -> 4669552.037 | N27: =STDEV(H27:J27) -> 509096.3838 | O27: =STDEV(I27:K27) -> 511682.2809 | P27: =K27-L27 -> -4682584.434 | Q27: =K27+L27 -> 4652457.07 | R27: =M27-N27 -> 4160455.653 | S27: =M27+N27 -> 5178648.42 | T27: =R27-Q27 -> -492001.4174 | U27: =S27-P27 -> 9861232.855 | V27: =T27-Q27 -> -5144458.488
A28: 227 | B28: 3.417406951 | C28: 530.286834 | D28: =C28-D$5 -> 529.279534 | E28: =C28-E$5 -> 512.253034 | F28: 636533.8667 | G28: -161859.2092 | H28: 6967144.077 | I28: 8346495.717 | J28: 11795699.19 | K28: 15519290.53 | L28: =STDEV(E28:G28) -> 421963.5625 | M28: =STDEV(F28:H28) -> 3905908.878 | N28: =STDEV(H28:J28) -> 2487118.814 | O28: =STDEV(I28:K28) -> 3587272.001 | P28: =K28-L28 -> 15097326.96 | Q28: =K28+L28 -> 15941254.09 | R28: =M28-N28 -> 1418790.065 | S28: =M28+N28 -> 6393027.692 | T28: =R28-Q28 -> -14522464.02 | U28: =S28-P28 -> -8704299.272 | V28: =T28-Q28 -> -30463718.11
A29: 390 | B29: 2.732340833 | C29: 887.5632629 | D29: =C29-D$5 -> 886.5559629 | E29: =C29-E$5 -> 869.5294629 | F29: 3997299.243 | G29: 6310289.104 | H29: 3008167.885 | I29: 51461.17101 | J29: 1062227.415 | K29: 82969.62373 | L29: =STDEV(E29:G29) -> 3191920.736 | M29: =STDEV(F29:H29) -> 1694712.733 | N29: =STDEV(H29:J29) -> 1502800.015 | O29: =STDEV(I29:K29) -> 574686.4369 | P29: =K29-L29 -> -3108951.113 | Q29: =K29+L29 -> 3274890.36 | R29: =M29-N29 -> 191912.7185 | S29: =M29+N29 -> 3197512.748 | T29: =R29-Q29 -> -3082977.642 | U29: =S29-P29 -> 6306463.861 | V29: =T29-Q29 -> -6357868.002
A30: 24 | B30: 11.82986301 | C30: 140.068022 | D30: =C30-D$5 -> 139.060722 | E30: =C30-E$5 -> 122.034222 | F30: 7875995.87 | G30: 10590163.2 | H30: 259500.6985 | I30: 9179979.453 | J30: 1358067.259 | K30: -69293.67664 | L30: =STDEV(E30:G30) -> 5500682.76 | M30: =STDEV(F30:H30) -> 5355686.866 | N30: =STDEV(H30:J30) -> 4864224.845 | O30: =STDEV(I30:K30) -> 4979436.431 | P30: =K30-L30 -> -5569976.437 | Q30: =K30+L30 -> 5431389.083 | R30: =M30-N30 -> 491462.0205 | S30: =M30+N30 -> 10219911.71 | T30: =R30-Q30 -> -4939927.063 | U30: =S30-P30 -> 15789888.15 | V30: =T30-Q30 -> -10371316.15
A31: 245 | B31: 2.656803125 | C31: 577.5179787 | D31: =C31-D$5 -> 576.5106787 | E31: =C31-E$5 -> 559.4841787 | F31: 1024585.057 | G31: 2293658.595 | H31: 1955675.607 | I31: 110571.5741 | J31: 454751.3139 | K31: 109342.8764 | L31: =STDEV(E31:G31) -> 1148729.701 | M31: =STDEV(F31:H31) -> 657230.2687 | N31: =STDEV(H31:J31) -> 981125.4011 | O31: =STDEV(I31:K31) -> 199067.9079 | P31: =K31-L31 -> -1039386.824 | Q31: =K31+L31 -> 1258072.577 | R31: =M31-N31 -> -323895.1324 | S31: =M31+N31 -> 1638355.67 | T31: =R31-Q31 -> -1581967.709 | U31: =S31-P31 -> 2677742.494 | V31: =T31-Q31 -> -2840040.286
A32: 153 | B32: 3.783323607 | C32: 389.3967215 | D32: =C32-D$5 -> 388.3894215 | E32: =C32-E$5 -> 371.3629215 | F32: 3172288.588 | G32: 2448546.469 | H32: 4717348.09 | I32: 5968389.607 | J32: 10215623.81 | K32: 7034171.721 | L32: =STDEV(E32:G32) -> 1662248.622 | M32: =STDEV(F32:H32) -> 1158912.732 | N32: =STDEV(H32:J32) -> 2881988.294 | O32: =STDEV(I32:K32) -> 2209695.579 | P32: =K32-L32 -> 5371923.099 | Q32: =K32+L32 -> 8696420.343 | R32: =M32-N32 -> -1723075.563 | S32: =M32+N32 -> 4040901.026 | T32: =R32-Q32 -> -10419495.91 | U32: =S32-P32 -> -1331022.073 | V32: =T32-Q32 -> -19115916.25
A33: 260 | B33: 2.731563095 | C33: 627.5340111 | D33: =C33-D$5 -> 626.5267111 | E33: =C33-E$5 -> 609.5002111 | F33: 14747522.69 | G33: 18583232.55 | H33: 14085838.19 | I33: 7385762.481 | J33: 12552731.92 | K33: 3969367.853 | L33: =STDEV(E33:G33) -> 9810691.432 | M33: =STDEV(F33:H33) -> 2428204.155 | N33: =STDEV(H33:J33) -> 3510436.88 | O33: =STDEV(I33:K33) -> 4321332.05 | P33: =K33-L33 -> -5841323.579 | Q33: =K33+L33 -> 13780059.28 | R33: =M33-N33 -> -1082232.724 | S33: =M33+N33 -> 5938641.035 | T33: =R33-Q33 -> -14862292.01 | U33: =S33-P33 -> 11779964.61 | V33: =T33-Q33 -> -28642351.29
A34: 334 | B34: 3.108458205 | C34: 774.600636 | D34: =C34-D$5 -> 773.593336 | E34: =C34-E$5 -> 756.566836 | F34: 4586973.619 | G34: 5369365.838 | H34: 2197469.844 | I34: 1799052.862 | J34: 1462984.787 | K34: 31669.66242 | L34: =STDEV(E34:G34) -> 2900215.22 | M34: =STDEV(F34:H34) -> 1652411.877 | N34: =STDEV(H34:J34) -> 367683.3195 | O34: =STDEV(I34:K34) -> 938549.2449 | P34: =K34-L34 -> -2868545.558 | Q34: =K34+L34 -> 2931884.883 | R34: =M34-N34 -> 1284728.558 | S34: =M34+N34 -> 2020095.197 | T34: =R34-Q34 -> -1647156.325 | U34: =S34-P34 -> 4888640.755 | V34: =T34-Q34 -> -4579041.207
A35: 29 | B35: 10.57065 | C35: 148.060232 | D35: =C35-D$5 -> 147.052932 | E35: =C35-E$5 -> 130.026432 | F35: 5335047.883 | G35: 5903345.6 | H35: 1090428.272 | I35: -103960.3704 | J35: 1994403.092 | K35: 106247166.1 | L35: =STDEV(E35:G35) -> 3256589.856 | M35: =STDEV(F35:H35) -> 2630080.2 | N35: =STDEV(H35:J35) -> 1052525.845 | O35: =STDEV(I35:K35) -> 60805158.51 | P35: =K35-L35 -> 102990576.2 | Q35: =K35+L35 -> 109503755.9 | R35: =M35-N35 -> 1577554.355 | S35: =M35+N35 -> 3682606.045 | T35: =R35-Q35 -> -107926201.6 | U35: =S35-P35 -> -99307970.17 | V35: =T35-Q35 -> -217429957.5
A36: 30 | B36: 12.29685781 | C36: 160.0342238 | D36: =C36-D$5 -> 159.0269238 | E36: =C36-E$5 -> 142.0004238 | F36: 1276620.434 | G36: 12119897.74 | H36: 2005364.134 | I36: 9912403.689 | J36: -104950.4887 | K36: 66839.58148 | L36: =STDEV(E36:G36) -> 6659511.232 | M36: =STDEV(F36:H36) -> 6060961.423 | N36: =STDEV(H36:J36) -> 5280815.705 | O36: =STDEV(I36:K36) -> 5734573.933 | P36: =K36-L36 -> -6592671.651 | Q36: =K36+L36 -> 6726350.814 | R36: =M36-N36 -> 780145.7173 | S36: =M36+N36 -> 11341777.13 | T36: =R36-Q36 -> -5946205.096 | U36: =S36-P36 -> 17934448.78 | V36: =T36-Q36 -> -12672555.91
A37: 31 | B37: 10.24204474 | C37: 162.0217504 | D37: =C37-D$5 -> 161.0144504 | E37: =C37-E$5 -> 143.9879504 | F37: -45670.73914 | G37: -17444.57546 | H37: -97818.67852 | I37: 151607.5953 | J37: 126499.3932 | K37: 46888842.8 | L37: =STDEV(E37:G37) -> 23112.27343 | M37: =STDEV(F37:H37) -> 40776.05576 | N37: =STDEV(H37:J37) -> 137333.2232 | O37: =STDEV(I37:K37) -> 26991006.36 | P37: =K37-L37 -> 46865730.52 | Q37: =K37+L37 -> 46911955.07 | R37: =M37-N37 -> -96557.16746 | S37: =M37+N37 -> 178109.279 | T37: =R37-Q37 -> -47008512.24 | U37: =S37-P37 -> -46687621.24 | V37: =T37-Q37 -> -93920467.31
A38: 226 | B38: 14.03006474 | C38: 529.9839673 | D38: =C38-D$5 -> 528.9766673 | E38: =C38-E$5 -> 511.9501673 | F38: 17288415.86 | G38: 29312112.03 | H38: 15092138.88 | I38: 8502726.21 | J38: 12274168.98 | K38: -59504.4136 | L38: =STDEV(E38:G38) -> 14734374.72 | M38: =STDEV(F38:H38) -> 7655069.546 | N38: =STDEV(H38:J38) -> 3306183.458 | O38: =STDEV(I38:K38) -> 6320008.878 | P38: =K38-L38 -> -14793879.13 | Q38: =K38+L38 -> 14674870.31 | R38: =M38-N38 -> 4348886.089 | S38: =M38+N38 -> 10961253 | T38: =R38-Q38 -> -10325984.22 | U38: =S38-P38 -> 25755132.14 | V38: =T38-Q38 -> -25000854.53
A39: 290 | B39: 3.152784118 | C39: 704.5221077 | D39: =C39-D$5 -> 703.5148077 | E39: =C39-E$5 -> 686.4883077 | F39: 7629227.186 | G39: 4844690.467 | H39: 12366444.4 | I39: 12059673.38 | J39: 20092615.47 | K39: 14890401.84 | L39: =STDEV(E39:G39) -> 3860324.953 | M39: =STDEV(F39:H39) -> 3802886.051 | N39: =STDEV(H39:J39) -> 4551849.194 | O39: =STDEV(I39:K39) -> 4074395.843 | P39: =K39-L39 -> 11030076.89 | Q39: =K39+L39 -> 18750726.79 | R39: =M39-N39 -> -748963.1424 | S39: =M39+N39 -> 8354735.245 | T39: =R39-Q39 -> -19499689.94 | U39: =S39-P39 -> -2675341.642 | V39: =T39-Q39 -> -38250416.73
A40: 345 | B40: 3.117880886 | C40: 789.6198645 | D40: =C40-D$5 -> 788.6125645 | E40: =C40-E$5 -> 771.5860645 | F40: 8829702.908 | G40: 12838859.05 | H40: 4892267.92 | I40: 4573413.215 | J40: 995215.4386 | K40: 1213466.365 | L40: =STDEV(E40:G40) -> 6568102.86 | M40: =STDEV(F40:H40) -> 3973349.508 | N40: =STDEV(H40:J40) -> 2163800.118 | O40: =STDEV(I40:K40) -> 2005840.457 | P40: =K40-L40 -> -5354636.495 | Q40: =K40+L40 -> 7781569.225 | R40: =M40-N40 -> 1809549.39 | S40: =M40+N40 -> 6137149.626 | T40: =R40-Q40 -> -5972019.834 | U40: =S40-P40 -> 11491786.12 | V40: =T40-Q40 -> -13753589.06
A41: 378 | B41: 2.710035195 | C41: 836.5431138 | D41: =C41-D$5 -> 835.5358138 | E41: =C41-E$5 -> 818.5093138 | F41: 7514118.776 | G41: 9817002.075 | H41: 9333530.617 | I41: 2142171.295 | J41: 7499240.514 | K41: 1100832.639 | L41: =STDEV(E41:G41) -> 5133394.137 | M41: =STDEV(F41:H41) -> 1214308.828 | N41: =STDEV(H41:J41) -> 3736720.035 | O41: =STDEV(I41:K41) -> 3433224.921 | P41: =K41-L41 -> -4032561.498 | Q41: =K41+L41 -> 6234226.776 | R41: =M41-N41 -> -2522411.206 | S41: =M41+N41 -> 4951028.863 | T41: =R41-Q41 -> -8756637.982 | U41: =S41-P41 -> 8983590.361 | V41: =T41-Q41 -> -14990864.76
A42: 36 | B42: 10.42614545 | C42: 171.076278 | D42: =C42-D$5 -> 170.068978 | E42: =C42-E$5 -> 153.042478 | F42: -33661.10756 | G42: -19306.52677 | H42: 119901.9238 | I42: -140463.6372 | J42: -46310.52506 | K42: 22726609.9 | L42: =STDEV(E42:G42) -> 16971.17933 | M42: =STDEV(F42:H42) -> 84820.05589 | N42: =STDEV(H42:J42) -> 131834.247 | O42: =STDEV(I42:K42) -> 13175215.51 | P42: =K42-L42 -> 22709638.72 | Q42: =K42+L42 -> 22743581.08 | R42: =M42-N42 -> -47014.19107 | S42: =M42+N42 -> 216654.3028 | T42: =R42-Q42 -> -22790595.27 | U42: =S42-P42 -> -22492984.42 | V42: =T42-Q42 -> -45534176.35
A43: 211 | B43: 14.19797736 | C43: 506.9568585 | D43: =C43-D$5 -> 505.9495585 | E43: =C43-E$5 -> 488.9230585 | F43: 5191795.383 | G43: 11546411.81 | H43: 4270499.479 | I43: 877542.1953 | J43: 1429152.416 | K43: 45357.5182 | L43: =STDEV(E43:G43) -> 5782720.641 | M43: =STDEV(F43:H43) -> 3961667.081 | N43: =STDEV(H43:J43) -> 1820699.778 | O43: =STDEV(I43:K43) -> 696622.0272 | P43: =K43-L43 -> -5737363.123 | Q43: =K43+L43 -> 5828078.159 | R43: =M43-N43 -> 2140967.303 | S43: =M43+N43 -> 5782366.86 | T43: =R43-Q43 -> -3687110.856 | U43: =S43-P43 -> 11519729.98 | V43: =T43-Q43 -> -9515189.016
A44: 38 | B44: 16.29045294 | C44: 175.1186292 | D44: =C44-D$5 -> 174.1113292 | E44: =C44-E$5 -> 157.0848292 | F44: -87804.02666 | G44: 41389.91327 | H44: 90250.51826 | I44: 38393.16886 | J44: 26504.32357 | K44: 27225277.21 | L44: =STDEV(E44:G44) -> 65990.37479 | M44: =STDEV(F44:H44) -> 91998.05596 | N44: =STDEV(H44:J44) -> 33897.16474 | O44: =STDEV(I44:K44) -> 15699787.96 | P44: =K44-L44 -> 27159286.84 | Q44: =K44+L44 -> 27291267.59 | R44: =M44-N44 -> 58100.89121 | S44: =M44+N44 -> 125895.2207 | T44: =R44-Q44 -> -27233166.7 | U44: =S44-P44 -> -27033391.62 | V44: =T44-Q44 -> -54524434.28
A45: 307 | B45: 3.13079044 | C45: 730.5372407 | D45: =C45-D$5 -> 729.5299407 | E45: =C45-E$5 -> 712.5034407 | F45: 11379241.77 | G45: 7454235.808 | H45: 16330141.82 | I45: 15083889.22 | J45: 22651218.26 | K45: 18395600.21 | L45: =STDEV(E45:G45) -> 5779729.086 | M45: =STDEV(F45:H45) -> 4447823.265 | N45: =STDEV(H45:J45) -> 4057372.337 | O45: =STDEV(I45:K45) -> 3793463.314 | P45: =K45-L45 -> 12615871.13 | Q45: =K45+L45 -> 24175329.3 | R45: =M45-N45 -> 390450.9276 | S45: =M45+N45 -> 8505195.602 | T45: =R45-Q45 -> -23784878.37 | U45: =S45-P45 -> -4110675.526 | V45: =T45-Q45 -> -47960207.67
A46: 150 | B46: 3.905888257 | C46: 388.3931183 | D46: =C46-D$5 -> 387.3858183 | E46: =C46-E$5 -> 370.3593183 | F46: 27586858.81 | G46: 20234090.75 | H46: 42636308.66 | I46: 44229934.86 | J46: 79416345.02 | K46: 46222842.36 | L46: =STDEV(E46:G46) -> 14285662.89 | M46: =STDEV(F46:H46) -> 11419344.01 | N46: =STDEV(H46:J46) -> 20790198.73 | O46: =STDEV(I46:K46) -> 19764715.02 | P46: =K46-L46 -> 31937179.48 | Q46: =K46+L46 -> 60508505.25 | R46: =M46-N46 -> -9370854.718 | S46: =M46+N46 -> 32209542.74 | T46: =R46-Q46 -> -69879359.96 | U46: =S46-P46 -> 272363.267 | V46: =T46-Q46 -> -130387865.2
A47: 72 | B47: 10.79809 | C47: 255.0323532 | D47: =C47-D$5 -> 254.0250532 | E47: =C47-E$5 -> 236.9985532 | F47: 7611617.607 | G47: 15560917.72 | H47: 6895725.64 | I47: 8208761.268 | J47: 1179077.096 | K47: -53550.00608 | L47: =STDEV(E47:G47) -> 7780951.865 | M47: =STDEV(F47:H47) -> 4809529.211 | N47: =STDEV(H47:J47) -> 3737659.532 | O47: =STDEV(I47:K47) -> 4457234.133 | P47: =K47-L47 -> -7834501.871 | Q47: =K47+L47 -> 7727401.859 | R47: =M47-N47 -> 1071869.678 | S47: =M47+N47 -> 8547188.743 | T47: =R47-Q47 -> -6655532.181 | U47: =S47-P47 -> 16381690.61 | V47: =T47-Q47 -> -14382934.04
A48: 116 | B48: 4.803152608 | C48: 342.0437019 | D48: =C48-D$5 -> 341.0364019 | E48: =C48-E$5 -> 324.0099019 | F48: 28148749.75 | G48: 36105917.83 | H48: 22297216.11 | I48: 36650398.04 | J48: 42351195.87 | K48: 34078269.66 | L48: =STDEV(E48:G48) -> 18970434.46 | M48: =STDEV(F48:H48) -> 6931055.869 | N48: =STDEV(H48:J48) -> 10333400.79 | O48: =STDEV(I48:K48) -> 4233915.61 | P48: =K48-L48 -> 15107835.2 | Q48: =K48+L48 -> 53048704.11 | R48: =M48-N48 -> -3402344.92 | S48: =M48+N48 -> 17264456.66 | T48: =R48-Q48 -> -56451049.03 | U48: =S48-P48 -> 2156621.458 | V48: =T48-Q48 -> -109499753.1
A49: 344 | B49: 3.130073808 | C49: 788.6127063 | D49: =C49-D$5 -> 787.6054063 | E49: =C49-E$5 -> 770.5789063 | F49: 37773601.43 | G49: 41489158.33 | H49: 29198869.58 | I49: 29506583.6 | J49: 31475655.29 | K49: 22787412.36 | L49: =STDEV(E49:G49) -> 22956039.26 | M49: =STDEV(F49:H49) -> 6303208.004 | N49: =STDEV(H49:J49) -> 1235292.436 | O49: =STDEV(I49:K49) -> 4555401.018 | P49: =K49-L49 -> -168626.8996 | Q49: =K49+L49 -> 45743451.63 | R49: =M49-N49 -> 5067915.569 | S49: =M49+N49 -> 7538500.44 | T49: =R49-Q49 -> -40675536.06 | U49: =S49-P49 -> 7707127.34 | V49: =T49-Q49 -> -86418987.69
A50: 138 | B50: 10.612104 | C50: 375.0397404 | D50: =C50-D$5 -> 374.0324404 | E50: =C50-E$5 -> 357.0059404 | F50: 5096812.275 | G50: 10811976.84 | H50: 5790713.046 | I50: 6404864.382 | J50: 879556.0224 | K50: 25816.3896 | L50: =STDEV(E50:G50) -> 5408759.652 | M50: =STDEV(F50:H50) -> 3118698.832 | N50: =STDEV(H50:J50) -> 3028357.025 | O50: =STDEV(I50:K50) -> 3462902.374 | P50: =K50-L50 -> -5382943.262 | Q50: =K50+L50 -> 5434576.042 | R50: =M50-N50 -> 90341.80683 | S50: =M50+N50 -> 6147055.858 | T50: =R50-Q50 -> -5344234.235 | U50: =S50-P50 -> 11529999.12 | V50: =T50-Q50 -> -10778810.28
A51: 45 | B51: 9.18128559 | C51: 187.9984295 | D51: =C51-D$5 -> 186.9911295 | E51: =C51-E$5 -> 169.9646295 | F51: 3793193.76 | G51: 41038897.44 | H51: 42295679.98 | I51: 69184049.08 | J51: 6098767.171 | K51: 58005.70161 | L51: =STDEV(E51:G51) -> 22678207.69 | M51: =STDEV(F51:H51) -> 21875646.24 | N51: =STDEV(H51:J51) -> 31656894.15 | O51: =STDEV(I51:K51) -> 38285448.64 | P51: =K51-L51 -> -22620201.99 | Q51: =K51+L51 -> 22736213.39 | R51: =M51-N51 -> -9781247.912 | S51: =M51+N51 -> 53532540.39 | T51: =R51-Q51 -> -32517461.31 | U51: =S51-P51 -> 76152742.38 | V51: =T51-Q51 -> -55253674.7
A52: 221 | B52: 3.611911693 | C52: 522.3542521 | D52: =C52-D$5 -> 521.3469521 | E52: =C52-E$5 -> 504.3204521 | F52: 26306182.93 | G52: 18875725.24 | H52: 37837924.28 | I52: 28892075.42 | J52: 54491730 | K52: 51954461.56 | L52: =STDEV(E52:G52) -> 13561430.56 | M52: =STDEV(F52:H52) -> 9554734.889 | N52: =STDEV(H52:J52) -> 12991790.82 | O52: =STDEV(I52:K52) -> 14104690.12 | P52: =K52-L52 -> 38393031 | Q52: =K52+L52 -> 65515892.12 | R52: =M52-N52 -> -3437055.926 | S52: =M52+N52 -> 22546525.7 | T52: =R52-Q52 -> -68952948.05 | U52: =S52-P52 -> -15846505.3 | V52: =T52-Q52 -> -134468840.2
A53: 47 | B53: 5.156028367 | C53: 193.085593 | D53: =C53-D$5 -> 192.078293 | E53: =C53-E$5 -> 175.051793 | F53: 22696809.16 | G53: 58679886.29 | H53: 13114850.6 | I53: 27323424.75 | J53: 17631408.79 | K53: 12186567.85 | L53: =STDEV(E53:G53) -> 29589490.11 | M53: =STDEV(F53:H53) -> 24023489.36 | N53: =STDEV(H53:J53) -> 7259683.769 | O53: =STDEV(I53:K53) -> 7667093.138 | P53: =K53-L53 -> -17402922.27 | Q53: =K53+L53 -> 41776057.96 | R53: =M53-N53 -> 16763805.59 | S53: =M53+N53 -> 31283173.13 | T53: =R53-Q53 -> -25012252.37 | U53: =S53-P53 -> 48686095.4 | V53: =T53-Q53 -> -66788310.33
A54: 141 | B54: 4.47455155 | C54: 376.3566253 | D54: =C54-D$5 -> 375.3493253 | E54: =C54-E$5 -> 358.3228253 | F54: 50656201.01 | G54: 31659578.59 | H54: 80184199.01 | I54: 59205886.6 | J54: 106185642.3 | K54: 102870356.9 | L54: =STDEV(E54:G54) -> 25590337.66 | M54: =STDEV(F54:H54) -> 24452038.49 | N54: =STDEV(H54:J54) -> 23534591.88 | O54: =STDEV(I54:K54) -> 26219186.77 | P54: =K54-L54 -> 77280019.25 | Q54: =K54+L54 -> 128460694.6 | R54: =M54-N54 -> 917446.6099 | S54: =M54+N54 -> 47986630.36 | T54: =R54-Q54 -> -127543248 | U54: =S54-P54 -> -29293388.88 | V54: =T54-Q54 -> -256003942.5
A55: 109 | B55: 4.776108482 | C55: 336.0526688 | D55: =C55-D$5 -> 335.0453688 | E55: =C55-E$5 -> 318.0188688 | F55: 57534990.18 | G55: 72160536.19 | H55: 47826003.64 | I55: 73170521.08 | J55: 88977145.53 | K55: 65455396.81 | L55: =STDEV(E55:G55) -> 38147175.92 | M55: =STDEV(F55:H55) -> 12249765.24 | N55: =STDEV(H55:J55) -> 20758975.65 | O55: =STDEV(I55:K55) -> 11990587.85 | P55: =K55-L55 -> 27308220.89 | Q55: =K55+L55 -> 103602572.7 | R55: =M55-N55 -> -8509210.408 | S55: =M55+N55 -> 33008740.89 | T55: =R55-Q55 -> -112111783.1 | U55: =S55-P55 -> 5700520.003 | V55: =T55-Q55 -> -215714355.9
A56: 50 | B56: 12.33652927 | C56: 201.0608133 | D56: =C56-D$5 -> 200.0535133 | E56: =C56-E$5 -> 183.0270133 | F56: 102938.5444 | G56: 9134042.472 | H56: 233188.5098 | I56: 6472947.648 | J56: -33250.88858 | K56: 42689.19654 | L56: =STDEV(E56:G56) -> 5244024.937 | M56: =STDEV(F56:H56) -> 5176920.006 | N56: =STDEV(H56:J56) -> 3681851.967 | O56: =STDEV(I56:K56) -> 3734626.489 | P56: =K56-L56 -> -5201335.74 | Q56: =K56+L56 -> 5286714.133 | R56: =M56-N56 -> 1495068.038 | S56: =M56+N56 -> 8858771.973 | T56: =R56-Q56 -> -3791646.095 | U56: =S56-P56 -> 14060107.71 | V56: =T56-Q56 -> -9078360.228
A57: 51 | B57: 8.838174545 | C57: 204.0864002 | D57: =C57-D$5 -> 203.0791002 | E57: =C57-E$5 -> 186.0526002 | F57: 35152.98165 | G57: -103344.2754 | H57: 13949.65973 | I57: -44881.50602 | J57: -34968.18188 | K57: 51022484.85 | L57: =STDEV(E57:G57) -> 72021.64621 | M57: =STDEV(F57:H57) -> 74597.74156 | N57: =STDEV(H57:J57) -> 31496.91859 | O57: =STDEV(I57:K57) -> 29480896.4 | P57: =K57-L57 -> 50950463.21 | Q57: =K57+L57 -> 51094506.5 | R57: =M57-N57 -> 43100.82297 | S57: =M57+N57 -> 106094.6602 | T57: =R57-Q57 -> -51051405.68 | U57: =S57-P57 -> -50844368.55 | V57: =T57-Q57 -> -102145912.2
A58: 165 | B58: 2.92551156 | C58: 413.2656247 | D58: =C58-D$5 -> 412.2583247 | E58: =C58-E$5 -> 395.2318247 | F58: 7280528.748 | G58: 1965690.006 | H58: 13293160.9 | I58: 9716019.143 | J58: 15358789.5 | K58: 19305951.58 | L58: =STDEV(E58:G58) -> 3766303.192 | M58: =STDEV(F58:H58) -> 5667316.432 | N58: =STDEV(H58:J58) -> 2854926.21 | O58: =STDEV(I58:K58) -> 4819885.023 | P58: =K58-L58 -> 15539648.38 | Q58: =K58+L58 -> 23072254.77 | R58: =M58-N58 -> 2812390.222 | S58: =M58+N58 -> 8522242.642 | T58: =R58-Q58 -> -20259864.55 | U58: =S58-P58 -> -7017405.741 | V58: =T58-Q58 -> -43332119.31
A59: 53 | B59: 10.29884247 | C59: 204.9220881 | D59: =C59-D$5 -> 203.9147881 | E59: =C59-E$5 -> 186.8882881 | F59: 470304.0261 | G59: 9448652.379 | H59: 2194322.46 | I59: 18839001.73 | J59: 14161.35573 | K59: -4810.612069 | L59: =STDEV(E59:G59) -> 5324553.963 | M59: =STDEV(F59:H59) -> 4764596.543 | N59: =STDEV(H59:J59) -> 10297030.84 | O59: =STDEV(I59:K59) -> 10874007.53 | P59: =K59-L59 -> -5329364.575 | Q59: =K59+L59 -> 5319743.351 | R59: =M59-N59 -> -5532434.302 | S59: =M59+N59 -> 15061627.39 | T59: =R59-Q59 -> -10852177.65 | U59: =S59-P59 -> 20390991.96 | V59: =T59-Q59 -> -16171921
A60: 272 | B60: 7.276565528 | C60: 664.4561078 | D60: =C60-D$5 -> 663.4488078 | E60: =C60-E$5 -> 646.4223078 | F60: 23380220.98 | G60: 16513319.8 | H60: 41039545.46 | I60: 34104562.42 | J60: 82572009.08 | K60: 50520535.74 | L60: =STDEV(E60:G60) -> 12016843.88 | M60: =STDEV(F60:H60) -> 12652679.68 | N60: =STDEV(H60:J60) -> 26211107.41 | O60: =STDEV(I60:K60) -> 24650471.63 | P60: =K60-L60 -> 38503691.86 | Q60: =K60+L60 -> 62537379.61 | R60: =M60-N60 -> -13558427.73 | S60: =M60+N60 -> 38863787.09 | T60: =R60-Q60 -> -76095807.34 | U60: =S60-P60 -> 360095.2269 | V60: =T60-Q60 -> -138633187
A61: 203 | B61: 3.661431689 | C61: 496.3387918 | D61: =C61-D$5 -> 495.3314918 | E61: =C61-E$5 -> 478.3049918 | F61: 23122478.84 | G61: 20791269.63 | H61: 32377122.91 | I61: 25738530.39 | J61: 47207992.36 | K61: 43641077.67 | L61: =STDEV(E61:G61) -> 12730006.87 | M61: =STDEV(F61:H61) -> 6128009.054 | N61: =STDEV(H61:J61) -> 10992144.14 | O61: =STDEV(I61:K61) -> 11504795.21 | P61: =K61-L61 -> 30911070.8 | Q61: =K61+L61 -> 56371084.53 | R61: =M61-N61 -> -4864135.085 | S61: =M61+N61 -> 17120153.19 | T61: =R61-Q61 -> -61235219.62 | U61: =S61-P61 -> -13790917.61 | V61: =T61-Q61 -> -117606304.2
A62: 114 | B62: 2.602347143 | C62: 339.2889092 | D62: =C62-D$5 -> 338.2816092 | E62: =C62-E$5 -> 321.2551092 | F62: 1307940.929 | G62: -97846.64774 | H62: 4075777.988 | I62: 2741338.023 | J62: 5416778.424 | K62: 4666635.776 | L62: =STDEV(E62:G62) -> 784829.5844 | M62: =STDEV(F62:H62) -> 2123530.994 | N62: =STDEV(H62:J62) -> 1337721.541 | O62: =STDEV(I62:K62) -> 1380064.417 | P62: =K62-L62 -> 3881806.191 | Q62: =K62+L62 -> 5451465.36 | R62: =M62-N62 -> 785809.4533 | S62: =M62+N62 -> 3461252.535 | T62: =R62-Q62 -> -4665655.907 | U62: =S62-P62 -> -420553.6562 | V62: =T62-Q62 -> -10117121.27
A63: 57 | B63: 11.53619605 | C63: 218.1383655 | D63: =C63-D$5 -> 217.1310655 | E63: =C63-E$5 -> 200.1045655 | F63: 11823.13361 | G63: -215391.3592 | H63: 92008.03632 | I63: 24647.75077 | J63: 360008.2139 | K63: 51037906.31 | L63: =STDEV(E63:G63) -> 127959.1079 | M63: =STDEV(F63:H63) -> 159452.4133 | N63: =STDEV(H63:J63) -> 177401.6833 | O63: =STDEV(I63:K63) -> 29356187.23 | P63: =K63-L63 -> 50909947.2 | Q63: =K63+L63 -> 51165865.42 | R63: =M63-N63 -> -17949.27001 | S63: =M63+N63 -> 336854.0967 | T63: =R63-Q63 -> -51183814.69 | U63: =S63-P63 -> -50573093.11 | V63: =T63-Q63 -> -102349680.1
A64: 305 | B64: 2.839546789 | C64: 721.5061881 | D64: =C64-D$5 -> 720.4988881 | E64: =C64-E$5 -> 703.4723881 | F64: 5187169.307 | G64: 2375706.835 | H64: 11352565.2 | I64: 8916743.791 | J64: 25085034 | K64: 13713888.9 | L64: =STDEV(E64:G64) -> 2596291.909 | M64: =STDEV(F64:H64) -> 4591666.616 | N64: =STDEV(H64:J64) -> 8717105.153 | O64: =STDEV(I64:K64) -> 8303906.212 | P64: =K64-L64 -> 11117596.99 | Q64: =K64+L64 -> 16310180.81 | R64: =M64-N64 -> -4125438.537 | S64: =M64+N64 -> 13308771.77 | T64: =R64-Q64 -> -20435619.35 | U64: =S64-P64 -> 2191174.775 | V64: =T64-Q64 -> -36745800.16
A65: 112 | B65: 4.73510799 | C65: 338.0496271 | D65: =C65-D$5 -> 337.0423271 | E65: =C65-E$5 -> 320.0158271 | F65: 125183358.1 | G65: 154380045.9 | H65: 103372030.7 | I65: 156176656.7 | J65: 183221796.7 | K65: 140028077.1 | L65: =STDEV(E65:G65) -> 82012539.04 | M65: =STDEV(F65:H65) -> 25592961.9 | N65: =STDEV(H65:J65) -> 40611478.8 | O65: =STDEV(I65:K65) -> 21824732.29 | P65: =K65-L65 -> 58015538.08 | Q65: =K65+L65 -> 222040616.2 | R65: =M65-N65 -> -15018516.9 | S65: =M65+N65 -> 66204440.7 | T65: =R65-Q65 -> -237059133.1 | U65: =S65-P65 -> 8188902.626 | V65: =T65-Q65 -> -459099749.2
A66: 283 | B66: 3.417657566 | C66: 680.4790142 | D66: =C66-D$5 -> 679.4717142 | E66: =C66-E$5 -> 662.4452142 | F66: 10915526.88 | G66: 6563430.954 | H66: 21868760.56 | I66: 16343098.73 | J66: 44455220.75 | K66: 26989209.68 | L66: =STDEV(E66:G66) -> 5494617.597 | M66: =STDEV(F66:H66) -> 7886350.881 | N66: =STDEV(H66:J66) -> 14893916.7 | O66: =STDEV(I66:K66) -> 14193264.99 | P66: =K66-L66 -> 21494592.08 | Q66: =K66+L66 -> 32483827.28 | R66: =M66-N66 -> -7007565.816 | S66: =M66+N66 -> 22780267.58 | T66: =R66-Q66 -> -39491393.09 | U66: =S66-P66 -> 1285675.497 | V66: =T66-Q66 -> -71975220.37
A67: 61 | B67: 15.65372027 | C67: 224.1278464 | D67: =C67-D$5 -> 223.1205464 | E67: =C67-E$5 -> 206.0940464 | F67: -105865.9798 | G67: 204304.1677 | H67: 147509.4839 | I67: -186338.9541 | J67: -26273.39878 | K67: 23711630.15 | L67: =STDEV(E67:G67) -> 157645.6094 | M67: =STDEV(F67:H67) -> 165141.496 | N67: =STDEV(H67:J67) -> 166971.1811 | O67: =STDEV(I67:K67) -> 13751524.85 | P67: =K67-L67 -> 23553984.54 | Q67: =K67+L67 -> 23869275.76 | R67: =M67-N67 -> -1829.685152 | S67: =M67+N67 -> 332112.6771 | T67: =R67-Q67 -> -23871105.45 | U67: =S67-P67 -> -23221871.87 | V67: =T67-Q67 -> -47740381.21
A68: 115 | B68: 4.772732058 | C68: 340.0471021 | D68: =C68-D$5 -> 339.0398021 | E68: =C68-E$5 -> 322.0133021 | F68: 97720280.95 | G68: 120518901.2 | H68: 81172885.08 | I68: 121916990.4 | J68: 141954169.2 | K68: 108628679.7 | L68: =STDEV(E68:G68) -> 64023036.73 | M68: =STDEV(F68:H68) -> 19755599.97 | N68: =STDEV(H68:J68) -> 30972932.14 | O68: =STDEV(I68:K68) -> 16776252.98 | P68: =K68-L68 -> 44605643.02 | Q68: =K68+L68 -> 172651716.5 | R68: =M68-N68 -> -11217332.18 | S68: =M68+N68 -> 50728532.11 | T68: =R68-Q68 -> -183869048.6 | U68: =S68-P68 -> 6122889.091 | V68: =T68-Q68 -> -356520765.1
A69: 63 | B69: 9.193268421 | C69: 229.0249947 | D69: =C69-D$5 -> 228.0176947 | E69: =C69-E$5 -> 210.9911947 | F69: 83590.89854 | G69: -71790.9547 | H69: -20297.41483 | I69: 6604049.72 | J69: -65682.35041 | K69: 32458.36765 | L69: =STDEV(E69:G69) -> 77760.32566 | M69: =STDEV(F69:H69) -> 79149.52792 | N69: =STDEV(H69:J69) -> 3837737.195 | O69: =STDEV(I69:K69) -> 3822755.777 | P69: =K69-L69 -> -45301.95801 | Q69: =K69+L69 -> 110218.6933 | R69: =M69-N69 -> -3758587.667 | S69: =M69+N69 -> 3916886.723 | T69: =R69-Q69 -> -3868806.36 | U69: =S69-P69 -> 3962188.681 | V69: =T69-Q69 -> -3979025.053
A70: 64 | B70: 9.790988929 | C70: 232.15398 | D70: =C70-D$5 -> 231.14668 | E70: =C70-E$5 -> 214.12018 | F70: -110207.6232 | G70: 16057.02513 | H70: 134833.5598 | I70: 105436.8947 | J70: 4121.901247 | K70: 25841981.1 | L70: =STDEV(E70:G70) -> 68783.13803 | M70: =STDEV(F70:H70) -> 122539.6589 | N70: =STDEV(H70:J70) -> 68574.08343 | O70: =STDEV(I70:K70) -> 14888334.02 | P70: =K70-L70 -> 25773197.96 | Q70: =K70+L70 -> 25910764.23 | R70: =M70-N70 -> 53965.57544 | S70: =M70+N70 -> 191113.7423 | T70: =R70-Q70 -> -25856798.66 | U70: =S70-P70 -> -25582084.22 | V70: =T70-Q70 -> -51767562.89
A71: 142 | B71: 4.436838632 | C71: 377.3600101 | D71: =C71-D$5 -> 376.3527101 | E71: =C71-E$5 -> 359.3262101 | F71: 4865897.425 | G71: -11030.98035 | H71: 13333775.89 | I71: 7073004.784 | J71: 17276801.6 | K71: 19337018.16 | L71: =STDEV(E71:G71) -> 2812413.596 | M71: =STDEV(F71:H71) -> 6752447.294 | N71: =STDEV(H71:J71) -> 5145583.481 | O71: =STDEV(I71:K71) -> 6567191 | P71: =K71-L71 -> 16524604.56 | Q71: =K71+L71 -> 22149431.75 | R71: =M71-N71 -> 1606863.813 | S71: =M71+N71 -> 11898030.78 | T71: =R71-Q71 -> -20542567.94 | U71: =S71-P71 -> -4626573.786 | V71: =T71-Q71 -> -42691999.69
A72: 66 | B72: 3.842924828 | C72: 240.2319183 | D72: =C72-D$5 -> 239.2246183 | E72: =C72-E$5 -> 222.1981183 | F72: -112791.1805 | G72: 438216.4275 | H72: 44239.04415 | I72: 25083603.63 | J72: 388973.6618 | K72: -71919.73391 | L72: =STDEV(E72:G72) -> 291038.4719 | M72: =STDEV(F72:H72) -> 283867.9429 | N72: =STDEV(H72:J72) -> 14358002.24 | O72: =STDEV(I72:K72) -> 14392344.77 | P72: =K72-L72 -> -362958.2058 | Q72: =K72+L72 -> 219118.738 | R72: =M72-N72 -> -14074134.3 | S72: =M72+N72 -> 14641870.18 | T72: =R72-Q72 -> -14293253.04 | U72: =S72-P72 -> 15004828.39 | V72: =T72-Q72 -> -14512371.77
A73: 67 | B73: 9.087953652 | C73: 240.966809 | D73: =C73-D$5 -> 239.959509 | E73: =C73-E$5 -> 222.933009 | F73: 106220741 | G73: 160668793.7 | H73: 159015374.7 | I73: 183596599.6 | J73: 181153917.5 | K73: -122559.405 | L73: =STDEV(E73:G73) -> 81712686.21 | M73: =STDEV(F73:H73) -> 30969333.15 | N73: =STDEV(H73:J73) -> 13542023.43 | O73: =STDEV(I73:K73) -> 105372242.7 | P73: =K73-L73 -> -81835245.62 | Q73: =K73+L73 -> 81590126.81 | R73: =M73-N73 -> 17427309.72 | S73: =M73+N73 -> 44511356.58 | T73: =R73-Q73 -> -64162817.09 | U73: =S73-P73 -> 126346602.2 | V73: =T73-Q73 -> -145752943.9
A74: 68 | B74: 8.717732 | C74: 246.1695501 | D74: =C74-D$5 -> 245.1622501 | E74: =C74-E$5 -> 228.1357501 | F74: 4288.90062 | G74: 16468.14862 | H74: 29646.78471 | I74: -47270.90219 | J74: -101942.6807 | K74: 12681088.81 | L74: =STDEV(E74:G74) -> 8451.448706 | M74: =STDEV(F74:H74) -> 12682.22389 | N74: =STDEV(H74:J74) -> 66107.38904 | O74: =STDEV(I74:K74) -> 7364555.023 | P74: =K74-L74 -> 12672637.36 | Q74: =K74+L74 -> 12689540.26 | R74: =M74-N74 -> -53425.16515 | S74: =M74+N74 -> 78789.61293 | T74: =R74-Q74 -> -12742965.42 | U74: =S74-P74 -> -12593847.75 | V74: =T74-Q74 -> -25432505.68
A75: 69 | B75: 10.52864366 | C75: 246.9324748 | D75: =C75-D$5 -> 245.9251748 | E75: =C75-E$5 -> 228.8986748 | F75: 96205194.13 | G75: 162410226 | H75: 106640436.1 | I75: 210436954.3 | J75: 105789456.7 | K75: -174619.3603 | L75: =STDEV(E75:G75) -> 81665485.1 | M75: =STDEV(F75:H75) -> 35595575.55 | N75: =STDEV(H75:J75) -> 60174108.68 | O75: =STDEV(I75:K75) -> 105306472.7 | P75: =K75-L75 -> -81840104.46 | Q75: =K75+L75 -> 81490865.74 | R75: =M75-N75 -> -24578533.13 | S75: =M75+N75 -> 95769684.23 | T75: =R75-Q75 -> -106069398.9 | U75: =S75-P75 -> 177609788.7 | V75: =T75-Q75 -> -187560264.6
A76: 46 | B76: 10.76914808 | C76: 192.024075 | D76: =C76-D$5 -> 191.016775 | E76: =C76-E$5 -> 173.990275 | F76: 39500045.08 | G76: 52318165.27 | H76: 31852464.97 | I76: 30069529.93 | J76: 33955092.14 | K76: 4844.96315 | L76: =STDEV(E76:G76) -> 27269385.26 | M76: =STDEV(F76:H76) -> 10341136.1 | N76: =STDEV(H76:J76) -> 1944971.806 | O76: =STDEV(I76:K76) -> 18581362.34 | P76: =K76-L76 -> -27264540.29 | Q76: =K76+L76 -> 27274230.22 | R76: =M76-N76 -> 8396164.298 | S76: =M76+N76 -> 12286107.91 | T76: =R76-Q76 -> -18878065.92 | U76: =S76-P76 -> 39550648.2 | V76: =T76-Q76 -> -46152296.14
A77: 49 | B77: 17.55134754 | C77: 198.1849226 | D77: =C77-D$5 -> 197.1776226 | E77: =C77-E$5 -> 180.1511226 | F77: 14706153.43 | G77: 19504687.77 | H77: 12120006.22 | I77: 14823226.43 | J77: 25779312.22 | K77: 27306292.9 | L77: =STDEV(E77:G77) -> 10162983.48 | M77: =STDEV(F77:H77) -> 3747168.064 | N77: =STDEV(H77:J77) -> 7233254.866 | O77: =STDEV(I77:K77) -> 6809239.243 | P77: =K77-L77 -> 17143309.42 | Q77: =K77+L77 -> 37469276.38 | R77: =M77-N77 -> -3486086.802 | S77: =M77+N77 -> 10980422.93 | T77: =R77-Q77 -> -40955363.18 | U77: =S77-P77 -> -6162886.487 | V77: =T77-Q77 -> -78424639.57
A78: 130 | B78: 4.103373931 | C78: 360.361851 | D78: =C78-D$5 -> 359.354551 | E78: =C78-E$5 -> 342.328051 | F78: 255648482.3 | G78: 162603826 | H78: 403551707 | I78: 305143842.1 | J78: 498868566.8 | K78: 422369532.8 | L78: =STDEV(E78:G78) -> 129391635.8 | M78: =STDEV(F78:H78) -> 121510324.2 | N78: =STDEV(H78:J78) -> 96866472.14 | O78: =STDEV(I78:K78) -> 97573249.13 | P78: =K78-L78 -> 292977897.1 | Q78: =K78+L78 -> 551761168.6 | R78: =M78-N78 -> 24643852.07 | S78: =M78+N78 -> 218376796.3 | T78: =R78-Q78 -> -527117316.5 | U78: =S78-P78 -> -74601100.74 | V78: =T78-Q78 -> -1078878485
A79: 73 | B79: 9.101589088 | C79: 255.9857867 | D79: =C79-D$5 -> 254.9784867 | E79: =C79-E$5 -> 237.9519867 | F79: 2115291.441 | G79: 29451958.21 | H79: 28045476.16 | I79: 54224750.5 | J79: 4533604.077 | K79: 30986.50916 | L79: =STDEV(E79:G79) -> 16427470.02 | M79: =STDEV(F79:H79) -> 15392888.08 | N79: =STDEV(H79:J79) -> 24857502.45 | O79: =STDEV(I79:K79) -> 30073375.97 | P79: =K79-L79 -> -16396483.51 | Q79: =K79+L79 -> 16458456.53 | R79: =M79-N79 -> -9464614.36 | S79: =M79+N79 -> 40250390.53 | T79: =R79-Q79 -> -25923070.89 | U79: =S79-P79 -> 56646874.04 | V79: =T79-Q79 -> -42381527.42
A80: 48 | B80: 3.306857438 | C80: 195.1489223 | D80: =C80-D$5 -> 194.1416223 | E80: =C80-E$5 -> 177.1151223 | F80: 9344610.175 | G80: 5278062.573 | H80: 6873213.967 | I80: 5403329.464 | J80: 28101056.28 | K80: 34428105.17 | L80: =STDEV(E80:G80) -> 4685283.939 | M80: =STDEV(F80:H80) -> 2048947.558 | N80: =STDEV(H80:J80) -> 12701500.26 | O80: =STDEV(I80:K80) -> 15262459.15 | P80: =K80-L80 -> 29742821.23 | Q80: =K80+L80 -> 39113389.11 | R80: =M80-N80 -> -10652552.7 | S80: =M80+N80 -> 14750447.81 | T80: =R80-Q80 -> -49765941.81 | U80: =S80-P80 -> -14992373.42 | V80: =T80-Q80 -> -88879330.92
A81: 60 | B81: 3.313742206 | C81: 222.1598084 | D81: =C81-D$5 -> 221.1525084 | E81: =C81-E$5 -> 204.1260084 | F81: 10556244.67 | G81: 6114226.711 | H81: 7440549.345 | I81: 5667090.14 | J81: 32053414.26 | K81: 37878959.09 | L81: =STDEV(E81:G81) -> 5300043.831 | M81: =STDEV(F81:H81) -> 2280285.531 | N81: =STDEV(H81:J81) -> 14748877.8 | O81: =STDEV(I81:K81) -> 17164787.48 | P81: =K81-L81 -> 32578915.26 | Q81: =K81+L81 -> 43179002.92 | R81: =M81-N81 -> -12468592.27 | S81: =M81+N81 -> 17029163.33 | T81: =R81-Q81 -> -55647595.19 | U81: =S81-P81 -> -15549751.93 | V81: =T81-Q81 -> -98826598.11
A82: 76 | B82: 5.500011765 | C82: 261.1306691 | D82: =C82-D$5 -> 260.1233691 | E82: =C82-E$5 -> 243.0968691 | F82: 598257.6269 | G82: -82116.83846 | H82: 48270.0271 | I82: 6530790.289 | J82: -734.6743774 | K82: 46229.58441 | L82: =STDEV(E82:G82) -> 371329.5819 | M82: =STDEV(F82:H82) -> 361108.5958 | N82: =STDEV(H82:J82) -> 3756911.159 | O82: =STDEV(I82:K82) -> 3757493.658 | P82: =K82-L82 -> -325099.9974 | Q82: =K82+L82 -> 417559.1663 | R82: =M82-N82 -> -3395802.564 | S82: =M82+N82 -> 4118019.755 | T82: =R82-Q82 -> -3813361.73 | U82: =S82-P82 -> 4443119.753 | V82: =T82-Q82 -> -4230920.896
A83: 131 | B83: 3.998390747 | C83: 361.3653028 | D83: =C83-D$5 -> 360.3580028 | E83: =C83-E$5 -> 343.3315028 | F83: 54640309.23 | G83: 26712482.89 | H83: 94279826.6 | I83: 65574695.96 | J83: 115118174 | K83: 101826584.4 | L83: =STDEV(E83:G83) -> 27322236.85 | M83: =STDEV(F83:H83) -> 33952419.55 | N83: =STDEV(H83:J83) -> 24875615.44 | O83: =STDEV(I83:K83) -> 25643134.17 | P83: =K83-L83 -> 74504347.51 | Q83: =K83+L83 -> 129148821.2 | R83: =M83-N83 -> 9076804.106 | S83: =M83+N83 -> 58828034.99 | T83: =R83-Q83 -> -120072017.1 | U83: =S83-P83 -> -15676312.52 | V83: =T83-Q83 -> -249220838.3
A84: 195 | B84: 3.66688403 | C84: 482.3598305 | D84: =C84-D$5 -> 481.3525305 | E84: =C84-E$5 -> 464.3260305 | F84: 2328470.669 | G84: 2203425.765 | H84: 5762749.281 | I84: 2897299.089 | J84: 8418377.885 | K84: 8878053.435 | L84: =STDEV(E84:G84) -> 1309471.195 | M84: =STDEV(F84:H84) -> 2019846.929 | N84: =STDEV(H84:J84) -> 2761203.819 | O84: =STDEV(I84:K84) -> 3328238.654 | P84: =K84-L84 -> 7568582.24 | Q84: =K84+L84 -> 10187524.63 | R84: =M84-N84 -> -741356.8894 | S84: =M84+N84 -> 4781050.748 | T84: =R84-Q84 -> -10928881.52 | U84: =S84-P84 -> -2787531.492 | V84: =T84-Q84 -> -21116406.15
A85: 395 | B85: 17.81064907 | C85: 933.367003 | D85: =C85-D$5 -> 932.359703 | E85: =C85-E$5 -> 915.333203 | F85: 13374820.15 | G85: 12268995.03 | H85: 11739830.9 | I85: 12207443.34 | J85: 20692028.55 | K85: 16910231.74 | L85: =STDEV(E85:G85) -> 7422824.694 | M85: =STDEV(F85:H85) -> 834271.5126 | N85: =STDEV(H85:J85) -> 5038992.798 | O85: =STDEV(I85:K85) -> 4250615.487 | P85: =K85-L85 -> 9487407.047 | Q85: =K85+L85 -> 24333056.44 | R85: =M85-N85 -> -4204721.285 | S85: =M85+N85 -> 5873264.31 | T85: =R85-Q85 -> -28537777.72 | U85: =S85-P85 -> -3614142.736 | V85: =T85-Q85 -> -52870834.16
A86: 196 | B86: 14.06936333 | C86: 484.9750498 | D86: =C86-D$5 -> 483.9677498 | E86: =C86-E$5 -> 466.9412498 | F86: 8311027.509 | G86: 12533242.69 | H86: 5308136.614 | I86: -47336.14431 | J86: 4189944.264 | K86: 8385342.551 | L86: =STDEV(E86:G86) -> 6376558.449 | M86: =STDEV(F86:H86) -> 3629660.511 | N86: =STDEV(H86:J86) -> 2825066.013 | O86: =STDEV(I86:K86) -> 4216356.682 | P86: =K86-L86 -> 2008784.101 | Q86: =K86+L86 -> 14761901 | R86: =M86-N86 -> 804594.4988 | S86: =M86+N86 -> 6454726.524 | T86: =R86-Q86 -> -13957306.5 | U86: =S86-P86 -> 4445942.423 | V86: =T86-Q86 -> -28719207.5
A87: 127 | B87: 10.57568571 | C87: 353.0579859 | D87: =C87-D$5 -> 352.0506859 | E87: =C87-E$5 -> 335.0241859 | F87: 10498380.88 | G87: 13380121.32 | H87: 6674226.361 | I87: 5366225.488 | J87: 10183055.93 | K87: 6269.913816 | L87: =STDEV(E87:G87) -> 7041922.986 | M87: =STDEV(F87:H87) -> 3363966.235 | N87: =STDEV(H87:J87) -> 2490803.308 | O87: =STDEV(I87:K87) -> 5090807.94 | P87: =K87-L87 -> -7035653.072 | Q87: =K87+L87 -> 7048192.9 | R87: =M87-N87 -> 873162.9263 | S87: =M87+N87 -> 5854769.543 | T87: =R87-Q87 -> -6175029.974 | U87: =S87-P87 -> 12890422.62 | V87: =T87-Q87 -> -13223222.87
A88: 146 | B88: 2.612392518 | C88: 385.2730515 | D88: =C88-D$5 -> 384.2657515 | E88: =C88-E$5 -> 367.2392515 | F88: 10300773.31 | G88: 6830560.384 | H88: 20425904.45 | I88: 12842097.67 | J88: 23323789.93 | K88: 23790024.84 | L88: =STDEV(E88:G88) -> 5240742.337 | M88: =STDEV(F88:H88) -> 7063922.879 | N88: =STDEV(H88:J88) -> 5412604.705 | O88: =STDEV(I88:K88) -> 6190589.054 | P88: =K88-L88 -> 18549282.51 | Q88: =K88+L88 -> 29030767.18 | R88: =M88-N88 -> 1651318.174 | S88: =M88+N88 -> 12476527.58 | T88: =R88-Q88 -> -27379449.01 | U88: =S88-P88 -> -6072754.923 | V88: =T88-Q88 -> -56410216.19
A89: 83 | B89: 9.194213571 | C89: 271.0019749 | D89: =C89-D$5 -> 269.9946749 | E89: =C89-E$5 -> 252.9681749 | F89: -58130.34702 | G89: 646442.6177 | H89: 677492.7494 | I89: 13435581.06 | J89: 171790.865 | K89: 76928.16512 | L89: =STDEV(E89:G89) -> 391022.7481 | M89: =STDEV(F89:H89) -> 416038.5626 | N89: =STDEV(H89:J89) -> 7516123.579 | O89: =STDEV(I89:K89) -> 7685383.706 | P89: =K89-L89 -> -314094.583 | Q89: =K89+L89 -> 467950.9132 | R89: =M89-N89 -> -7100085.016 | S89: =M89+N89 -> 7932162.142 | T89: =R89-Q89 -> -7568035.93 | U89: =S89-P89 -> 8246256.725 | V89: =T89-Q89 -> -8035986.843
A90: 374 | B90: 3.086597322 | C90: 832.5848985 | D90: =C90-D$5 -> 831.5775985 | E90: =C90-E$5 -> 814.5510985 | F90: 50938938.71 | G90: 31839970.99 | H90: 68234504.26 | I90: 50921804.93 | J90: 93784883.15 | K90: 72692269.29 | L90: =STDEV(E90:G90) -> 25733230.6 | M90: =STDEV(F90:H90) -> 18204711.88 | N90: =STDEV(H90:J90) -> 21563066.01 | O90: =STDEV(I90:K90) -> 21432432.4 | P90: =K90-L90 -> 46959038.69 | Q90: =K90+L90 -> 98425499.89 | R90: =M90-N90 -> -3358354.129 | S90: =M90+N90 -> 39767777.89 | T90: =R90-Q90 -> -101783854 | U90: =S90-P90 -> -7191260.8 | V90: =T90-Q90 -> -200209353.9
A91: 275 | B91: 2.831014643 | C91: 665.4595816 | D91: =C91-D$5 -> 664.4522816 | E91: =C91-E$5 -> 647.4257816 | F91: 13863.38964 | G91: -102173.9713 | H91: 1362676.674 | I91: 363384.2023 | J91: 7470571.354 | K91: 3185040.885 | L91: =STDEV(E91:G91) -> 63523.71018 | M91: =STDEV(F91:H91) -> 814304.341 | N91: =STDEV(H91:J91) -> 3847446.6 | O91: =STDEV(I91:K91) -> 3578631.653 | P91: =K91-L91 -> 3121517.175 | Q91: =K91+L91 -> 3248564.595 | R91: =M91-N91 -> -3033142.259 | S91: =M91+N91 -> 4661750.942 | T91: =R91-Q91 -> -6281706.855 | U91: =S91-P91 -> 1540233.766 | V91: =T91-Q91 -> -9530271.45
A92: 318 | B92: 3.133520447 | C92: 746.6058309 | D92: =C92-D$5 -> 745.5985309 | E92: =C92-E$5 -> 728.5720309 | F92: 18869366.23 | G92: 23282578 | H92: 13404618.23 | I92: 14531988.01 | J92: 17425545.71 | K92: 7379440.721 | L92: =STDEV(E92:G92) -> 12366260.81 | M92: =STDEV(F92:H92) -> 4948299.337 | N92: =STDEV(H92:J92) -> 2074106.092 | O92: =STDEV(I92:K92) -> 5171328.557 | P92: =K92-L92 -> -4986820.087 | Q92: =K92+L92 -> 19745701.53 | R92: =M92-N92 -> 2874193.245 | S92: =M92+N92 -> 7022405.43 | T92: =R92-Q92 -> -16871508.28 | U92: =S92-P92 -> 12009225.52 | V92: =T92-Q92 -> -36617209.81
A93: 325 | B93: 3.146791512 | C93: 759.571846 | D93: =C93-D$5 -> 758.564546 | E93: =C93-E$5 -> 741.538046 | F93: 43119334.34 | G93: 36959304.06 | H93: 47129014.84 | I93: 46594502.44 | J93: 71189200.89 | K93: 46620908.16 | L93: =STDEV(E93:G93) -> 23320571.61 | M93: =STDEV(F93:H93) -> 5122605.586 | N93: =STDEV(H93:J93) -> 14047997.77 | O93: =STDEV(I93:K93) -> 14192139.24 | P93: =K93-L93 -> 23300336.54 | Q93: =K93+L93 -> 69941479.77 | R93: =M93-N93 -> -8925392.184 | S93: =M93+N93 -> 19170603.36 | T93: =R93-Q93 -> -78866871.96 | U93: =S93-P93 -> -4129733.187 | V93: =T93-Q93 -> -148808351.7
A94: 337 | B94: 17.43045359 | C94: 781.3192698 | D94: =C94-D$5 -> 780.3119698 | E94: =C94-E$5 -> 763.2854698 | F94: 36088804.84 | G94: 40958222.73 | H94: 38225152.18 | I94: 38332567.68 | J94: 53946658.45 | K94: 43513223.07 | L94: =STDEV(E94:G94) -> 22373985.85 | M94: =STDEV(F94:H94) -> 2440795.126 | N94: =STDEV(H94:J94) -> 9045967.133 | O94: =STDEV(I94:K94) -> 7952940.7 | P94: =K94-L94 -> 21139237.22 | Q94: =K94+L94 -> 65887208.93 | R94: =M94-N94 -> -6605172.007 | S94: =M94+N94 -> 11486762.26 | T94: =R94-Q94 -> -72492380.93 | U94: =S94-P94 -> -9652474.96 | V94: =T94-Q94 -> -138379589.9
A95: 89 | B95: 10.30447792 | C95: 287.9589388 | D95: =C95-D$5 -> 286.9516388 | E95: =C95-E$5 -> 269.9251388 | F95: 430051.606 | G95: 13485750.49 | H95: 2313418.252 | I95: 14588563.31 | J95: 93336.86501 | K95: -606.9317225 | L95: =STDEV(E95:G95) -> 7664791.491 | M95: =STDEV(F95:H95) -> 7057140.011 | N95: =STDEV(H95:J95) -> 7807256.637 | O95: =STDEV(I95:K95) -> 8396073.521 | P95: =K95-L95 -> -7665398.423 | Q95: =K95+L95 -> 7664184.559 | R95: =M95-N95 -> -750116.6259 | S95: =M95+N95 -> 14864396.65 | T95: =R95-Q95 -> -8414301.185 | U95: =S95-P95 -> 22529795.07 | V95: =T95-Q95 -> -16078485.74
A96: 205 | B96: 3.636868444 | C96: 497.3423475 | D96: =C96-D$5 -> 496.3350475 | E96: =C96-E$5 -> 479.3085475 | F96: 1179876.826 | G96: 163598.2338 | H96: 4482199.913 | I96: 1483095.353 | J96: 5537370.373 | K96: 6380123.277 | L96: =STDEV(E96:G96) -> 639062.9163 | M96: =STDEV(F96:H96) -> 2257892.838 | N96: =STDEV(H96:J96) -> 2103376.602 | O96: =STDEV(I96:K96) -> 2618150.138 | P96: =K96-L96 -> 5741060.361 | Q96: =K96+L96 -> 7019186.193 | R96: =M96-N96 -> 154516.2354 | S96: =M96+N96 -> 4361269.44 | T96: =R96-Q96 -> -6864669.958 | U96: =S96-P96 -> -1379790.92 | V96: =T96-Q96 -> -13883856.15
A97: 79 | B97: 6.850049202 | C97: 268.1036967 | D97: =C97-D$5 -> 267.0963967 | E97: =C97-E$5 -> 250.0698967 | F97: 30000456.16 | G97: 1878309.645 | H97: 30288252.98 | I97: 53286999.45 | J97: 84313981.34 | K97: 14106019.37 | L97: =STDEV(E97:G97) -> 16804734.44 | M97: =STDEV(F97:H97) -> 16320043.05 | N97: =STDEV(H97:J97) -> 27112098.37 | O97: =STDEV(I97:K97) -> 35182810.03 | P97: =K97-L97 -> -2698715.071 | Q97: =K97+L97 -> 30910753.81 | R97: =M97-N97 -> -10792055.32 | S97: =M97+N97 -> 43432141.43 | T97: =R97-Q97 -> -41702809.13 | U97: =S97-P97 -> 46130856.5 | V97: =T97-Q97 -> -72613562.94
A98: 222 | B98: 3.583141034 | C98: 523.3580228 | D98: =C98-D$5 -> 522.3507228 | E98: =C98-E$5 -> 505.3242228 | F98: 1999382.92 | G98: -29956.06194 | H98: 5170477.098 | I98: 1338881.927 | J98: 7254007.545 | K98: 9836089.029 | L98: =STDEV(E98:G98) -> 1162945.703 | M98: =STDEV(F98:H98) -> 2621022.703 | N98: =STDEV(H98:J98) -> 3000303.644 | O98: =STDEV(I98:K98) -> 4356190.698 | P98: =K98-L98 -> 8673143.327 | Q98: =K98+L98 -> 10999034.73 | R98: =M98-N98 -> -379280.9418 | S98: =M98+N98 -> 5621326.347 | T98: =R98-Q98 -> -11378315.67 | U98: =S98-P98 -> -3051816.98 | V98: =T98-Q98 -> -22377350.41
A99: 386 | B99: 17.6162957 | C99: 874.35753 | D99: =C99-D$5 -> 873.35023 | E99: =C99-E$5 -> 856.32373 | F99: 24176088.27 | G99: 23858354.79 | H99: 25984745.55 | I99: 23140707.38 | J99: 34669069.87 | K99: 30019016.17 | L99: =STDEV(E99:G99) -> 13866764.99 | M99: =STDEV(F99:H99) -> 1147005.77 | N99: =STDEV(H99:J99) -> 6005680.418 | O99: =STDEV(I99:K99) -> 5799960.817 | P99: =K99-L99 -> 16152251.18 | Q99: =K99+L99 -> 43885781.15 | R99: =M99-N99 -> -4858674.648 | S99: =M99+N99 -> 7152686.189 | T99: =R99-Q99 -> -48744455.8 | U99: =S99-P99 -> -8999564.992 | V99: =T99-Q99 -> -92630236.95
A100: 94 | B100: 10.30090736 | C100: 306.8702604 | D100: =C100-D$5 -> 305.8629604 | E100: =C100-E$5 -> 288.8364604 | F100: 5972677.337 | G100: 12665401.91 | H100: 52022.67589 | I100: 18607196.6 | J100: 2654926.919 | K100: -31833.21302 | L100: =STDEV(E100:G100) -> 6335969.747 | M100: =STDEV(F100:H100) -> 6310626.614 | N100: =STDEV(H100:J100) -> 10046097.9 | O100: =STDEV(I100:K100) -> 10075606.02 | P100: =K100-L100 -> -6367802.96 | Q100: =K100+L100 -> 6304136.534 | R100: =M100-N100 -> -3735471.286 | S100: =M100+N100 -> 16356724.51 | T100: =R100-Q100 -> -10039607.82 | U100: =S100-P100 -> 22724527.47 | V100: =T100-Q100 -> -16343744.35
A101: 323 | B101: 3.092515625 | C101: 756.5535011 | D101: =C101-D$5 -> 755.5462011 | E101: =C101-E$5 -> 738.5197011 | F101: 3410801.938 | G101: 49135.38554 | H101: 6643792.474 | I101: 3438558.629 | J101: 8182759.14 | K101: 6910669.504 | L101: =STDEV(E101:G101) -> 1954979.829 | M101: =STDEV(F101:H101) -> 3297537.767 | N101: =STDEV(H101:J101) -> 2420378.1 | O101: =STDEV(I101:K101) -> 2455646.706 | P101: =K101-L101 -> 4955689.676 | Q101: =K101+L101 -> 8865649.333 | R101: =M101-N101 -> 877159.6665 | S101: =M101+N101 -> 5717915.867 | T101: =R101-Q101 -> -7988489.666 | U101: =S101-P101 -> 762226.1914 | V101: =T101-Q101 -> -16854139
A102: 59 | B102: 14.23938829 | C102: 222.0546921 | D102: =C102-D$5 -> 221.0473921 | E102: =C102-E$5 -> 204.0208921 | F102: 4936260 | G102: 2105959.485 | H102: 11529254.78 | I102: 1864.473919 | J102: 25848548.11 | K102: 35568329.57 | L102: =STDEV(E102:G102) -> 2476874.903 | M102: =STDEV(F102:H102) -> 4835229.661 | N102: =STDEV(H102:J102) -> 12948448.71 | O102: =STDEV(I102:K102) -> 18382503.67 | P102: =K102-L102 -> 33091454.67 | Q102: =K102+L102 -> 38045204.47 | R102: =M102-N102 -> -8113219.049 | S102: =M102+N102 -> 17783678.37 | T102: =R102-Q102 -> -46158423.52 | U102: =S102-P102 -> -15307776.3 | V102: =T102-Q102 -> -84203627.99
A103: 97 | B103: 10.24184912 | C103: 310.0862973 | D103: =C103-D$5 -> 309.0789973 | E103: =C103-E$5 -> 292.0524973 | F103: 128432.6728 | G103: -180896.5059 | H103: 112862.9656 | I103: -100132.4012 | J103: 192199.0221 | K103: 32407291.87 | L103: =STDEV(E103:G103) -> 155420.855 | M103: =STDEV(F103:H103) -> 174270.6629 | N103: =STDEV(H103:J103) -> 151172.582 | O103: =STDEV(I103:K103) -> 18684353.07 | P103: =K103-L103 -> 32251871.01 | Q103: =K103+L103 -> 32562712.72 | R103: =M103-N103 -> 23098.08092 | S103: =M103+N103 -> 325443.2448 | T103: =R103-Q103 -> -32539614.64 | U103: =S103-P103 -> -31926427.77 | V103: =T103-Q103 -> -65102327.36
A104: 98 | B104: 2.963331818 | C104: 311.1634632 | D104: =C104-D$5 -> 310.1561632 | E104: =C104-E$5 -> 293.1296632 | F104: 7483.880353 | G104: -33757.39746 | H104: -193203.6138 | I104: 24648.94831 | J104: 4851620.268 | K104: 595543.6048 | L104: =STDEV(E104:G104) -> 22030.23789 | M104: =STDEV(F104:H104) -> 105986.9561 | N104: =STDEV(H104:J104) -> 2851822.805 | O104: =STDEV(I104:K104) -> 2637541.829 | P104: =K104-L104 -> 573513.3669 | Q104: =K104+L104 -> 617573.8427 | R104: =M104-N104 -> -2745835.848 | S104: =M104+N104 -> 2957809.761 | T104: =R104-Q104 -> -3363409.691 | U104: =S104-P104 -> 2384296.394 | V104: =T104-Q104 -> -3980983.534
A105: 99 | B105: 10.855465 | C105: 311.9827057 | D105: =C105-D$5 -> 310.9754057 | E105: =C105-E$5 -> 293.9489057 | F105: 2902511.292 | G105: 4211909.254 | H105: 209.0564786 | I105: 27754.68427 | J105: -89025.0668 | K105: -48264.4826 | L105: =STDEV(E105:G105) -> 2155423.083 | M105: =STDEV(F105:H105) -> 2155469.78 | N105: =STDEV(H105:J105) -> 61045.06618 | O105: =STDEV(I105:K105) -> 59270.35405 | P105: =K105-L105 -> -2203687.566 | Q105: =K105+L105 -> 2107158.6 | R105: =M105-N105 -> 2094424.714 | S105: =M105+N105 -> 2216514.846 | T105: =R105-Q105 -> -12733.88654 | U105: =S105-P105 -> 4420202.412 | V105: =T105-Q105 -> -2119892.487
A106: 35 | B106: 10.54173087 | C106: 169.9855639 | D106: =C106-D$5 -> 168.9782639 | E106: =C106-E$5 -> 151.9517639 | F106: 12725637.61 | G106: 20884540.56 | H106: 13630941.84 | I106: 15344359.05 | J106: 12469775.69 | K106: 20698.31648 | L106: =STDEV(E106:G106) -> 10525076.17 | M106: =STDEV(F106:H106) -> 4472172.615 | N106: =STDEV(H106:J106) -> 1446105.97 | O106: =STDEV(I106:K106) -> 8145114.437 | P106: =K106-L106 -> -10504377.85 | Q106: =K106+L106 -> 10545774.48 | R106: =M106-N106 -> 3026066.645 | S106: =M106+N106 -> 5918278.585 | T106: =R106-Q106 -> -7519707.838 | U106: =S106-P106 -> 16422656.43 | V106: =T106-Q106 -> -18065482.32
A107: 101 | B107: 2.797967368 | C107: 319.283799 | D107: =C107-D$5 -> 318.276499 | E107: =C107-E$5 -> 301.249999 | F107: 2607.604466 | G107: -202224.1913 | H107: 6463.173631 | I107: 8139596.284 | J107: 155527.8499 | K107: -15904.16348 | L107: =STDEV(E107:G107) -> 117599.5594 | M107: =STDEV(F107:H107) -> 119388.2646 | N107: =STDEV(H107:J107) -> 4653232.268 | O107: =STDEV(I107:K107) -> 4659880.636 | P107: =K107-L107 -> -133503.7229 | Q107: =K107+L107 -> 101695.3959 | R107: =M107-N107 -> -4533844.003 | S107: =M107+N107 -> 4772620.532 | T107: =R107-Q107 -> -4635539.399 | U107: =S107-P107 -> 4906124.255 | V107: =T107-Q107 -> -4737234.795
A108: 102 | B108: 10.28743404 | C108: 325.914704 | D108: =C108-D$5 -> 324.907404 | E108: =C108-E$5 -> 307.880904 | F108: 3503481.697 | G108: 5280192.466 | H108: 62978.76268 | I108: 7736281.382 | J108: 850496.9841 | K108: 20229.01067 | L108: =STDEV(E108:G108) -> 2686574.931 | M108: =STDEV(F108:H108) -> 2652454.223 | N108: =STDEV(H108:J108) -> 4221251.489 | O108: =STDEV(I108:K108) -> 4235580.162 | P108: =K108-L108 -> -2666345.921 | Q108: =K108+L108 -> 2706803.942 | R108: =M108-N108 -> -1568797.266 | S108: =M108+N108 -> 6873705.712 | T108: =R108-Q108 -> -4275601.208 | U108: =S108-P108 -> 9540051.632 | V108: =T108-Q108 -> -6982405.15
A109: 103 | B109: 5.351691818 | C109: 327.2005976 | D109: =C109-D$5 -> 326.1932976 | E109: =C109-E$5 -> 309.1667976 | F109: 4178334.721 | G109: -94966.77577 | H109: 17962.65248 | I109: 73909.30787 | J109: 206279.3256 | K109: 298902.0713 | L109: =STDEV(E109:G109) -> 2440153.025 | M109: =STDEV(F109:H109) -> 2435246.548 | N109: =STDEV(H109:J109) -> 96708.34094 | O109: =STDEV(I109:K109) -> 113080.0146 | P109: =K109-L109 -> -2141250.954 | Q109: =K109+L109 -> 2739055.097 | R109: =M109-N109 -> 2338538.207 | S109: =M109+N109 -> 2531954.889 | T109: =R109-Q109 -> -400516.8898 | U109: =S109-P109 -> 4673205.843 | V109: =T109-Q109 -> -3139571.986
A110: 104 | B110: 10.21991318 | C110: 328.934421 | D110: =C110-D$5 -> 327.927121 | E110: =C110-E$5 -> 310.900621 | F110: 41490556.01 | G110: 74846947.12 | H110: 47700317.65 | I110: 125462481.4 | J110: 41908392.92 | K110: -72913.60586 | L110: =STDEV(E110:G110) -> 37496907.03 | M110: =STDEV(F110:H110) -> 17739548.38 | N110: =STDEV(H110:J110) -> 46657950.73 | O110: =STDEV(I110:K110) -> 63904683.17 | P110: =K110-L110 -> -37569820.64 | Q110: =K110+L110 -> 37423993.43 | R110: =M110-N110 -> -28918402.35 | S110: =M110+N110 -> 64397499.1 | T110: =R110-Q110 -> -66342395.78 | U110: =S110-P110 -> 101967319.7 | V110: =T110-Q110 -> -103766389.2
A111: 22 | B111: 6.821926281 | C111: 136.0616216 | D111: =C111-D$5 -> 135.0543216 | E111: =C111-E$5 -> 118.0278216 | F111: 22613749.51 | G111: 1154784.427 | H111: 22037173.6 | I111: 36765925.15 | J111: 60447063.52 | K111: 8964133.801 | L111: =STDEV(E111:G111) -> 12735755.22 | M111: =STDEV(F111:H111) -> 12226295.43 | N111: =STDEV(H111:J111) -> 19378046.34 | O111: =STDEV(I111:K111) -> 25768934.69 | P111: =K111-L111 -> -3771621.419 | Q111: =K111+L111 -> 21699889.02 | R111: =M111-N111 -> -7151750.912 | S111: =M111+N111 -> 31604341.78 | T111: =R111-Q111 -> -28851639.93 | U111: =S111-P111 -> 35375963.19 | V111: =T111-Q111 -> -50551528.95
A112: 280 | B112: 3.167680714 | C112: 678.5057733 | D112: =C112-D$5 -> 677.4984733 | E112: =C112-E$5 -> 660.4719733 | F112: 968750.7282 | G112: 2972675.737 | H112: 4238406.933 | I112: 4463045.707 | J112: 8259408.58 | K112: 2429923.761 | L112: =STDEV(E112:G112) -> 1515794.012 | M112: =STDEV(F112:H112) -> 1648658.172 | N112: =STDEV(H112:J112) -> 2259472.205 | O112: =STDEV(I112:K112) -> 2958852.513 | P112: =K112-L112 -> 914129.7488 | Q112: =K112+L112 -> 3945717.772 | R112: =M112-N112 -> -610814.0339 | S112: =M112+N112 -> 3908130.377 | T112: =R112-Q112 -> -4556531.806 | U112: =S112-P112 -> 2994000.628 | V112: =T112-Q112 -> -8502249.579
A113: 375 | B113: 3.065773142 | C113: 833.5881985 | D113: =C113-D$5 -> 832.5808985 | E113: =C113-E$5 -> 815.5543985 | F113: 23155853.38 | G113: 12827316.85 | H113: 32222686.48 | I113: 20898937.2 | J113: 41967925.89 | K113: 33101102.72 | L113: =STDEV(E113:G113) -> 11599953.87 | M113: =STDEV(F113:H113) -> 9704522.077 | N113: =STDEV(H113:J113) -> 10544345.04 | O113: =STDEV(I113:K113) -> 10578403.16 | P113: =K113-L113 -> 21501148.85 | Q113: =K113+L113 -> 44701056.6 | R113: =M113-N113 -> -839822.9591 | S113: =M113+N113 -> 20248867.11 | T113: =R113-Q113 -> -45540879.55 | U113: =S113-P113 -> -1252281.74 | V113: =T113-Q113 -> -90241936.15
A114: 324 | B114: 3.167290103 | C114: 758.5697057 | D114: =C114-D$5 -> 757.5624057 | E114: =C114-E$5 -> 740.5359057 | F114: 98431075.35 | G114: 85817252.69 | H114: 112419565.6 | I114: 103900354.1 | J114: 157797097.2 | K114: 103653261.7 | L114: =STDEV(E114:G114) -> 53560111.23 | M114: =STDEV(F114:H114) -> 13307074.75 | N114: =STDEV(H114:J114) -> 28972850.11 | O114: =STDEV(I114:K114) -> 31188873.29 | P114: =K114-L114 -> 50093150.42 | Q114: =K114+L114 -> 157213372.9 | R114: =M114-N114 -> -15665775.36 | S114: =M114+N114 -> 42279924.86 | T114: =R114-Q114 -> -172879148.2 | U114: =S114-P114 -> -7813225.553 | V114: =T114-Q114 -> -330092521.1
A115: 52 | B115: 13.37255795 | C115: 204.1227864 | D115: =C115-D$5 -> 203.1154864 | E115: =C115-E$5 -> 186.0889864 | F115: 885352.7009 | G115: 2977118.687 | H115: 305824.5456 | I115: 3116769.361 | J115: 5009616.868 | K115: 42549480.86 | L115: =STDEV(E115:G115) -> 1528677.673 | M115: =STDEV(F115:H115) -> 1405177.938 | N115: =STDEV(H115:J115) -> 2366782.086 | O115: =STDEV(I115:K115) -> 22240215.06 | P115: =K115-L115 -> 41020803.19 | Q115: =K115+L115 -> 44078158.53 | R115: =M115-N115 -> -961604.1485 | S115: =M115+N115 -> 3771960.024 | T115: =R115-Q115 -> -45039762.68 | U115: =S115-P115 -> -37248843.16 | V115: =T115-Q115 -> -89117921.21
A116: 110 | B116: 10.27296211 | C116: 336.9019621 | D116: =C116-D$5 -> 335.8946621 | E116: =C116-E$5 -> 318.8681621 | F116: -105457.3885 | G116: 10546544.91 | H116: 2992651.989 | I116: 12965462.56 | J116: -52867.29375 | K116: -67102.04808 | L116: =STDEV(E116:G116) -> 6119629.966 | M116: =STDEV(F116:H116) -> 5479123 | N116: =STDEV(H116:J116) -> 6809418.115 | O116: =STDEV(I116:K116) -> 7520248.83 | P116: =K116-L116 -> -6186732.014 | Q116: =K116+L116 -> 6052527.917 | R116: =M116-N116 -> -1330295.115 | S116: =M116+N116 -> 12288541.11 | T116: =R116-Q116 -> -7382823.032 | U116: =S116-P116 -> 18475273.13 | V116: =T116-Q116 -> -13435350.95
A117: 322 | B117: 17.27450552 | C117: 754.3374333 | D117: =C117-D$5 -> 753.3301333 | E117: =C117-E$5 -> 736.3036333 | F117: 19476036.87 | G117: 21914381.36 | H117: 21096680.18 | I117: 19432475.37 | J117: 32195986.3 | K117: 24210229 | L117: =STDEV(E117:G117) -> 12010000.66 | M117: =STDEV(F117:H117) -> 1241010.599 | N117: =STDEV(H117:J117) -> 6938676.446 | O117: =STDEV(I117:K117) -> 6448597.526 | P117: =K117-L117 -> 12200228.34 | Q117: =K117+L117 -> 36220229.67 | R117: =M117-N117 -> -5697665.847 | S117: =M117+N117 -> 8179687.045 | T117: =R117-Q117 -> -41917895.52 | U117: =S117-P117 -> -4020541.296 | V117: =T117-Q117 -> -78138125.18
A118: 212 | B118: 13.96956903 | C118: 508.0021068 | D118: =C118-D$5 -> 506.9948068 | E118: =C118-E$5 -> 489.9683068 | F118: 37359994.32 | G118: 51816400.81 | H118: 28843751.55 | I118: 15032410.12 | J118: 34662232.47 | K118: 37730240.48 | L118: =STDEV(E118:G118) -> 26738264.94 | M118: =STDEV(F118:H118) -> 11613617.68 | N118: =STDEV(H118:J118) -> 10082474.87 | O118: =STDEV(I118:K118) -> 12314856.21 | P118: =K118-L118 -> 10991975.54 | Q118: =K118+L118 -> 64468505.41 | R118: =M118-N118 -> 1531142.806 | S118: =M118+N118 -> 21696092.55 | T118: =R118-Q118 -> -62937362.61 | U118: =S118-P118 -> 10704117.01 | V118: =T118-Q118 -> -127405868
A119: 388 | B119: 17.54025273 | C119: 875.3616422 | D119: =C119-D$5 -> 874.3543422 | E119: =C119-E$5 -> 857.3278422 | F119: 3295886.227 | G119: 2060522.849 | H119: 2561169.163 | I119: 2045534.08 | J119: 3924481.211 | K119: 5828802.724 | L119: =STDEV(E119:G119) -> 1664610.074 | M119: =STDEV(F119:H119) -> 621366.5816 | N119: =STDEV(H119:J119) -> 970819.379 | O119: =STDEV(I119:K119) -> 1891648.504 | P119: =K119-L119 -> 4164192.651 | Q119: =K119+L119 -> 7493412.798 | R119: =M119-N119 -> -349452.7974 | S119: =M119+N119 -> 1592185.961 | T119: =R119-Q119 -> -7842865.595 | U119: =S119-P119 -> -2572006.69 | V119: =T119-Q119 -> -15336278.39
A120: 155 | B120: 4.809131345 | C120: 393.049717 | D120: =C120-D$5 -> 392.042417 | E120: =C120-E$5 -> 375.015917 | F120: 34267882.61 | G120: 45748334.86 | H120: 25858932.18 | I120: 42131897.97 | J120: 48823136.68 | K120: 36153789.34 | L120: =STDEV(E120:G120) -> 23801045.81 | M120: =STDEV(F120:H120) -> 9984150.528 | N120: =STDEV(H120:J120) -> 11810565.75 | O120: =STDEV(I120:K120) -> 6338017.833 | P120: =K120-L120 -> 12352743.53 | Q120: =K120+L120 -> 59954835.15 | R120: =M120-N120 -> -1826415.219 | S120: =M120+N120 -> 21794716.28 | T120: =R120-Q120 -> -61781250.37 | U120: =S120-P120 -> 9441972.748 | V120: =T120-Q120 -> -121736085.5
A121: 154 | B121: 4.801921013 | C121: 391.0526787 | D121: =C121-D$5 -> 390.0453787 | E121: =C121-E$5 -> 373.0188787 | F121: 35557555.19 | G121: 48655166.36 | H121: 27613640.55 | I121: 44769742.53 | J121: 51219619.23 | K121: 37983734.81 | L121: =STDEV(E121:G121) -> 25176541.79 | M121: =STDEV(F121:H121) -> 10625433.38 | N121: =STDEV(H121:J121) -> 12200921.92 | O121: =STDEV(I121:K121) -> 6618653.525 | P121: =K121-L121 -> 12807193.02 | Q121: =K121+L121 -> 63160276.59 | R121: =M121-N121 -> -1575488.543 | S121: =M121+N121 -> 22826355.3 | T121: =R121-Q121 -> -64735765.14 | U121: =S121-P121 -> 10019162.28 | V121: =T121-Q121 -> -127896041.7
A122: 189 | B122: 10.57548933 | C122: 456.0391215 | D122: =C122-D$5 -> 455.0318215 | E122: =C122-E$5 -> 438.0053215 | F122: 13224416.97 | G122: 35781176.19 | H122: 27745923.69 | I122: 31953142.53 | J122: 9869628.888 | K122: 17073.33211 | L122: =STDEV(E122:G122) -> 18092089.57 | M122: =STDEV(F122:H122) -> 11432751.39 | N122: =STDEV(H122:J122) -> 11725642.7 | O122: =STDEV(I122:K122) -> 16353730.16 | P122: =K122-L122 -> -18075016.24 | Q122: =K122+L122 -> 18109162.9 | R122: =M122-N122 -> -292891.3101 | S122: =M122+N122 -> 23158394.1 | T122: =R122-Q122 -> -18402054.22 | U122: =S122-P122 -> 41233410.34 | V122: =T122-Q122 -> -36511217.12
A123: 117 | B123: 3.834687931 | C123: 343.2948377 | D123: =C123-D$5 -> 342.2875377 | E123: =C123-E$5 -> 325.2610377 | F123: 70355.76389 | G123: 431727.7241 | H123: 134702.3826 | I123: 24915626.41 | J123: 877552.6618 | K123: 80377.35013 | L123: =STDEV(E123:G123) -> 231517.4759 | M123: =STDEV(F123:H123) -> 192766.7997 | N123: =STDEV(H123:J123) -> 14097724.47 | O123: =STDEV(I123:K123) -> 14114142.28 | P123: =K123-L123 -> -151140.1258 | Q123: =K123+L123 -> 311894.8261 | R123: =M123-N123 -> -13904957.67 | S123: =M123+N123 -> 14290491.27 | T123: =R123-Q123 -> -14216852.5 | U123: =S123-P123 -> 14441631.4 | V123: =T123-Q123 -> -14528747.33
A124: 118 | B124: 3.332636471 | C124: 345.0863719 | D124: =C124-D$5 -> 344.0790719 | E124: =C124-E$5 -> 327.0525719 | F124: 16305.97389 | G124: 7818423.311 | H124: 64800.65318 | I124: 88243.7544 | J124: -72415.212 | K124: 49572.4416 | L124: =STDEV(E124:G124) -> 4509174.34 | M124: =STDEV(F124:H124) -> 4490620.8 | N124: =STDEV(H124:J124) -> 86784.28827 | O124: =STDEV(I124:K124) -> 83852.80909 | P124: =K124-L124 -> -4459601.899 | Q124: =K124+L124 -> 4558746.782 | R124: =M124-N124 -> 4403836.512 | S124: =M124+N124 -> 4577405.088 | T124: =R124-Q124 -> -154910.2703 | U124: =S124-P124 -> 9037006.987 | V124: =T124-Q124 -> -4713657.052
A125: 119 | B125: 10.34740588 | C125: 347.8968003 | D125: =C125-D$5 -> 346.8895003 | E125: =C125-E$5 -> 329.8630003 | F125: 72016.70629 | G125: 1677365.173 | H125: -21927.62052 | I125: 4408636.16 | J125: -35586.976 | K125: -23352.74355 | L125: =STDEV(E125:G125) -> 948220.2744 | M125: =STDEV(F125:H125) -> 955123.4853 | N125: =STDEV(H125:J125) -> 2561939.411 | O125: =STDEV(I125:K125) -> 2562349.007 | P125: =K125-L125 -> -971573.0179 | Q125: =K125+L125 -> 924867.5308 | R125: =M125-N125 -> -1606815.926 | S125: =M125+N125 -> 3517062.896 | T125: =R125-Q125 -> -2531683.456 | U125: =S125-P125 -> 4488635.914 | V125: =T125-Q125 -> -3456550.987
A126: 120 | B126: 8.862411429 | C126: 348.0700422 | D126: =C126-D$5 -> 347.0627422 | E126: =C126-E$5 -> 330.0362422 | F126: 829.6929714 | G126: -119549.8161 | H126: 62305.42654 | I126: -29082.41368 | J126: -265084.4676 | K126: 7812698.627 | L126: =STDEV(E126:G126) -> 69357.35346 | M126: =STDEV(F126:H126) -> 92503.893 | N126: =STDEV(H126:J126) -> 168934.3312 | O126: =STDEV(I126:K126) -> 4597097.029 | P126: =K126-L126 -> 7743341.274 | Q126: =K126+L126 -> 7882055.981 | R126: =M126-N126 -> -76430.43823 | S126: =M126+N126 -> 261438.2242 | T126: =R126-Q126 -> -7958486.419 | U126: =S126-P126 -> -7481903.049 | V126: =T126-Q126 -> -15840542.4
A127: 121 | B127: 4.654096957 | C127: 348.3256995 | D127: =C127-D$5 -> 347.3183995 | E127: =C127-E$5 -> 330.2918995 | F127: 87994.32987 | G127: 64343.30447 | H127: 1795330.343 | I127: -83227.81717 | J127: 2523302.843 | K127: 4785260.116 | L127: =STDEV(E127:G127) -> 45354.19924 | M127: =STDEV(F127:H127) -> 992628.8129 | N127: =STDEV(H127:J127) -> 1344924.211 | O127: =STDEV(I127:K127) -> 2436275.421 | P127: =K127-L127 -> 4739905.917 | Q127: =K127+L127 -> 4830614.316 | R127: =M127-N127 -> -352295.3985 | S127: =M127+N127 -> 2337553.024 | T127: =R127-Q127 -> -5182909.714 | U127: =S127-P127 -> -2402352.893 | V127: =T127-Q127 -> -10013524.03
A128: 122 | B128: 9.22238 | C128: 349.1168846 | D128: =C128-D$5 -> 348.1095846 | E128: =C128-E$5 -> 331.0830846 | F128: -29090.52195 | G128: 98645.25375 | H128: 50160.28592 | I128: 215674.6469 | J128: -61316.73764 | K128: 16952712.34 | L128: =STDEV(E128:G128) -> 66892.61966 | M128: =STDEV(F128:H128) -> 64482.44082 | N128: =STDEV(H128:J128) -> 139371.4208 | O128: =STDEV(I128:K128) -> 9744078.033 | P128: =K128-L128 -> 16885819.72 | Q128: =K128+L128 -> 17019604.96 | R128: =M128-N128 -> -74888.97994 | S128: =M128+N128 -> 203853.8616 | T128: =R128-Q128 -> -17094493.94 | U128: =S128-P128 -> -16681965.86 | V128: =T128-Q128 -> -34114098.89
A129: 298 | B129: 4.819539953 | C129: 715.0633383 | D129: =C129-D$5 -> 714.0560383 | E129: =C129-E$5 -> 697.0295383 | F129: 30226095.68 | G129: 45865543.07 | H129: 25949671.65 | I129: 41239294.14 | J129: 45430529.55 | K129: 36166779.7 | L129: =STDEV(E129:G129) -> 23315771.27 | M129: =STDEV(F129:H129) -> 10484290.25 | N129: =STDEV(H129:J129) -> 10253802.83 | O129: =STDEV(I129:K129) -> 4638856.152 | P129: =K129-L129 -> 12851008.42 | Q129: =K129+L129 -> 59482550.97 | R129: =M129-N129 -> 230487.4155 | S129: =M129+N129 -> 20738093.08 | T129: =R129-Q129 -> -59252063.56 | U129: =S129-P129 -> 7887084.656 | V129: =T129-Q129 -> -118734614.5
A130: 91 | B130: 10.81309267 | C130: 296.0087883 | D130: =C130-D$5 -> 295.0014883 | E130: =C130-E$5 -> 277.9749883 | F130: 20089294.4 | G130: 47701792.48 | H130: 28871579.04 | I130: 40190607.59 | J130: 13241237.45 | K130: 107721.9934 | L130: =STDEV(E130:G130) -> 23949436.73 | M130: =STDEV(F130:H130) -> 14107654.62 | N130: =STDEV(H130:J130) -> 13532039.36 | O130: =STDEV(I130:K130) -> 20434429.67 | P130: =K130-L130 -> -23841714.74 | Q130: =K130+L130 -> 24057158.72 | R130: =M130-N130 -> 575615.2542 | S130: =M130+N130 -> 27639693.98 | T130: =R130-Q130 -> -23481543.47 | U130: =S130-P130 -> 51481408.72 | V130: =T130-Q130 -> -47538702.19
A131: 125 | B131: 9.121661972 | C131: 352.0042454 | D131: =C131-D$5 -> 350.9969454 | E131: =C131-E$5 -> 333.9704454 | F131: 17050.56258 | G131: 1419754.106 | H131: 2654750.557 | I131: 21318563.96 | J131: -55529.83635 | K131: -82029.12917 | L131: =STDEV(E131:G131) -> 814719.8085 | M131: =STDEV(F131:H131) -> 1319738.277 | N131: =STDEV(H131:J131) -> 11637120.47 | O131: =STDEV(I131:K131) -> 12347995.6 | P131: =K131-L131 -> -896748.9377 | Q131: =K131+L131 -> 732690.6793 | R131: =M131-N131 -> -10317382.19 | S131: =M131+N131 -> 12956858.74 | T131: =R131-Q131 -> -11050072.87 | U131: =S131-P131 -> 13853607.68 | V131: =T131-Q131 -> -11782763.55
A132: 269 | B132: 10.55749242 | C132: 659.1375011 | D132: =C132-D$5 -> 658.1302011 | E132: =C132-E$5 -> 641.1037011 | F132: 8469825.282 | G132: 8766693.977 | H132: 2402805.114 | I132: -11313.58775 | J132: 8845125.555 | K132: -41387.33986 | L132: =STDEV(E132:G132) -> 4977598.059 | M132: =STDEV(F132:H132) -> 3591562.942 | N132: =STDEV(H132:J132) -> 4578354.436 | O132: =STDEV(I132:K132) -> 5121971.14 | P132: =K132-L132 -> -5018985.399 | Q132: =K132+L132 -> 4936210.72 | R132: =M132-N132 -> -986791.494 | S132: =M132+N132 -> 8169917.378 | T132: =R132-Q132 -> -5923002.214 | U132: =S132-P132 -> 13188902.78 | V132: =T132-Q132 -> -10859212.93
A133: 371 | B133: 16.88995597 | C133: 821.3426652 | D133: =C133-D$5 -> 820.3353652 | E133: =C133-E$5 -> 803.3088652 | F133: 3152276.737 | G133: 7286164.525 | H133: 8497852.132 | I133: 273773.3691 | J133: 18043747.62 | K133: 26215308.91 | L133: =STDEV(E133:G133) -> 3653703.625 | M133: =STDEV(F133:H133) -> 2802748.395 | N133: =STDEV(H133:J133) -> 8893176.946 | O133: =STDEV(I133:K133) -> 13263418.77 | P133: =K133-L133 -> 22561605.28 | Q133: =K133+L133 -> 29869012.53 | R133: =M133-N133 -> -6090428.551 | S133: =M133+N133 -> 11695925.34 | T133: =R133-Q133 -> -35959441.08 | U133: =S133-P133 -> -10865679.94 | V133: =T133-Q133 -> -65828453.62
A134: 271 | B134: 12.42293021 | C134: 664.1155866 | D134: =C134-D$5 -> 663.1082866 | E134: =C134-E$5 -> 646.0817866 | F134: 41207550.19 | G134: 40146394.86 | H134: 26813174.07 | I134: 24461058.7 | J134: 55496943.98 | K134: 118599404.7 | L134: =STDEV(E134:G134) -> 23490480.84 | M134: =STDEV(F134:H134) -> 8021833.653 | N134: =STDEV(H134:J134) -> 17279647.36 | O134: =STDEV(I134:K134) -> 47970780.89 | P134: =K134-L134 -> 95108923.87 | Q134: =K134+L134 -> 142089885.6 | R134: =M134-N134 -> -9257813.707 | S134: =M134+N134 -> 25301481.01 | T134: =R134-Q134 -> -151347699.3 | U134: =S134-P134 -> -69807442.86 | V134: =T134-Q134 -> -293437584.8
A135: 382 | B135: 3.019068936 | C135: 860.6169252 | D135: =C135-D$5 -> 859.6096252 | E135: =C135-E$5 -> 842.5831252 | F135: 2756312.282 | G135: -73174.67803 | H135: 4105366.052 | I135: 1286604.027 | J135: 6657313.509 | K135: 4602202.562 | L135: =STDEV(E135:G135) -> 1612662.822 | M135: =STDEV(F135:H135) -> 2132531.561 | N135: =STDEV(H135:J135) -> 2686459.117 | O135: =STDEV(I135:K135) -> 2709895.293 | P135: =K135-L135 -> 2989539.739 | Q135: =K135+L135 -> 6214865.384 | R135: =M135-N135 -> -553927.5552 | S135: =M135+N135 -> 4818990.678 | T135: =R135-Q135 -> -6768792.939 | U135: =S135-P135 -> 1829450.939 | V135: =T135-Q135 -> -12983658.32
A136: 355 | B136: 3.086147554 | C136: 807.5731039 | D136: =C136-D$5 -> 806.5658039 | E136: =C136-E$5 -> 789.5393039 | F136: 24633909.82 | G136: 17719950.21 | H136: 34608153.53 | I136: 23184525.85 | J136: 44587893.17 | K136: 31843498.73 | L136: =STDEV(E136:G136) -> 12705393.26 | M136: =STDEV(F136:H136) -> 8490188.323 | N136: =STDEV(H136:J136) -> 10709797.74 | O136: =STDEV(I136:K136) -> 10766472.14 | P136: =K136-L136 -> 19138105.47 | Q136: =K136+L136 -> 44548891.99 | R136: =M136-N136 -> -2219609.412 | S136: =M136+N136 -> 19199986.06 | T136: =R136-Q136 -> -46768501.4 | U136: =S136-P136 -> 61880.58653 | V136: =T136-Q136 -> -91317393.39
A137: 340 | B137: 3.123019968 | C137: 784.5853434 | D137: =C137-D$5 -> 783.5780434 | E137: =C137-E$5 -> 766.5515434 | F137: 42644971.03 | G137: 35031723.13 | H137: 49155375.85 | I137: 41540752.83 | J137: 66514851.84 | K137: 44820041.57 | L137: =STDEV(E137:G137) -> 22743708.43 | M137: =STDEV(F137:H137) -> 7068998.996 | N137: =STDEV(H137:J137) -> 12799996.82 | O137: =STDEV(I137:K137) -> 13571564.32 | P137: =K137-L137 -> 22076333.15 | Q137: =K137+L137 -> 67563750 | R137: =M137-N137 -> -5730997.827 | S137: =M137+N137 -> 19868995.82 | T137: =R137-Q137 -> -73294747.83 | U137: =S137-P137 -> -2207337.328 | V137: =T137-Q137 -> -140858497.8
A138: 132 | B138: 7.848910135 | C138: 362.159191 | D138: =C138-D$5 -> 361.151891 | E138: =C138-E$5 -> 344.125391 | F138: 522262752.5 | G138: 674880728 | H138: 499827584.6 | I138: 545476037.9 | J138: 753248834.9 | K138: 767781745.9 | L138: =STDEV(E138:G138) -> 353910017.3 | M138: =STDEV(F138:H138) -> 95253334.35 | N138: =STDEV(H138:J138) -> 135077537.3 | O138: =STDEV(I138:K138) -> 124365434.9 | P138: =K138-L138 -> 413871728.6 | Q138: =K138+L138 -> 1121691763 | R138: =M138-N138 -> -39824202.98 | S138: =M138+N138 -> 230330871.7 | T138: =R138-Q138 -> -1161515966 | U138: =S138-P138 -> -183540856.9 | V138: =T138-Q138 -> -2283207729
A139: 133 | B139: 3.783649333 | C139: 362.3687276 | D139: =C139-D$5 -> 361.3614276 | E139: =C139-E$5 -> 344.3349276 | F139: -41570.32748 | G139: 5979.241907 | H139: 804268.0477 | I139: 1421360.932 | J139: 2073109.692 | K139: 2001525.83 | L139: =STDEV(E139:G139) -> 25979.3272 | M139: =STDEV(F139:H139) -> 475213.7302 | N139: =STDEV(H139:J139) -> 634499.697 | O139: =STDEV(I139:K139) -> 357419.4559 | P139: =K139-L139 -> 1975546.502 | Q139: =K139+L139 -> 2027505.157 | R139: =M139-N139 -> -159285.9668 | S139: =M139+N139 -> 1109713.427 | T139: =R139-Q139 -> -2186791.123 | U139: =S139-P139 -> -865833.0752 | V139: =T139-Q139 -> -4214296.28
A140: 134 | B140: 2.86009381 | C140: 363.3100789 | D140: =C140-D$5 -> 362.3027789 | E140: =C140-E$5 -> 345.2762789 | F140: 40826.53084 | G140: -62175.99021 | H140: 11547.15768 | I140: 9007366.88 | J140: -107474.6419 | K140: -138733.538 | L140: =STDEV(E140:G140) -> 51892.77419 | M140: =STDEV(F140:H140) -> 53075.26664 | N140: =STDEV(H140:J140) -> 5228436.265 | O140: =STDEV(I140:K140) -> 5271503.042 | P140: =K140-L140 -> -190626.3122 | Q140: =K140+L140 -> -86840.76379 | R140: =M140-N140 -> -5175360.998 | S140: =M140+N140 -> 5281511.531 | T140: =R140-Q140 -> -5088520.234 | U140: =S140-P140 -> 5472137.843 | V140: =T140-Q140 -> -5001679.47
A141: 135 | B141: 10.24243612 | C141: 366.8911568 | D141: =C141-D$5 -> 365.8838568 | E141: =C141-E$5 -> 348.8573568 | F141: 14401141.87 | G141: 24716256.68 | H141: 7873157.077 | I141: 33147564.07 | J141: 13545283.19 | K141: 98301.3147 | L141: =STDEV(E141:G141) -> 12414108.45 | M141: =STDEV(F141:H141) -> 8492213.916 | N141: =STDEV(H141:J141) -> 13261586.63 | O141: =STDEV(I141:K141) -> 16619890.22 | P141: =K141-L141 -> -12315807.14 | Q141: =K141+L141 -> 12512409.77 | R141: =M141-N141 -> -4769372.712 | S141: =M141+N141 -> 21753800.54 | T141: =R141-Q141 -> -17281782.48 | U141: =S141-P141 -> 34069607.68 | V141: =T141-Q141 -> -29794192.25
A142: 136 | B142: 5.314081905 | C142: 371.2265392 | D142: =C142-D$5 -> 370.2192392 | E142: =C142-E$5 -> 353.1927392 | F142: 8556140.839 | G142: 27161.11542 | H142: 57967.88558 | I142: -5531.460429 | J142: -65319.35349 | K142: 116050.4288 | L142: =STDEV(E142:G142) -> 4931965.735 | M142: =STDEV(F142:H142) -> 4915339.726 | N142: =STDEV(H142:J142) -> 61652.92966 | O142: =STDEV(I142:K142) -> 92422.71173 | P142: =K142-L142 -> -4815915.306 | Q142: =K142+L142 -> 5048016.163 | R142: =M142-N142 -> 4853686.796 | S142: =M142+N142 -> 4976992.656 | T142: =R142-Q142 -> -194329.367 | U142: =S142-P142 -> 9792907.962 | V142: =T142-Q142 -> -5242345.53
A143: 372 | B143: 3.037531613 | C143: 821.624685 | D143: =C143-D$5 -> 820.617385 | E143: =C143-E$5 -> 803.590885 | F143: 3823587.874 | G143: 1473683.735 | H143: 2581146.463 | I143: 490619.5545 | J143: 3187123.706 | K143: 1236934.64 | L143: =STDEV(E143:G143) -> 1928086.489 | M143: =STDEV(F143:H143) -> 1175597.991 | N143: =STDEV(H143:J143) -> 1414722.93 | O143: =STDEV(I143:K143) -> 1392321.697 | P143: =K143-L143 -> -691151.8494 | Q143: =K143+L143 -> 3165021.128 | R143: =M143-N143 -> -239124.9396 | S143: =M143+N143 -> 2590320.921 | T143: =R143-Q143 -> -3404146.068 | U143: =S143-P143 -> 3281472.77 | V143: =T143-Q143 -> -6569167.197
A144: 95 | B144: 10.54134827 | C144: 308.0904864 | D144: =C144-D$5 -> 307.0831864 | E144: =C144-E$5 -> 290.0566864 | F144: 200647402 | G144: 201485597 | H144: 156871068.9 | I144: 117758037.2 | J144: 288647661.4 | K144: 1153263162 | L144: =STDEV(E144:G144) -> 116086386.7 | M144: =STDEV(F144:H144) -> 25519685.31 | N144: =STDEV(H144:J144) -> 89534130.6 | O144: =STDEV(I144:K144) -> 555132730.4 | P144: =K144-L144 -> 1037176775 | Q144: =K144+L144 -> 1269349548 | R144: =M144-N144 -> -64014445.3 | S144: =M144+N144 -> 115053815.9 | T144: =R144-Q144 -> -1333363994 | U144: =S144-P144 -> -922122959.3 | V144: =T144-Q144 -> -2602713542
A145: 186 | B145: 4.745777163 | C145: 446.0527254 | D145: =C145-D$5 -> 445.0454254 | E145: =C145-E$5 -> 428.0189254 | F145: 118042453.1 | G145: 162130737.8 | H145: 93018650.39 | I145: 144500447 | J145: 166560942.8 | K145: 128199736.5 | L145: =STDEV(E145:G145) -> 83829125.7 | M145: =STDEV(F145:H145) -> 34991542.26 | N145: =STDEV(H145:J145) -> 37739258.17 | O145: =STDEV(I145:K145) -> 19252535.72 | P145: =K145-L145 -> 44370610.81 | Q145: =K145+L145 -> 212028862.2 | R145: =M145-N145 -> -2747715.905 | S145: =M145+N145 -> 72730800.43 | T145: =R145-Q145 -> -214776578.1 | U145: =S145-P145 -> 28360189.62 | V145: =T145-Q145 -> -426805440.3
A146: 140 | B146: 3.037916154 | C146: 376.3182537 | D146: =C146-D$5 -> 375.3109537 | E146: =C146-E$5 -> 358.2844537 | F146: 5142952.844 | G146: -117123.3504 | H146: -200882.7862 | I146: 115267.5161 | J146: -47881.0935 | K146: 20895.30418 | L146: =STDEV(E146:G146) -> 3003566.833 | M146: =STDEV(F146:H146) -> 3061372.145 | N146: =STDEV(H146:J146) -> 158102.2878 | O146: =STDEV(I146:K146) -> 81908.2577 | P146: =K146-L146 -> -2982671.528 | Q146: =K146+L146 -> 3024462.137 | R146: =M146-N146 -> 2903269.857 | S146: =M146+N146 -> 3219474.433 | T146: =R146-Q146 -> -121192.2797 | U146: =S146-P146 -> 6202145.961 | V146: =T146-Q146 -> -3145654.417
A147: 85 | B147: 3.287965192 | C147: 275.0481515 | D147: =C147-D$5 -> 274.0408515 | E147: =C147-E$5 -> 257.0143515 | F147: 5332343.516 | G147: 11980198.49 | H147: 703809.9669 | I147: 82228.1086 | J147: 6785931.929 | K147: 21389.94155 | L147: =STDEV(E147:G147) -> 6002001.333 | M147: =STDEV(F147:H147) -> 5668248.359 | N147: =STDEV(H147:J147) -> 3704011.71 | O147: =STDEV(I147:K147) -> 3888066.668 | P147: =K147-L147 -> -5980611.392 | Q147: =K147+L147 -> 6023391.275 | R147: =M147-N147 -> 1964236.649 | S147: =M147+N147 -> 9372260.069 | T147: =R147-Q147 -> -4059154.626 | U147: =S147-P147 -> 15352871.46 | V147: =T147-Q147 -> -10082545.9
A148: 32 | B148: 14.22023206 | C148: 162.1113394 | D148: =C148-D$5 -> 161.1040394 | E148: =C148-E$5 -> 144.0775394 | F148: 41252784.79 | G148: 49838455.93 | H148: 31104370.31 | I148: 30869783.14 | J148: 54233073.63 | K148: 122646315.8 | L148: =STDEV(E148:G148) -> 26643796.79 | M148: =STDEV(F148:H148) -> 9377899.812 | N148: =STDEV(H148:J148) -> 13421595.11 | O148: =STDEV(I148:K148) -> 47695469.73 | P148: =K148-L148 -> 96002519.03 | Q148: =K148+L148 -> 149290112.6 | R148: =M148-N148 -> -4043695.294 | S148: =M148+N148 -> 22799494.92 | T148: =R148-Q148 -> -153333807.9 | U148: =S148-P148 -> -73203024.11 | V148: =T148-Q148 -> -302623920.5
A149: 39 | B149: 10.47295645 | C149: 179.0482438 | D149: =C149-D$5 -> 178.0409438 | E149: =C149-E$5 -> 161.0144438 | F149: 53196392.97 | G149: 50171293.87 | H149: 38213188.2 | I149: 27056197.92 | J149: 74211538.95 | K149: 311021352.8 | L149: =STDEV(E149:G149) -> 29877898.44 | M149: =STDEV(F149:H149) -> 7923003.86 | N149: =STDEV(H149:J149) -> 24644086.09 | O149: =STDEV(I149:K149) -> 152172447.9 | P149: =K149-L149 -> 281143454.4 | Q149: =K149+L149 -> 340899251.2 | R149: =M149-N149 -> -16721082.23 | S149: =M149+N149 -> 32567089.96 | T149: =R149-Q149 -> -357620333.5 | U149: =S149-P149 -> -248576364.4 | V149: =T149-Q149 -> -698519584.7
A150: 297 | B150: 4.790793294 | C150: 713.0663854 | D150: =C150-D$5 -> 712.0590854 | E150: =C150-E$5 -> 695.0325854 | F150: 43619572.7 | G150: 67745025.5 | H150: 36981195.05 | I150: 56878243 | J150: 67564097.51 | K150: 53461348.37 | L150: =STDEV(E150:G150) -> 34336419.61 | M150: =STDEV(F150:H150) -> 16189084.77 | N150: =STDEV(H150:J150) -> 15520920.97 | O150: =STDEV(I150:K150) -> 7356971.623 | P150: =K150-L150 -> 19124928.75 | Q150: =K150+L150 -> 87797767.98 | R150: =M150-N150 -> 668163.8028 | S150: =M150+N150 -> 31710005.73 | T150: =R150-Q150 -> -87129604.18 | U150: =S150-P150 -> 12585076.98 | V150: =T150-Q150 -> -174927372.2
A151: 145 | B151: 10.24250712 | C151: 382.8649218 | D151: =C151-D$5 -> 381.8576218 | E151: =C151-E$5 -> 364.8311218 | F151: 28777394.13 | G151: 24068446.01 | H151: 931.1981771 | I151: 26874578.78 | J151: 39507102.23 | K151: -10132.88638 | L151: =STDEV(E151:G151) -> 15435695.32 | M151: =STDEV(F151:H151) -> 15435372.15 | N151: =STDEV(H151:J151) -> 20176352.22 | O151: =STDEV(I151:K151) -> 20182419.09 | P151: =K151-L151 -> -15445828.2 | Q151: =K151+L151 -> 15425562.43 | R151: =M151-N151 -> -4740980.067 | S151: =M151+N151 -> 35611724.37 | T151: =R151-Q151 -> -20166542.5 | U151: =S151-P151 -> 51057552.57 | V151: =T151-Q151 -> -35592104.93
A152: 183 | B152: 4.746185127 | C152: 444.0558274 | D152: =C152-D$5 -> 443.0485274 | E152: =C152-E$5 -> 426.0220274 | F152: 102184806.7 | G152: 141829835 | H152: 83363635.96 | I152: 126108428.5 | J152: 145344154.8 | K152: 111804451 | L152: =STDEV(E152:G152) -> 73176677.94 | M152: =STDEV(F152:H152) -> 29844768.29 | N152: =STDEV(H152:J152) -> 31724635.98 | O152: =STDEV(I152:K152) -> 16830174.62 | P152: =K152-L152 -> 38627773.09 | Q152: =K152+L152 -> 184981129 | R152: =M152-N152 -> -1879867.69 | S152: =M152+N152 -> 61569404.28 | T152: =R152-Q152 -> -186860996.6 | U152: =S152-P152 -> 22941631.19 | V152: =T152-Q152 -> -371842125.6
A153: 147 | B153: 2.591693333 | C153: 386.2765121 | D153: =C153-D$5 -> 385.2692121 | E153: =C153-E$5 -> 368.2427121 | F153: -48936.23813 | G153: 47223.66342 | H153: 903356.5392 | I153: 72353.12021 | J153: 475857.4166 | K153: 2864899.22 | L153: =STDEV(E153:G153) -> 48085.14834 | M153: =STDEV(F153:H153) -> 524256.8965 | N153: =STDEV(H153:J153) -> 415559.4421 | O153: =STDEV(I153:K153) -> 1509340.373 | P153: =K153-L153 -> 2816814.072 | Q153: =K153+L153 -> 2912984.368 | R153: =M153-N153 -> 108697.4545 | S153: =M153+N153 -> 939816.3386 | T153: =R153-Q153 -> -2804286.914 | U153: =S153-P153 -> -1876997.733 | V153: =T153-Q153 -> -5717271.282
A154: 338 | B154: 3.1168234 | C154: 782.5690167 | D154: =C154-D$5 -> 781.5617167 | E154: =C154-E$5 -> 764.5352167 | F154: 37338773.32 | G154: 28820730.51 | H154: 46009964.73 | I154: 36513815.94 | J154: 59986128.23 | K154: 39996956.43 | L154: =STDEV(E154:G154) -> 19567295.81 | M154: =STDEV(F154:H154) -> 8594730.818 | N154: =STDEV(H154:J154) -> 11807197.19 | O154: =STDEV(I154:K154) -> 12666548.47 | P154: =K154-L154 -> 20429660.62 | Q154: =K154+L154 -> 59564252.24 | R154: =M154-N154 -> -3212466.368 | S154: =M154+N154 -> 20401928 | T154: =R154-Q154 -> -62776718.61 | U154: =S154-P154 -> -27732.61688 | V154: =T154-Q154 -> -122340970.9
A155: 74 | B155: 14.70671857 | C155: 258.1095917 | D155: =C155-D$5 -> 257.1022917 | E155: =C155-E$5 -> 240.0757917 | F155: 104680861.7 | G155: 134084262.3 | H155: 86486861.13 | I155: 95052225.67 | J155: 132862126.1 | K155: 163537589.2 | L155: =STDEV(E155:G155) -> 70475903.13 | M155: =STDEV(F155:H155) -> 24017681.78 | N155: =STDEV(H155:J155) -> 24676639.54 | O155: =STDEV(I155:K155) -> 34304561.47 | P155: =K155-L155 -> 93061686.09 | Q155: =K155+L155 -> 234013492.4 | R155: =M155-N155 -> -658957.7634 | S155: =M155+N155 -> 48694321.31 | T155: =R155-Q155 -> -234672450.1 | U155: =S155-P155 -> -44367364.78 | V155: =T155-Q155 -> -468685942.5
A156: 55 | B156: 10.53325219 | C156: 211.0121114 | D156: =C156-D$5 -> 210.0048114 | E156: =C156-E$5 -> 192.9783114 | F156: 29524000.47 | G156: 44519234.74 | H156: 31408187.49 | I156: 34200015.39 | J156: 35682853.19 | K156: 102116.7516 | L156: =STDEV(E156:G156) -> 22651185.91 | M156: =STDEV(F156:H156) -> 8168096.185 | N156: =STDEV(H156:J156) -> 2170479.125 | O156: =STDEV(I156:K156) -> 20128149.05 | P156: =K156-L156 -> -22549069.16 | Q156: =K156+L156 -> 22753302.66 | R156: =M156-N156 -> 5997617.06 | S156: =M156+N156 -> 10338575.31 | T156: =R156-Q156 -> -16755685.6 | U156: =S156-P156 -> 32887644.47 | V156: =T156-Q156 -> -39508988.27
A157: 96 | B157: 10.34590788 | C157: 309.094016 | D157: =C157-D$5 -> 308.086716 | E157: =C157-E$5 -> 291.060216 | F157: 6072243.957 | G157: 4885813.87 | H157: 2775202.503 | I157: -134319.0841 | J157: 9238026.729 | K157: 105541717.7 | L157: =STDEV(E157:G157) -> 3218295.653 | M157: =STDEV(F157:H157) -> 1669969.014 | N157: =STDEV(H157:J157) -> 4797122.034 | O157: =STDEV(I157:K157) -> 58494538.96 | P157: =K157-L157 -> 102323422.1 | Q157: =K157+L157 -> 108760013.4 | R157: =M157-N157 -> -3127153.021 | S157: =M157+N157 -> 6467091.048 | T157: =R157-Q157 -> -111887166.4 | U157: =S157-P157 -> -95856331.04 | V157: =T157-Q157 -> -220647179.8
A158: 152 | B158: 5.046478889 | C158: 389.0557014 | D158: =C158-D$5 -> 388.0484014 | E158: =C158-E$5 -> 371.0219014 | F158: 736522.6242 | G158: 4035560.415 | H158: 287345.5859 | I158: 2538148.707 | J158: 1049215.396 | K158: 1235879.671 | L158: =STDEV(E158:G158) -> 2148965.757 | M158: =STDEV(F158:H158) -> 2046726.034 | N158: =STDEV(H158:J158) -> 1144805.857 | O158: =STDEV(I158:K158) -> 811138.1507 | P158: =K158-L158 -> -913086.0859 | Q158: =K158+L158 -> 3384845.429 | R158: =M158-N158 -> 901920.1771 | S158: =M158+N158 -> 3191531.891 | T158: =R158-Q158 -> -2482925.252 | U158: =S158-P158 -> 4104617.977 | V158: =T158-Q158 -> -5867770.681
A159: 309 | B159: 3.203138125 | C159: 732.5534356 | D159: =C159-D$5 -> 731.5461356 | E159: =C159-E$5 -> 714.5196356 | F159: 150431851.9 | G159: 161672165.2 | H159: 164521740.1 | I159: 172385198 | J159: 260756159.1 | K159: 146533665.3 | L159: =STDEV(E159:G159) -> 90271377.62 | M159: =STDEV(F159:H159) -> 7449716.678 | N159: =STDEV(H159:J159) -> 53435824.63 | O159: =STDEV(I159:K159) -> 59895056.27 | P159: =K159-L159 -> 56262287.66 | Q159: =K159+L159 -> 236805042.9 | R159: =M159-N159 -> -45986107.95 | S159: =M159+N159 -> 60885541.31 | T159: =R159-Q159 -> -282791150.9 | U159: =S159-P159 -> 4623253.648 | V159: =T159-Q159 -> -519596193.8
A160: 289 | B160: 3.297361927 | C160: 703.574042 | D160: =C160-D$5 -> 702.566742 | E160: =C160-E$5 -> 685.540242 | F160: 29943773.24 | G160: 30431301.1 | H160: 16291692.72 | I160: 27364244.79 | J160: 22351505.92 | K160: 4199372.411 | L160: =STDEV(E160:G160) -> 17430091.55 | M160: =STDEV(F160:H160) -> 8026471.943 | N160: =STDEV(H160:J160) -> 5544521.267 | O160: =STDEV(I160:K160) -> 12187690.61 | P160: =K160-L160 -> -13230719.13 | Q160: =K160+L160 -> 21629463.96 | R160: =M160-N160 -> 2481950.676 | S160: =M160+N160 -> 13570993.21 | T160: =R160-Q160 -> -19147513.28 | U160: =S160-P160 -> 26801712.34 | V160: =T160-Q160 -> -40776977.24
A161: 339 | B161: 3.093811761 | C161: 783.5724675 | D161: =C161-D$5 -> 782.5651675 | E161: =C161-E$5 -> 765.5386675 | F161: 13829962.42 | G161: 8173522.649 | H161: 16982410.29 | I161: 12738400.34 | J161: 21241421.79 | K161: 14605873.01 | L161: =STDEV(E161:G161) -> 6952648.849 | M161: =STDEV(F161:H161) -> 4463364.576 | N161: =STDEV(H161:J161) -> 4251512.927 | O161: =STDEV(I161:K161) -> 4468768.201 | P161: =K161-L161 -> 7653224.163 | Q161: =K161+L161 -> 21558521.86 | R161: =M161-N161 -> 211851.6488 | S161: =M161+N161 -> 8714877.503 | T161: =R161-Q161 -> -21346670.21 | U161: =S161-P161 -> 1061653.34 | V161: =T161-Q161 -> -42905192.07
A162: 354 | B162: 3.10787973 | C162: 806.5695538 | D162: =C162-D$5 -> 805.5622538 | E162: =C162-E$5 -> 788.5357538 | F162: 58391938.62 | G162: 43199289.88 | H162: 81799969.82 | I162: 56109552.5 | J162: 97989873.43 | K162: 72906638.53 | L162: =STDEV(E162:G162) -> 30294261.01 | M162: =STDEV(F162:H162) -> 19445500.73 | N162: =STDEV(H162:J162) -> 21118995.41 | O162: =STDEV(I162:K162) -> 21076337.66 | P162: =K162-L162 -> 42612377.52 | Q162: =K162+L162 -> 103200899.5 | R162: =M162-N162 -> -1673494.677 | S162: =M162+N162 -> 40564496.14 | T162: =R162-Q162 -> -104874394.2 | U162: =S162-P162 -> -2047881.373 | V162: =T162-Q162 -> -208075293.8
A163: 84 | B163: 3.638934603 | C163: 272.2579099 | D163: =C163-D$5 -> 271.2506099 | E163: =C163-E$5 -> 254.2241099 | F163: 11970571.77 | G163: 10649218.1 | H163: 28767.11504 | I163: 3867562.292 | J163: 6333058.682 | K163: 1161044.83 | L163: =STDEV(E163:G163) -> 6562963.119 | M163: =STDEV(F163:H163) -> 6546585.028 | N163: =STDEV(H163:J163) -> 3176977.416 | O163: =STDEV(I163:K163) -> 2586942.743 | P163: =K163-L163 -> -5401918.289 | Q163: =K163+L163 -> 7724007.948 | R163: =M163-N163 -> 3369607.611 | S163: =M163+N163 -> 9723562.444 | T163: =R163-Q163 -> -4354400.337 | U163: =S163-P163 -> 15125480.73 | V163: =T163-Q163 -> -12078408.29
A164: 75 | B164: 14.64309545 | C164: 259.1129756 | D164: =C164-D$5 -> 258.1056756 | E164: =C164-E$5 -> 241.0791756 | F164: 4116128.512 | G164: 6533115.226 | H164: 2628197.67 | I164: 3766051.993 | J164: 5331374.006 | K164: 10267821.14 | L164: =STDEV(E164:G164) -> 3303049.065 | M164: =STDEV(F164:H164) -> 1970792.738 | N164: =STDEV(H164:J164) -> 1357209.623 | O164: =STDEV(I164:K164) -> 3393418.764 | P164: =K164-L164 -> 6964772.08 | Q164: =K164+L164 -> 13570870.21 | R164: =M164-N164 -> 613583.1146 | S164: =M164+N164 -> 3328002.361 | T164: =R164-Q164 -> -12957287.1 | U164: =S164-P164 -> -3636769.718 | V164: =T164-Q164 -> -26528157.3
A165: 159 | B165: 10.2546486 | C165: 404.846839 | D165: =C165-D$5 -> 403.839539 | E165: =C165-E$5 -> 386.813039 | F165: 17388492.59 | G165: 18089241.3 | H165: -10302.5482 | I165: 25232978.86 | J165: 19076541.54 | K165: 25146.26055 | L165: =STDEV(E165:G165) -> 10247308 | M165: =STDEV(F165:H165) -> 10253475.9 | N165: =STDEV(H165:J165) -> 13162019.82 | O165: =STDEV(I165:K165) -> 13142121.89 | P165: =K165-L165 -> -10222161.74 | Q165: =K165+L165 -> 10272454.26 | R165: =M165-N165 -> -2908543.913 | S165: =M165+N165 -> 23415495.72 | T165: =R165-Q165 -> -13180998.18 | U165: =S165-P165 -> 33637657.46 | V165: =T165-Q165 -> -23453452.44
A166: 320 | B166: 3.113653188 | C166: 747.5731387 | D166: =C166-D$5 -> 746.5658387 | E166: =C166-E$5 -> 729.5393387 | F166: 6043525.45 | G166: 5129672.674 | H166: 5075559.973 | I166: 3590578.115 | J166: 6680002.273 | K166: 1911561.753 | L166: =STDEV(E166:G166) -> 3257211.665 | M166: =STDEV(F166:H166) -> 543907.5052 | N166: =STDEV(H166:J166) -> 1545096.968 | O166: =STDEV(I166:K166) -> 2418734.606 | P166: =K166-L166 -> -1345649.912 | Q166: =K166+L166 -> 5168773.418 | R166: =M166-N166 -> -1001189.463 | S166: =M166+N166 -> 2089004.473 | T166: =R166-Q166 -> -6169962.881 | U166: =S166-P166 -> 3434654.386 | V166: =T166-Q166 -> -11338736.3
A167: 161 | B167: 10.18857772 | C167: 405.0090444 | D167: =C167-D$5 -> 404.0017444 | E167: =C167-E$5 -> 386.9752444 | F167: 42799.34754 | G167: 608913.6857 | H167: -8547.455097 | I167: 21060.66795 | J167: 2646.047635 | K167: 65476198.45 | L167: =STDEV(E167:G167) -> 339752.1181 | M167: =STDEV(F167:H167) -> 342632.018 | N167: =STDEV(H167:J167) -> 14950.10421 | O167: =STDEV(I167:K167) -> 37795858.39 | P167: =K167-L167 -> 65136446.34 | Q167: =K167+L167 -> 65815950.57 | R167: =M167-N167 -> 327681.9137 | S167: =M167+N167 -> 357582.1222 | T167: =R167-Q167 -> -65488268.66 | U167: =S167-P167 -> -64778864.21 | V167: =T167-Q167 -> -131304219.2
A168: 137 | B168: 10.63457773 | C168: 374.0360327 | D168: =C168-D$5 -> 373.0287327 | E168: =C168-E$5 -> 356.0022327 | F168: 210927939.5 | G168: 297927969.5 | H168: 230903983.1 | I168: 239280558.4 | J168: 257828377.7 | K168: 26837.39897 | L168: =STDEV(E168:G168) -> 153199387.3 | M168: =STDEV(F168:H168) -> 45570937.9 | N168: =STDEV(H168:J168) -> 13778676.99 | O168: =STDEV(I168:K168) -> 143786878.6 | P168: =K168-L168 -> -153172549.9 | Q168: =K168+L168 -> 153226224.7 | R168: =M168-N168 -> 31792260.91 | S168: =M168+N168 -> 59349614.9 | T168: =R168-Q168 -> -121433963.8 | U168: =S168-P168 -> 212522164.8 | V168: =T168-Q168 -> -274660188.5
A169: 187 | B169: 4.770533756 | C169: 448.0499142 | D169: =C169-D$5 -> 447.0426142 | E169: =C169-E$5 -> 430.0161142 | F169: 70689711.51 | G169: 98716428.39 | H169: 58057572.35 | I169: 87614586.63 | J169: 101257263.4 | K169: 75611783.16 | L169: =STDEV(E169:G169) -> 50871274.98 | M169: =STDEV(F169:H169) -> 20809494.52 | N169: =STDEV(H169:J169) -> 22082998.83 | O169: =STDEV(I169:K169) -> 12831475.45 | P169: =K169-L169 -> 24740508.18 | Q169: =K169+L169 -> 126483058.1 | R169: =M169-N169 -> -1273504.311 | S169: =M169+N169 -> 42892493.35 | T169: =R169-Q169 -> -127756562.5 | U169: =S169-P169 -> 18151985.17 | V169: =T169-Q169 -> -254239620.6
A170: 164 | B170: 10.19962397 | C170: 410.9375487 | D170: =C170-D$5 -> 409.9302487 | E170: =C170-E$5 -> 392.9037487 | F170: 549738.2034 | G170: 16134589.55 | H170: 7003038.785 | I170: 29553544.28 | J170: 165347.5383 | K170: -37994.82251 | L170: =STDEV(E170:G170) -> 9160619.277 | M170: =STDEV(F170:H170) -> 7830686.424 | N170: =STDEV(H170:J170) -> 15378260.78 | O170: =STDEV(I170:K170) -> 17026286.75 | P170: =K170-L170 -> -9198614.099 | Q170: =K170+L170 -> 9122624.454 | R170: =M170-N170 -> -7547574.353 | S170: =M170+N170 -> 23208947.2 | T170: =R170-Q170 -> -16670198.81 | U170: =S170-P170 -> 32407561.3 | V170: =T170-Q170 -> -25792823.26
A171: 267 | B171: 9.006283846 | C171: 652.051482 | D171: =C171-D$5 -> 651.044182 | E171: =C171-E$5 -> 634.017682 | F171: 8275361.117 | G171: 5100819.704 | H171: 879577.1785 | I171: -36692.96156 | J171: 6501820.935 | K171: -20507.51573 | L171: =STDEV(E171:G171) -> 4174540.21 | M171: =STDEV(F171:H171) -> 3710216.115 | N171: =STDEV(H171:J171) -> 3540276.35 | O171: =STDEV(I171:K171) -> 3770349.108 | P171: =K171-L171 -> -4195047.726 | Q171: =K171+L171 -> 4154032.694 | R171: =M171-N171 -> 169939.7645 | S171: =M171+N171 -> 7250492.465 | T171: =R171-Q171 -> -3984092.93 | U171: =S171-P171 -> 11445540.19 | V171: =T171-Q171 -> -8138125.624
A172: 166 | B172: 5.290246471 | C172: 415.2531792 | D172: =C172-D$5 -> 414.2458792 | E172: =C172-E$5 -> 397.2193792 | F172: 7096141.896 | G172: 33009.26997 | H172: -106912.8999 | I172: -21014.07178 | J172: 166482.0719 | K172: 25364.35447 | L172: =STDEV(E172:G172) -> 4087348.337 | M172: =STDEV(F172:H172) -> 4118887.777 | N172: =STDEV(H172:J172) -> 139808.335 | O172: =STDEV(I172:K172) -> 97655.83484 | P172: =K172-L172 -> -4061983.983 | Q172: =K172+L172 -> 4112712.691 | R172: =M172-N172 -> 3979079.442 | S172: =M172+N172 -> 4258696.112 | T172: =R172-Q172 -> -133633.2495 | U172: =S172-P172 -> 8320680.094 | V172: =T172-Q172 -> -4246345.941
A173: 311 | B173: 3.170317184 | C173: 733.5566056 | D173: =C173-D$5 -> 732.5493056 | E173: =C173-E$5 -> 715.5228056 | F173: 58683877.03 | G173: 61619925.17 | H173: 64359510.63 | I173: 66709651.98 | J173: 101271453.6 | K173: 55605238.32 | L173: =STDEV(E173:G173) -> 34759317.27 | M173: =STDEV(F173:H173) -> 2838383.459 | N173: =STDEV(H173:J173) -> 20666127.02 | O173: =STDEV(I173:K173) -> 23816063.77 | P173: =K173-L173 -> 20845921.05 | Q173: =K173+L173 -> 90364555.58 | R173: =M173-N173 -> -17827743.56 | S173: =M173+N173 -> 23504510.48 | T173: =R173-Q173 -> -108192299.1 | U173: =S173-P173 -> 2658589.426 | V173: =T173-Q173 -> -198556854.7
A174: 168 | B174: 9.064459756 | C174: 419.9916899 | D174: =C174-D$5 -> 418.9843899 | E174: =C174-E$5 -> 401.9578899 | F174: 65584.13555 | G174: 1460085.074 | H174: 3503775.45 | I174: 23631291.52 | J174: -121374.9471 | K174: -163322.5737 | L174: =STDEV(E174:G174) -> 824576.2937 | M174: =STDEV(F174:H174) -> 1729280.329 | N174: =STDEV(H174:J174) -> 12796143.84 | O174: =STDEV(I174:K174) -> 13725733.64 | P174: =K174-L174 -> -987898.8673 | Q174: =K174+L174 -> 661253.72 | R174: =M174-N174 -> -11066863.51 | S174: =M174+N174 -> 14525424.17 | T174: =R174-Q174 -> -11728117.23 | U174: =S174-P174 -> 15513323.04 | V174: =T174-Q174 -> -12389370.95
A175: 169 | B175: 8.279580608 | C175: 424.1745886 | D175: =C175-D$5 -> 423.1672886 | E175: =C175-E$5 -> 406.1407886 | F175: 968157241.6 | G175: 1223481297 | H175: 915290182.9 | I175: 993583191.4 | J175: 1376225345 | K175: 1270562024 | L175: =STDEV(E175:G175) -> 645422797.2 | M175: =STDEV(F175:H175) -> 164806483.7 | N175: =STDEV(H175:J175) -> 246646182.5 | O175: =STDEV(I175:K175) -> 197609475.3 | P175: =K175-L175 -> 625139226.3 | Q175: =K175+L175 -> 1915984821 | R175: =M175-N175 -> -81839698.83 | S175: =M175+N175 -> 411452666.3 | T175: =R175-Q175 -> -1997824520 | U175: =S175-P175 -> -213686560.1 | V175: =T175-Q175 -> -3913809340
A176: 170 | B176: 2.742915 | C176: 424.3633703 | D176: =C176-D$5 -> 423.3560703 | E176: =C176-E$5 -> 406.3295703 | F176: 99389.34242 | G176: -23845.62465 | H176: 268290.1715 | I176: 5908623.976 | J176: -29621.85622 | K176: -5915.719438 | L176: =STDEV(E176:G176) -> 65284.82624 | M176: =STDEV(F176:H176) -> 146661.5552 | N176: =STDEV(H176:J176) -> 3345765.497 | O176: =STDEV(I176:K176) -> 3421624.988 | P176: =K176-L176 -> -71200.54568 | Q176: =K176+L176 -> 59369.1068 | R176: =M176-N176 -> -3199103.942 | S176: =M176+N176 -> 3492427.052 | T176: =R176-Q176 -> -3258473.049 | U176: =S176-P176 -> 3563627.598 | V176: =T176-Q176 -> -3317842.156
A177: 357 | B177: 3.097981388 | C177: 808.5844933 | D177: =C177-D$5 -> 807.5771933 | E177: =C177-E$5 -> 790.5506933 | F177: 42255862.9 | G177: 28190196.6 | H177: 52816830.71 | I177: 38069929.92 | J177: 65161620.54 | K177: 47103042.64 | L177: =STDEV(E177:G177) -> 21517344.64 | M177: =STDEV(F177:H177) -> 12354810.92 | N177: =STDEV(H177:J177) -> 13563582.49 | O177: =STDEV(I177:K177) -> 13794135.6 | P177: =K177-L177 -> 25585698.01 | Q177: =K177+L177 -> 68620387.28 | R177: =M177-N177 -> -1208771.568 | S177: =M177+N177 -> 25918393.41 | T177: =R177-Q177 -> -69829158.85 | U177: =S177-P177 -> 332695.4014 | V177: =T177-Q177 -> -138449546.1
A178: 172 | B178: 4.840079316 | C178: 425.1782472 | D178: =C178-D$5 -> 424.1709472 | E178: =C178-E$5 -> 407.1444472 | F178: 6970970.789 | G178: 12353171.26 | H178: 5869056.649 | I178: 8350048.236 | J178: 4842848.715 | K178: 3933427.077 | L178: =STDEV(E178:G178) -> 6193378.464 | M178: =STDEV(F178:H178) -> 3469535.007 | N178: =STDEV(H178:J178) -> 1803185.628 | O178: =STDEV(I178:K178) -> 2332167.756 | P178: =K178-L178 -> -2259951.387 | Q178: =K178+L178 -> 10126805.54 | R178: =M178-N178 -> 1666349.379 | S178: =M178+N178 -> 5272720.635 | T178: =R178-Q178 -> -8460456.161 | U178: =S178-P178 -> 7532672.022 | V178: =T178-Q178 -> -18587261.7
A179: 173 | B179: 10.32977333 | C179: 426.8287821 | D179: =C179-D$5 -> 425.8214821 | E179: =C179-E$5 -> 408.7949821 | F179: 596006.744 | G179: 3386205.97 | H179: -30597.3527 | I179: 7739463.491 | J179: -24217.21603 | K179: 258523.5186 | L179: =STDEV(E179:G179) -> 1807556.875 | M179: =STDEV(F179:H179) -> 1818991.908 | N179: =STDEV(H179:J179) -> 4484206.068 | O179: =STDEV(I179:K179) -> 4403013.047 | P179: =K179-L179 -> -1549033.357 | Q179: =K179+L179 -> 2066080.394 | R179: =M179-N179 -> -2665214.16 | S179: =M179+N179 -> 6303197.976 | T179: =R179-Q179 -> -4731294.554 | U179: =S179-P179 -> 7852231.332 | V179: =T179-Q179 -> -6797374.948
A180: 174 | B180: 10.28142817 | C180: 428.0361178 | D180: =C180-D$5 -> 427.0288178 | E180: =C180-E$5 -> 410.0023178 | F180: 144036.1493 | G180: -126061.092 | H180: -75556.08838 | I180: -58576.93887 | J180: 108191.3295 | K180: 30742258.4 | L180: =STDEV(E180:G180) -> 135139.3895 | M180: =STDEV(F180:H180) -> 143598.9938 | N180: =STDEV(H180:J180) -> 101540.6819 | O180: =STDEV(I180:K180) -> 17734924.75 | P180: =K180-L180 -> 30607119.01 | Q180: =K180+L180 -> 30877397.79 | R180: =M180-N180 -> 42058.31188 | S180: =M180+N180 -> 245139.6756 | T180: =R180-Q180 -> -30835339.48 | U180: =S180-P180 -> -30361979.33 | V180: =T180-Q180 -> -61712737.27
A181: 175 | B181: 5.292526364 | C181: 432.2796742 | D181: =C181-D$5 -> 431.2723742 | E181: =C181-E$5 -> 414.2458742 | F181: 3925878.2 | G181: 75151.38983 | H181: -44627.23682 | I181: -11123.9145 | J181: -142055.0303 | K181: -7731.769665 | L181: =STDEV(E181:G181) -> 2245103.927 | M181: =STDEV(F181:H181) -> 2258589.431 | N181: =STDEV(H181:J181) -> 68016.67033 | O181: =STDEV(I181:K181) -> 76591.12449 | P181: =K181-L181 -> -2252835.697 | Q181: =K181+L181 -> 2237372.158 | R181: =M181-N181 -> 2190572.761 | S181: =M181+N181 -> 2326606.101 | T181: =R181-Q181 -> -46799.39671 | U181: =S181-P181 -> 4579441.798 | V181: =T181-Q181 -> -2284171.554
A182: 176 | B182: 10.25043306 | C182: 432.9202677 | D182: =C182-D$5 -> 431.9129677 | E182: =C182-E$5 -> 414.8864677 | F182: 427395.2797 | G182: 15489737.47 | H182: 4820607.441 | I182: 26603872.51 | J182: -82315.92849 | K182: -84038.52226 | L182: =STDEV(E182:G182) -> 8822089.498 | M182: =STDEV(F182:H182) -> 7746018.342 | N182: =STDEV(H182:J182) -> 14205057.48 | O182: =STDEV(I182:K182) -> 15407775.37 | P182: =K182-L182 -> -8906128.02 | Q182: =K182+L182 -> 8738050.976 | R182: =M182-N182 -> -6459039.138 | S182: =M182+N182 -> 21951075.82 | T182: =R182-Q182 -> -15197090.11 | U182: =S182-P182 -> 30857203.84 | V182: =T182-Q182 -> -23935141.09
A183: 15 | B183: 10.42162451 | C183: 126.0217749 | D183: =C183-D$5 -> 125.0144749 | E183: =C183-E$5 -> 107.9879749 | F183: 15312686.94 | G183: 15645398.58 | H183: 11763431.63 | I183: 6337918.354 | J183: 21128777.36 | K183: 63527047.59 | L183: =STDEV(E183:G183) -> 8938315.36 | M183: =STDEV(F183:H183) -> 2151649.664 | N183: =STDEV(H183:J183) -> 7482372.674 | O183: =STDEV(I183:K183) -> 29684393.57 | P183: =K183-L183 -> 54588732.23 | Q183: =K183+L183 -> 72465362.95 | R183: =M183-N183 -> -5330723.01 | S183: =M183+N183 -> 9634022.338 | T183: =R183-Q183 -> -77796085.96 | U183: =S183-P183 -> -44954709.89 | V183: =T183-Q183 -> -150261448.9
A184: 65 | B184: 10.40025455 | C184: 233.0578001 | D184: =C184-D$5 -> 232.0505001 | E184: =C184-E$5 -> 215.0240001 | F184: 8039045.543 | G184: 9083363.369 | H184: 1126755.489 | I184: -19778.05648 | J184: 7571666.48 | K184: 95193829.71 | L184: =STDEV(E184:G184) -> 4970194.156 | M184: =STDEV(F184:H184) -> 4323924.962 | N184: =STDEV(H184:J184) -> 4092298.6 | O184: =STDEV(I184:K184) -> 52916450.85 | P184: =K184-L184 -> 90223635.55 | Q184: =K184+L184 -> 100164023.9 | R184: =M184-N184 -> 231626.3616 | S184: =M184+N184 -> 8416223.562 | T184: =R184-Q184 -> -99932397.5 | U184: =S184-P184 -> -81807411.99 | V184: =T184-Q184 -> -200096421.4
A185: 179 | B185: 14.9324 | C185: 441.1965637 | D185: =C185-D$5 -> 440.1892637 | E185: =C185-E$5 -> 423.1627637 | F185: 675795.4315 | G185: 3719011.636 | H185: 938936.0193 | I185: 1919917.322 | J185: 3598.895222 | K185: -5478.056871 | L185: =STDEV(E185:G185) -> 1980959.061 | M185: =STDEV(F185:H185) -> 1686180.51 | N185: =STDEV(H185:J185) -> 958249.8077 | O185: =STDEV(I185:K185) -> 1109016.536 | P185: =K185-L185 -> -1986437.118 | Q185: =K185+L185 -> 1975481.004 | R185: =M185-N185 -> 727930.7021 | S185: =M185+N185 -> 2644430.317 | T185: =R185-Q185 -> -1247550.302 | U185: =S185-P185 -> 4630867.435 | V185: =T185-Q185 -> -3223031.306
A186: 34 | B186: 10.41212715 | C186: 167.0483232 | D186: =C186-D$5 -> 166.0410232 | E186: =C186-E$5 -> 149.0145232 | F186: 9466973.569 | G186: 10918764.12 | H186: 6247598.675 | I186: 3332105.94 | J186: 12701207.61 | K186: 46957619.67 | L186: =STDEV(E186:G186) -> 5929370.662 | M186: =STDEV(F186:H186) -> 2390671.352 | N186: =STDEV(H186:J186) -> 4794601.691 | O186: =STDEV(I186:K186) -> 22965435.19 | P186: =K186-L186 -> 41028249.01 | Q186: =K186+L186 -> 52886990.33 | R186: =M186-N186 -> -2403930.339 | S186: =M186+N186 -> 7185273.042 | T186: =R186-Q186 -> -55290920.67 | U186: =S186-P186 -> -33842975.96 | V186: =T186-Q186 -> -108177911
A187: 263 | B187: 14.24805278 | C187: 635.1397326 | D187: =C187-D$5 -> 634.1324326 | E187: =C187-E$5 -> 617.1059326 | F187: 17346053.34 | G187: 19607775.42 | H187: 9612637.481 | I187: 20201640.08 | J187: 8571812.084 | K187: 3851396.747 | L187: =STDEV(E187:G187) -> 10727070.14 | M187: =STDEV(F187:H187) -> 5241244.923 | N187: =STDEV(H187:J187) -> 6435101.563 | O187: =STDEV(I187:K187) -> 8414924.016 | P187: =K187-L187 -> -6875673.388 | Q187: =K187+L187 -> 14578466.88 | R187: =M187-N187 -> -1193856.64 | S187: =M187+N187 -> 11676346.49 | T187: =R187-Q187 -> -15772323.52 | U187: =S187-P187 -> 18552019.87 | V187: =T187-Q187 -> -30350790.4
A188: 182 | B188: 4.100589184 | C188: 443.2316072 | D188: =C188-D$5 -> 442.2243072 | E188: =C188-E$5 -> 425.1978072 | F188: 79261765.08 | G188: -102772.7264 | H188: 40184.76831 | I188: -3062.40183 | J188: -133857.9239 | K188: -21140.93035 | L188: =STDEV(E188:G188) -> 45791375.66 | M188: =STDEV(F188:H188) -> 45779924.79 | N188: =STDEV(H188:J188) -> 90617.00085 | O188: =STDEV(I188:K188) -> 70874.79858 | P188: =K188-L188 -> -45812516.59 | Q188: =K188+L188 -> 45770234.73 | R188: =M188-N188 -> 45689307.79 | S188: =M188+N188 -> 45870541.79 | T188: =R188-Q188 -> -80926.93951 | U188: =S188-P188 -> 91683058.39 | V188: =T188-Q188 -> -45851161.67
A189: 341 | B189: 3.100117784 | C189: 785.5881582 | D189: =C189-D$5 -> 784.5808582 | E189: =C189-E$5 -> 767.5543582 | F189: 16871747.58 | G189: 11940593.35 | H189: 19183520.68 | I189: 13817841.15 | J189: 26362710.61 | K189: 17997528.58 | L189: =STDEV(E189:G189) -> 8674730.439 | M189: =STDEV(F189:H189) -> 3699562.434 | N189: =STDEV(H189:J189) -> 6294243.862 | O189: =STDEV(I189:K189) -> 6387746.177 | P189: =K189-L189 -> 9322798.144 | Q189: =K189+L189 -> 26672259.02 | R189: =M189-N189 -> -2594681.428 | S189: =M189+N189 -> 9993806.296 | T189: =R189-Q189 -> -29266940.45 | U189: =S189-P189 -> 671008.152 | V189: =T189-Q189 -> -55939199.47
A190: 184 | B190: 4.03743069 | C190: 444.2350411 | D190: =C190-D$5 -> 443.2277411 | E190: =C190-E$5 -> 426.2012411 | F190: 11615051.31 | G190: 76668.71696 | H190: -47627.49002 | I190: 51447.09358 | J190: -194205.6021 | K190: 136078.5115 | L190: =STDEV(E190:G190) -> 6683806.328 | M190: =STDEV(F190:H190) -> 6697857.856 | N190: =STDEV(H190:J190) -> 123589.4837 | O190: =STDEV(I190:K190) -> 171559.1829 | P190: =K190-L190 -> -6547727.816 | Q190: =K190+L190 -> 6819884.839 | R190: =M190-N190 -> 6574268.372 | S190: =M190+N190 -> 6821447.34 | T190: =R190-Q190 -> -245616.4669 | U190: =S190-P190 -> 13369175.16 | V190: =T190-Q190 -> -7065501.306
A191: 185 | B191: 3.190237941 | C191: 445.2322352 | D191: =C191-D$5 -> 444.2249352 | E191: =C191-E$5 -> 427.1984352 | F191: 644663.298 | G191: 71878.65751 | H191: 5127612.773 | I191: -150467.4848 | J191: 3051969.129 | K191: 6265427.024 | L191: =STDEV(E191:G191) -> 353135.4101 | M191: =STDEV(F191:H191) -> 2768434.145 | N191: =STDEV(H191:J191) -> 2659010.719 | O191: =STDEV(I191:K191) -> 3207948.832 | P191: =K191-L191 -> 5912291.614 | Q191: =K191+L191 -> 6618562.435 | R191: =M191-N191 -> 109423.4263 | S191: =M191+N191 -> 5427444.864 | T191: =R191-Q191 -> -6509139.008 | U191: =S191-P191 -> -484846.7504 | V191: =T191-Q191 -> -13127701.44
A192: 201 | B192: 10.54764575 | C192: 493.9946419 | D192: =C192-D$5 -> 492.9873419 | E192: =C192-E$5 -> 475.9608419 | F192: 22717527.16 | G192: 31107482.35 | H192: 18644729.11 | I192: 24079841.05 | J192: 26201611.06 | K192: -5710.383021 | L192: =STDEV(E192:G192) -> 16094003.07 | M192: =STDEV(F192:H192) -> 6354778.389 | N192: =STDEV(H192:J192) -> 3897623.522 | O192: =STDEV(I192:K192) -> 14557010.87 | P192: =K192-L192 -> -16099713.46 | Q192: =K192+L192 -> 16088292.69 | R192: =M192-N192 -> 2457154.867 | S192: =M192+N192 -> 10252401.91 | T192: =R192-Q192 -> -13631137.82 | U192: =S192-P192 -> 26352115.37 | V192: =T192-Q192 -> -29719430.51
A193: 126 | B193: 10.63122671 | C193: 352.0544794 | D193: =C193-D$5 -> 351.0471794 | E193: =C193-E$5 -> 334.0206794 | F193: 253181306 | G193: 302853692.5 | H193: 232671641.2 | I193: 214664294.2 | J193: 327921908.3 | K193: 23851.29569 | L193: =STDEV(E193:G193) -> 162423370.3 | M193: =STDEV(F193:H193) -> 36086730.36 | N193: =STDEV(H193:J193) -> 60860722.27 | O193: =STDEV(I193:K193) -> 166540757.1 | P193: =K193-L193 -> -162399519 | Q193: =K193+L193 -> 162447221.6 | R193: =M193-N193 -> -24773991.91 | S193: =M193+N193 -> 96947452.62 | T193: =R193-Q193 -> -187221213.5 | U193: =S193-P193 -> 259346971.6 | V193: =T193-Q193 -> -349668435
A194: 23 | B194: 11.70207044 | C194: 137.0707012 | D194: =C194-D$5 -> 136.0634012 | E194: =C194-E$5 -> 119.0369012 | F194: 171013545.6 | G194: 135842440.7 | H194: 111200604.2 | I194: 63599025.34 | J194: 202239548.1 | K194: 54971.92755 | L194: =STDEV(E194:G194) -> 90310330.74 | M194: =STDEV(F194:H194) -> 30060535.25 | N194: =STDEV(H194:J194) -> 70445243.69 | O194: =STDEV(I194:K194) -> 103390557.4 | P194: =K194-L194 -> -90255358.81 | Q194: =K194+L194 -> 90365302.67 | R194: =M194-N194 -> -40384708.44 | S194: =M194+N194 -> 100505778.9 | T194: =R194-Q194 -> -130750011.1 | U194: =S194-P194 -> 190761137.8 | V194: =T194-Q194 -> -221115313.8
A195: 1 | B195: 10.59733023 | C195: 84.04416639 | D195: =C195-D$5 -> 83.03686639 | E195: =C195-E$5 -> 66.01036639 | F195: 11039385.82 | G195: 11819922.78 | H195: 4463223.292 | I195: 2068940.182 | J195: 6778724.808 | K195: 81913403.89 | L195: =STDEV(E195:G195) -> 6610406.365 | M195: =STDEV(F195:H195) -> 4040960.671 | N195: =STDEV(H195:J195) -> 2355002.127 | O195: =STDEV(I195:K195) -> 44800558.88 | P195: =K195-L195 -> 75302997.53 | Q195: =K195+L195 -> 88523810.26 | R195: =M195-N195 -> 1685958.544 | S195: =M195+N195 -> 6395962.798 | T195: =R195-Q195 -> -86837851.71 | U195: =S195-P195 -> -68907034.73 | V195: =T195-Q195 -> -175361662
A196: 190 | B196: 2.750389375 | C196: 468.3891602 | D196: =C196-D$5 -> 467.3818602 | E196: =C196-E$5 -> 450.3553602 | F196: -237909.9651 | G196: -36869.25606 | H196: 31502.52384 | I196: 7960176.17 | J196: -72004.98858 | K196: 137862.71 | L196: =STDEV(E196:G196) -> 128209.3096 | M196: =STDEV(F196:H196) -> 140044.7287 | N196: =STDEV(H196:J196) -> 4607792.562 | O196: =STDEV(I196:K196) -> 4578001.138 | P196: =K196-L196 -> 9653.400358 | Q196: =K196+L196 -> 266072.0196 | R196: =M196-N196 -> -4467747.833 | S196: =M196+N196 -> 4747837.291 | T196: =R196-Q196 -> -4733819.853 | U196: =S196-P196 -> 4738183.89 | V196: =T196-Q196 -> -4999891.873
A197: 191 | B197: 10.34445811 | C197: 470.8762586 | D197: =C197-D$5 -> 469.8689586 | E197: =C197-E$5 -> 452.8424586 | F197: 355557.8005 | G197: 13100189.37 | H197: -72370.5177 | I197: 20297829.8 | J197: -14936.4934 | K197: -45768.13715 | L197: =STDEV(E197:G197) -> 7462738.893 | M197: =STDEV(F197:H197) -> 7484707.64 | N197: =STDEV(H197:J197) -> 11744195.97 | O197: =STDEV(I197:K197) -> 11736491.54 | P197: =K197-L197 -> -7508507.03 | Q197: =K197+L197 -> 7416970.756 | R197: =M197-N197 -> -4259488.333 | S197: =M197+N197 -> 19228903.61 | T197: =R197-Q197 -> -11676459.09 | U197: =S197-P197 -> 26737410.64 | V197: =T197-Q197 -> -19093429.84
A198: 192 | B198: 5.267635714 | C198: 476.3059373 | D198: =C198-D$5 -> 475.2986373 | E198: =C198-E$5 -> 458.2721373 | F198: 8560861.376 | G198: 34011.9861 | H198: -12279.43945 | I198: 77.87777142 | J198: 261038.3711 | K198: 70966.28093 | L198: =STDEV(E198:G198) -> 4932693.444 | M198: =STDEV(F198:H198) -> 4936396.237 | N198: =STDEV(H198:J198) -> 154356.572 | O198: =STDEV(I198:K198) -> 134940.0757 | P198: =K198-L198 -> -4861727.163 | Q198: =K198+L198 -> 5003659.725 | R198: =M198-N198 -> 4782039.665 | S198: =M198+N198 -> 5090752.809 | T198: =R198-Q198 -> -221620.0598 | U198: =S198-P198 -> 9952479.972 | V198: =T198-Q198 -> -5225279.784
A199: 193 | B199: 10.5202119 | C199: 477.0685527 | D199: =C199-D$5 -> 476.0612527 | E199: =C199-E$5 -> 459.0347527 | F199: 6252799.695 | G199: 4105482.615 | H199: 975950.849 | I199: -104502.1434 | J199: 6851840.825 | K199: 9018.333146 | L199: =STDEV(E199:G199) -> 3176842.063 | M199: =STDEV(F199:H199) -> 2653616.195 | N199: =STDEV(H199:J199) -> 3743531.514 | O199: =STDEV(I199:K199) -> 3983880.312 | P199: =K199-L199 -> -3167823.73 | Q199: =K199+L199 -> 3185860.397 | R199: =M199-N199 -> -1089915.319 | S199: =M199+N199 -> 6397147.709 | T199: =R199-Q199 -> -4275775.715 | U199: =S199-P199 -> 9564971.439 | V199: =T199-Q199 -> -7461636.112
A200: 194 | B200: 3.575615217 | C200: 480.3078852 | D200: =C200-D$5 -> 479.3005852 | E200: =C200-E$5 -> 462.2740852 | F200: 113173.854 | G200: 209716.5416 | H200: 1943174.728 | I200: 410150.3509 | J200: 2372018.269 | K200: 4125048.906 | L200: =STDEV(E200:G200) -> 104731.195 | M200: =STDEV(F200:H200) -> 1029813.978 | N200: =STDEV(H200:J200) -> 1031422.663 | O200: =STDEV(I200:K200) -> 1858427.356 | P200: =K200-L200 -> 4020317.711 | Q200: =K200+L200 -> 4229780.101 | R200: =M200-N200 -> -1608.684829 | S200: =M200+N200 -> 2061236.64 | T200: =R200-Q200 -> -4231388.786 | U200: =S200-P200 -> -1959081.071 | V200: =T200-Q200 -> -8461168.888
A201: 180 | B201: 2.892325818 | C201: 441.2968223 | D201: =C201-D$5 -> 440.2895223 | E201: =C201-E$5 -> 423.2630223 | F201: 4262997.637 | G201: 197439.6916 | H201: 5125103.971 | I201: 808863.4196 | J201: 5401567.166 | K201: 10665803.73 | L201: =STDEV(E201:G201) -> 2406142.042 | M201: =STDEV(F201:H201) -> 2631661.832 | N201: =STDEV(H201:J201) -> 2575502.931 | O201: =STDEV(I201:K201) -> 4932281.195 | P201: =K201-L201 -> 8259661.692 | Q201: =K201+L201 -> 13071945.78 | R201: =M201-N201 -> 56158.9007 | S201: =M201+N201 -> 5207164.763 | T201: =R201-Q201 -> -13015786.88 | U201: =S201-P201 -> -3052496.929 | V201: =T201-Q201 -> -26087732.65
A202: 40 | B202: 14.72921788 | C202: 181.0282165 | D202: =C202-D$5 -> 180.0209165 | E202: =C202-E$5 -> 162.9944165 | F202: 38372891.26 | G202: 28060576.72 | H202: 53794739.13 | I202: 38941.84162 | J202: 99269388.5 | K202: 102161516.6 | L202: =STDEV(E202:G202) -> 19858654.39 | M202: =STDEV(F202:H202) -> 12951347.02 | N202: =STDEV(H202:J202) -> 49672780.98 | O202: =STDEV(I202:K202) -> 58143595.56 | P202: =K202-L202 -> 82302862.21 | Q202: =K202+L202 -> 122020171 | R202: =M202-N202 -> -36721433.96 | S202: =M202+N202 -> 62624128 | T202: =R202-Q202 -> -158741604.9 | U202: =S202-P202 -> -19678734.21 | V202: =T202-Q202 -> -280761775.9
A203: 197 | B203: 8.429470045 | C203: 486.1906904 | D203: =C203-D$5 -> 485.1833904 | E203: =C203-E$5 -> 468.1568904 | F203: 1185793389 | G203: 1555412212 | H203: 1116161664 | I203: 1209884557 | J203: 1687187053 | K203: 1479317432 | L203: =STDEV(E203:G203) -> 812611901.9 | M203: =STDEV(F203:H203) -> 236081799.2 | N203: =STDEV(H203:J203) -> 306232931.2 | O203: =STDEV(I203:K203) -> 239312044.3 | P203: =K203-L203 -> 666705529.7 | Q203: =K203+L203 -> 2291929334 | R203: =M203-N203 -> -70151132.04 | S203: =M203+N203 -> 542314730.4 | T203: =R203-Q203 -> -2362080466 | U203: =S203-P203 -> -124390799.3 | V203: =T203-Q203 -> -4654009799
... 201 more rows

Sheet Aldrin_Cells_Neg
D4: M-H=1,0073 | E4: M+Ac-H=59,0138512
D5: -1.0073 | E5: 59.0138512 | F5: Normalized Areas (per prot)
A6: nºROI | B6: ret time (min) | C6: mzROI | D6: Ad_1 | E6: Ad_2 | F6: A01 | G6: A02 | H6: A03 | I6: A51 | J6: A52 | K6: A53 | L6: mean T0 | M6: SD T0 | N6: mean T5 | O6: SD T5 | Q6: T0_min | R6: T0_max | S6: T5_min | T6: T5_max | U6: LB | V6: UB
A7: 66 | B7: 4.374712453 | C7: 190.0541701 | D7: =C7-D$5 -> 191.0614701 | E7: =C7-E$5 -> 131.0403189 | F7: 5184194.399 | G7: 5969902.034 | H7: 5954819.937 | I7: 373229.6065 | J7: 1071990.522 | K7: 1833670.067 | L7: =STDEV(E7:G7) -> 3243712.254 | M7: =STDEV(F7:H7) -> 449337.9716 | N7: =STDEV(H7:J7) -> 3040954.908 | O7: =STDEV(I7:K7) -> 730446.0835 | P7: =K7-L7 -> -1410042.187 | Q7: =K7+L7 -> 5077382.321 | R7: =M7-N7 -> -2591616.937 | S7: =M7+N7 -> 3490292.88 | T7: =R7-Q7 -> -7668999.257 | U7: =S7-P7 -> 4900335.067 | V7: =T7-Q7 -> -12746381.58
A8: 152 | B8: 2.670580594 | C8: 339.1994623 | D8: =C8-D$5 -> 340.2067623 | E8: =C8-E$5 -> 280.1856111 | F8: 2820419.06 | G8: -99534.98414 | H8: 9264847.81 | I8: 17309429.64 | J8: 24115933.51 | K8: 21565455.66 | L8: =STDEV(E8:G8) -> 1657773.505 | M8: =STDEV(F8:H8) -> 4791458.697 | N8: =STDEV(H8:J8) -> 7434139.023 | O8: =STDEV(I8:K8) -> 3438681.664 | P8: =K8-L8 -> 19907682.15 | Q8: =K8+L8 -> 23223229.16 | R8: =M8-N8 -> -2642680.326 | S8: =M8+N8 -> 12225597.72 | T8: =R8-Q8 -> -25865909.49 | U8: =S8-P8 -> -7682084.433 | V8: =T8-Q8 -> -49089138.65
A9: 104 | B9: 2.933571908 | C9: 256.2360515 | D9: =C9-D$5 -> 257.2433515 | E9: =C9-E$5 -> 197.2222003 | F9: 12272065.43 | G9: 11387405.96 | H9: 17293199.01 | I9: 35102863.24 | J9: 41724859.85 | K9: 29175297.39 | L9: =STDEV(E9:G9) -> 6844095.931 | M9: =STDEV(F9:H9) -> 3185194.82 | N9: =STDEV(H9:J9) -> 12635538.71 | O9: =STDEV(I9:K9) -> 6277982.61 | P9: =K9-L9 -> 22331201.46 | Q9: =K9+L9 -> 36019393.32 | R9: =M9-N9 -> -9450343.889 | S9: =M9+N9 -> 15820733.53 | T9: =R9-Q9 -> -45469737.21 | U9: =S9-P9 -> -6510467.933 | V9: =T9-Q9 -> -81489130.54
A10: 112 | B10: 2.90665 | C10: 269.2482819 | D10: =C10-D$5 -> 270.2555819 | E10: =C10-E$5 -> 210.2344307 | F10: 1446614.962 | G10: 2098293.792 | H10: 3512127.968 | I10: 11935812.32 | J10: 13989139.53 | K10: 8584112.031 | L10: =STDEV(E10:G10) -> 1073834.76 | M10: =STDEV(F10:H10) -> 1055932.16 | N10: =STDEV(H10:J10) -> 5551912.312 | O10: =STDEV(I10:K10) -> 2728380.768 | P10: =K10-L10 -> 7510277.271 | Q10: =K10+L10 -> 9657946.79 | R10: =M10-N10 -> -4495980.152 | S10: =M10+N10 -> 6607844.472 | T10: =R10-Q10 -> -14153926.94 | U10: =S10-P10 -> -902432.7993 | V10: =T10-Q10 -> -23811873.73
A11: 147 | B11: 2.691403162 | C11: 325.18384 | D11: =C11-D$5 -> 326.19114 | E11: =C11-E$5 -> 266.1699888 | F11: 6846699.755 | G11: 1078774.531 | H11: 9996255.065 | I11: 31238020.01 | J11: 29279581.37 | K11: 17918694.61 | L11: =STDEV(E11:G11) -> 3681163.641 | M11: =STDEV(F11:H11) -> 4522354.09 | N11: =STDEV(H11:J11) -> 11739496.96 | O11: =STDEV(I11:K11) -> 7191542.011 | P11: =K11-L11 -> 14237530.97 | Q11: =K11+L11 -> 21599858.25 | R11: =M11-N11 -> -7217142.868 | S11: =M11+N11 -> 16261851.05 | T11: =R11-Q11 -> -28817001.12 | U11: =S11-P11 -> 2024320.082 | V11: =T11-Q11 -> -50416859.36
A12: 103 | B12: 3.009575921 | C12: 255.2326948 | D12: =C12-D$5 -> 256.2399948 | E12: =C12-E$5 -> 196.2188436 | F12: 134127987.5 | G12: 127013783.3 | H12: 174813116.4 | I12: 291176272.2 | J12: 362412940.6 | K12: 248222016.6 | L12: =STDEV(E12:G12) -> 75468898.23 | M12: =STDEV(F12:H12) -> 25789752 | N12: =STDEV(H12:J12) -> 94700176.88 | O12: =STDEV(I12:K12) -> 57676248.9 | P12: =K12-L12 -> 172753118.4 | Q12: =K12+L12 -> 323690914.8 | R12: =M12-N12 -> -68910424.88 | S12: =M12+N12 -> 120489928.9 | T12: =R12-Q12 -> -392601339.7 | U12: =S12-P12 -> -52263189.47 | V12: =T12-Q12 -> -716292254.5
A13: 249 | B13: 2.725538 | C13: 886.5535333 | D13: =C13-D$5 -> 887.5608333 | E13: =C13-E$5 -> 827.5396821 | F13: 10460332.92 | G13: 14891366.58 | H13: 10748354.17 | I13: 4346562.11 | J13: 7574578.516 | K13: 1697583.077 | L13: =STDEV(E13:G13) -> 7645951.705 | M13: =STDEV(F13:H13) -> 2479299.877 | N13: =STDEV(H13:J13) -> 3200934.328 | O13: =STDEV(I13:K13) -> 2943248.07 | P13: =K13-L13 -> -5948368.628 | Q13: =K13+L13 -> 9343534.782 | R13: =M13-N13 -> -721634.4513 | S13: =M13+N13 -> 5680234.205 | T13: =R13-Q13 -> -10065169.23 | U13: =S13-P13 -> 11628602.83 | V13: =T13-Q13 -> -19408704.02
A14: 243 | B14: 2.710021429 | C14: 835.5323748 | D14: =C14-D$5 -> 836.5396748 | E14: =C14-E$5 -> 776.5185236 | F14: 1069182.5 | G14: 1973704.32 | H14: 2087665.196 | I14: 294.0309619 | J14: 19271.54237 | K14: -77164.37435 | L14: =STDEV(E14:G14) -> 987597.6892 | M14: =STDEV(F14:H14) -> 558040.2924 | N14: =STDEV(H14:J14) -> 1199703.493 | O14: =STDEV(I14:K14) -> 51087.89244 | P14: =K14-L14 -> -1064762.064 | Q14: =K14+L14 -> 910433.3149 | R14: =M14-N14 -> -641663.2009 | S14: =M14+N14 -> 1757743.786 | T14: =R14-Q14 -> -1552096.516 | U14: =S14-P14 -> 2822505.849 | V14: =T14-Q14 -> -2462529.831
A15: 96 | B15: 2.95214552 | C15: 241.2169613 | D15: =C15-D$5 -> 242.2242613 | E15: =C15-E$5 -> 182.2031101 | F15: 6001385.442 | G15: 7231840.478 | H15: 6945553.146 | I15: 26169129.43 | J15: 26408918.51 | K15: 14727351.51 | L15: =STDEV(E15:G15) -> 3869223.465 | M15: =STDEV(F15:H15) -> 643872.7467 | N15: =STDEV(H15:J15) -> 11168601.64 | O15: =STDEV(I15:K15) -> 6676211.358 | P15: =K15-L15 -> 10858128.04 | Q15: =K15+L15 -> 18596574.97 | R15: =M15-N15 -> -10524728.89 | S15: =M15+N15 -> 11812474.39 | T15: =R15-Q15 -> -29121303.87 | U15: =S15-P15 -> 954346.343 | V15: =T15-Q15 -> -47717878.84
A16: 91 | B16: 2.977902484 | C16: 227.2013479 | D16: =C16-D$5 -> 228.2086479 | E16: =C16-E$5 -> 168.1874967 | F16: 10037496.82 | G16: 10157468.12 | H16: 11752445.5 | I16: 34657328.91 | J16: 35780853.05 | K16: 20175670.22 | L16: =STDEV(E16:G16) -> 5829995.728 | M16: =STDEV(F16:H16) -> 957374.441 | N16: =STDEV(H16:J16) -> 13560115.29 | O16: =STDEV(I16:K16) -> 8703471.299 | P16: =K16-L16 -> 14345674.49 | Q16: =K16+L16 -> 26005665.95 | R16: =M16-N16 -> -12602740.85 | S16: =M16+N16 -> 14517489.73 | T16: =R16-Q16 -> -38608406.8 | U16: =S16-P16 -> 171815.2368 | V16: =T16-Q16 -> -64614072.75
A17: 248 | B17: 2.734099135 | C17: 885.5495048 | D17: =C17-D$5 -> 886.5568048 | E17: =C17-E$5 -> 826.5356536 | F17: 29150815.84 | G17: 38487497.49 | H17: 29178830.94 | I17: 17585943.47 | J17: 26405031.51 | K17: 10950097.35 | L17: =STDEV(E17:G17) -> 20075355.3 | M17: =STDEV(F17:H17) -> 5382466.63 | N17: =STDEV(H17:J17) -> 6053446.914 | O17: =STDEV(I17:K17) -> 7753125.796 | P17: =K17-L17 -> -9125257.951 | Q17: =K17+L17 -> 31025452.64 | R17: =M17-N17 -> -670980.2831 | S17: =M17+N17 -> 11435913.54 | T17: =R17-Q17 -> -31696432.93 | U17: =S17-P17 -> 20561171.49 | V17: =T17-Q17 -> -62721885.57
A18: 121 | B18: 2.89021463 | C18: 284.2671644 | D18: =C18-D$5 -> 285.2744644 | E18: =C18-E$5 -> 225.2533132 | F18: 6410786.538 | G18: 4709621.263 | H18: 10960008.88 | I18: 11787687.01 | J18: 20344838.25 | K18: 13765953.39 | L18: =STDEV(E18:G18) -> 3320834.987 | M18: =STDEV(F18:H18) -> 3231530.408 | N18: =STDEV(H18:J18) -> 5195910.419 | O18: =STDEV(I18:K18) -> 4479957.237 | P18: =K18-L18 -> 10445118.4 | Q18: =K18+L18 -> 17086788.37 | R18: =M18-N18 -> -1964380.012 | S18: =M18+N18 -> 8427440.827 | T18: =R18-Q18 -> -19051168.39 | U18: =S18-P18 -> -2017677.573 | V18: =T18-Q18 -> -36137956.76
A19: 250 | B19: 2.731859375 | C19: 887.5633507 | D19: =C19-D$5 -> 888.5706507 | E19: =C19-E$5 -> 828.5494995 | F19: 1514222.386 | G19: 3256436.182 | H19: 1421774.239 | I19: 44528.81071 | J19: 174060.6787 | K19: -116653.205 | L19: =STDEV(E19:G19) -> 1629143.48 | M19: =STDEV(F19:H19) -> 1033589.217 | N19: =STDEV(H19:J19) -> 760523.1319 | O19: =STDEV(I19:K19) -> 145643.8059 | P19: =K19-L19 -> -1745796.685 | Q19: =K19+L19 -> 1512490.275 | R19: =M19-N19 -> 273066.0847 | S19: =M19+N19 -> 1794112.348 | T19: =R19-Q19 -> -1239424.19 | U19: =S19-P19 -> 3539909.033 | V19: =T19-Q19 -> -2751914.465
A20: 7 | B20: 11.95838363 | C20: 96.96882788 | D20: =C20-D$5 -> 97.97612788 | E20: =C20-E$5 -> 37.95497668 | F20: 1343330726 | G20: 1426437024 | H20: 1027499391 | I20: 1536671259 | J20: 1901157458 | K20: 2280584024 | L20: =STDEV(E20:G20) -> 800642082.9 | M20: =STDEV(F20:H20) -> 210478551.5 | N20: =STDEV(H20:J20) -> 438821261.8 | O20: =STDEV(I20:K20) -> 371981385.8 | P20: =K20-L20 -> 1479941941 | Q20: =K20+L20 -> 3081226106 | R20: =M20-N20 -> -228342710.4 | S20: =M20+N20 -> 649299813.3 | T20: =R20-Q20 -> -3309568817 | U20: =S20-P20 -> -830642127.4 | V20: =T20-Q20 -> -6390794923
A21: 242 | B21: 2.702292653 | C21: 834.5290689 | D21: =C21-D$5 -> 835.5363689 | E21: =C21-E$5 -> 775.5152177 | F21: 4517118.893 | G21: 6316401.535 | H21: 6851373.284 | I21: 124905.2674 | J21: 4439545.911 | K21: -47079.18713 | L21: =STDEV(E21:G21) -> 3253764.68 | M21: =STDEV(F21:H21) -> 1222862.514 | N21: =STDEV(H21:J21) -> 3407795.161 | O21: =STDEV(I21:K21) -> 2542161.394 | P21: =K21-L21 -> -3300843.867 | Q21: =K21+L21 -> 3206685.493 | R21: =M21-N21 -> -2184932.647 | S21: =M21+N21 -> 4630657.674 | T21: =R21-Q21 -> -5391618.14 | U21: =S21-P21 -> 7931501.541 | V21: =T21-Q21 -> -8598303.632
A22: 120 | B22: 2.942032193 | C22: 283.2639387 | D22: =C22-D$5 -> 284.2712387 | E22: =C22-E$5 -> 224.2500875 | F22: 81569357.9 | G22: 79239352.12 | H22: 118189523.1 | I22: 126537010.6 | J22: 197653355.2 | K22: 139604089.4 | L22: =STDEV(E22:G22) -> 46435962.85 | M22: =STDEV(F22:H22) -> 21846362.17 | N22: =STDEV(H22:J22) -> 43668668.47 | O22: =STDEV(I22:K22) -> 37854987.07 | P22: =K22-L22 -> 93168126.56 | Q22: =K22+L22 -> 186040052.3 | R22: =M22-N22 -> -21822306.3 | S22: =M22+N22 -> 65515030.64 | T22: =R22-Q22 -> -207862358.6 | U22: =S22-P22 -> -27653095.92 | V22: =T22-Q22 -> -393902410.8
A23: 73 | B23: 3.036828254 | C23: 199.1701091 | D23: =C23-D$5 -> 200.1774091 | E23: =C23-E$5 -> 140.1562579 | F23: 4865943.461 | G23: 66468.65812 | H23: 1851972.685 | I23: 12983979.14 | J23: 10284989.1 | K23: 4499947.912 | L23: =STDEV(E23:G23) -> 2790322.552 | M23: =STDEV(F23:H23) -> 2425798.935 | N23: =STDEV(H23:J23) -> 5806919.445 | O23: =STDEV(I23:K23) -> 4334551.775 | P23: =K23-L23 -> 1709625.36 | Q23: =K23+L23 -> 7290270.464 | R23: =M23-N23 -> -3381120.51 | S23: =M23+N23 -> 8232718.381 | T23: =R23-Q23 -> -10671390.97 | U23: =S23-P23 -> 6523093.02 | V23: =T23-Q23 -> -17961661.44
A24: 117 | B24: 2.944645702 | C24: 281.2484114 | D24: =C24-D$5 -> 282.2557114 | E24: =C24-E$5 -> 222.2345602 | F24: 55777620.33 | G24: 55491265.66 | H24: 88927342.89 | I24: 98211393.16 | J24: 194644991.3 | K24: 142669441.5 | L24: =STDEV(E24:G24) -> 32120751.44 | M24: =STDEV(F24:H24) -> 19222197.95 | N24: =STDEV(H24:J24) -> 58540375.82 | O24: =STDEV(I24:K24) -> 48265610.04 | P24: =K24-L24 -> 110548690.1 | Q24: =K24+L24 -> 174790192.9 | R24: =M24-N24 -> -39318177.86 | S24: =M24+N24 -> 77762573.77 | T24: =R24-Q24 -> -214108370.8 | U24: =S24-P24 -> -32786116.3 | V24: =T24-Q24 -> -388898563.8
A25: 118 | B25: 2.900069882 | C25: 282.2515805 | D25: =C25-D$5 -> 283.2588805 | E25: =C25-E$5 -> 223.2377293 | F25: 2403586.013 | G25: 1185446.008 | H25: 6424929.888 | I25: 7073038.449 | J25: 21782731.48 | K25: 16029764.63 | L25: =STDEV(E25:G25) -> 1201718.957 | M25: =STDEV(F25:H25) -> 2741874.753 | N25: =STDEV(H25:J25) -> 8685785.162 | O25: =STDEV(I25:K25) -> 7412766.469 | P25: =K25-L25 -> 14828045.68 | Q25: =K25+L25 -> 17231483.59 | R25: =M25-N25 -> -5943910.409 | S25: =M25+N25 -> 11427659.91 | T25: =R25-Q25 -> -23175394 | U25: =S25-P25 -> -3400385.761 | V25: =T25-Q25 -> -40406877.59
A26: 167 | B26: 10.54441364 | C26: 396.0452416 | D26: =C26-D$5 -> 397.0525416 | E26: =C26-E$5 -> 337.0313904 | F26: 7138963.928 | G26: 14612676 | H26: 7094146.035 | I26: 5554095.762 | J26: 4125079.984 | K26: 10444.70985 | L26: =STDEV(E26:G26) -> 7306809.797 | M26: =STDEV(F26:H26) -> 4327945.504 | N26: =STDEV(H26:J26) -> 1484879.016 | O26: =STDEV(I26:K26) -> 2878204.78 | P26: =K26-L26 -> -7296365.087 | Q26: =K26+L26 -> 7317254.507 | R26: =M26-N26 -> 2843066.488 | S26: =M26+N26 -> 5812824.521 | T26: =R26-Q26 -> -4474188.018 | U26: =S26-P26 -> 13109189.61 | V26: =T26-Q26 -> -11791442.53
A27: 29 | B27: 14.79231663 | C27: 131.0458308 | D27: =C27-D$5 -> 132.0531308 | E27: =C27-E$5 -> 72.03197958 | F27: 3590796.53 | G27: 7556618.73 | H27: -99932.85988 | I27: 7632792.847 | J27: 7850098.559 | K27: 12647944.59 | L27: =STDEV(E27:G27) -> 3779824.646 | M27: =STDEV(F27:H27) -> 3829099.359 | N27: =STDEV(H27:J27) -> 4528525.665 | O27: =STDEV(I27:K27) -> 2834851.418 | P27: =K27-L27 -> 8868119.947 | Q27: =K27+L27 -> 16427769.24 | R27: =M27-N27 -> -699426.3061 | S27: =M27+N27 -> 8357625.024 | T27: =R27-Q27 -> -17127195.55 | U27: =S27-P27 -> -510494.9231 | V27: =T27-Q27 -> -33554964.79
A28: 93 | B28: 10.75622727 | C28: 236.0149397 | D28: =C28-D$5 -> 237.0222397 | E28: =C28-E$5 -> 177.0010885 | F28: 5618628.818 | G28: 8007930.792 | H28: 2074150.84 | I28: 684706.3627 | J28: 2037003.272 | K28: 177350.8697 | L28: =STDEV(E28:G28) -> 4110958.637 | M28: =STDEV(F28:H28) -> 2985571.765 | N28: =STDEV(H28:J28) -> 791690.4727 | O28: =STDEV(I28:K28) -> 961285.9081 | P28: =K28-L28 -> -3933607.768 | Q28: =K28+L28 -> 4288309.507 | R28: =M28-N28 -> 2193881.292 | S28: =M28+N28 -> 3777262.238 | T28: =R28-Q28 -> -2094428.215 | U28: =S28-P28 -> 7710870.005 | V28: =T28-Q28 -> -6382737.722
A29: 51 | B29: 10.71615365 | C29: 168.0275958 | D29: =C29-D$5 -> 169.0348958 | E29: =C29-E$5 -> 109.0137446 | F29: 31788026.39 | G29: 39417260.88 | H29: 23206048.34 | I29: 18557963.23 | J29: 23716911.63 | K29: -47620.80202 | L29: =STDEV(E29:G29) -> 20906094.69 | M29: =STDEV(F29:H29) -> 8110271.042 | N29: =STDEV(H29:J29) -> 2842546.546 | O29: =STDEV(I29:K29) -> 12500236.72 | P29: =K29-L29 -> -20953715.49 | Q29: =K29+L29 -> 20858473.89 | R29: =M29-N29 -> 5267724.496 | S29: =M29+N29 -> 10952817.59 | T29: =R29-Q29 -> -15590749.39 | U29: =S29-P29 -> 31906533.08 | V29: =T29-Q29 -> -36449223.28
A30: 205 | B30: 13.9627075 | C30: 527.9703934 | D30: =C30-D$5 -> 528.9776934 | E30: =C30-E$5 -> 468.9565422 | F30: 3815397.371 | G30: 10191499.25 | H30: 3027651.314 | I30: 94289.39196 | J30: 50915.3392 | K30: -66050.90918 | L30: =STDEV(E30:G30) -> 5148874.51 | M30: =STDEV(F30:H30) -> 3928441.935 | N30: =STDEV(H30:J30) -> 1706236.137 | O30: =STDEV(I30:K30) -> 82937.14878 | P30: =K30-L30 -> -5214925.42 | Q30: =K30+L30 -> 5082823.601 | R30: =M30-N30 -> 2222205.797 | S30: =M30+N30 -> 5634678.072 | T30: =R30-Q30 -> -2860617.804 | U30: =S30-P30 -> 10849603.49 | V30: =T30-Q30 -> -7943441.405
A31: 25 | B31: 5.209695238 | C31: 129.0466003 | D31: =C31-D$5 -> 130.0539003 | E31: =C31-E$5 -> 70.03274914 | F31: 426877.7131 | G31: 1647851.877 | H31: 302946.5821 | I31: 1125445.783 | J31: 3306357.781 | K31: 2345579.373 | L31: =STDEV(E31:G31) -> 855192.7379 | M31: =STDEV(F31:H31) -> 743293.0208 | N31: =STDEV(H31:J31) -> 1552061.044 | O31: =STDEV(I31:K31) -> 1093023.198 | P31: =K31-L31 -> 1490386.635 | Q31: =K31+L31 -> 3200772.111 | R31: =M31-N31 -> -808768.0235 | S31: =M31+N31 -> 2295354.065 | T31: =R31-Q31 -> -4009540.135 | U31: =S31-P31 -> 804967.4296 | V31: =T31-Q31 -> -7210312.246
A32: 99 | B32: 10.73753397 | C32: 250.0306261 | D32: =C32-D$5 -> 251.0379261 | E32: =C32-E$5 -> 191.0167749 | F32: 19131541.25 | G32: 29897750.71 | H32: 17497180.76 | I32: 18031458.46 | J32: 11462353.3 | K32: 55358.21596 | L32: =STDEV(E32:G32) -> 15142566.4 | M32: =STDEV(F32:H32) -> 6737414.633 | N32: =STDEV(H32:J32) -> 3648235.598 | O32: =STDEV(I32:K32) -> 9095904.386 | P32: =K32-L32 -> -15087208.19 | Q32: =K32+L32 -> 15197924.62 | R32: =M32-N32 -> 3089179.035 | S32: =M32+N32 -> 10385650.23 | T32: =R32-Q32 -> -12108745.58 | U32: =S32-P32 -> 25472858.42 | V32: =T32-Q32 -> -27306670.2
A33: 74 | B33: 10.53186047 | C33: 206.0101478 | D33: =C33-D$5 -> 207.0174478 | E33: =C33-E$5 -> 146.9962966 | F33: 2668239.172 | G33: 7307068.184 | H33: 3741640.33 | I33: 3546476.432 | J33: 63667.30757 | K33: -50317.28653 | L33: =STDEV(E33:G33) -> 3697488.961 | M33: =STDEV(F33:H33) -> 2428415.135 | N33: =STDEV(H33:J33) -> 2069441.708 | O33: =STDEV(I33:K33) -> 2044499.814 | P33: =K33-L33 -> -3747806.247 | Q33: =K33+L33 -> 3647171.674 | R33: =M33-N33 -> 358973.4272 | S33: =M33+N33 -> 4497856.844 | T33: =R33-Q33 -> -3288198.247 | U33: =S33-P33 -> 8245663.091 | V33: =T33-Q33 -> -6935369.921
A34: 149 | B34: 10.56836154 | C34: 329.0612636 | D34: =C34-D$5 -> 330.0685636 | E34: =C34-E$5 -> 270.0474124 | F34: 3783492.848 | G34: 8321580.016 | H34: 2162001.854 | I34: 35067.5666 | J34: 1952240.619 | K34: 32719.88854 | L34: =STDEV(E34:G34) -> 4166357.512 | M34: =STDEV(F34:H34) -> 3192801.052 | N34: =STDEV(H34:J34) -> 1172134.929 | O34: =STDEV(I34:K34) -> 1107558.716 | P34: =K34-L34 -> -4133637.623 | Q34: =K34+L34 -> 4199077.4 | R34: =M34-N34 -> 2020666.123 | S34: =M34+N34 -> 4364935.981 | T34: =R34-Q34 -> -2178411.278 | U34: =S34-P34 -> 8498573.604 | V34: =T34-Q34 -> -6377488.678
A35: 139 | B35: 2.857612308 | C35: 309.279318 | D35: =C35-D$5 -> 310.286618 | E35: =C35-E$5 -> 250.2654668 | F35: 3444.283728 | G35: -40539.63979 | H35: 2388791.979 | I35: 1086375.749 | J35: 4912425.619 | K35: 4320022.689 | L35: =STDEV(E35:G35) -> 24524.15018 | M35: =STDEV(F35:H35) -> 1390052.177 | N35: =STDEV(H35:J35) -> 1945236.592 | O35: =STDEV(I35:K35) -> 2059371.724 | P35: =K35-L35 -> 4295498.539 | Q35: =K35+L35 -> 4344546.839 | R35: =M35-N35 -> -555184.4155 | S35: =M35+N35 -> 3335288.769 | T35: =R35-Q35 -> -4899731.254 | U35: =S35-P35 -> -960209.7698 | V35: =T35-Q35 -> -9244278.093
A36: 4 | B36: 4.689172249 | C36: 92.92794552 | D36: =C36-D$5 -> 93.93524552 | E36: =C36-E$5 -> 33.91409432 | F36: 64202399.21 | G36: 98821.68428 | H36: 80605632 | I36: 96089200.98 | J36: 102611512.6 | K36: 107554645.6 | L36: =STDEV(E36:G36) -> 37038768.25 | M36: =STDEV(F36:H36) -> 42543470.33 | N36: =STDEV(H36:J36) -> 11302951.23 | O36: =STDEV(I36:K36) -> 5750819.251 | P36: =K36-L36 -> 70515877.33 | Q36: =K36+L36 -> 144593413.8 | R36: =M36-N36 -> 31240519.1 | S36: =M36+N36 -> 53846421.56 | T36: =R36-Q36 -> -113352894.7 | U36: =S36-P36 -> -16669455.78 | V36: =T36-Q36 -> -257946308.6
A37: 21 | B37: 3.640091964 | C37: 121.0293423 | D37: =C37-D$5 -> 122.0366423 | E37: =C37-E$5 -> 62.01549111 | F37: 32099153.95 | G37: 24040371.25 | H37: 21066884.44 | I37: 26490408.46 | J37: 46498758.07 | K37: 49223391.28 | L37: =STDEV(E37:G37) -> 16699461.82 | M37: =STDEV(F37:H37) -> 5708131.235 | N37: =STDEV(H37:J37) -> 13394830.24 | O37: =STDEV(I37:K37) -> 12413340.86 | P37: =K37-L37 -> 32523929.46 | Q37: =K37+L37 -> 65922853.1 | R37: =M37-N37 -> -7686699.01 | S37: =M37+N37 -> 19102961.48 | T37: =R37-Q37 -> -73609552.11 | U37: =S37-P37 -> -13420967.98 | V37: =T37-Q37 -> -139532405.2
A38: 5 | B38: 4.678959071 | C38: 94.92494075 | D38: =C38-D$5 -> 95.93224075 | E38: =C38-E$5 -> 35.91108955 | F38: 38639380.79 | G38: 80831.80336 | H38: 41619957.79 | I38: 51923429.52 | J38: 57911451.99 | K38: 57243471.71 | L38: =STDEV(E38:G38) -> 22285149.02 | M38: =STDEV(F38:H38) -> 23170183.88 | N38: =STDEV(H38:J38) -> 8240456.356 | O38: =STDEV(I38:K38) -> 3281398.576 | P38: =K38-L38 -> 34958322.69 | Q38: =K38+L38 -> 79528620.73 | R38: =M38-N38 -> 14929727.53 | S38: =M38+N38 -> 31410640.24 | T38: =R38-Q38 -> -64598893.2 | U38: =S38-P38 -> -3547682.453 | V38: =T38-Q38 -> -144127513.9
A39: 110 | B39: 2.89935375 | C39: 267.2323926 | D39: =C39-D$5 -> 268.2396926 | E39: =C39-E$5 -> 208.2185414 | F39: -50473.40823 | G39: -140758.9013 | H39: 28255.08165 | I39: 228785.2076 | J39: 6379644.782 | K39: 6206035.178 | L39: =STDEV(E39:G39) -> 71404.74592 | M39: =STDEV(F39:H39) -> 84572.82052 | N39: =STDEV(H39:J39) -> 3610480.969 | O39: =STDEV(I39:K39) -> 3502159.596 | P39: =K39-L39 -> 6134630.432 | Q39: =K39+L39 -> 6277439.923 | R39: =M39-N39 -> -3525908.148 | S39: =M39+N39 -> 3695053.789 | T39: =R39-Q39 -> -9803348.072 | U39: =S39-P39 -> -2439576.643 | V39: =T39-Q39 -> -16080788
A40: 65 | B40: 5.033601429 | C40: 189.0337674 | D40: =C40-D$5 -> 190.0410674 | E40: =C40-E$5 -> 130.0199162 | F40: 5768372.527 | G40: 3606150.083 | H40: 7176412.384 | I40: 2894380.172 | J40: 4564829.12 | K40: 2788270.481 | L40: =STDEV(E40:G40) -> 2914080.993 | M40: =STDEV(F40:H40) -> 1798358.281 | N40: =STDEV(H40:J40) -> 2158184.681 | O40: =STDEV(I40:K40) -> 996478.7633 | P40: =K40-L40 -> -125810.5123 | Q40: =K40+L40 -> 5702351.475 | R40: =M40-N40 -> -359826.4001 | S40: =M40+N40 -> 3956542.961 | T40: =R40-Q40 -> -6062177.875 | U40: =S40-P40 -> 4082353.473 | V40: =T40-Q40 -> -11764529.35
A41: 210 | B41: 3.374323462 | C41: 552.2732943 | D41: =C41-D$5 -> 553.2805943 | E41: =C41-E$5 -> 493.2594431 | F41: 123835.0997 | G41: 63425.80262 | H41: 753763.3439 | I41: 1045128.603 | J41: 3549303.565 | K41: 7041912.406 | L41: =STDEV(E41:G41) -> 61675.22153 | M41: =STDEV(F41:H41) -> 382322.8995 | N41: =STDEV(H41:J41) -> 1536816.574 | O41: =STDEV(I41:K41) -> 3011938.045 | P41: =K41-L41 -> 6980237.184 | Q41: =K41+L41 -> 7103587.627 | R41: =M41-N41 -> -1154493.674 | S41: =M41+N41 -> 1919139.473 | T41: =R41-Q41 -> -8258081.301 | U41: =S41-P41 -> -5061097.711 | V41: =T41-Q41 -> -15361668.93
A42: 201 | B42: 13.86638634 | C42: 505.9885872 | D42: =C42-D$5 -> 506.9958872 | E42: =C42-E$5 -> 446.974736 | F42: 27600536.51 | G42: 36406439.2 | H42: 21042954.5 | I42: 7118845.364 | J42: 22104652.46 | K42: 22494058.32 | L42: =STDEV(E42:G42) -> 18994319.92 | M42: =STDEV(F42:H42) -> 7709112.205 | N42: =STDEV(H42:J42) -> 8362440.156 | O42: =STDEV(I42:K42) -> 8766633.948 | P42: =K42-L42 -> 3499738.405 | Q42: =K42+L42 -> 41488378.24 | R42: =M42-N42 -> -653327.9503 | S42: =M42+N42 -> 16071552.36 | T42: =R42-Q42 -> -42141706.19 | U42: =S42-P42 -> 12571813.96 | V42: =T42-Q42 -> -83630084.42
A43: 238 | B43: 2.742746667 | C43: 788.5450999 | D43: =C43-D$5 -> 789.5523999 | E43: =C43-E$5 -> 729.5312487 | F43: 1837828.457 | G43: 2864477.775 | H43: 74381.85644 | I43: 12412.08049 | J43: -9789.63786 | K43: -91515.16174 | L43: =STDEV(E43:G43) -> 1450861.542 | M43: =STDEV(F43:H43) -> 1411169.017 | N43: =STDEV(H43:J43) -> 43623.4071 | O43: =STDEV(I43:K43) -> 54730.93158 | P43: =K43-L43 -> -1542376.704 | Q43: =K43+L43 -> 1359346.381 | R43: =M43-N43 -> 1367545.61 | S43: =M43+N43 -> 1454792.424 | T43: =R43-Q43 -> 8199.229543 | U43: =S43-P43 -> 2997169.129 | V43: =T43-Q43 -> -1351147.151
A44: 81 | B44: 10.12295695 | C44: 216.9282053 | D44: =C44-D$5 -> 217.9355053 | E44: =C44-E$5 -> 157.9143541 | F44: 27600938.45 | G44: 19958298.1 | H44: 62780.3083 | I44: 23143018.77 | J44: 44098432.38 | K44: 29856982.65 | L44: =STDEV(E44:G44) -> 14250967.2 | M44: =STDEV(F44:H44) -> 14216139.5 | N44: =STDEV(H44:J44) -> 22026368.36 | O44: =STDEV(I44:K44) -> 10700666.34 | P44: =K44-L44 -> 15606015.44 | Q44: =K44+L44 -> 44107949.85 | R44: =M44-N44 -> -7810228.866 | S44: =M44+N44 -> 36242507.86 | T44: =R44-Q44 -> -51918178.71 | U44: =S44-P44 -> 20636492.42 | V44: =T44-Q44 -> -96026128.56
A45: 34 | B45: 5.62903 | C45: 137.0356028 | D45: =C45-D$5 -> 138.0429028 | E45: =C45-E$5 -> 78.02175157 | F45: 7948493.865 | G45: 12210070.03 | H45: 163177.7915 | I45: 256189.8066 | J45: -87565.43813 | K45: 72520.52927 | L45: =STDEV(E45:G45) -> 6197072.572 | M45: =STDEV(F45:H45) -> 6108734.054 | N45: =STDEV(H45:J45) -> 177806.5758 | O45: =STDEV(I45:K45) -> 172012.3972 | P45: =K45-L45 -> -6124552.043 | Q45: =K45+L45 -> 6269593.101 | R45: =M45-N45 -> 5930927.479 | S45: =M45+N45 -> 6286540.63 | T45: =R45-Q45 -> -338665.6226 | U45: =S45-P45 -> 12411092.67 | V45: =T45-Q45 -> -6608258.724
A46: 48 | B46: 3.224315518 | C46: 157.1232684 | D46: =C46-D$5 -> 158.1305684 | E46: =C46-E$5 -> 98.10941721 | F46: 75888943.3 | G46: 47745776.48 | H46: 64027999.17 | I46: 74331867.6 | J46: 108455991.2 | K46: 72245550.96 | L46: =STDEV(E46:G46) -> 38364055.37 | M46: =STDEV(F46:H46) -> 14129346.59 | N46: =STDEV(H46:J46) -> 23253931.52 | O46: =STDEV(I46:K46) -> 20330619.38 | P46: =K46-L46 -> 33881495.59 | Q46: =K46+L46 -> 110609606.3 | R46: =M46-N46 -> -9124584.93 | S46: =M46+N46 -> 37383278.1 | T46: =R46-Q46 -> -119734191.3 | U46: =S46-P46 -> 3501782.519 | V46: =T46-Q46 -> -230343797.6
A47: 1 | B47: 5.080120429 | C47: 80.96513563 | D47: =C47-D$5 -> 81.97243563 | E47: =C47-E$5 -> 21.95128443 | F47: 13878633.51 | G47: 10783985.3 | H47: 6971606.619 | I47: 8202727.439 | J47: 4944740.321 | K47: 7479981.548 | L47: =STDEV(E47:G47) -> 7285677.407 | M47: =STDEV(F47:H47) -> 3459722.993 | N47: =STDEV(H47:J47) -> 1645110.205 | O47: =STDEV(I47:K47) -> 1710959.271 | P47: =K47-L47 -> 194304.1408 | Q47: =K47+L47 -> 14765658.96 | R47: =M47-N47 -> 1814612.788 | S47: =M47+N47 -> 5104833.198 | T47: =R47-Q47 -> -12951046.17 | U47: =S47-P47 -> 4910529.057 | V47: =T47-Q47 -> -27716705.12
A48: 140 | B48: 2.712772946 | C48: 311.168257 | D48: =C48-D$5 -> 312.175557 | E48: =C48-E$5 -> 252.1544058 | F48: 10357879.73 | G48: -104492.8174 | H48: 5343379.786 | I48: 51782001.21 | J48: 28831579.12 | K48: 6212550.428 | L48: =STDEV(E48:G48) -> 6010444.519 | M48: =STDEV(F48:H48) -> 5232681.992 | N48: =STDEV(H48:J48) -> 23219829.68 | O48: =STDEV(I48:K48) -> 22784926.22 | P48: =K48-L48 -> 202105.9087 | Q48: =K48+L48 -> 12222994.95 | R48: =M48-N48 -> -17987147.69 | S48: =M48+N48 -> 28452511.67 | T48: =R48-Q48 -> -30210142.64 | U48: =S48-P48 -> 28250405.76 | V48: =T48-Q48 -> -42433137.58
A49: 12 | B49: 5.0820935 | C49: 110.9756433 | D49: =C49-D$5 -> 111.9829433 | E49: =C49-E$5 -> 51.96179215 | F49: 7348653.667 | G49: 5221890.091 | H49: 2635495.19 | I49: 3226566.34 | J49: 1617376.36 | K49: 3139339.423 | L49: =STDEV(E49:G49) -> 3781372.409 | M49: =STDEV(F49:H49) -> 2360311.586 | N49: =STDEV(H49:J49) -> 813984.3824 | O49: =STDEV(I49:K49) -> 904937.6121 | P49: =K49-L49 -> -642032.9863 | Q49: =K49+L49 -> 6920711.832 | R49: =M49-N49 -> 1546327.204 | S49: =M49+N49 -> 3174295.969 | T49: =R49-Q49 -> -5374384.628 | U49: =S49-P49 -> 3816328.955 | V49: =T49-Q49 -> -12295096.46
A50: 69 | B50: 3.287703585 | C50: 193.1342667 | D50: =C50-D$5 -> 194.1415667 | E50: =C50-E$5 -> 134.1204155 | F50: 2329361.834 | G50: -76597.45041 | H50: 1020508.535 | I50: 386542.1681 | J50: 12632601.91 | K50: 17782813.42 | L50: =STDEV(E50:G50) -> 1367469.046 | M50: =STDEV(F50:H50) -> 1204531.622 | N50: =STDEV(H50:J50) -> 6894546.214 | O50: =STDEV(I50:K50) -> 8936077.729 | P50: =K50-L50 -> 16415344.37 | Q50: =K50+L50 -> 19150282.46 | R50: =M50-N50 -> -5690014.592 | S50: =M50+N50 -> 8099077.837 | T50: =R50-Q50 -> -24840297.05 | U50: =S50-P50 -> -8316266.533 | V50: =T50-Q50 -> -43990579.52
A51: 166 | B51: 3.026664222 | C51: 390.2939094 | D51: =C51-D$5 -> 391.3012094 | E51: =C51-E$5 -> 331.2800582 | F51: 76507.67257 | G51: -69564.49741 | H51: 11361.56071 | I51: -15471.36979 | J51: 21123372.16 | K51: 11541353.92 | L51: =STDEV(E51:G51) -> 73058.58531 | M51: =STDEV(F51:H51) -> 73178.004 | N51: =STDEV(H51:J51) -> 12196778.38 | O51: =STDEV(I51:K51) -> 10584784.6 | P51: =K51-L51 -> 11468295.33 | Q51: =K51+L51 -> 11614412.5 | R51: =M51-N51 -> -12123600.38 | S51: =M51+N51 -> 12269956.38 | T51: =R51-Q51 -> -23738012.88 | U51: =S51-P51 -> 801661.0516 | V51: =T51-Q51 -> -35352425.38
A52: 86 | B52: 3.294201064 | C52: 220.1453778 | D52: =C52-D$5 -> 221.1526778 | E52: =C52-E$5 -> 161.1315266 | F52: 46381917.12 | G52: 29521691.39 | H52: 37695840.05 | I52: 31152980.34 | J52: 130573072.8 | K52: 168529865.2 | L52: =STDEV(E52:G52) -> 23477135.15 | M52: =STDEV(F52:H52) -> 8431408.076 | N52: =STDEV(H52:J52) -> 55607769.49 | O52: =STDEV(I52:K52) -> 70943030.39 | P52: =K52-L52 -> 145052730 | Q52: =K52+L52 -> 192007000.3 | R52: =M52-N52 -> -47176361.41 | S52: =M52+N52 -> 64039177.57 | T52: =R52-Q52 -> -239183361.8 | U52: =S52-P52 -> -81013552.47 | V52: =T52-Q52 -> -431190362.1
A53: 206 | B53: 3.406848 | C53: 528.2734009 | D53: =C53-D$5 -> 529.2807009 | E53: =C53-E$5 -> 469.2595497 | F53: -23921.44826 | G53: -58932.85071 | H53: -175580.0124 | I53: 334437.8803 | J53: 1570838.449 | K53: 4658245.656 | L53: =STDEV(E53:G53) -> 29858.87817 | M53: =STDEV(F53:H53) -> 79406.84132 | N53: =STDEV(H53:J53) -> 898033.2266 | O53: =STDEV(I53:K53) -> 2226959.187 | P53: =K53-L53 -> 4628386.778 | Q53: =K53+L53 -> 4688104.534 | R53: =M53-N53 -> -818626.3853 | S53: =M53+N53 -> 977440.068 | T53: =R53-Q53 -> -5506730.92 | U53: =S53-P53 -> -3650946.71 | V53: =T53-Q53 -> -10194835.45
A54: 100 | B54: 2.951814502 | C54: 253.2171659 | D54: =C54-D$5 -> 254.2244659 | E54: =C54-E$5 -> 194.2033147 | F54: 16069147.21 | G54: 32696279.93 | H54: 24954406.57 | I54: 22126120.67 | J54: 68364199.71 | K54: 51186032.43 | L54: =STDEV(E54:G54) -> 16348836.94 | M54: =STDEV(F54:H54) -> 8320115.979 | N54: =STDEV(H54:J54) -> 25917720.11 | O54: =STDEV(I54:K54) -> 23372091.1 | P54: =K54-L54 -> 34837195.49 | Q54: =K54+L54 -> 67534869.37 | R54: =M54-N54 -> -17597604.13 | S54: =M54+N54 -> 34237836.09 | T54: =R54-Q54 -> -85132473.5 | U54: =S54-P54 -> -599359.4034 | V54: =T54-Q54 -> -152667342.9
A55: 52 | B55: 3.13664227 | C55: 171.1388165 | D55: =C55-D$5 -> 172.1461165 | E55: =C55-E$5 -> 112.1249653 | F55: 25913090.96 | G55: 15314534.83 | H55: 22551561.36 | I55: 25829496.58 | J55: 42409603.23 | K55: 24566167.03 | L55: =STDEV(E55:G55) -> 13027812.6 | M55: =STDEV(F55:H55) -> 5416084.478 | N55: =STDEV(H55:J55) -> 10645708.23 | O55: =STDEV(I55:K55) -> 9957276.677 | P55: =K55-L55 -> 11538354.43 | Q55: =K55+L55 -> 37593979.64 | R55: =M55-N55 -> -5229623.753 | S55: =M55+N55 -> 16061792.71 | T55: =R55-Q55 -> -42823603.39 | U55: =S55-P55 -> 4523438.277 | V55: =T55-Q55 -> -80417583.02
A56: 161 | B56: 3.033853214 | C56: 375.2749158 | D56: =C56-D$5 -> 376.2822158 | E56: =C56-E$5 -> 316.2610646 | F56: 699418.0376 | G56: -63890.27684 | H56: 4457030.874 | I56: -31242.2788 | J56: 51143282.93 | K56: 26182912.2 | L56: =STDEV(E56:G56) -> 423380.3169 | M56: =STDEV(F56:H56) -> 2420090.283 | N56: =STDEV(H56:J56) -> 28338968.34 | O56: =STDEV(I56:K56) -> 25589822.3 | P56: =K56-L56 -> 25759531.88 | Q56: =K56+L56 -> 26606292.52 | R56: =M56-N56 -> -25918878.05 | S56: =M56+N56 -> 30759058.62 | T56: =R56-Q56 -> -52525170.57 | U56: =S56-P56 -> 4999526.733 | V56: =T56-Q56 -> -79131463.09
A57: 94 | B57: 14.61838462 | C57: 239.077008 | D57: =C57-D$5 -> 240.084308 | E57: =C57-E$5 -> 180.0631568 | F57: 38578223.41 | G57: 50263820.85 | H57: 34790973.71 | I57: 48258325.51 | J57: 50137770.98 | K57: 47673006.73 | L57: =STDEV(E57:G57) -> 26303523.85 | M57: =STDEV(F57:H57) -> 8065414.294 | N57: =STDEV(H57:J57) -> 8370842.914 | O57: =STDEV(I57:K57) -> 1287761.377 | P57: =K57-L57 -> 21369482.88 | Q57: =K57+L57 -> 73976530.58 | R57: =M57-N57 -> -305428.62 | S57: =M57+N57 -> 16436257.21 | T57: =R57-Q57 -> -74281959.2 | U57: =S57-P57 -> -4933225.676 | V57: =T57-Q57 -> -148258489.8
A58: 64 | B58: 3.272850599 | C58: 188.9513519 | D58: =C58-D$5 -> 189.9586519 | E58: =C58-E$5 -> 129.9375007 | F58: 95848083.33 | G58: 52604098.29 | H58: 97746034.16 | I58: 64547712.13 | J58: 186508987.5 | K58: 198238623.7 | L58: =STDEV(E58:G58) -> 48000086.63 | M58: =STDEV(F58:H58) -> 25532459.19 | N58: =STDEV(H58:J58) -> 63054927.3 | O58: =STDEV(I58:K58) -> 74033097.2 | P58: =K58-L58 -> 150238537.1 | Q58: =K58+L58 -> 246238710.4 | R58: =M58-N58 -> -37522468.11 | S58: =M58+N58 -> 88587386.49 | T58: =R58-Q58 -> -283761178.5 | U58: =S58-P58 -> -61651150.61 | V58: =T58-Q58 -> -529999888.8
A59: 67 | B59: 3.26757535 | C59: 190.9483389 | D59: =C59-D$5 -> 191.9556389 | E59: =C59-E$5 -> 131.9344877 | F59: 59323594.95 | G59: 30904784.21 | H59: 61463490.25 | I59: 38850497.71 | J59: 117853687.9 | K59: 128097300.2 | L59: =STDEV(E59:G59) -> 29670410.63 | M59: =STDEV(F59:H59) -> 17058929.58 | N59: =STDEV(H59:J59) -> 40687233.63 | O59: =STDEV(I59:K59) -> 48838897.43 | P59: =K59-L59 -> 98426889.59 | Q59: =K59+L59 -> 157767710.8 | R59: =M59-N59 -> -23628304.05 | S59: =M59+N59 -> 57746163.21 | T59: =R59-Q59 -> -181396014.9 | U59: =S59-P59 -> -40680726.39 | V59: =T59-Q59 -> -339163725.7
A60: 43 | B60: 3.563508251 | C60: 146.9656055 | D60: =C60-D$5 -> 147.9729055 | E60: =C60-E$5 -> 87.95175432 | F60: 45653922.63 | G60: 7245844.021 | H60: 33770329.84 | I60: 54614281.67 | J60: 46522693.89 | K60: 38218054.32 | L60: =STDEV(E60:G60) -> 24535532.41 | M60: =STDEV(F60:H60) -> 19663623.89 | N60: =STDEV(H60:J60) -> 10508464.12 | O60: =STDEV(I60:K60) -> 8198344.372 | P60: =K60-L60 -> 13682521.91 | Q60: =K60+L60 -> 62753586.73 | R60: =M60-N60 -> 9155159.771 | S60: =M60+N60 -> 30172088.02 | T60: =R60-Q60 -> -53598426.96 | U60: =S60-P60 -> 16489566.11 | V60: =T60-Q60 -> -116352013.7
A61: 62 | B61: 4.29377 | C61: 187.0974218 | D61: =C61-D$5 -> 188.1047218 | E61: =C61-E$5 -> 128.0835706 | F61: 381250.2668 | G61: -3680.369373 | H61: -87676.44672 | I61: 20232132.57 | J61: 7763695.761 | K61: -117707.9079 | L61: =STDEV(E61:G61) -> 221148.5992 | M61: =STDEV(F61:H61) -> 250039.7296 | N61: =STDEV(H61:J61) -> 10246955.65 | O61: =STDEV(I61:K61) -> 10260721.61 | P61: =K61-L61 -> -338856.5071 | Q61: =K61+L61 -> 103440.6913 | R61: =M61-N61 -> -9996915.919 | S61: =M61+N61 -> 10496995.38 | T61: =R61-Q61 -> -10100356.61 | U61: =S61-P61 -> 10835851.89 | V61: =T61-Q61 -> -10203797.3
A62: 165 | B62: 3.058876802 | C62: 389.2905529 | D62: =C62-D$5 -> 390.2978529 | E62: =C62-E$5 -> 330.2767017 | F62: 14000346.13 | G62: 2279961.083 | H62: 29110568.57 | I62: 27009.36412 | J62: 171906067.1 | K62: 103256792.4 | L62: =STDEV(E62:G62) -> 7511819.424 | M62: =STDEV(F62:H62) -> 13450946.35 | N62: =STDEV(H62:J62) -> 91995306.29 | O62: =STDEV(I62:K62) -> 86517360 | P62: =K62-L62 -> 95744973 | Q62: =K62+L62 -> 110768611.9 | R62: =M62-N62 -> -78544359.94 | S62: =M62+N62 -> 105446252.6 | T62: =R62-Q62 -> -189312971.8 | U62: =S62-P62 -> 9701279.636 | V62: =T62-Q62 -> -300081583.6
A63: 68 | B63: 3.23302825 | C63: 192.9452106 | D63: =C63-D$5 -> 193.9525106 | E63: =C63-E$5 -> 133.9313594 | F63: 1442544.361 | G63: 58480.07124 | H63: 1567477.015 | I63: 42422.59967 | J63: 6576531.389 | K63: 10809417.25 | L63: =STDEV(E63:G63) -> 816454.3341 | M63: =STDEV(F63:H63) -> 837487.7015 | N63: =STDEV(H63:J63) -> 3418357.168 | O63: =STDEV(I63:K63) -> 5424329.057 | P63: =K63-L63 -> 9992962.92 | Q63: =K63+L63 -> 11625871.59 | R63: =M63-N63 -> -2580869.466 | S63: =M63+N63 -> 4255844.869 | T63: =R63-Q63 -> -14206741.05 | U63: =S63-P63 -> -5737118.051 | V63: =T63-Q63 -> -25832612.64
A64: 87 | B64: 3.264611429 | C64: 221.1486522 | D64: =C64-D$5 -> 222.1559522 | E64: =C64-E$5 -> 162.134801 | F64: 1207.120546 | G64: 6999.5022 | H64: -57178.52027 | I64: 91019.83315 | J64: 3593331.595 | K64: 11082034.63 | L64: =STDEV(E64:G64) -> 3683.143435 | M64: =STDEV(F64:H64) -> 35499.4209 | N64: =STDEV(H64:J64) -> 2066170.957 | O64: =STDEV(I64:K64) -> 5614701.939 | P64: =K64-L64 -> 11078351.49 | Q64: =K64+L64 -> 11085717.78 | R64: =M64-N64 -> -2030671.536 | S64: =M64+N64 -> 2101670.378 | T64: =R64-Q64 -> -13116389.31 | U64: =S64-P64 -> -8976681.112 | V64: =T64-Q64 -> -24202107.09
A65: 241 | B65: 2.605346508 | C65: 819.517987 | D65: =C65-D$5 -> 820.525287 | E65: =C65-E$5 -> 760.5041358 | F65: 3470365.832 | G65: -124825.1232 | H65: 7781461.282 | I65: 4031339.786 | J65: 8883762.716 | K65: 9257641.094 | L65: =STDEV(E65:G65) -> 2040397.465 | M65: =STDEV(F65:H65) -> 3958541.539 | N65: =STDEV(H65:J65) -> 2543766.498 | O65: =STDEV(I65:K65) -> 2915476.482 | P65: =K65-L65 -> 7217243.629 | Q65: =K65+L65 -> 11298038.56 | R65: =M65-N65 -> 1414775.041 | S65: =M65+N65 -> 6502308.037 | T65: =R65-Q65 -> -9883263.518 | U65: =S65-P65 -> -714935.5922 | V65: =T65-Q65 -> -21181302.08
A66: 174 | B66: 2.9868984 | C66: 404.3093689 | D66: =C66-D$5 -> 405.3166689 | E66: =C66-E$5 -> 345.2955177 | F66: 5191786.308 | G66: 2279208.245 | H66: 8370027.327 | I66: -85722.42703 | J66: 4306180.796 | K66: 3190266.101 | L66: =STDEV(E66:G66) -> 2602158.946 | M66: =STDEV(F66:H66) -> 3046375.005 | N66: =STDEV(H66:J66) -> 4228935.375 | O66: =STDEV(I66:K66) -> 2282768.07 | P66: =K66-L66 -> 588107.1548 | Q66: =K66+L66 -> 5792425.048 | R66: =M66-N66 -> -1182560.37 | S66: =M66+N66 -> 7275310.38 | T66: =R66-Q66 -> -6974985.418 | U66: =S66-P66 -> 6687203.226 | V66: =T66-Q66 -> -12767410.47
A67: 40 | B67: 3.236976 | C67: 144.9614398 | D67: =C67-D$5 -> 145.9687398 | E67: =C67-E$5 -> 85.94758862 | F67: 2647971.236 | G67: 45426.68736 | H67: 2403203.152 | I67: -68292.73519 | J67: 9053055.568 | K67: 13188050.98 | L67: =STDEV(E67:G67) -> 1515838.075 | M67: =STDEV(F67:H67) -> 1437141.805 | N67: =STDEV(H67:J67) -> 4717482.096 | O67: =STDEV(I67:K67) -> 6782671.926 | P67: =K67-L67 -> 11672212.91 | Q67: =K67+L67 -> 14703889.06 | R67: =M67-N67 -> -3280340.291 | S67: =M67+N67 -> 6154623.901 | T67: =R67-Q67 -> -17984229.35 | U67: =S67-P67 -> -5517589.009 | V67: =T67-Q67 -> -32688118.41
A68: 199 | B68: 2.600755333 | C68: 489.2771973 | D68: =C68-D$5 -> 490.2844973 | E68: =C68-E$5 -> 430.2633461 | F68: -14863.96032 | G68: 64781.24139 | H68: 36352.40567 | I68: -15327.75554 | J68: 1520390.35 | K68: 5711510.489 | L68: =STDEV(E68:G68) -> 42265.66733 | M68: =STDEV(F68:H68) -> 40362.26167 | N68: =STDEV(H68:J68) -> 872111.3806 | O68: =STDEV(I68:K68) -> 2964247.92 | P68: =K68-L68 -> 5669244.821 | Q68: =K68+L68 -> 5753776.156 | R68: =M68-N68 -> -831749.119 | S68: =M68+N68 -> 912473.6423 | T68: =R68-Q68 -> -6585525.275 | U68: =S68-P68 -> -4756771.179 | V68: =T68-Q68 -> -12339301.43
A69: 230 | B69: 10.70081667 | C69: 679.1069794 | D69: =C69-D$5 -> 680.1142794 | E69: =C69-E$5 -> 620.0931282 | F69: 786211.8085 | G69: 4141898.094 | H69: 69907.42655 | I69: -31106.61995 | J69: -83422.01015 | K69: -103358.6607 | L69: =STDEV(E69:G69) -> 2199544.206 | M69: =STDEV(F69:H69) -> 2173891.687 | N69: =STDEV(H69:J69) -> 77942.98536 | O69: =STDEV(I69:K69) -> 37315.60772 | P69: =K69-L69 -> -2302902.866 | Q69: =K69+L69 -> 2096185.545 | R69: =M69-N69 -> 2095948.702 | S69: =M69+N69 -> 2251834.673 | T69: =R69-Q69 -> -236.8427762 | U69: =S69-P69 -> 4554737.539 | V69: =T69-Q69 -> -2096422.388
A70: 59 | B70: 14.62121486 | C70: 179.0559273 | D70: =C70-D$5 -> 180.0632273 | E70: =C70-E$5 -> 120.0420761 | F70: 66435037.94 | G70: 88872533 | H70: 60771109.23 | I70: 87424536.98 | J70: 84175470.55 | K70: 79114436.73 | L70: =STDEV(E70:G70) -> 46215699.51 | M70: =STDEV(F70:H70) -> 14861646.9 | N70: =STDEV(H70:J70) -> 14541468.13 | O70: =STDEV(I70:K70) -> 4187844.754 | P70: =K70-L70 -> 32898737.23 | Q70: =K70+L70 -> 125330136.2 | R70: =M70-N70 -> 320178.7664 | S70: =M70+N70 -> 29403115.03 | T70: =R70-Q70 -> -125009957.5 | U70: =S70-P70 -> -3495622.194 | V70: =T70-Q70 -> -250340093.7
A71: 105 | B71: 3.180887368 | C71: 257.0063653 | D71: =C71-D$5 -> 258.0136653 | E71: =C71-E$5 -> 197.9925141 | F71: -30344.77799 | G71: 116360.2415 | H71: 2322971.597 | I71: 220176.7728 | J71: 3268587.075 | K71: 3569487.127 | L71: =STDEV(E71:G71) -> 77404.66356 | M71: =STDEV(F71:H71) -> 1318379.94 | N71: =STDEV(H71:J71) -> 1560381.368 | O71: =STDEV(I71:K71) -> 1852980.754 | P71: =K71-L71 -> 3492082.463 | Q71: =K71+L71 -> 3646891.79 | R71: =M71-N71 -> -242001.4274 | S71: =M71+N71 -> 2878761.308 | T71: =R71-Q71 -> -3888893.218 | U71: =S71-P71 -> -613321.1555 | V71: =T71-Q71 -> -7535785.008
A72: 47 | B72: 16.32747088 | C72: 155.0015983 | D72: =C72-D$5 -> 156.0088983 | E72: =C72-E$5 -> 95.98774707 | F72: 542210107.3 | G72: 589210605.9 | H72: 562855318.3 | I72: 554556002.5 | J72: 744121383.1 | K72: 619186279.4 | L72: =STDEV(E72:G72) -> 327457317.4 | M72: =STDEV(F72:H72) -> 23557987.99 | N72: =STDEV(H72:J72) -> 107130215.5 | O72: =STDEV(I72:K72) -> 96368119.18 | P72: =K72-L72 -> 291728962 | Q72: =K72+L72 -> 946643596.7 | R72: =M72-N72 -> -83572227.49 | S72: =M72+N72 -> 130688203.5 | T72: =R72-Q72 -> -1030215824 | U72: =S72-P72 -> -161040758.5 | V72: =T72-Q72 -> -1976859421
A73: 169 | B73: 14.78166087 | C73: 398.1192096 | D73: =C73-D$5 -> 399.1265096 | E73: =C73-E$5 -> 339.1053584 | F73: 1469458.761 | G73: 3926438.712 | H73: 1408486.223 | I73: 2023914.959 | J73: 1246498.31 | K73: -107591.5826 | L73: =STDEV(E73:G73) -> 1983654.925 | M73: =STDEV(F73:H73) -> 1436462.836 | N73: =STDEV(H73:J73) -> 410156.3234 | O73: =STDEV(I73:K73) -> 1078676.366 | P73: =K73-L73 -> -2091246.508 | Q73: =K73+L73 -> 1876063.342 | R73: =M73-N73 -> 1026306.512 | S73: =M73+N73 -> 1846619.159 | T73: =R73-Q73 -> -849756.83 | U73: =S73-P73 -> 3937865.667 | V73: =T73-Q73 -> -2725820.172
A74: 155 | B74: 10.52787579 | C74: 350.0397998 | D74: =C74-D$5 -> 351.0470998 | E74: =C74-E$5 -> 291.0259486 | F74: 25672256.86 | G74: 45488008.3 | H74: 28406186.38 | I74: 29603602.83 | J74: 28943671.1 | K74: -18340.56262 | L74: =STDEV(E74:G74) -> 22806600.86 | M74: =STDEV(F74:H74) -> 10738769.45 | N74: =STDEV(H74:J74) -> 599750.7615 | O74: =STDEV(I74:K74) -> 16914949.8 | P74: =K74-L74 -> -22824941.42 | Q74: =K74+L74 -> 22788260.3 | R74: =M74-N74 -> 10139018.69 | S74: =M74+N74 -> 11338520.21 | T74: =R74-Q74 -> -12649241.61 | U74: =S74-P74 -> 34163461.64 | V74: =T74-Q74 -> -35437501.91
A75: 175 | B75: 10.52331748 | C75: 410.061186 | D75: =C75-D$5 -> 411.068486 | E75: =C75-E$5 -> 351.0473348 | F75: 17249507.6 | G75: 33371735.39 | H75: 24270253.58 | I75: 23576287.2 | J75: 20364773.19 | K75: -99049.68057 | L75: =STDEV(E75:G75) -> 16688863.17 | M75: =STDEV(F75:H75) -> 8083461.248 | N75: =STDEV(H75:J75) -> 2083594.198 | O75: =STDEV(I75:K75) -> 12842659.68 | P75: =K75-L75 -> -16787912.85 | Q75: =K75+L75 -> 16589813.49 | R75: =M75-N75 -> 5999867.05 | S75: =M75+N75 -> 10167055.45 | T75: =R75-Q75 -> -10589946.44 | U75: =S75-P75 -> 26954968.3 | V75: =T75-Q75 -> -27179759.93
A76: 183 | B76: 10.5496984 | C76: 432.0428188 | D76: =C76-D$5 -> 433.0501188 | E76: =C76-E$5 -> 373.0289676 | F76: 5965734.9 | G76: 20136262.13 | H76: 14654533.13 | I76: 15703926.55 | J76: 3543350.292 | K76: -157592.3852 | L76: =STDEV(E76:G76) -> 10342818.88 | M76: =STDEV(F76:H76) -> 7145492.864 | N76: =STDEV(H76:J76) -> 6738437.325 | O76: =STDEV(I76:K76) -> 8298236.506 | P76: =K76-L76 -> -10500411.27 | Q76: =K76+L76 -> 10185226.5 | R76: =M76-N76 -> 407055.539 | S76: =M76+N76 -> 13883930.19 | T76: =R76-Q76 -> -9778170.957 | U76: =S76-P76 -> 24384341.46 | V76: =T76-Q76 -> -19963397.45
A77: 138 | B77: 2.714822945 | C77: 309.1737838 | D77: =C77-D$5 -> 310.1810838 | E77: =C77-E$5 -> 250.1599326 | F77: 7661734.107 | G77: 10444399.78 | H77: 6037265.599 | I77: 99422904.98 | J77: 28763000.84 | K77: 6523475.071 | L77: =STDEV(E77:G77) -> 5408663.204 | M77: =STDEV(F77:H77) -> 2228787.336 | N77: =STDEV(H77:J77) -> 48700032.07 | O77: =STDEV(I77:K77) -> 48507254.85 | P77: =K77-L77 -> 1114811.867 | Q77: =K77+L77 -> 11932138.28 | R77: =M77-N77 -> -46471244.73 | S77: =M77+N77 -> 50928819.4 | T77: =R77-Q77 -> -58403383.01 | U77: =S77-P77 -> 49814007.53 | V77: =T77-Q77 -> -70335521.28
A78: 125 | B78: 2.724781572 | C78: 293.1787741 | D78: =C78-D$5 -> 294.1860741 | E78: =C78-E$5 -> 234.1649229 | F78: 92400797.24 | G78: 121374337.5 | H78: 136628997.6 | I78: 118472111.1 | J78: 144218495.2 | K78: 140213088 | L78: =STDEV(E78:G78) -> 63389014.64 | M78: =STDEV(F78:H78) -> 22465916.42 | N78: =STDEV(H78:J78) -> 13229696.99 | O78: =STDEV(I78:K78) -> 13853938.4 | P78: =K78-L78 -> 76824073.34 | Q78: =K78+L78 -> 203602102.6 | R78: =M78-N78 -> 9236219.434 | S78: =M78+N78 -> 35695613.41 | T78: =R78-Q78 -> -194365883.2 | U78: =S78-P78 -> -41128459.93 | V78: =T78-Q78 -> -397967985.8
A79: 157 | B79: 2.722872222 | C79: 353.1994595 | D79: =C79-D$5 -> 354.2067595 | E79: =C79-E$5 -> 294.1856083 | F79: 331582.9391 | G79: 1736611.304 | H79: -37591.46604 | I79: 40847487.52 | J79: 7733189.322 | K79: -81270.50997 | L79: =STDEV(E79:G79) -> 921832.7829 | M79: =STDEV(F79:H79) -> 936143.678 | N79: =STDEV(H79:J79) -> 21712252.54 | O79: =STDEV(I79:K79) -> 21728574.74 | P79: =K79-L79 -> -1003103.293 | Q79: =K79+L79 -> 840562.273 | R79: =M79-N79 -> -20776108.86 | S79: =M79+N79 -> 22648396.22 | T79: =R79-Q79 -> -21616671.14 | U79: =S79-P79 -> 23651499.51 | V79: =T79-Q79 -> -22457233.41
A80: 80 | B80: 14.34428444 | C80: 215.0325504 | D80: =C80-D$5 -> 216.0398504 | E80: =C80-E$5 -> 156.0186992 | F80: 3017800.288 | G80: 672434.0956 | H80: -77069.92675 | I80: 148490.7877 | J80: 5190163.507 | K80: 18609781.59 | L80: =STDEV(E80:G80) -> 1584238.899 | M80: =STDEV(F80:H80) -> 1614554.66 | N80: =STDEV(H80:J80) -> 2978061.156 | O80: =STDEV(I80:K80) -> 9542220.838 | P80: =K80-L80 -> 17025542.69 | Q80: =K80+L80 -> 20194020.48 | R80: =M80-N80 -> -1363506.496 | S80: =M80+N80 -> 4592615.816 | T80: =R80-Q80 -> -21557526.98 | U80: =S80-P80 -> -12432926.87 | V80: =T80-Q80 -> -41751547.46
A81: 78 | B81: 9.522964847 | C81: 212.074925 | D81: =C81-D$5 -> 213.082225 | E81: =C81-E$5 -> 153.0610738 | F81: 2017307043 | G81: 2018493312 | H81: 2163480043 | I81: 2135170297 | J81: 3026984209 | K81: 2133081047 | L81: =STDEV(E81:G81) -> 1165035273 | M81: =STDEV(F81:H81) -> 84052667.08 | N81: =STDEV(H81:J81) -> 506914348.6 | O81: =STDEV(I81:K81) -> 515493175.3 | P81: =K81-L81 -> 968045773.1 | Q81: =K81+L81 -> 3298116320 | R81: =M81-N81 -> -422861681.5 | S81: =M81+N81 -> 590967015.6 | T81: =R81-Q81 -> -3720978001 | U81: =S81-P81 -> -377078757.5 | V81: =T81-Q81 -> -7019094321
A82: 95 | B82: 3.637891184 | C82: 240.117488 | D82: =C82-D$5 -> 241.124788 | E82: =C82-E$5 -> 181.1036368 | F82: 19728801.91 | G82: 13561864.23 | H82: 2690386.205 | I82: 8818752.395 | J82: 21380922.64 | K82: 38661324.28 | L82: =STDEV(E82:G82) -> 10092644.59 | M82: =STDEV(F82:H82) -> 8626777.736 | N82: =STDEV(H82:J82) -> 9528038.847 | O82: =STDEV(I82:K82) -> 14983321.28 | P82: =K82-L82 -> 28568679.7 | Q82: =K82+L82 -> 48753968.87 | R82: =M82-N82 -> -901261.111 | S82: =M82+N82 -> 18154816.58 | T82: =R82-Q82 -> -49655229.98 | U82: =S82-P82 -> -10413863.11 | V82: =T82-Q82 -> -98409198.85
A83: 151 | B83: 2.682099545 | C83: 337.2047785 | D83: =C83-D$5 -> 338.2120785 | E83: =C83-E$5 -> 278.1909273 | F83: -36832.9982 | G83: 16157.07547 | H83: -106984.1618 | I83: 11526415 | J83: 1478466.223 | K83: 27429.88977 | L83: =STDEV(E83:G83) -> 27194.75207 | M83: =STDEV(F83:H83) -> 61769.59606 | N83: =STDEV(H83:J83) -> 6308868.146 | O83: =STDEV(I83:K83) -> 6262233.889 | P83: =K83-L83 -> 235.1376965 | Q83: =K83+L83 -> 54624.64184 | R83: =M83-N83 -> -6247098.55 | S83: =M83+N83 -> 6370637.742 | T83: =R83-Q83 -> -6301723.191 | U83: =S83-P83 -> 6370402.604 | V83: =T83-Q83 -> -6356347.833
A84: 44 | B84: 3.495301429 | C84: 153.1031636 | D84: =C84-D$5 -> 154.1104636 | E84: =C84-E$5 -> 94.08931238 | F84: 10668.70558 | G84: 155866.5037 | H84: -74592.62202 | I84: -48561.35693 | J84: 897938.3152 | K84: 5919313.326 | L84: =STDEV(E84:G84) -> 87043.34954 | M84: =STDEV(F84:H84) -> 116521.3165 | N84: =STDEV(H84:J84) -> 554129.299 | O84: =STDEV(I84:K84) -> 3207428.795 | P84: =K84-L84 -> 5832269.976 | Q84: =K84+L84 -> 6006356.675 | R84: =M84-N84 -> -437607.9824 | S84: =M84+N84 -> 670650.6155 | T84: =R84-Q84 -> -6443964.658 | U84: =S84-P84 -> -5161619.361 | V84: =T84-Q84 -> -12450321.33
A85: 127 | B85: 2.743602632 | C85: 297.1525598 | D85: =C85-D$5 -> 298.1598598 | E85: =C85-E$5 -> 238.1387086 | F85: 1590537.953 | G85: 4100.159838 | H85: -119318.0631 | I85: 22845400.79 | J85: 4035163.044 | K85: -43078.13294 | L85: =STDEV(E85:G85) -> 917047.1897 | M85: =STDEV(F85:H85) -> 953556.8964 | N85: =STDEV(H85:J85) -> 12236986.76 | O85: =STDEV(I85:K85) -> 12208873.57 | P85: =K85-L85 -> -960125.3227 | Q85: =K85+L85 -> 873969.0568 | R85: =M85-N85 -> -11283429.86 | S85: =M85+N85 -> 13190543.66 | T85: =R85-Q85 -> -12157398.92 | U85: =S85-P85 -> 14150668.98 | V85: =T85-Q85 -> -13031367.98
A86: 198 | B86: 13.98606667 | C86: 482.9613092 | D86: =C86-D$5 -> 483.9686092 | E86: =C86-E$5 -> 423.947458 | F86: 6297278.572 | G86: 11063017.02 | H86: 3868369.706 | I86: -935.1099262 | J86: 4065810.01 | K86: 7603992.857 | L86: =STDEV(E86:G86) -> 5548927.923 | M86: =STDEV(F86:H86) -> 3660027.577 | N86: =STDEV(H86:J86) -> 2293066.299 | O86: =STDEV(I86:K86) -> 3805524.123 | P86: =K86-L86 -> 2055064.933 | Q86: =K86+L86 -> 13152920.78 | R86: =M86-N86 -> 1366961.279 | S86: =M86+N86 -> 5953093.876 | T86: =R86-Q86 -> -11785959.5 | U86: =S86-P86 -> 3898028.942 | V86: =T86-Q86 -> -24938880.28
A87: 45 | B87: 3.621027333 | C87: 154.0871053 | D87: =C87-D$5 -> 155.0944053 | E87: =C87-E$5 -> 95.07325411 | F87: -37491.8895 | G87: 41057.94136 | H87: 18974.57741 | I87: -84551.86587 | J87: 812144.1603 | K87: 5983771.196 | L87: =STDEV(E87:G87) -> 39287.00434 | M87: =STDEV(F87:H87) -> 40509.69591 | N87: =STDEV(H87:J87) -> 490560.8143 | O87: =STDEV(I87:K87) -> 3275523.743 | P87: =K87-L87 -> 5944484.191 | Q87: =K87+L87 -> 6023058.2 | R87: =M87-N87 -> -450051.1183 | S87: =M87+N87 -> 531070.5102 | T87: =R87-Q87 -> -6473109.318 | U87: =S87-P87 -> -5413413.681 | V87: =T87-Q87 -> -12496167.52
A88: 61 | B88: 4.759138182 | C88: 187.0611004 | D88: =C88-D$5 -> 188.0684004 | E88: =C88-E$5 -> 128.0472492 | F88: -43130.14583 | G88: -4322.36626 | H88: -167362.9529 | I88: 5337628.775 | J88: 150675.2746 | K88: 96785.28796 | L88: =STDEV(E88:G88) -> 23794.68149 | M88: =STDEV(F88:H88) -> 85168.52606 | N88: =STDEV(H88:J88) -> 3090592.415 | O88: =STDEV(I88:K88) -> 3010366.29 | P88: =K88-L88 -> 72990.60647 | Q88: =K88+L88 -> 120579.9694 | R88: =M88-N88 -> -3005423.889 | S88: =M88+N88 -> 3175760.941 | T88: =R88-Q88 -> -3126003.859 | U88: =S88-P88 -> 3102770.335 | V88: =T88-Q88 -> -3246583.828
A89: 83 | B89: 6.925486471 | C89: 218.0667967 | D89: =C89-D$5 -> 219.0740967 | E89: =C89-E$5 -> 159.0529455 | F89: 1341195.162 | G89: 7363222.194 | H89: -38171.65715 | I89: 1050995.452 | J89: 45664.47807 | K89: 28886.19882 | L89: =STDEV(E89:G89) -> 3921689.394 | M89: =STDEV(F89:H89) -> 3935905.092 | N89: =STDEV(H89:J89) -> 606080.8331 | O89: =STDEV(I89:K89) -> 585331.7014 | P89: =K89-L89 -> -3892803.196 | Q89: =K89+L89 -> 3950575.593 | R89: =M89-N89 -> 3329824.258 | S89: =M89+N89 -> 4541985.925 | T89: =R89-Q89 -> -620751.3348 | U89: =S89-P89 -> 8434789.12 | V89: =T89-Q89 -> -4571326.928
A90: 162 | B90: 6.8576615 | C90: 382.5500244 | D90: =C90-D$5 -> 383.5573244 | E90: =C90-E$5 -> 323.5361732 | F90: 8513142.379 | G90: 5841600.678 | H90: 7949935.872 | I90: 3774086.386 | J90: 9237634.569 | K90: 2211398.564 | L90: =STDEV(E90:G90) -> 4353652.458 | M90: =STDEV(F90:H90) -> 1408273.998 | N90: =STDEV(H90:J90) -> 2856170.093 | O90: =STDEV(I90:K90) -> 3689181.128 | P90: =K90-L90 -> -2142253.894 | Q90: =K90+L90 -> 6565051.022 | R90: =M90-N90 -> -1447896.095 | S90: =M90+N90 -> 4264444.091 | T90: =R90-Q90 -> -8012947.117 | U90: =S90-P90 -> 6406697.986 | V90: =T90-Q90 -> -14577998.14
A91: 30 | B91: 12.28982194 | C91: 132.0300351 | D91: =C91-D$5 -> 133.0373351 | E91: =C91-E$5 -> 73.01618392 | F91: -106956.5713 | G91: 41886.86362 | H91: -56068.48384 | I91: 2439596.682 | J91: 104751.4203 | K91: 62507529.06 | L91: =STDEV(E91:G91) -> 76765.9848 | M91: =STDEV(F91:H91) -> 75651.85132 | N91: =STDEV(H91:J91) -> 1396764.718 | O91: =STDEV(I91:K91) -> 35373518.02 | P91: =K91-L91 -> 62430763.08 | Q91: =K91+L91 -> 62584295.05 | R91: =M91-N91 -> -1321112.866 | S91: =M91+N91 -> 1472416.569 | T91: =R91-Q91 -> -63905407.91 | U91: =S91-P91 -> -60958346.51 | V91: =T91-Q91 -> -126489703
A92: 135 | B92: 10.56103644 | C92: 306.0762061 | D92: =C92-D$5 -> 307.0835061 | E92: =C92-E$5 -> 247.0623549 | F92: 729722830.1 | G92: 811521278.1 | H92: 596355864 | I92: 529361008.9 | J92: 992314848.1 | K92: 1914618320 | L92: =STDEV(E92:G92) -> 446794587 | M92: =STDEV(F92:H92) -> 108607772.3 | N92: =STDEV(H92:J92) -> 250199282.2 | O92: =STDEV(I92:K92) -> 705207743.4 | P92: =K92-L92 -> 1467823733 | Q92: =K92+L92 -> 2361412907 | R92: =M92-N92 -> -141591509.9 | S92: =M92+N92 -> 358807054.4 | T92: =R92-Q92 -> -2503004417 | U92: =S92-P92 -> -1109016678 | V92: =T92-Q92 -> -4864417323
A93: 28 | B93: 9.28734797 | C93: 130.0871234 | D93: =C93-D$5 -> 131.0944234 | E93: =C93-E$5 -> 71.07327224 | F93: 61214.08776 | G93: 320874.1064 | H93: -123891.2118 | I93: 353520.0831 | J93: 2324545.129 | K93: 69690515.61 | L93: =STDEV(E93:G93) -> 170331.2359 | M93: =STDEV(F93:H93) -> 223421.681 | N93: =STDEV(H93:J93) -> 1297927.951 | O93: =STDEV(I93:K93) -> 39475050.91 | P93: =K93-L93 -> 69520184.38 | Q93: =K93+L93 -> 69860846.85 | R93: =M93-N93 -> -1074506.27 | S93: =M93+N93 -> 1521349.632 | T93: =R93-Q93 -> -70935353.12 | U93: =S93-P93 -> -67998834.74 | V93: =T93-Q93 -> -140796200
A94: 180 | B94: 10.33523412 | C94: 426.0292211 | D94: =C94-D$5 -> 427.0365211 | E94: =C94-E$5 -> 367.0153699 | F94: 12858068.27 | G94: 11053214.32 | H94: 2092550.359 | I94: 855187.5616 | J94: 20237920.74 | K94: 59354377.48 | L94: =STDEV(E94:G94) -> 6961123.147 | M94: =STDEV(F94:H94) -> 5765520.68 | N94: =STDEV(H94:J94) -> 10851081.96 | O94: =STDEV(I94:K94) -> 29799168.76 | P94: =K94-L94 -> 52393254.33 | Q94: =K94+L94 -> 66315500.62 | R94: =M94-N94 -> -5085561.283 | S94: =M94+N94 -> 16616602.64 | T94: =R94-Q94 -> -71401061.91 | U94: =S94-P94 -> -35776651.69 | V94: =T94-Q94 -> -137716562.5
A95: 245 | B95: 2.607154615 | C95: 865.5021937 | D95: =C95-D$5 -> 866.5094937 | E95: =C95-E$5 -> 806.4883425 | F95: 6734839.274 | G95: 3476509.961 | H95: 16353257.39 | I95: 7000430.818 | J95: 15325628.16 | K95: 18852635 | L95: =STDEV(E95:G95) -> 3367601.077 | M95: =STDEV(F95:H95) -> 6695039.224 | N95: =STDEV(H95:J95) -> 5129007.334 | O95: =STDEV(I95:K95) -> 6085822.759 | P95: =K95-L95 -> 15485033.92 | Q95: =K95+L95 -> 22220236.08 | R95: =M95-N95 -> 1566031.89 | S95: =M95+N95 -> 11824046.56 | T95: =R95-Q95 -> -20654204.19 | U95: =S95-P95 -> -3660987.363 | V95: =T95-Q95 -> -42874440.26
A96: 146 | B96: 9.239024091 | C96: 323.0282981 | D96: =C96-D$5 -> 324.0355981 | E96: =C96-E$5 -> 264.0144469 | F96: -45327.78882 | G96: -113346.0952 | H96: -43965.14267 | I96: 16491.96348 | J96: 124310.4561 | K96: 8579581.152 | L96: =STDEV(E96:G96) -> 57172.77839 | M96: =STDEV(F96:H96) -> 39669.60081 | N96: =STDEV(H96:J96) -> 85241.3888 | O96: =STDEV(I96:K96) -> 4913073.102 | P96: =K96-L96 -> 8522408.374 | Q96: =K96+L96 -> 8636753.931 | R96: =M96-N96 -> -45571.78799 | S96: =M96+N96 -> 124910.9896 | T96: =R96-Q96 -> -8682325.719 | U96: =S96-P96 -> -8397497.384 | V96: =T96-Q96 -> -17319079.65
A97: 33 | B97: 9.00984375 | C97: 136.1072836 | D97: =C97-D$5 -> 137.1145836 | E97: =C97-E$5 -> 77.09343239 | F97: -42518.86695 | G97: -70645.93284 | H97: 17473.92683 | I97: 609.1209186 | J97: 128370.1003 | K97: 6339773.555 | L97: =STDEV(E97:G97) -> 35607.33567 | M97: =STDEV(F97:H97) -> 45009.95595 | N97: =STDEV(H97:J97) -> 69408.51393 | O97: =STDEV(I97:K97) -> 3623599.993 | P97: =K97-L97 -> 6304166.219 | Q97: =K97+L97 -> 6375380.89 | R97: =M97-N97 -> -24398.55798 | S97: =M97+N97 -> 114418.4699 | T97: =R97-Q97 -> -6399779.448 | U97: =S97-P97 -> -6189747.749 | V97: =T97-Q97 -> -12775160.34
A98: 240 | B98: 17.25778261 | C98: 798.292584 | D98: =C98-D$5 -> 799.299884 | E98: =C98-E$5 -> 739.2787328 | F98: 68666.77445 | G98: 697256.4657 | H98: 2192622.37 | I98: 2996743.772 | J98: 3269807.878 | K98: 84032.70416 | L98: =STDEV(E98:G98) -> 384030.2367 | M98: =STDEV(F98:H98) -> 1091056.946 | N98: =STDEV(H98:J98) -> 559985.6922 | O98: =STDEV(I98:K98) -> 1765767.691 | P98: =K98-L98 -> -299997.5326 | Q98: =K98+L98 -> 468062.9409 | R98: =M98-N98 -> 531071.2542 | S98: =M98+N98 -> 1651042.639 | T98: =R98-Q98 -> 63008.31329 | U98: =S98-P98 -> 1951040.171 | V98: =T98-Q98 -> -405054.6276
A99: 228 | B99: 12.01755714 | C99: 663.1043832 | D99: =C99-D$5 -> 664.1116832 | E99: =C99-E$5 -> 604.090532 | F99: 4793.581943 | G99: -48789.79349 | H99: -266990.1382 | I99: -83574.89258 | J99: 85.62777234 | K99: 5336266.581 | L99: =STDEV(E99:G99) -> 29800.68718 | M99: =STDEV(F99:H99) -> 143961.198 | N99: =STDEV(H99:J99) -> 136607.5277 | O99: =STDEV(I99:K99) -> 3105277.976 | P99: =K99-L99 -> 5306465.894 | Q99: =K99+L99 -> 5366067.269 | R99: =M99-N99 -> 7353.67024 | S99: =M99+N99 -> 280568.7257 | T99: =R99-Q99 -> -5358713.598 | U99: =S99-P99 -> -5025897.169 | V99: =T99-Q99 -> -10724780.87
A100: 114 | B100: 3.287888966 | C100: 273.0338493 | D100: =C100-D$5 -> 274.0411493 | E100: =C100-E$5 -> 214.0199981 | F100: 2205209.501 | G100: 9691177.209 | H100: 45727.84432 | I100: 84559.32626 | J100: 2676603.768 | K100: 97462.72128 | L100: =STDEV(E100:G100) -> 5079640.491 | M100: =STDEV(F100:H100) -> 5061912.797 | N100: =STDEV(H100:J100) -> 1507852.247 | O100: =STDEV(I100:K100) -> 1492806.609 | P100: =K100-L100 -> -4982177.77 | Q100: =K100+L100 -> 5177103.213 | R100: =M100-N100 -> 3554060.55 | S100: =M100+N100 -> 6569765.044 | T100: =R100-Q100 -> -1623042.663 | U100: =S100-P100 -> 11551942.81 | V100: =T100-Q100 -> -6800145.875
A101: 192 | B101: 3.013257273 | C101: 456.3551386 | D101: =C101-D$5 -> 457.3624386 | E101: =C101-E$5 -> 397.3412874 | F101: -28301.58288 | G101: -83922.50688 | H101: -259.2720101 | I101: -55519.36053 | J101: 67332.31009 | K101: 4839892.968 | L101: =STDEV(E101:G101) -> 42870.25431 | M101: =STDEV(F101:H101) -> 42582.45972 | N101: =STDEV(H101:J101) -> 61528.89881 | O101: =STDEV(I101:K101) -> 2791579.291 | P101: =K101-L101 -> 4797022.713 | Q101: =K101+L101 -> 4882763.222 | R101: =M101-N101 -> -18946.43909 | S101: =M101+N101 -> 104111.3585 | T101: =R101-Q101 -> -4901709.661 | U101: =S101-P101 -> -4692911.355 | V101: =T101-Q101 -> -9784472.883
A102: 168 | B102: 2.735465 | C102: 397.2258703 | D102: =C102-D$5 -> 398.2331703 | E102: =C102-E$5 -> 338.2120191 | F102: 31682.14264 | G102: -170717.9085 | H102: -37888.19739 | I102: 14753458.67 | J102: 142182.4041 | K102: -28335.57363 | L102: =STDEV(E102:G102) -> 108940.6712 | M102: =STDEV(F102:H102) -> 102834.4504 | N102: =STDEV(H102:J102) -> 8488283.709 | O102: =STDEV(I102:K102) -> 8485476.924 | P102: =K102-L102 -> -137276.2449 | Q102: =K102+L102 -> 80605.09759 | R102: =M102-N102 -> -8385449.258 | S102: =M102+N102 -> 8591118.159 | T102: =R102-Q102 -> -8466054.356 | U102: =S102-P102 -> 8728394.404 | V102: =T102-Q102 -> -8546659.453
A103: 227 | B103: 12.37327789 | C103: 662.1016703 | D103: =C103-D$5 -> 663.1089703 | E103: =C103-E$5 -> 603.0878191 | F103: 31890132.75 | G103: 33472373.81 | H103: 22769572.92 | I103: 21539346.95 | J103: 39694821.56 | K103: 80005763.94 | L103: =STDEV(E103:G103) -> 18884760.28 | M103: =STDEV(F103:H103) -> 5776937.558 | N103: =STDEV(H103:J103) -> 10145596.38 | O103: =STDEV(I103:K103) -> 29924670.01 | P103: =K103-L103 -> 61121003.67 | Q103: =K103+L103 -> 98890524.22 | R103: =M103-N103 -> -4368658.822 | S103: =M103+N103 -> 15922533.94 | T103: =R103-Q103 -> -103259183 | U103: =S103-P103 -> -45198469.73 | V103: =T103-Q103 -> -202149707.3
A104: 60 | B104: 10.31685 | C104: 184.9853252 | D104: =C104-D$5 -> 185.9926252 | E104: =C104-E$5 -> 125.971474 | F104: -163694.5415 | G104: -54477.12662 | H104: 107409.3226 | I104: -10196.51899 | J104: 81286.685 | K104: 9713492.537 | L104: =STDEV(E104:G104) -> 83413.73042 | M104: =STDEV(F104:H104) -> 136401.9619 | N104: =STDEV(H104:J104) -> 61755.84018 | O104: =STDEV(I104:K104) -> 5587752.792 | P104: =K104-L104 -> 9630078.806 | Q104: =K104+L104 -> 9796906.267 | R104: =M104-N104 -> 74646.12175 | S104: =M104+N104 -> 198157.8021 | T104: =R104-Q104 -> -9722260.145 | U104: =S104-P104 -> -9431921.004 | V104: =T104-Q104 -> -19519166.41
A105: 213 | B105: 11.35307429 | C105: 579.0270944 | D105: =C105-D$5 -> 580.0343944 | E105: =C105-E$5 -> 520.0132432 | F105: 157594.0627 | G105: -43005.55808 | H105: 73243.91342 | I105: 143742.7349 | J105: 300625.966 | K105: 21607869.53 | L105: =STDEV(E105:G105) -> 105520.0931 | M105: =STDEV(F105:H105) -> 100721.6421 | N105: =STDEV(H105:J105) -> 116393.7497 | O105: =STDEV(I105:K105) -> 12347280.27 | P105: =K105-L105 -> 21502349.44 | Q105: =K105+L105 -> 21713389.62 | R105: =M105-N105 -> -15672.10757 | S105: =M105+N105 -> 217115.3919 | T105: =R105-Q105 -> -21729061.73 | U105: =S105-P105 -> -21285234.05 | V105: =T105-Q105 -> -43442451.36
A106: 15 | B106: 12.0545141 | C106: 114.0559018 | D106: =C106-D$5 -> 115.0632018 | E106: =C106-E$5 -> 55.04205057 | F106: 26829531.48 | G106: 33594288.68 | H106: 17909808.76 | I106: 21295263.8 | J106: 34259590.3 | K106: 47359010.38 | L106: =STDEV(E106:G106) -> 17767738.93 | M106: =STDEV(F106:H106) -> 7866874.686 | N106: =STDEV(H106:J106) -> 8629894.012 | O106: =STDEV(I106:K106) -> 13031931.64 | P106: =K106-L106 -> 29591271.46 | Q106: =K106+L106 -> 65126749.31 | R106: =M106-N106 -> -763019.3261 | S106: =M106+N106 -> 16496768.7 | T106: =R106-Q106 -> -65889768.64 | U106: =S106-P106 -> -13094502.76 | V106: =T106-Q106 -> -131016517.9
A107: 164 | B107: 9.105134773 | C107: 388.0284465 | D107: =C107-D$5 -> 389.0357465 | E107: =C107-E$5 -> 329.0145953 | F107: -6662.131 | G107: -90797.10477 | H107: -36428.40516 | I107: 16613026.28 | J107: 69166.96879 | K107: 62515.67752 | L107: =STDEV(E107:G107) -> 50714.13274 | M107: =STDEV(F107:H107) -> 42662.78704 | N107: =STDEV(H107:J107) -> 9582229.842 | O107: =STDEV(I107:K107) -> 9553522.267 | P107: =K107-L107 -> 11801.54478 | Q107: =K107+L107 -> 113229.8103 | R107: =M107-N107 -> -9539567.055 | S107: =M107+N107 -> 9624892.629 | T107: =R107-Q107 -> -9652796.865 | U107: =S107-P107 -> 9613091.084 | V107: =T107-Q107 -> -9766026.675
A108: 98 | B108: 7.585838182 | C108: 245.0432573 | D108: =C108-D$5 -> 246.0505573 | E108: =C108-E$5 -> 186.0294061 | F108: 51327.53483 | G108: 4762515.649 | H108: -46994.71856 | I108: -148347.4095 | J108: -53204.33541 | K108: 135650.4967 | L108: =STDEV(E108:G108) -> 2734888.551 | M108: =STDEV(F108:H108) -> 2748828.559 | N108: =STDEV(H108:J108) -> 56808.35013 | O108: =STDEV(I108:K108) -> 144552.8525 | P108: =K108-L108 -> -2599238.054 | Q108: =K108+L108 -> 2870539.047 | R108: =M108-N108 -> 2692020.209 | S108: =M108+N108 -> 2805636.909 | T108: =R108-Q108 -> -178518.8382 | U108: =S108-P108 -> 5404874.964 | V108: =T108-Q108 -> -3049057.886
A109: 208 | B109: 12.01349048 | C109: 540.0536063 | D109: =C109-D$5 -> 541.0609063 | E109: =C109-E$5 -> 481.0397551 | F109: -30251.7572 | G109: -137981.6749 | H109: -118650.0014 | I109: -115616.2329 | J109: 18030.36545 | K109: 9601314.845 | L109: =STDEV(E109:G109) -> 72711.94688 | M109: =STDEV(F109:H109) -> 57436.48425 | N109: =STDEV(H109:J109) -> 78051.41432 | O109: =STDEV(I109:K109) -> 5571893.042 | P109: =K109-L109 -> 9528602.899 | Q109: =K109+L109 -> 9674026.792 | R109: =M109-N109 -> -20614.93007 | S109: =M109+N109 -> 135487.8986 | T109: =R109-Q109 -> -9694641.722 | U109: =S109-P109 -> -9393115 | V109: =T109-Q109 -> -19368668.51
A110: 195 | B110: 3.15115619 | C110: 472.3508751 | D110: =C110-D$5 -> 473.3581751 | E110: =C110-E$5 -> 413.3370239 | F110: -165857.7581 | G110: -171458.5471 | H110: 1641.851435 | I110: 61980.52682 | J110: 29364.62746 | K110: 33797985.62 | L110: =STDEV(E110:G110) -> 97653.63149 | M110: =STDEV(F110:H110) -> 98362.62502 | N110: =STDEV(H110:J110) -> 30202.38663 | O110: =STDEV(I110:K110) -> 19486913.85 | P110: =K110-L110 -> 33700331.99 | Q110: =K110+L110 -> 33895639.25 | R110: =M110-N110 -> 68160.23839 | S110: =M110+N110 -> 128565.0116 | T110: =R110-Q110 -> -33827479.01 | U110: =S110-P110 -> -33571766.98 | V110: =T110-Q110 -> -67723118.27
A111: 31 | B111: 12.81191508 | C111: 133.0140176 | D111: =C111-D$5 -> 134.0213176 | E111: =C111-E$5 -> 74.00016642 | F111: -133844.782 | G111: -100311.4102 | H111: -96237.83342 | I111: 91997.76233 | J111: 111121.3978 | K111: 57633844.67 | L111: =STDEV(E111:G111) -> 69684.95514 | M111: =STDEV(F111:H111) -> 20637.19793 | N111: =STDEV(H111:J111) -> 114597.9957 | O111: =STDEV(I111:K111) -> 33216281.66 | P111: =K111-L111 -> 57564159.72 | Q111: =K111+L111 -> 57703529.63 | R111: =M111-N111 -> -93960.79777 | S111: =M111+N111 -> 135235.1936 | T111: =R111-Q111 -> -57797490.42 | U111: =S111-P111 -> -57428924.52 | V111: =T111-Q111 -> -115501020
A112: 219 | B112: 8.76783 | C112: 607.0773977 | D112: =C112-D$5 -> 608.0846977 | E112: =C112-E$5 -> 548.0635465 | F112: 48995.10642 | G112: 105097.5294 | H112: 125341.374 | I112: 156961.2679 | J112: 125930.172 | K112: 17088325.5 | L112: =STDEV(E112:G112) -> 52321.42429 | M112: =STDEV(F112:H112) -> 39551.75445 | N112: =STDEV(H112:J112) -> 18088.17887 | O112: =STDEV(I112:K112) -> 9784297.903 | P112: =K112-L112 -> 17036004.07 | Q112: =K112+L112 -> 17140646.92 | R112: =M112-N112 -> 21463.57558 | S112: =M112+N112 -> 57639.93332 | T112: =R112-Q112 -> -17119183.35 | U112: =S112-P112 -> -16978364.14 | V112: =T112-Q112 -> -34259830.27
A113: 144 | B113: 11.36132063 | C113: 318.0765047 | D113: =C113-D$5 -> 319.0838047 | E113: =C113-E$5 -> 259.0626535 | F113: -100595.3921 | G113: -83228.55416 | H113: 127008.646 | I113: 120035.2473 | J113: 105763.219 | K113: 51971803.43 | L113: =STDEV(E113:G113) -> 53918.78191 | M113: =STDEV(F113:H113) -> 126691.8082 | N113: =STDEV(H113:J113) -> 10829.64488 | O113: =STDEV(I113:K113) -> 29940753.15 | P113: =K113-L113 -> 51917884.65 | Q113: =K113+L113 -> 52025722.21 | R113: =M113-N113 -> 115862.1633 | S113: =M113+N113 -> 137521.453 | T113: =R113-Q113 -> -51909860.05 | U113: =S113-P113 -> -51780363.19 | V113: =T113-Q113 -> -103935582.3
A114: 141 | B114: 9.846589565 | C114: 314.9047201 | D114: =C114-D$5 -> 315.9120201 | E114: =C114-E$5 -> 255.8908689 | F114: -71670.34828 | G114: 2795.391889 | H114: 2989.64466 | I114: 25562.18156 | J114: -21204.50125 | K114: 9508099.143 | L114: =STDEV(E114:G114) -> 42278.79571 | M114: =STDEV(F114:H114) -> 43049.00064 | N114: =STDEV(H114:J114) -> 23388.02664 | O114: =STDEV(I114:K114) -> 5488295.459 | P114: =K114-L114 -> 9465820.348 | Q114: =K114+L114 -> 9550377.939 | R114: =M114-N114 -> 19660.974 | S114: =M114+N114 -> 66437.02728 | T114: =R114-Q114 -> -9530716.965 | U114: =S114-P114 -> -9399383.32 | V114: =T114-Q114 -> -19081094.9
A115: 170 | B115: 10.62278103 | C115: 402.9943532 | D115: =C115-D$5 -> 404.0016532 | E115: =C115-E$5 -> 343.980502 | F115: 97996.37224 | G115: -60216.0214 | H115: -82208.56709 | I115: 175407.2487 | J115: -147956.0469 | K115: 34605140.3 | L115: =STDEV(E115:G115) -> 79827.59021 | M115: =STDEV(F115:H115) -> 98309.59069 | N115: =STDEV(H115:J115) -> 170905.6565 | O115: =STDEV(I115:K115) -> 19972017.04 | P115: =K115-L115 -> 34525312.71 | Q115: =K115+L115 -> 34684967.89 | R115: =M115-N115 -> -72596.06586 | S115: =M115+N115 -> 269215.2472 | T115: =R115-Q115 -> -34757563.96 | U115: =S115-P115 -> -34256097.46 | V115: =T115-Q115 -> -69442531.85
A116: 194 | B116: 3.181970886 | C116: 471.3480769 | D116: =C116-D$5 -> 472.3553769 | E116: =C116-E$5 -> 412.3342257 | F116: -6511.382541 | G116: -120071.828 | H116: -3660.55561 | I116: -27135.65567 | J116: 105534.2735 | K116: 146969164.3 | L116: =STDEV(E116:G116) -> 67651.4917 | M116: =STDEV(F116:H116) -> 66402.41754 | N116: =STDEV(H116:J116) -> 70800.07197 | O116: =STDEV(I116:K116) -> 84830080.78 | P116: =K116-L116 -> 146901512.8 | Q116: =K116+L116 -> 147036815.8 | R116: =M116-N116 -> -4397.654428 | S116: =M116+N116 -> 137202.4895 | T116: =R116-Q116 -> -147041213.5 | U116: =S116-P116 -> -146764310.3 | V116: =T116-Q116 -> -294078029.3
A117: 173 | B117: 10.185712 | C117: 404.0523513 | D117: =C117-D$5 -> 405.0596513 | E117: =C117-E$5 -> 345.0385001 | F117: -130987.6731 | G117: -93304.74191 | H117: 34146.06395 | I117: 95136.96376 | J117: -106260.2211 | K117: 107806130.4 | L117: =STDEV(E117:G117) -> 67624.65749 | M117: =STDEV(F117:H117) -> 86537.913 | N117: =STDEV(H117:J117) -> 103275.2316 | O117: =STDEV(I117:K117) -> 62245190.87 | P117: =K117-L117 -> 107738505.7 | Q117: =K117+L117 -> 107873755.1 | R117: =M117-N117 -> -16737.31864 | S117: =M117+N117 -> 189813.1446 | T117: =R117-Q117 -> -107890492.4 | U117: =S117-P117 -> -107548692.6 | V117: =T117-Q117 -> -215764247.4
A118: 211 | B118: 9.726490197 | C118: 565.0469489 | D118: =C118-D$5 -> 566.0542489 | E118: =C118-E$5 -> 506.0330977 | F118: -126206.7796 | G118: 33062.77891 | H118: 26646.94353 | I118: -29008.82834 | J118: 96988.54727 | K118: 125324525.5 | L118: =STDEV(E118:G118) -> 84145.5791 | M118: =STDEV(F118:H118) -> 90159.31817 | N118: =STDEV(H118:J118) -> 63141.17096 | O118: =STDEV(I118:K118) -> 72336551.9 | P118: =K118-L118 -> 125240379.9 | Q118: =K118+L118 -> 125408671.1 | R118: =M118-N118 -> 27018.1472 | S118: =M118+N118 -> 153300.4891 | T118: =R118-Q118 -> -125381652.9 | U118: =S118-P118 -> -125087079.4 | V118: =T118-Q118 -> -250790324
A119: 191 | B119: 3.022085526 | C119: 455.3525808 | D119: =C119-D$5 -> 456.3598808 | E119: =C119-E$5 -> 396.3387296 | F119: -194636.6637 | G119: -42472.07901 | H119: 87254.74837 | I119: -40038.74658 | J119: -45955.68763 | K119: 40482915.15 | L119: =STDEV(E119:G119) -> 102493.6048 | M119: =STDEV(F119:H119) -> 141094.4594 | N119: =STDEV(H119:J119) -> 75259.17918 | O119: =STDEV(I119:K119) -> 23397646.6 | P119: =K119-L119 -> 40380421.55 | Q119: =K119+L119 -> 40585408.76 | R119: =M119-N119 -> 65835.28019 | S119: =M119+N119 -> 216353.6386 | T119: =R119-Q119 -> -40519573.47 | U119: =S119-P119 -> -40164067.91 | V119: =T119-Q119 -> -81104982.23
A120: 150 | B120: 12.12817576 | C120: 333.059353 | D120: =C120-D$5 -> 334.066653 | E120: =C120-E$5 -> 274.0455018 | F120: -18380.38179 | G120: 43448.12043 | H120: 145888.6826 | I120: -3059.45229 | J120: 122881.2496 | K120: 19345893.93 | L120: =STDEV(E120:G120) -> 31714.22418 | M120: =STDEV(F120:H120) -> 82967.01955 | N120: =STDEV(H120:J120) -> 80183.07102 | O120: =STDEV(I120:K120) -> 11134945.55 | P120: =K120-L120 -> 19314179.71 | Q120: =K120+L120 -> 19377608.15 | R120: =M120-N120 -> 2783.948535 | S120: =M120+N120 -> 163150.0906 | T120: =R120-Q120 -> -19374824.21 | U120: =S120-P120 -> -19151029.62 | V120: =T120-Q120 -> -38752432.36
A121: 71 | B121: 10.01668015 | C121: 194.9439103 | D121: =C121-D$5 -> 195.9512103 | E121: =C121-E$5 -> 135.9300591 | F121: 32820.18429 | G121: 32179.28204 | H121: -143078.5022 | I121: 72540.69503 | J121: -178762.281 | K121: 329466704.7 | L121: =STDEV(E121:G121) -> 18687.9981 | M121: =STDEV(F121:H121) -> 101370.648 | N121: =STDEV(H121:J121) -> 135964.5518 | O121: =STDEV(I121:K121) -> 190248395.7 | P121: =K121-L121 -> 329448016.7 | Q121: =K121+L121 -> 329485392.7 | R121: =M121-N121 -> -34593.90381 | S121: =M121+N121 -> 237335.1998 | T121: =R121-Q121 -> -329519986.6 | U121: =S121-P121 -> -329210681.5 | V121: =T121-Q121 -> -659005379.3
A122: 57 | B122: 9.887354519 | C122: 176.9356901 | D122: =C122-D$5 -> 177.9429901 | E122: =C122-E$5 -> 117.9218389 | F122: -37353.90993 | G122: -117168.5161 | H122: -153777.1829 | I122: -71563.20538 | J122: -157694.7251 | K122: 110560700.3 | L122: =STDEV(E122:G122) -> 59903.5587 | M122: =STDEV(F122:H122) -> 59532.82617 | N122: =STDEV(H122:J122) -> 48636.61845 | O122: =STDEV(I122:K122) -> 63898445.63 | P122: =K122-L122 -> 110500796.7 | Q122: =K122+L122 -> 110620603.8 | R122: =M122-N122 -> 10896.20772 | S122: =M122+N122 -> 108169.4446 | T122: =R122-Q122 -> -110609707.6 | U122: =S122-P122 -> -110392627.3 | V122: =T122-Q122 -> -221230311.4
A123: 55 | B123: 10.55723509 | C123: 174.9467223 | D123: =C123-D$5 -> 175.9540223 | E123: =C123-E$5 -> 115.9328711 | F123: -116541.0839 | G123: -58489.62145 | H123: 39169.27289 | I123: -55534.7898 | J123: -98342.75007 | K123: 217582076.9 | L123: =STDEV(E123:G123) -> 58328.7277 | M123: =STDEV(F123:H123) -> 78690.26533 | N123: =STDEV(H123:J123) -> 70369.19001 | O123: =STDEV(I123:K123) -> 125665493.1 | P123: =K123-L123 -> 217523748.2 | Q123: =K123+L123 -> 217640405.6 | R123: =M123-N123 -> 8321.075322 | S123: =M123+N123 -> 149059.4553 | T123: =R123-Q123 -> -217632084.5 | U123: =S123-P123 -> -217374688.7 | V123: =T123-Q123 -> -435272490.2
A124: 212 | B124: 3.126763636 | C124: 567.3354437 | D124: =C124-D$5 -> 568.3427437 | E124: =C124-E$5 -> 508.3215925 | F124: 38518.98567 | G124: -75852.55844 | H124: 179895.3789 | I124: 37120.88335 | J124: 49621.50073 | K124: 4656962.112 | L124: =STDEV(E124:G124) -> 58247.52453 | M124: =STDEV(F124:H124) -> 128111.3722 | N124: =STDEV(H124:J124) -> 79069.70065 | O124: =STDEV(I124:K124) -> 2663665.293 | P124: =K124-L124 -> 4598714.587 | Q124: =K124+L124 -> 4715209.636 | R124: =M124-N124 -> 49041.67157 | S124: =M124+N124 -> 207181.0729 | T124: =R124-Q124 -> -4666167.965 | U124: =S124-P124 -> -4391533.514 | V124: =T124-Q124 -> -9381377.601
A125: 181 | B125: 10.19958852 | C125: 431.0910044 | D125: =C125-D$5 -> 432.0983044 | E125: =C125-E$5 -> 372.0771532 | F125: -14012.9891 | G125: -45200.70995 | H125: -81229.56237 | I125: -106452.6598 | J125: -184112.8588 | K125: 70095342.9 | L125: =STDEV(E125:G125) -> 23296.93466 | M125: =STDEV(F125:H125) -> 33637.33011 | N125: =STDEV(H125:J125) -> 53622.57582 | O125: =STDEV(I125:K125) -> 40553462.72 | P125: =K125-L125 -> 70072045.97 | Q125: =K125+L125 -> 70118639.84 | R125: =M125-N125 -> -19985.24571 | S125: =M125+N125 -> 87259.90592 | T125: =R125-Q125 -> -70138625.08 | U125: =S125-P125 -> -69984786.06 | V125: =T125-Q125 -> -140257264.9
A126: 145 | B126: 2.710124167 | C126: 321.2146869 | D126: =C126-D$5 -> 322.2219869 | E126: =C126-E$5 -> 262.2008357 | F126: 10416818.71 | G126: 244081.3425 | H126: 2398089.046 | I126: 420813.0997 | J126: 67356.87467 | K126: 3233637.384 | L126: =STDEV(E126:G126) -> 5944867.293 | M126: =STDEV(F126:H126) -> 5360726.942 | N126: =STDEV(H126:J126) -> 1256109.332 | O126: =STDEV(I126:K126) -> 1735042.94 | P126: =K126-L126 -> -2711229.909 | Q126: =K126+L126 -> 9178504.676 | R126: =M126-N126 -> 4104617.61 | S126: =M126+N126 -> 6616836.274 | T126: =R126-Q126 -> -5073887.066 | U126: =S126-P126 -> 9328066.183 | V126: =T126-Q126 -> -14252391.74
A127: 247 | B127: 2.7178552 | C127: 883.5341756 | D127: =C127-D$5 -> 884.5414756 | E127: =C127-E$5 -> 824.5203244 | F127: 6729389.632 | G127: 4454463.462 | H127: 9922424.781 | I127: 3824690.444 | J127: 7688803.232 | K127: 4209098.368 | L127: =STDEV(E127:G127) -> 3422566.711 | M127: =STDEV(F127:H127) -> 2746797.029 | N127: =STDEV(H127:J127) -> 3084985.059 | O127: =STDEV(I127:K127) -> 2128672.631 | P127: =K127-L127 -> 786531.6564 | Q127: =K127+L127 -> 7631665.079 | R127: =M127-N127 -> -338188.03 | S127: =M127+N127 -> 5831782.089 | T127: =R127-Q127 -> -7969853.109 | U127: =S127-P127 -> 5045250.432 | V127: =T127-Q127 -> -15601518.19
A128: 218 | B128: 8.817563759 | C128: 606.0748016 | D128: =C128-D$5 -> 607.0821016 | E128: =C128-E$5 -> 547.0609504 | F128: 3977330.893 | G128: 403425.9549 | H128: -3079.88399 | I128: 6374.924122 | J128: 2215350.02 | K128: 188327561.4 | L128: =STDEV(E128:G128) -> 2188984.451 | M128: =STDEV(F128:H128) -> 2190194.567 | N128: =STDEV(H128:J128) -> 1278090.477 | O128: =STDEV(I128:K128) -> 108095254.3 | P128: =K128-L128 -> 186138576.9 | Q128: =K128+L128 -> 190516545.8 | R128: =M128-N128 -> 912104.0899 | S128: =M128+N128 -> 3468285.044 | T128: =R128-Q128 -> -189604441.7 | U128: =S128-P128 -> -182670291.9 | V128: =T128-Q128 -> -380120987.5
A129: 153 | B129: 8.843590984 | C129: 346.0557046 | D129: =C129-D$5 -> 347.0630046 | E129: =C129-E$5 -> 287.0418534 | F129: -74680.07131 | G129: 900.4865804 | H129: 35397.6296 | I129: -78059.57429 | J129: -89903.1592 | K129: 32037063.5 | L129: =STDEV(E129:G129) -> 43460.45157 | M129: =STDEV(F129:H129) -> 56302.12229 | N129: =STDEV(H129:J129) -> 69177.42321 | O129: =STDEV(I129:K129) -> 18545094.85 | P129: =K129-L129 -> 31993603.05 | Q129: =K129+L129 -> 32080523.96 | R129: =M129-N129 -> -12875.30092 | S129: =M129+N129 -> 125479.5455 | T129: =R129-Q129 -> -32093399.26 | U129: =S129-P129 -> -31868123.51 | V129: =T129-Q129 -> -64173923.21
A130: 124 | B130: 9.863715918 | C130: 292.9230129 | D130: =C130-D$5 -> 293.9303129 | E130: =C130-E$5 -> 233.9091617 | F130: 16872.2818 | G130: 9527.040497 | H130: 106767.2322 | I130: -53744.98078 | J130: -5085.462855 | K130: 28905240.52 | L130: =STDEV(E130:G130) -> 8338.168305 | M130: =STDEV(F130:H130) -> 54145.95948 | N130: =STDEV(H130:J130) -> 82303.24477 | O130: =STDEV(I130:K130) -> 16705449 | P130: =K130-L130 -> 28896902.35 | Q130: =K130+L130 -> 28913578.69 | R130: =M130-N130 -> -28157.2853 | S130: =M130+N130 -> 136449.2042 | T130: =R130-Q130 -> -28941735.97 | U130: =S130-P130 -> -28760453.14 | V130: =T130-Q130 -> -57855314.66
A131: 41 | B131: 5.976702857 | C131: 145.0505268 | D131: =C131-D$5 -> 146.0578268 | E131: =C131-E$5 -> 86.03667556 | F131: -163511.4886 | G131: 122469.1028 | H131: 77355.30511 | I131: 14760334.61 | J131: -189554.6186 | K131: 112042.7549 | L131: =STDEV(E131:G131) -> 143484.4148 | M131: =STDEV(F131:H131) -> 153751.4042 | N131: =STDEV(H131:J131) -> 8555313.263 | O131: =STDEV(I131:K131) -> 8545589.537 | P131: =K131-L131 -> -31441.65996 | Q131: =K131+L131 -> 255527.1697 | R131: =M131-N131 -> -8401561.859 | S131: =M131+N131 -> 8709064.667 | T131: =R131-Q131 -> -8657089.028 | U131: =S131-P131 -> 8740506.327 | V131: =T131-Q131 -> -8912616.198
A132: 130 | B132: 8.919663867 | C132: 302.5329792 | D132: =C132-D$5 -> 303.5402792 | E132: =C132-E$5 -> 243.519128 | F132: 20650899.61 | G132: 19745746 | H132: 13987073.67 | I132: 14373142.62 | J132: 21554651.13 | K132: 77428648.02 | L132: =STDEV(E132:G132) -> 11670145.45 | M132: =STDEV(F132:H132) -> 3614512.098 | N132: =STDEV(H132:J132) -> 4262068.008 | O132: =STDEV(I132:K132) -> 34519256.36 | P132: =K132-L132 -> 65758502.58 | Q132: =K132+L132 -> 89098793.47 | R132: =M132-N132 -> -647555.9095 | S132: =M132+N132 -> 7876580.106 | T132: =R132-Q132 -> -89746349.38 | U132: =S132-P132 -> -57881922.47 | V132: =T132-Q132 -> -178845142.9
A133: 239 | B133: 9.06028 | C133: 797.0407235 | D133: =C133-D$5 -> 798.0480235 | E133: =C133-E$5 -> 738.0268723 | F133: -3343.923938 | G133: 194856.6341 | H133: -124003.3984 | I133: 5333546.148 | J133: -24516.24524 | K133: 16339.69314 | L133: =STDEV(E133:G133) -> 113271.177 | M133: =STDEV(F133:H133) -> 160993.7319 | N133: =STDEV(H133:J133) -> 3122594.47 | O133: =STDEV(I133:K133) -> 3081752.377 | P133: =K133-L133 -> -96931.48386 | Q133: =K133+L133 -> 129610.8701 | R133: =M133-N133 -> -2961600.738 | S133: =M133+N133 -> 3283588.202 | T133: =R133-Q133 -> -3091211.608 | U133: =S133-P133 -> 3380519.686 | V133: =T133-Q133 -> -3220822.479
A134: 36 | B134: 5.039574324 | C134: 140.9830141 | D134: =C134-D$5 -> 141.9903141 | E134: =C134-E$5 -> 81.96916288 | F134: 67130.90399 | G134: 81318.79293 | H134: -67770.33856 | I134: 16087266.55 | J134: -101514.2852 | K134: -32210.02212 | L134: =STDEV(E134:G134) -> 43390.23967 | M134: =STDEV(F134:H134) -> 82287.31227 | N134: =STDEV(H134:J134) -> 9336871.178 | O134: =STDEV(I134:K134) -> 9326654.928 | P134: =K134-L134 -> -75600.26178 | Q134: =K134+L134 -> 11180.21755 | R134: =M134-N134 -> -9254583.866 | S134: =M134+N134 -> 9419158.49 | T134: =R134-Q134 -> -9265764.083 | U134: =S134-P134 -> 9494758.752 | V134: =T134-Q134 -> -9276944.301
A135: 179 | B135: 3.003232436 | C135: 418.324898 | D135: =C135-D$5 -> 419.332198 | E135: =C135-E$5 -> 359.3110468 | F135: 25864065.49 | G135: 20313471.55 | H135: 35723885.65 | I135: -11417.92856 | J135: 31600232.19 | K135: 21824397.06 | L135: =STDEV(E135:G135) -> 13615939.92 | M135: =STDEV(F135:H135) -> 7804977.146 | N135: =STDEV(H135:J135) -> 19550417.14 | O135: =STDEV(I135:K135) -> 16184695.4 | P135: =K135-L135 -> 8208457.142 | Q135: =K135+L135 -> 35440336.98 | R135: =M135-N135 -> -11745440 | S135: =M135+N135 -> 27355394.29 | T135: =R135-Q135 -> -47185776.97 | U135: =S135-P135 -> 19146937.15 | V135: =T135-Q135 -> -82626113.95
A136: 185 | B136: 2.748935556 | C136: 439.1126319 | D136: =C136-D$5 -> 440.1199319 | E136: =C136-E$5 -> 380.0987807 | F136: -174303.1315 | G136: 9129966.498 | H136: -99879.35229 | I136: -136662.2443 | J136: -111124.7761 | K136: 25729.25881 | L136: =STDEV(E136:G136) -> 5322112.604 | M136: =STDEV(F136:H136) -> 5350467.685 | N136: =STDEV(H136:J136) -> 18848.53212 | O136: =STDEV(I136:K136) -> 87323.3354 | P136: =K136-L136 -> -5296383.345 | Q136: =K136+L136 -> 5347841.863 | R136: =M136-N136 -> 5331619.153 | S136: =M136+N136 -> 5369316.217 | T136: =R136-Q136 -> -16222.70999 | U136: =S136-P136 -> 10665699.56 | V136: =T136-Q136 -> -5364064.573
A137: 134 | B137: 9.100313571 | C137: 306.0257379 | D137: =C137-D$5 -> 307.0330379 | E137: =C137-E$5 -> 247.0118867 | F137: 75727.7791 | G137: 370254.0039 | H137: 277431.1764 | I137: 15068152.22 | J137: 203318.7918 | K137: 35661.27293 | L137: =STDEV(E137:G137) -> 195511.3882 | M137: =STDEV(F137:H137) -> 150580.0091 | N137: =STDEV(H137:J137) -> 8560901.38 | O137: =STDEV(I137:K137) -> 8631021.242 | P137: =K137-L137 -> -159850.1152 | Q137: =K137+L137 -> 231172.6611 | R137: =M137-N137 -> -8410321.371 | S137: =M137+N137 -> 8711481.389 | T137: =R137-Q137 -> -8641494.032 | U137: =S137-P137 -> 8871331.504 | V137: =T137-Q137 -> -8872666.693
A138: 136 | B138: 10.42175272 | C138: 307.079384 | D138: =C138-D$5 -> 308.086684 | E138: =C138-E$5 -> 248.0655328 | F138: 40566320.09 | G138: 43247185.06 | H138: 27393785.15 | I138: 21604058.29 | J138: 51325265.7 | K138: 160316921.5 | L138: =STDEV(E138:G138) -> 24231834.42 | M138: =STDEV(F138:H138) -> 8485605.481 | N138: =STDEV(H138:J138) -> 15756410.7 | O138: =STDEV(I138:K138) -> 73033998.52 | P138: =K138-L138 -> 136085087.1 | Q138: =K138+L138 -> 184548755.9 | R138: =M138-N138 -> -7270805.215 | S138: =M138+N138 -> 24242016.18 | T138: =R138-Q138 -> -191819561.2 | U138: =S138-P138 -> -111843070.9 | V138: =T138-Q138 -> -376368317.1
A139: 72 | B139: 9.881489524 | C139: 196.894359 | D139: =C139-D$5 -> 197.901659 | E139: =C139-E$5 -> 137.8805078 | F139: 79719.6768 | G139: 68980.65816 | H139: 49781.452 | I139: -115786.6664 | J139: 43799.65214 | K139: 8485567.134 | L139: =STDEV(E139:G139) -> 43181.62583 | M139: =STDEV(F139:H139) -> 15167.03302 | N139: =STDEV(H139:J139) -> 93911.64007 | O139: =STDEV(I139:K139) -> 4920572.345 | P139: =K139-L139 -> 8442385.508 | Q139: =K139+L139 -> 8528748.76 | R139: =M139-N139 -> -78744.60706 | S139: =M139+N139 -> 109078.6731 | T139: =R139-Q139 -> -8607493.367 | U139: =S139-P139 -> -8333306.835 | V139: =T139-Q139 -> -17136242.13
A140: 222 | B140: 10.28662973 | C140: 613.1579078 | D140: =C140-D$5 -> 614.1652078 | E140: =C140-E$5 -> 554.1440566 | F140: 24956.4519 | G140: -8590.326934 | H140: 185837.3714 | I140: -140700.4902 | J140: -296553.1415 | K140: 19562288.87 | L140: =STDEV(E140:G140) -> 17342.05076 | M140: =STDEV(F140:H140) -> 103931.2164 | N140: =STDEV(H140:J140) -> 246176.6408 | O140: =STDEV(I140:K140) -> 11420782.85 | P140: =K140-L140 -> 19544946.82 | Q140: =K140+L140 -> 19579630.92 | R140: =M140-N140 -> -142245.4244 | S140: =M140+N140 -> 350107.8572 | T140: =R140-Q140 -> -19721876.35 | U140: =S140-P140 -> -19194838.96 | V140: =T140-Q140 -> -39301507.27
A141: 172 | B141: 3.018626707 | C141: 403.3063494 | D141: =C141-D$5 -> 404.3136494 | E141: =C141-E$5 -> 344.2924982 | F141: 60620677.43 | G141: 51735466.62 | H141: 79356825.92 | I141: -81696.0133 | J141: 75759675.35 | K141: 51825263.99 | L141: =STDEV(E141:G141) -> 32737070.33 | M141: =STDEV(F141:H141) -> 14100412.06 | N141: =STDEV(H141:J141) -> 44861512.59 | O141: =STDEV(I141:K141) -> 38770912.97 | P141: =K141-L141 -> 19088193.65 | Q141: =K141+L141 -> 84562334.32 | R141: =M141-N141 -> -30761100.53 | S141: =M141+N141 -> 58961924.64 | T141: =R141-Q141 -> -115323434.8 | U141: =S141-P141 -> 39873730.99 | V141: =T141-Q141 -> -199885769.2
A142: 113 | B142: 10.24445714 | C142: 272.0881341 | D142: =C142-D$5 -> 273.0954341 | E142: =C142-E$5 -> 213.0742829 | F142: 581419.2362 | G142: 1278698.664 | H142: -160433.7575 | I142: -59.66750996 | J142: -16333.92199 | K142: 25124764.37 | L142: =STDEV(E142:G142) -> 640120.3802 | M142: =STDEV(F142:H142) -> 719681.2479 | N142: =STDEV(H142:J142) -> 88269.91061 | O142: =STDEV(I142:K142) -> 14510524.18 | P142: =K142-L142 -> 24484643.99 | Q142: =K142+L142 -> 25764884.75 | R142: =M142-N142 -> 631411.3373 | S142: =M142+N142 -> 807951.1586 | T142: =R142-Q142 -> -25133473.42 | U142: =S142-P142 -> -23676692.83 | V142: =T142-Q142 -> -50898358.17
A143: 226 | B143: 14.1760122 | C143: 633.1266219 | D143: =C143-D$5 -> 634.1339219 | E143: =C143-E$5 -> 574.1127707 | F143: 12505411.76 | G143: 13725401.16 | H143: 6089201.061 | I143: 13838374.52 | J143: 5355495.158 | K143: 2842347.567 | L143: =STDEV(E143:G143) -> 7596383.091 | M143: =STDEV(F143:H143) -> 4102188.155 | N143: =STDEV(H143:J143) -> 4700128.647 | O143: =STDEV(I143:K143) -> 5761767.114 | P143: =K143-L143 -> -4754035.525 | Q143: =K143+L143 -> 10438730.66 | R143: =M143-N143 -> -597940.4918 | S143: =M143+N143 -> 8802316.801 | T143: =R143-Q143 -> -11036671.15 | U143: =S143-P143 -> 13556352.33 | V143: =T143-Q143 -> -21475401.81
A144: 6 | B144: 4.973006 | C144: 94.98071075 | D144: =C144-D$5 -> 95.98801075 | E144: =C144-E$5 -> 35.96685955 | F144: 688066.6169 | G144: -105600.1516 | H144: -34720.2706 | I144: 9176158.951 | J144: -145742.9948 | K144: 24299.25225 | L144: =STDEV(E144:G144) -> 430977.9779 | M144: =STDEV(F144:H144) -> 439194.6762 | N144: =STDEV(H144:J144) -> 5350241.084 | O144: =STDEV(I144:K144) -> 5333593.32 | P144: =K144-L144 -> -406678.7256 | Q144: =K144+L144 -> 455277.2301 | R144: =M144-N144 -> -4911046.408 | S144: =M144+N144 -> 5789435.761 | T144: =R144-Q144 -> -5366323.638 | U144: =S144-P144 -> 6196114.486 | V144: =T144-Q144 -> -5821600.868
A145: 137 | B145: 9.924469077 | C145: 308.0788347 | D145: =C145-D$5 -> 309.0861347 | E145: =C145-E$5 -> 249.0649835 | F145: 4511658.342 | G145: 4789959.781 | H145: -17611.40039 | I145: 31333.59253 | J145: 2786561.383 | K145: 64096997.85 | L145: =STDEV(E145:G145) -> 2688605.404 | M145: =STDEV(F145:H145) -> 2698903.381 | N145: =STDEV(H145:J145) -> 1605047.289 | O145: =STDEV(I145:K145) -> 36219171.34 | P145: =K145-L145 -> 61408392.45 | Q145: =K145+L145 -> 66785603.25 | R145: =M145-N145 -> 1093856.092 | S145: =M145+N145 -> 4303950.669 | T145: =R145-Q145 -> -65691747.16 | U145: =S145-P145 -> -57104441.78 | V145: =T145-Q145 -> -132477350.4
A146: 90 | B146: 8.839522213 | C146: 227.1075697 | D146: =C146-D$5 -> 228.1148697 | E146: =C146-E$5 -> 168.0937185 | F146: 1395868969 | G146: 1514365327 | H146: 1446891568 | I146: 1530596772 | J146: 1949700570 | K146: 1360191757 | L146: =STDEV(E146:G146) -> 842198801.7 | M146: =STDEV(F146:H146) -> 59438203.65 | N146: =STDEV(H146:J146) -> 269404109.9 | O146: =STDEV(I146:K146) -> 303371747.2 | P146: =K146-L146 -> 517992955.7 | Q146: =K146+L146 -> 2202390559 | R146: =M146-N146 -> -209965906.2 | S146: =M146+N146 -> 328842313.5 | T146: =R146-Q146 -> -2412356465 | U146: =S146-P146 -> -189150642.1 | V146: =T146-Q146 -> -4614747025
A147: 246 | B147: 2.587772727 | C147: 866.5049309 | D147: =C147-D$5 -> 867.5122309 | E147: =C147-E$5 -> 807.4910797 | F147: 741632.8328 | G147: -41840.29323 | H147: 4813213.993 | I147: 505261.967 | J147: 4296691.73 | K147: 6301378.512 | L147: =STDEV(E147:G147) -> 440543.4446 | M147: =STDEV(F147:H147) -> 2606503.258 | N147: =STDEV(H147:J147) -> 2352310.409 | O147: =STDEV(I147:K147) -> 2943599.717 | P147: =K147-L147 -> 5860835.068 | Q147: =K147+L147 -> 6741921.957 | R147: =M147-N147 -> 254192.8493 | S147: =M147+N147 -> 4958813.667 | T147: =R147-Q147 -> -6487729.107 | U147: =S147-P147 -> -902021.401 | V147: =T147-Q147 -> -13229651.06
A148: 142 | B148: 14.27256111 | C148: 316.0592346 | D148: =C148-D$5 -> 317.0665346 | E148: =C148-E$5 -> 257.0453834 | F148: 2231897.878 | G148: 3041639.465 | H148: -11053.57388 | I148: 2338978.816 | J148: 51656.61873 | K148: -90894.868 | L148: =STDEV(E148:G148) -> 1575114.243 | M148: =STDEV(F148:H148) -> 1581425.91 | N148: =STDEV(H148:J148) -> 1339056.113 | O148: =STDEV(I148:K148) -> 1363601.23 | P148: =K148-L148 -> -1666009.111 | Q148: =K148+L148 -> 1484219.375 | R148: =M148-N148 -> 242369.797 | S148: =M148+N148 -> 2920482.022 | T148: =R148-Q148 -> -1241849.578 | U148: =S148-P148 -> 4586491.133 | V148: =T148-Q148 -> -2726068.953
A149: 148 | B149: 10.52804007 | C149: 328.0583153 | D149: =C149-D$5 -> 329.0656153 | E149: =C149-E$5 -> 269.0444641 | F149: 286242056 | G149: 355114042.6 | H149: 254161349.2 | I149: 231036063.7 | J149: 368165314.8 | K149: 47456888.08 | L149: =STDEV(E149:G149) -> 188318658.7 | M149: =STDEV(F149:H149) -> 51581599.77 | N149: =STDEV(H149:J149) -> 73412208.94 | O149: =STDEV(I149:K149) -> 160913869.4 | P149: =K149-L149 -> -140861770.6 | Q149: =K149+L149 -> 235775546.8 | R149: =M149-N149 -> -21830609.16 | S149: =M149+N149 -> 124993808.7 | T149: =R149-Q149 -> -257606156 | U149: =S149-P149 -> 265855579.3 | V149: =T149-Q149 -> -493381702.8
A150: 56 | B150: 6.958634846 | C150: 175.0439461 | D150: =C150-D$5 -> 176.0512461 | E150: =C150-E$5 -> 116.0300949 | F150: 13269164.11 | G150: 23890959.87 | H150: 11714074.54 | I150: 13019181.31 | J150: 14989580.02 | K150: 10626459.37 | L150: =STDEV(E150:G150) -> 11969841.28 | M150: =STDEV(F150:H150) -> 6627183.731 | N150: =STDEV(H150:J150) -> 1648974.979 | O150: =STDEV(I150:K150) -> 2184964.191 | P150: =K150-L150 -> -1343381.91 | Q150: =K150+L150 -> 22596300.65 | R150: =M150-N150 -> 4978208.752 | S150: =M150+N150 -> 8276158.709 | T150: =R150-Q150 -> -17618091.9 | U150: =S150-P150 -> 9619540.619 | V150: =T150-Q150 -> -40214392.55
A151: 102 | B151: 3.185031228 | C151: 255.0093065 | D151: =C151-D$5 -> 256.0166065 | E151: =C151-E$5 -> 195.9954553 | F151: 3945244.844 | G151: 42738.43119 | H151: 7544396.871 | I151: -49640.01073 | J151: 11047141.46 | K151: 10857794.97 | L151: =STDEV(E151:G151) -> 2265493.934 | M151: =STDEV(F151:H151) -> 3751851.342 | N151: =STDEV(H151:J151) -> 5672700.338 | O151: =STDEV(I151:K151) -> 6352775.626 | P151: =K151-L151 -> 8592301.036 | Q151: =K151+L151 -> 13123288.9 | R151: =M151-N151 -> -1920848.996 | S151: =M151+N151 -> 9424551.68 | T151: =R151-Q151 -> -15044137.9 | U151: =S151-P151 -> 832250.6442 | V151: =T151-Q151 -> -28167426.8
A152: 46 | B152: 5.15121 | C152: 154.9654147 | D152: =C152-D$5 -> 155.9727147 | E152: =C152-E$5 -> 95.95156348 | F152: 766455.2159 | G152: 133884.4306 | H152: 172826.3572 | I152: 6736999.078 | J152: 25182.69754 | K152: 60508.47828 | L152: =STDEV(E152:G152) -> 409339.2394 | M152: =STDEV(F152:H152) -> 354508.4611 | N152: =STDEV(H152:J152) -> 3833158.865 | O152: =STDEV(I152:K152) -> 3864911.68 | P152: =K152-L152 -> -348830.7611 | Q152: =K152+L152 -> 469847.7177 | R152: =M152-N152 -> -3478650.404 | S152: =M152+N152 -> 4187667.326 | T152: =R152-Q152 -> -3948498.121 | U152: =S152-P152 -> 4536498.087 | V152: =T152-Q152 -> -4418345.839
A153: 82 | B153: 14.66340453 | C153: 217.0028382 | D153: =C153-D$5 -> 218.0101382 | E153: =C153-E$5 -> 157.988987 | F153: 31919647.41 | G153: 13518000.23 | H153: 45658803.59 | I153: 57976.98944 | J153: 91047977.3 | K153: 71707214.96 | L153: =STDEV(E153:G153) -> 16021893.78 | M153: =STDEV(F153:H153) -> 16126666.69 | N153: =STDEV(H153:J153) -> 45495041.18 | O153: =STDEV(I153:K153) -> 47935474.94 | P153: =K153-L153 -> 55685321.17 | Q153: =K153+L153 -> 87729108.74 | R153: =M153-N153 -> -29368374.49 | S153: =M153+N153 -> 61621707.88 | T153: =R153-Q153 -> -117097483.2 | U153: =S153-P153 -> 5936386.704 | V153: =T153-Q153 -> -204826592
A154: 19 | B154: 14.73041972 | C154: 118.0507678 | D154: =C154-D$5 -> 119.0580678 | E154: =C154-E$5 -> 59.03691662 | F154: 10798410.09 | G154: 16399395.61 | H154: 1970448.544 | I154: 6550096.935 | J154: 10669184.07 | K154: 48664.1605 | L154: =STDEV(E154:G154) -> 8335802.944 | M154: =STDEV(F154:H154) -> 7274366.608 | N154: =STDEV(H154:J154) -> 4351399.355 | O154: =STDEV(I154:K154) -> 5354607.833 | P154: =K154-L154 -> -8287138.784 | Q154: =K154+L154 -> 8384467.105 | R154: =M154-N154 -> 2922967.253 | S154: =M154+N154 -> 11625765.96 | T154: =R154-Q154 -> -5461499.851 | U154: =S154-P154 -> 19912904.75 | V154: =T154-Q154 -> -13845966.96
A155: 54 | B155: 7.104131053 | C155: 174.0406176 | D155: =C155-D$5 -> 175.0479176 | E155: =C155-E$5 -> 115.0267664 | F155: 397784030.5 | G155: 681982589.5 | H155: 310436695.6 | I155: 376101698.1 | J155: 449780225.9 | K155: 279197387.4 | L155: =STDEV(E155:G155) -> 342564096.2 | M155: =STDEV(F155:H155) -> 194269884.9 | N155: =STDEV(H155:J155) -> 69710158.81 | O155: =STDEV(I155:K155) -> 85554539.82 | P155: =K155-L155 -> -63366708.76 | Q155: =K155+L155 -> 621761483.5 | R155: =M155-N155 -> 124559726.1 | S155: =M155+N155 -> 263980043.7 | T155: =R155-Q155 -> -497201757.5 | U155: =S155-P155 -> 327346752.5 | V155: =T155-Q155 -> -1118963241
A156: 85 | B156: 5.432118182 | C156: 219.1066007 | D156: =C156-D$5 -> 220.1139007 | E156: =C156-E$5 -> 160.0927495 | F156: 122820.8537 | G156: 3853917.715 | H156: -72390.85288 | I156: 281772.256 | J156: 41752.68656 | K156: 456282.6666 | L156: =STDEV(E156:G156) -> 2190417.664 | M156: =STDEV(F156:H156) -> 2212656.411 | N156: =STDEV(H156:J156) -> 180771.333 | O156: =STDEV(I156:K156) -> 208125.916 | P156: =K156-L156 -> -1734134.997 | Q156: =K156+L156 -> 2646700.331 | R156: =M156-N156 -> 2031885.078 | S156: =M156+N156 -> 2393427.744 | T156: =R156-Q156 -> -614815.2525 | U156: =S156-P156 -> 4127562.741 | V156: =T156-Q156 -> -3261515.583
A157: 20 | B157: 16.03244887 | C157: 119.0348675 | D157: =C157-D$5 -> 120.0421675 | E157: =C157-E$5 -> 60.02101633 | F157: 245427529.8 | G157: 249401734.1 | H157: 351805388.9 | I157: 281104465.9 | J157: 429960475.2 | K157: 273409234.4 | L157: =STDEV(E157:G157) -> 142858690.2 | M157: =STDEV(F157:H157) -> 60302780.08 | N157: =STDEV(H157:J157) -> 74459104.57 | O157: =STDEV(I157:K157) -> 88247397.57 | P157: =K157-L157 -> 130550544.2 | Q157: =K157+L157 -> 416267924.7 | R157: =M157-N157 -> -14156324.5 | S157: =M157+N157 -> 134761884.6 | T157: =R157-Q157 -> -430424249.2 | U157: =S157-P157 -> 4211340.468 | V157: =T157-Q157 -> -846692173.8
A158: 178 | B158: 3.306025455 | C158: 418.1580561 | D158: =C158-D$5 -> 419.1653561 | E158: =C158-E$5 -> 359.1442049 | F158: -86633.5374 | G158: 205033.3506 | H158: 611961 | I158: -52812.96772 | J158: 54209.8671 | K158: 3739625.498 | L158: =STDEV(E158:G158) -> 149738.0106 | M158: =STDEV(F158:H158) -> 350878.4246 | N158: =STDEV(H158:J158) -> 356946.4576 | O158: =STDEV(I158:K158) -> 2159333.685 | P158: =K158-L158 -> 3589887.487 | Q158: =K158+L158 -> 3889363.508 | R158: =M158-N158 -> -6068.03301 | S158: =M158+N158 -> 707824.8822 | T158: =R158-Q158 -> -3895431.541 | U158: =S158-P158 -> -2882062.605 | V158: =T158-Q158 -> -7784795.049
A159: 101 | B159: 5.401135714 | C159: 254.0799582 | D159: =C159-D$5 -> 255.0872582 | E159: =C159-E$5 -> 195.066107 | F159: 860955.7147 | G159: 5733516.431 | H159: -29389.47153 | I159: 440606.7188 | J159: -189354.7557 | K159: 1917322.72 | L159: =STDEV(E159:G159) -> 3091755.992 | M159: =STDEV(F159:H159) -> 3102301.482 | N159: =STDEV(H159:J159) -> 327448.9198 | O159: =STDEV(I159:K159) -> 1081328.781 | P159: =K159-L159 -> -1174433.273 | Q159: =K159+L159 -> 5009078.712 | R159: =M159-N159 -> 2774852.562 | S159: =M159+N159 -> 3429750.402 | T159: =R159-Q159 -> -2234226.149 | U159: =S159-P159 -> 4604183.675 | V159: =T159-Q159 -> -7243304.861
A160: 14 | B160: 6.967760714 | C160: 114.0195253 | D160: =C160-D$5 -> 115.0268253 | E160: =C160-E$5 -> 55.00567406 | F160: 7792934.442 | G160: 15818477.12 | H160: 6443033.104 | I160: 7573428.048 | J160: 8765801.823 | K160: 6804156.304 | L160: =STDEV(E160:G160) -> 7909496.227 | M160: =STDEV(F160:H160) -> 5068374.484 | N160: =STDEV(H160:J160) -> 1161522.168 | O160: =STDEV(I160:K160) -> 988398.3155 | P160: =K160-L160 -> -1105339.923 | Q160: =K160+L160 -> 14713652.53 | R160: =M160-N160 -> 3906852.316 | S160: =M160+N160 -> 6229896.651 | T160: =R160-Q160 -> -10806800.22 | U160: =S160-P160 -> 7335236.575 | V160: =T160-Q160 -> -25520452.75
A161: 49 | B161: 5.024638438 | C161: 159.0662413 | D161: =C161-D$5 -> 160.0735413 | E161: =C161-E$5 -> 100.0523901 | F161: -29690.48624 | G161: 38999039.86 | H161: 90809.09942 | I161: 8667900.702 | J161: 80957.16687 | K161: -238768.7111 | L161: =STDEV(E161:G161) -> 22524653.11 | M161: =STDEV(F161:H161) -> 22498543.41 | N161: =STDEV(H161:J161) -> 4954832.602 | O161: =STDEV(I161:K161) -> 5052500.766 | P161: =K161-L161 -> -22763421.82 | Q161: =K161+L161 -> 22285884.4 | R161: =M161-N161 -> 17543710.81 | S161: =M161+N161 -> 27453376.01 | T161: =R161-Q161 -> -4742173.59 | U161: =S161-P161 -> 50216797.83 | V161: =T161-Q161 -> -27028057.99
A162: 3 | B162: 6.721901802 | C162: 89.02433423 | D162: =C162-D$5 -> 90.03163423 | E162: =C162-E$5 -> 30.01048303 | F162: 586747196 | G162: 600597584.2 | H162: 313167642.7 | I162: 632394481 | J162: 764614389.2 | K162: 400607999 | L162: =STDEV(E162:G162) -> 342826849.4 | M162: =STDEV(F162:H162) -> 162097489.5 | N162: =STDEV(H162:J162) -> 232089079 | O162: =STDEV(I162:K162) -> 184258753.5 | P162: =K162-L162 -> 57781149.57 | Q162: =K162+L162 -> 743434848.5 | R162: =M162-N162 -> -69991589.47 | S162: =M162+N162 -> 394186568.4 | T162: =R162-Q162 -> -813426437.9 | U162: =S162-P162 -> 336405418.9 | V162: =T162-Q162 -> -1556861286
A163: 26 | B163: 3.422378333 | C163: 129.0919304 | D163: =C163-D$5 -> 130.0992304 | E163: =C163-E$5 -> 70.07807919 | F163: 3726961.774 | G163: -60267.73572 | H163: -179648.5541 | I163: 732787.454 | J163: -74909.5199 | K163: -131117.2536 | L163: =STDEV(E163:G163) -> 2169349.739 | M163: =STDEV(F163:H163) -> 2221822.203 | N163: =STDEV(H163:J163) -> 499313.5514 | O163: =STDEV(I163:K163) -> 483367.537 | P163: =K163-L163 -> -2300466.992 | Q163: =K163+L163 -> 2038232.485 | R163: =M163-N163 -> 1722508.651 | S163: =M163+N163 -> 2721135.754 | T163: =R163-Q163 -> -315723.8338 | U163: =S163-P163 -> 5021602.746 | V163: =T163-Q163 -> -2353956.319
A164: 17 | B164: 3.598778148 | C164: 115.0763168 | D164: =C164-D$5 -> 116.0836168 | E164: =C164-E$5 -> 56.06246563 | F164: 9973295.565 | G164: 255687.8061 | H164: 135168.435 | I164: 1700375.636 | J164: 1094627.521 | K164: 236854.7991 | L164: =STDEV(E164:G164) -> 5685694.832 | M164: =STDEV(F164:H164) -> 5645576.01 | N164: =STDEV(H164:J164) -> 789236.5615 | O164: =STDEV(I164:K164) -> 735368.1689 | P164: =K164-L164 -> -5448840.033 | Q164: =K164+L164 -> 5922549.631 | R164: =M164-N164 -> 4856339.448 | S164: =M164+N164 -> 6434812.571 | T164: =R164-Q164 -> -1066210.182 | U164: =S164-P164 -> 11883652.6 | V164: =T164-Q164 -> -6988759.813
A165: 177 | B165: 3.046586026 | C165: 417.3220021 | D165: =C165-D$5 -> 418.3293021 | E165: =C165-E$5 -> 358.3081509 | F165: 155724052.8 | G165: 133816715.3 | H165: 198861276.8 | I165: 109652.2607 | J165: 205362396.5 | K165: 148830309.6 | L165: =STDEV(E165:G165) -> 84297704.47 | M165: =STDEV(F165:H165) -> 33094678.59 | N165: =STDEV(H165:J165) -> 116671306 | O165: =STDEV(I165:K165) -> 106020752.5 | P165: =K165-L165 -> 64532605.13 | Q165: =K165+L165 -> 233128014.1 | R165: =M165-N165 -> -83576627.38 | S165: =M165+N165 -> 149765984.6 | T165: =R165-Q165 -> -316704641.4 | U165: =S165-P165 -> 85233379.42 | V165: =T165-Q165 -> -549832655.5
A166: 202 | B166: 8.572835476 | C166: 508.9845995 | D166: =C166-D$5 -> 509.9918995 | E166: =C166-E$5 -> 449.9707483 | F166: -135420.6115 | G166: 2568656.941 | H166: 3983834.942 | I166: 4179947.427 | J166: 6542144.553 | K166: 26475.32555 | L166: =STDEV(E166:G166) -> 1523492.877 | M166: =STDEV(F166:H166) -> 2092965.619 | N166: =STDEV(H166:J166) -> 1423808.475 | O166: =STDEV(I166:K166) -> 3298617.166 | P166: =K166-L166 -> -1497017.551 | Q166: =K166+L166 -> 1549968.202 | R166: =M166-N166 -> 669157.1443 | S166: =M166+N166 -> 3516774.094 | T166: =R166-Q166 -> -880811.0578 | U166: =S166-P166 -> 5013791.645 | V166: =T166-Q166 -> -2430779.26
A167: 203 | B167: 4.809163232 | C167: 517.1788766 | D167: =C167-D$5 -> 518.1861766 | E167: =C167-E$5 -> 458.1650254 | F167: 9842364.063 | G167: 17008052.54 | H167: 13404070.31 | I167: 10607828.75 | J167: 14238444.04 | K167: 10807002.09 | L167: =STDEV(E167:G167) -> 8538817.928 | M167: =STDEV(F167:H167) -> 3582865.025 | N167: =STDEV(H167:J167) -> 1901600.811 | O167: =STDEV(I167:K167) -> 2041071.262 | P167: =K167-L167 -> 2268184.159 | Q167: =K167+L167 -> 19345820.02 | R167: =M167-N167 -> 1681264.215 | S167: =M167+N167 -> 5484465.836 | T167: =R167-Q167 -> -17664555.8 | U167: =S167-P167 -> 3216281.678 | V167: =T167-Q167 -> -37010375.82
A168: 53 | B168: 17.09829719 | C168: 172.9577682 | D168: =C168-D$5 -> 173.9650682 | E168: =C168-E$5 -> 113.943917 | F168: 63538427.99 | G168: 62017668.78 | H168: -5049.024546 | I168: 12343.84884 | J168: 36922456.57 | K168: 252966815 | L168: =STDEV(E168:G168) -> 36252832.46 | M168: =STDEV(F168:H168) -> 36255812.64 | N168: =STDEV(H168:J168) -> 21315086.18 | O168: =STDEV(I168:K168) -> 136640334.3 | P168: =K168-L168 -> 216713982.6 | Q168: =K168+L168 -> 289219647.5 | R168: =M168-N168 -> 14940726.46 | S168: =M168+N168 -> 57570898.83 | T168: =R168-Q168 -> -274278921 | U168: =S168-P168 -> -159143083.7 | V168: =T168-Q168 -> -563498568.5
A169: 39 | B169: 3.30598176 | C169: 143.1076174 | D169: =C169-D$5 -> 144.1149174 | E169: =C169-E$5 -> 84.09376622 | F169: 49272666.13 | G169: 22108030.59 | H169: 27808184.76 | I169: 37804182.9 | J169: 49630097.58 | K169: 30678405.67 | L169: =STDEV(E169:G169) -> 24679499.13 | M169: =STDEV(F169:H169) -> 14324414.72 | N169: =STDEV(H169:J169) -> 10923736.51 | O169: =STDEV(I169:K169) -> 9572491.714 | P169: =K169-L169 -> 5998906.543 | Q169: =K169+L169 -> 55357904.8 | R169: =M169-N169 -> 3400678.209 | S169: =M169+N169 -> 25248151.23 | T169: =R169-Q169 -> -51957226.59 | U169: =S169-P169 -> 19249244.69 | V169: =T169-Q169 -> -107315131.4
A170: 70 | B170: 9.858395518 | C170: 194.9057339 | D170: =C170-D$5 -> 195.9130339 | E170: =C170-E$5 -> 135.8918827 | F170: 132066.4568 | G170: 10942086.14 | H170: 12841.8533 | I170: -32070.41478 | J170: -11571.26268 | K170: 33482527.06 | L170: =STDEV(E170:G170) -> 6279599.33 | M170: =STDEV(F170:H170) -> 6275868.077 | N170: =STDEV(H170:J170) -> 22484.54022 | O170: =STDEV(I170:K170) -> 19343747 | P170: =K170-L170 -> 27202927.73 | Q170: =K170+L170 -> 39762126.39 | R170: =M170-N170 -> 6253383.537 | S170: =M170+N170 -> 6298352.618 | T170: =R170-Q170 -> -33508742.86 | U170: =S170-P170 -> -20904575.12 | V170: =T170-Q170 -> -73270869.25
A171: 77 | B171: 4.46032274 | C171: 210.9313752 | D171: =C171-D$5 -> 211.9386752 | E171: =C171-E$5 -> 151.917524 | F171: 6770721.13 | G171: 4623666.179 | H171: 4601724.239 | I171: 7369077.071 | J171: 2767672.423 | K171: 2676701.034 | L171: =STDEV(E171:G171) -> 3459945.485 | M171: =STDEV(F171:H171) -> 1245985.147 | N171: =STDEV(H171:J171) -> 2316423.698 | O171: =STDEV(I171:K171) -> 2683268.945 | P171: =K171-L171 -> -783244.4506 | Q171: =K171+L171 -> 6136646.52 | R171: =M171-N171 -> -1070438.551 | S171: =M171+N171 -> 3562408.845 | T171: =R171-Q171 -> -7207085.07 | U171: =S171-P171 -> 4345653.296 | V171: =T171-Q171 -> -13343731.59
A172: 27 | B172: 7.358030697 | C172: 130.0507617 | D172: =C172-D$5 -> 131.0580617 | E172: =C172-E$5 -> 71.03691046 | F172: 24994108.03 | G172: 44396881.19 | H172: 19199856.14 | I172: 22958791.02 | J172: 27494161.56 | K172: 23560272.1 | L172: =STDEV(E172:G172) -> 22257007.3 | M172: =STDEV(F172:H172) -> 13196786.43 | N172: =STDEV(H172:J172) -> 4153205.181 | O172: =STDEV(I172:K172) -> 2463292.231 | P172: =K172-L172 -> 1303264.801 | Q172: =K172+L172 -> 45817279.4 | R172: =M172-N172 -> 9043581.251 | S172: =M172+N172 -> 17349991.61 | T172: =R172-Q172 -> -36773698.15 | U172: =S172-P172 -> 16046726.81 | V172: =T172-Q172 -> -82590977.55
A173: 220 | B173: 14.09913946 | C173: 611.1451789 | D173: =C173-D$5 -> 612.1524789 | E173: =C173-E$5 -> 552.1313277 | F173: 49304590.38 | G173: 47097586.03 | H173: 25476784.79 | I173: 39697714.15 | J173: 32094312.48 | K173: 78959385.71 | L173: =STDEV(E173:G173) -> 27850462.76 | M173: =STDEV(F173:H173) -> 13166208.22 | N173: =STDEV(H173:J173) -> 7116157.922 | O173: =STDEV(I173:K173) -> 25151625.73 | P173: =K173-L173 -> 51108922.94 | Q173: =K173+L173 -> 106809848.5 | R173: =M173-N173 -> 6050050.299 | S173: =M173+N173 -> 20282366.14 | T173: =R173-Q173 -> -100759798.2 | U173: =S173-P173 -> -30826556.8 | V173: =T173-Q173 -> -207569646.6
A174: 171 | B174: 3.30033129 | C174: 403.139358 | D174: =C174-D$5 -> 404.146658 | E174: =C174-E$5 -> 344.1255068 | F174: 1843619.017 | G174: 38881.23042 | H174: 11581797.53 | I174: 189361.7505 | J174: 7597402.744 | K174: 15388894.83 | L174: =STDEV(E174:G174) -> 1053266.816 | M174: =STDEV(F174:H174) -> 6209241.984 | N174: =STDEV(H174:J174) -> 5781321.451 | O174: =STDEV(I174:K174) -> 7600572.635 | P174: =K174-L174 -> 14335628.02 | Q174: =K174+L174 -> 16442161.65 | R174: =M174-N174 -> 427920.5335 | S174: =M174+N174 -> 11990563.43 | T174: =R174-Q174 -> -16014241.11 | U174: =S174-P174 -> -2345064.582 | V174: =T174-Q174 -> -32456402.76
A175: 143 | B175: 14.62920467 | C175: 316.1165971 | D175: =C175-D$5 -> 317.1238971 | E175: =C175-E$5 -> 257.1027459 | F175: 46157312.22 | G175: 57799978.96 | H175: 36686160.02 | I175: 42015804.16 | J175: 56125156.69 | K175: 55350966.63 | L175: =STDEV(E175:G175) -> 30569138.23 | M175: =STDEV(F175:H175) -> 10575504.42 | N175: =STDEV(H175:J175) -> 10044513.65 | O175: =STDEV(I175:K175) -> 7932000.139 | P175: =K175-L175 -> 24781828.4 | Q175: =K175+L175 -> 85920104.86 | R175: =M175-N175 -> 530990.7723 | S175: =M175+N175 -> 20620018.07 | T175: =R175-Q175 -> -85389114.09 | U175: =S175-P175 -> -4161810.329 | V175: =T175-Q175 -> -171309219
A176: 224 | B176: 8.8689075 | C176: 628.0555445 | D176: =C176-D$5 -> 629.0628445 | E176: =C176-E$5 -> 569.0416933 | F176: 9126315.808 | G176: 5660967.204 | H176: 2054178.236 | I176: -11462.37954 | J176: 8474184.144 | K176: 18134449.14 | L176: =STDEV(E176:G176) -> 4606661.885 | M176: =STDEV(F176:H176) -> 3536304.508 | N176: =STDEV(H176:J176) -> 4425109.112 | O176: =STDEV(I176:K176) -> 9079289.82 | P176: =K176-L176 -> 13527787.26 | Q176: =K176+L176 -> 22741111.03 | R176: =M176-N176 -> -888804.6045 | S176: =M176+N176 -> 7961413.62 | T176: =R176-Q176 -> -23629915.63 | U176: =S176-P176 -> -5566373.638 | V176: =T176-Q176 -> -46371026.66
A177: 107 | B177: 2.781130483 | C177: 265.1476247 | D177: =C177-D$5 -> 266.1549247 | E177: =C177-E$5 -> 206.1337735 | F177: 306026994.7 | G177: 511106196.8 | H177: 517664564.5 | I177: 525214115.8 | J177: 495342921 | K177: 441685551 | L177: =STDEV(E177:G177) -> 257209126.4 | M177: =STDEV(F177:H177) -> 120340456.2 | N177: =STDEV(H177:J177) -> 15532437.96 | O177: =STDEV(I177:K177) -> 42324978.37 | P177: =K177-L177 -> 184476424.6 | Q177: =K177+L177 -> 698894677.4 | R177: =M177-N177 -> 104808018.2 | S177: =M177+N177 -> 135872894.1 | T177: =R177-Q177 -> -594086659.2 | U177: =S177-P177 -> -48603530.51 | V177: =T177-Q177 -> -1292981337
A178: 129 | B178: 14.61029919 | C178: 302.1007941 | D178: =C178-D$5 -> 303.1080941 | E178: =C178-E$5 -> 243.0869429 | F178: 13738279.93 | G178: 17115828.2 | H178: 10687161.96 | I178: 10372937.89 | J178: 17210943.82 | K178: 19368411.74 | L178: =STDEV(E178:G178) -> 9065362.121 | M178: =STDEV(F178:H178) -> 3215714.094 | N178: =STDEV(H178:J178) -> 3860414.303 | O178: =STDEV(I178:K178) -> 4696302.496 | P178: =K178-L178 -> 10303049.62 | Q178: =K178+L178 -> 28433773.86 | R178: =M178-N178 -> -644700.2097 | S178: =M178+N178 -> 7076128.397 | T178: =R178-Q178 -> -29078474.07 | U178: =S178-P178 -> -3226921.222 | V178: =T178-Q178 -> -57512247.93
A179: 214 | B179: 10.0840052 | C179: 585.2128196 | D179: =C179-D$5 -> 586.2201196 | E179: =C179-E$5 -> 526.1989684 | F179: 164007855.3 | G179: 178628327.9 | H179: 195623005.3 | I179: 178749768.1 | J179: 237218893.4 | K179: 76744.48943 | L179: =STDEV(E179:G179) -> 99180016.25 | M179: =STDEV(F179:H179) -> 15822426.01 | N179: =STDEV(H179:J179) -> 30093085.14 | O179: =STDEV(I179:K179) -> 123544247.6 | P179: =K179-L179 -> -99103271.76 | Q179: =K179+L179 -> 99256760.74 | R179: =M179-N179 -> -14270659.13 | S179: =M179+N179 -> 45915511.15 | T179: =R179-Q179 -> -113527419.9 | U179: =S179-P179 -> 145018782.9 | V179: =T179-Q179 -> -212784180.6
A180: 189 | B180: 10.48605857 | C180: 448.0166639 | D180: =C180-D$5 -> 449.0239639 | E180: =C180-E$5 -> 389.0028127 | F180: 27193424.58 | G180: 26695694.72 | H180: 14537540.6 | I180: 14037706.36 | J180: 35950101.89 | K180: 77272.85663 | L180: =STDEV(E180:G180) -> 15558214.69 | M180: =STDEV(F180:H180) -> 7167517.538 | N180: =STDEV(H180:J180) -> 12509334.47 | O180: =STDEV(I180:K180) -> 18082711.1 | P180: =K180-L180 -> -15480941.83 | Q180: =K180+L180 -> 15635487.55 | R180: =M180-N180 -> -5341816.928 | S180: =M180+N180 -> 19676852 | T180: =R180-Q180 -> -20977304.48 | U180: =S180-P180 -> 35157793.84 | V180: =T180-Q180 -> -36612792.02
A181: 176 | B181: 3.317714367 | C181: 417.1553822 | D181: =C181-D$5 -> 418.1626822 | E181: =C181-E$5 -> 358.141531 | F181: 15860040.4 | G181: 9805546.934 | H181: 38964106.43 | I181: 1387294.184 | J181: 37886029.09 | K181: 53785016.9 | L181: =STDEV(E181:G181) -> 8003417.394 | M181: =STDEV(F181:H181) -> 15387637.63 | N181: =STDEV(H181:J181) -> 21390561.47 | O181: =STDEV(I181:K181) -> 26865271.29 | P181: =K181-L181 -> 45781599.51 | Q181: =K181+L181 -> 61788434.29 | R181: =M181-N181 -> -6002923.842 | S181: =M181+N181 -> 36778199.09 | T181: =R181-Q181 -> -67791358.14 | U181: =S181-P181 -> -9003400.413 | V181: =T181-Q181 -> -129579792.4
A182: 75 | B182: 5.069681076 | C182: 208.9345629 | D182: =C182-D$5 -> 209.9418629 | E182: =C182-E$5 -> 149.9207117 | F182: 84845700.88 | G182: 176808421.4 | H182: 76500516.72 | I182: 95700440.25 | J182: 109570951.1 | K182: 78686674.21 | L182: =STDEV(E182:G182) -> 88428006.85 | M182: =STDEV(F182:H182) -> 55660368.64 | N182: =STDEV(H182:J182) -> 16606634.06 | O182: =STDEV(I182:K182) -> 15468774.29 | P182: =K182-L182 -> -9741332.634 | Q182: =K182+L182 -> 167114681.1 | R182: =M182-N182 -> 39053734.58 | S182: =M182+N182 -> 72267002.7 | T182: =R182-Q182 -> -128060946.5 | U182: =S182-P182 -> 82008335.33 | V182: =T182-Q182 -> -295175627.5
A183: 221 | B183: 14.03217872 | C183: 612.1479765 | D183: =C183-D$5 -> 613.1552765 | E183: =C183-E$5 -> 553.1341253 | F183: 5078601.217 | G183: 5052598.077 | H183: 771810.3752 | I183: 2960742.309 | J183: 1225257.752 | K183: 12985512.89 | L183: =STDEV(E183:G183) -> 2924334.87 | M183: =STDEV(F183:H183) -> 2479054.486 | N183: =STDEV(H183:J183) -> 1155345.849 | O183: =STDEV(I183:K183) -> 6348379.49 | P183: =K183-L183 -> 10061178.02 | Q183: =K183+L183 -> 15909847.76 | R183: =M183-N183 -> 1323708.637 | S183: =M183+N183 -> 3634400.335 | T183: =R183-Q183 -> -14586139.13 | U183: =S183-P183 -> -6426777.687 | V183: =T183-Q183 -> -30495986.89
A184: 154 | B184: 9.190807276 | C184: 347.1280598 | D184: =C184-D$5 -> 348.1353598 | E184: =C184-E$5 -> 288.1142086 | F184: 60423839.07 | G184: 71185565.79 | H184: 66551049.45 | I184: 78067945.69 | J184: 78164097.28 | K184: -117903.2669 | L184: =STDEV(E184:G184) -> 38371352.22 | M184: =STDEV(F184:H184) -> 5398089.334 | N184: =STDEV(H184:J184) -> 6677212.795 | O184: =STDEV(I184:K184) -> 45168403.1 | P184: =K184-L184 -> -38489255.49 | Q184: =K184+L184 -> 38253448.96 | R184: =M184-N184 -> -1279123.46 | S184: =M184+N184 -> 12075302.13 | T184: =R184-Q184 -> -39532572.42 | U184: =S184-P184 -> 50564557.62 | V184: =T184-Q184 -> -77786021.37
A185: 187 | B185: 3.203059759 | C185: 445.1865168 | D185: =C185-D$5 -> 446.1938168 | E185: =C185-E$5 -> 386.1726656 | F185: 3192099.447 | G185: 317322.9234 | H185: 17818400.54 | I185: -66865.06171 | J185: 9258715.994 | K185: 25567486.42 | L185: =STDEV(E185:G185) -> 1758399.963 | M185: =STDEV(F185:H185) -> 9385101.152 | N185: =STDEV(H185:J185) -> 8945365.536 | O185: =STDEV(I185:K185) -> 12974734.62 | P185: =K185-L185 -> 23809086.46 | Q185: =K185+L185 -> 27325886.38 | R185: =M185-N185 -> 439735.6157 | S185: =M185+N185 -> 18330466.69 | T185: =R185-Q185 -> -26886150.77 | U185: =S185-P185 -> -5478619.768 | V185: =T185-Q185 -> -54212037.15
A186: 10 | B186: 14.5649425 | C186: 104.0352047 | D186: =C186-D$5 -> 105.0425047 | E186: =C186-E$5 -> 45.02135353 | F186: 27327464.78 | G186: 35667236.27 | H186: 8173279.275 | I186: 18488296.13 | J186: 25453219.01 | K186: 14061894.91 | L186: =STDEV(E186:G186) -> 18656938.79 | M186: =STDEV(F186:H186) -> 14096998.98 | N186: =STDEV(H186:J186) -> 8693925.474 | O186: =STDEV(I186:K186) -> 5742610.373 | P186: =K186-L186 -> -4595043.885 | Q186: =K186+L186 -> 32718833.7 | R186: =M186-N186 -> 5403073.51 | S186: =M186+N186 -> 22790924.46 | T186: =R186-Q186 -> -27315760.19 | U186: =S186-P186 -> 27385968.34 | V186: =T186-Q186 -> -60034593.89
A187: 42 | B187: 10.17270288 | C187: 146.0456923 | D187: =C187-D$5 -> 147.0529923 | E187: =C187-E$5 -> 87.03184105 | F187: 217011937.8 | G187: 259754177.1 | H187: 137403150.8 | I187: 140368203.8 | J187: 219222902.6 | K187: 362987484.5 | L187: =STDEV(E187:G187) -> 139279832 | M187: =STDEV(F187:H187) -> 62094325.57 | N187: =STDEV(H187:J187) -> 46406405.54 | O187: =STDEV(I187:K187) -> 112875789.2 | P187: =K187-L187 -> 223707652.5 | Q187: =K187+L187 -> 502267316.6 | R187: =M187-N187 -> 15687920.02 | S187: =M187+N187 -> 108500731.1 | T187: =R187-Q187 -> -486579396.5 | U187: =S187-P187 -> -115206921.3 | V187: =T187-Q187 -> -988846713.1
A188: 24 | B188: 6.466574352 | C188: 128.0352042 | D188: =C188-D$5 -> 129.0425042 | E188: =C188-E$5 -> 69.02135301 | F188: 131485019.9 | G188: 335210296.2 | H188: 61062793.53 | I188: 167636718.3 | J188: 135787694.3 | K188: 97035467.93 | L188: =STDEV(E188:G188) -> 168897492.1 | M188: =STDEV(F188:H188) -> 142372827.1 | N188: =STDEV(H188:J188) -> 54705533.81 | O188: =STDEV(I188:K188) -> 35356828.52 | P188: =K188-L188 -> -71862024.12 | Q188: =K188+L188 -> 265932960 | R188: =M188-N188 -> 87667293.3 | S188: =M188+N188 -> 197078360.9 | T188: =R188-Q188 -> -178265666.7 | U188: =S188-P188 -> 268940385 | V188: =T188-Q188 -> -444198626.7
A189: 13 | B189: 10.9631016 | C189: 112.9854524 | D189: =C189-D$5 -> 113.9927524 | E189: =C189-E$5 -> 53.97160118 | F189: 723877956.4 | G189: 944460589.3 | H189: 883162123.1 | I189: 950697421.2 | J189: 1084096837 | K189: -32474.14634 | L189: =STDEV(E189:G189) -> 494075166.1 | M189: =STDEV(F189:H189) -> 113860767.1 | N189: =STDEV(H189:J189) -> 102250655.8 | O189: =STDEV(I189:K189) -> 591187942.6 | P189: =K189-L189 -> -494107640.2 | Q189: =K189+L189 -> 494042691.9 | R189: =M189-N189 -> 11610111.31 | S189: =M189+N189 -> 216111422.9 | T189: =R189-Q189 -> -482432580.6 | U189: =S189-P189 -> 710219063.1 | V189: =T189-Q189 -> -976475272.5
A190: 244 | B190: 10.2662417 | C190: 839.3072197 | D190: =C190-D$5 -> 840.3145197 | E190: =C190-E$5 -> 780.2933685 | F190: 49216344.99 | G190: 68950036.36 | H190: 61942675.66 | I190: 86771038.89 | J190: 55247347.4 | K190: 10896.65897 | L190: =STDEV(E190:G190) -> 35509600.34 | M190: =STDEV(F190:H190) -> 10004008.96 | N190: =STDEV(H190:J190) -> 16608322.05 | O190: =STDEV(I190:K190) -> 43916835.98 | P190: =K190-L190 -> -35498703.68 | Q190: =K190+L190 -> 35520497 | R190: =M190-N190 -> -6604313.09 | S190: =M190+N190 -> 26612331 | T190: =R190-Q190 -> -42124810.09 | U190: =S190-P190 -> 62111034.68 | V190: =T190-Q190 -> -77645307.08
A191: 215 | B191: 8.718429155 | C191: 590.9879223 | D191: =C191-D$5 -> 591.9952223 | E191: =C191-E$5 -> 531.9740711 | F191: 2238368.008 | G191: 11167726.17 | H191: 18004719.93 | I191: 14300698.3 | J191: 8656870.722 | K191: -10027.32158 | L191: =STDEV(E191:G191) -> 5908293.231 | M191: =STDEV(F191:H191) -> 7906282.034 | N191: =STDEV(H191:J191) -> 4707349.761 | O191: =STDEV(I191:K191) -> 7208383.768 | P191: =K191-L191 -> -5918320.553 | Q191: =K191+L191 -> 5898265.91 | R191: =M191-N191 -> 3198932.272 | S191: =M191+N191 -> 12613631.8 | T191: =R191-Q191 -> -2699333.637 | U191: =S191-P191 -> 18531952.35 | V191: =T191-Q191 -> -8597599.547
A192: 156 | B192: 10.1673921 | C192: 350.9446488 | D192: =C192-D$5 -> 351.9519488 | E192: =C192-E$5 -> 291.9307976 | F192: 14764207.27 | G192: 25676307.73 | H192: 14422573.01 | I192: 26887214.02 | J192: 15803236.42 | K192: 99522.98974 | L192: =STDEV(E192:G192) -> 12886070.77 | M192: =STDEV(F192:H192) -> 6401005.069 | N192: =STDEV(H192:J192) -> 6832862.582 | O192: =STDEV(I192:K192) -> 13460074.08 | P192: =K192-L192 -> -12786547.78 | Q192: =K192+L192 -> 12985593.76 | R192: =M192-N192 -> -431857.5125 | S192: =M192+N192 -> 13233867.65 | T192: =R192-Q192 -> -13417451.27 | U192: =S192-P192 -> 26020415.43 | V192: =T192-Q192 -> -26403045.04
A193: 18 | B193: 5.238045505 | C193: 117.0192535 | D193: =C193-D$5 -> 118.0265535 | E193: =C193-E$5 -> 58.00540231 | F193: 16468789.56 | G193: 43932348.11 | H193: 5202270.52 | I193: 23569040.45 | J193: 17762042.57 | K193: 7059704.571 | L193: =STDEV(E193:G193) -> 22194264.58 | M193: =STDEV(F193:H193) -> 19921514.37 | N193: =STDEV(H193:J193) -> 9388000.64 | O193: =STDEV(I193:K193) -> 8374758.05 | P193: =K193-L193 -> -15134560.01 | Q193: =K193+L193 -> 29253969.15 | R193: =M193-N193 -> 10533513.73 | S193: =M193+N193 -> 29309515.01 | T193: =R193-Q193 -> -18720455.42 | U193: =S193-P193 -> 44444075.02 | V193: =T193-Q193 -> -47974424.56
A194: 182 | B194: 3.194884 | C194: 431.170225 | D194: =C194-D$5 -> 432.177525 | E194: =C194-E$5 -> 372.1563738 | F194: 151696.3707 | G194: 20077.24937 | H194: 1949415.104 | I194: 66607.93688 | J194: -29308.4309 | K194: 4126047.97 | L194: =STDEV(E194:G194) -> 82270.79435 | M194: =STDEV(F194:H194) -> 1077919.353 | N194: =STDEV(H194:J194) -> 1115759.054 | O194: =STDEV(I194:K194) -> 2371892.358 | P194: =K194-L194 -> 4043777.176 | Q194: =K194+L194 -> 4208318.765 | R194: =M194-N194 -> -37839.70107 | S194: =M194+N194 -> 2193678.408 | T194: =R194-Q194 -> -4246158.466 | U194: =S194-P194 -> -1850098.768 | V194: =T194-Q194 -> -8454477.23
A195: 197 | B195: 10.04484892 | C195: 482.2052899 | D195: =C195-D$5 -> 483.2125899 | E195: =C195-E$5 -> 423.1914387 | F195: 391636361.5 | G195: 485556110.7 | H195: 510723461.9 | I195: 552870843.2 | J195: 571805701.8 | K195: -110470.957 | L195: =STDEV(E195:G195) -> 257540920.1 | M195: =STDEV(F195:H195) -> 62764178.09 | N195: =STDEV(H195:J195) -> 31267583.44 | O195: =STDEV(I195:K195) -> 324867914.5 | P195: =K195-L195 -> -257651391.1 | Q195: =K195+L195 -> 257430449.1 | R195: =M195-N195 -> 31496594.65 | S195: =M195+N195 -> 94031761.54 | T195: =R195-Q195 -> -225933854.5 | U195: =S195-P195 -> 351683152.6 | V195: =T195-Q195 -> -483364303.6
A196: 204 | B196: 9.070652173 | C196: 523.0007258 | D196: =C196-D$5 -> 524.0080258 | E196: =C196-E$5 -> 463.9868746 | F196: 104752912 | G196: 163464709.7 | H196: 180468044.7 | I196: 198191761.1 | J196: 163426659 | K196: -95787.00719 | L196: =STDEV(E196:G196) -> 82805706.49 | M196: =STDEV(F196:H196) -> 39726082.75 | N196: =STDEV(H196:J196) -> 17383666.98 | O196: =STDEV(I196:K196) -> 105882131.3 | P196: =K196-L196 -> -82901493.5 | Q196: =K196+L196 -> 82709919.48 | R196: =M196-N196 -> 22342415.78 | S196: =M196+N196 -> 57109749.73 | T196: =R196-Q196 -> -60367503.71 | U196: =S196-P196 -> 140011243.2 | V196: =T196-Q196 -> -143077423.2
A197: 234 | B197: 10.35620452 | C197: 735.2965065 | D197: =C197-D$5 -> 736.3038065 | E197: =C197-E$5 -> 676.2826553 | F197: 438039843.9 | G197: 570433391 | H197: 579792521.2 | I197: 656458032.4 | J197: 645246317.6 | K197: 2966795.53 | L197: =STDEV(E197:G197) -> 298552018.3 | M197: =STDEV(F197:H197) -> 79277430.7 | N197: =STDEV(H197:J197) -> 41407532.78 | O197: =STDEV(I197:K197) -> 374098802.4 | P197: =K197-L197 -> -295585222.7 | Q197: =K197+L197 -> 301518813.8 | R197: =M197-N197 -> 37869897.92 | S197: =M197+N197 -> 120684963.5 | T197: =R197-Q197 -> -263648915.9 | U197: =S197-P197 -> 416270186.2 | V197: =T197-Q197 -> -565167729.7
A198: 217 | B198: 9.070385377 | C198: 605.0035454 | D198: =C198-D$5 -> 606.0108454 | E198: =C198-E$5 -> 545.9896942 | F198: 82015268.28 | G198: 150339800.6 | H198: 172336924.6 | I198: 197701577.9 | J198: 128689077 | K198: 258309.2124 | L198: =STDEV(E198:G198) -> 75273443.58 | M198: =STDEV(F198:H198) -> 47099392.76 | N198: =STDEV(H198:J198) -> 34907557.72 | O198: =STDEV(I198:K198) -> 100200658.5 | P198: =K198-L198 -> -75015134.37 | Q198: =K198+L198 -> 75531752.8 | R198: =M198-N198 -> 12191835.03 | S198: =M198+N198 -> 82006950.48 | T198: =R198-Q198 -> -63339917.76 | U198: =S198-P198 -> 157022084.9 | V198: =T198-Q198 -> -138871670.6
A199: 97 | B199: 14.6197037 | C199: 242.079752 | D199: =C199-D$5 -> 243.087052 | E199: =C199-E$5 -> 183.0659008 | F199: 18141689.12 | G199: 21749434.8 | H199: 11920925.65 | I199: 14638595.98 | J199: 20256732.77 | K199: 21076556.54 | L199: =STDEV(E199:G199) -> 11655899.95 | M199: =STDEV(F199:H199) -> 4971809.177 | N199: =STDEV(H199:J199) -> 4251173.825 | O199: =STDEV(I199:K199) -> 3504352.251 | P199: =K199-L199 -> 9420656.59 | Q199: =K199+L199 -> 32732456.49 | R199: =M199-N199 -> 720635.3515 | S199: =M199+N199 -> 9222983.002 | T199: =R199-Q199 -> -32011821.14 | U199: =S199-P199 -> -197673.5885 | V199: =T199-Q199 -> -64744277.62
A200: 23 | B200: 12.31790434 | C200: 127.0011051 | D200: =C200-D$5 -> 128.0084051 | E200: =C200-E$5 -> 67.98725386 | F200: 4440412449 | G200: 5764239596 | H200: 5890841192 | I200: 6681997565 | J200: 6584252116 | K200: 77866057.37 | L200: =STDEV(E200:G200) -> 3019277998 | M200: =STDEV(F200:H200) -> 803356481.4 | N200: =STDEV(H200:J200) -> 431335385.7 | O200: =STDEV(I200:K200) -> 3784995964 | P200: =K200-L200 -> -2941411940 | Q200: =K200+L200 -> 3097144055 | R200: =M200-N200 -> 372021095.7 | S200: =M200+N200 -> 1234691867 | T200: =R200-Q200 -> -2725122959 | U200: =S200-P200 -> 4176103808 | V200: =T200-Q200 -> -5822267015
A201: 8 | B201: 2.808665814 | C201: 98.94892546 | D201: =C201-D$5 -> 99.95622546 | E201: =C201-E$5 -> 39.93507426 | F201: 7371328.505 | G201: 27878.3592 | H201: 3159135.042 | I201: 17192520.57 | J201: 473992.7717 | K201: 155114.3719 | L201: =STDEV(E201:G201) -> 4247801.984 | M201: =STDEV(F201:H201) -> 3684960.475 | N201: =STDEV(H201:J201) -> 8978261.436 | O201: =STDEV(I201:K201) -> 9745803.075 | P201: =K201-L201 -> -4092687.613 | Q201: =K201+L201 -> 4402916.356 | R201: =M201-N201 -> -5293300.96 | S201: =M201+N201 -> 12663221.91 | T201: =R201-Q201 -> -9696217.317 | U201: =S201-P201 -> 16755909.52 | V201: =T201-Q201 -> -14099133.67
A202: 186 | B202: 9.049792828 | C202: 440.997583 | D202: =C202-D$5 -> 442.004883 | E202: =C202-E$5 -> 381.9837318 | F202: 99775138.32 | G202: 155605554 | H202: 173572904 | I202: 182801535.5 | J202: 172453395 | K202: 73291.33165 | L202: =STDEV(E202:G202) -> 78829993.11 | M202: =STDEV(F202:H202) -> 38483700.45 | N202: =STDEV(H202:J202) -> 5678980.977 | O202: =STDEV(I202:K202) -> 102641443.4 | P202: =K202-L202 -> -78756701.78 | Q202: =K202+L202 -> 78903284.44 | R202: =M202-N202 -> 32804719.47 | S202: =M202+N202 -> 44162681.43 | T202: =R202-Q202 -> -46098564.96 | U202: =S202-P202 -> 122919383.2 | V202: =T202-Q202 -> -125001849.4
A203: 92 | B203: 10.9287575 | C203: 228.0695421 | D203: =C203-D$5 -> 229.0768421 | E203: =C203-E$5 -> 169.0556909 | F203: 71028925.75 | G203: 60257873.07 | H203: 84733133.14 | I203: 51385168.17 | J203: 117867907.6 | K203: 10103861.25 | L203: =STDEV(E203:G203) -> 38279870.14 | M203: =STDEV(F203:H203) -> 12266887.9 | N203: =STDEV(H203:J203) -> 33241426.69 | O203: =STDEV(I203:K203) -> 54370933.77 | P203: =K203-L203 -> -28176008.89 | Q203: =K203+L203 -> 48383731.39 | R203: =M203-N203 -> -20974538.8 | S203: =M203+N203 -> 45508314.59 | T203: =R203-Q203 -> -69358270.19 | U203: =S203-P203 -> 73684323.48 | V203: =T203-Q203 -> -117742001.6
... 52 more rows

Sheet Control_Cells_Pos
F2: Proteïnes
F3: 0.3518184372 | G3: 0.4071899293 | H3: 0.3843899032 | I3: 0.3843899032 | J3: 0.4169613691 | K3: 0.4251042356
D4: M+H=1,0073 | E4: M+NH4=18,0338
D5: 1.0073 | E5: 18.0338 | F5: Normalized Areas (per prot)
A6: nºROI | B6: ret time (min) | C6: mzROI | D6: Ad_1 | E6: Ad_2 | F6: C01 | G6: C02 | H6: C03 | I6: C51 | J6: C52 | K6: C53 | L6: mean T0 | M6: SD T0 | N6: mean T5 | O6: SD T5 | Q6: T0_min | R6: T0_max | S6: T5_min | T6: T5_max | U6: LB | V6: UB
A7: 457 | B7: 3.065456129 | C7: 837.6205307 | D7: =C7-D$5 -> 836.6132307 | E7: =C7-E$5 -> 819.5867307 | F7: 2276432.586 | G7: 2297484.108 | H7: 2221297.472 | I7: 919148.8157 | J7: 449349.1112 | K7: 508103.0577 | L7: =STDEV(E7:G7) -> 1319944.798 | M7: =STDEV(F7:H7) -> 39343.46803 | N7: =STDEV(H7:J7) -> 917978.2023 | O7: =STDEV(I7:K7) -> 255969.5307 | P7: =K7-L7 -> -811841.7398 | Q7: =K7+L7 -> 1828047.855 | R7: =M7-N7 -> -878634.7342 | S7: =M7+N7 -> 957321.6703 | T7: =R7-Q7 -> -2706682.589 | U7: =S7-P7 -> 1769163.41 | V7: =T7-Q7 -> -4534730.445
A8: 2 | B8: 9.70455026 | C8: 86.09617823 | D8: =C8-D$5 -> 85.08887823 | E8: =C8-E$5 -> 68.06237823 | F8: 82954841.89 | G8: 133633.8793 | H8: -106655.078 | I8: 58488.24972 | J8: -14586.4821 | K8: -23443.18374 | L8: =STDEV(E8:G8) -> 47855450.47 | M8: =STDEV(F8:H8) -> 47886362.91 | N8: =STDEV(H8:J8) -> 82753.51097 | O8: =STDEV(I8:K8) -> 44965.01859 | P8: =K8-L8 -> -47878893.65 | Q8: =K8+L8 -> 47832007.29 | R8: =M8-N8 -> 47803609.4 | S8: =M8+N8 -> 47969116.42 | T8: =R8-Q8 -> -28397.89008 | U8: =S8-P8 -> 95848010.07 | V8: =T8-Q8 -> -47860405.18
A9: 3 | B9: 13.81936897 | C9: 90.05473029 | D9: =C9-D$5 -> 89.04743029 | E9: =C9-E$5 -> 72.02093029 | F9: 63458156.77 | G9: 124249.2646 | H9: 13301.0675 | I9: 70010.54266 | J9: 37147.18825 | K9: -23626.60636 | L9: =STDEV(E9:G9) -> 36601748.09 | M9: =STDEV(F9:H9) -> 36597918.57 | N9: =STDEV(H9:J9) -> 28473.97089 | O9: =STDEV(I9:K9) -> 47506.78873 | P9: =K9-L9 -> -36625374.7 | Q9: =K9+L9 -> 36578121.48 | R9: =M9-N9 -> 36569444.6 | S9: =M9+N9 -> 36626392.55 | T9: =R9-Q9 -> -8676.879688 | U9: =S9-P9 -> 73251767.24 | V9: =T9-Q9 -> -36586798.36
A10: 4 | B10: 9.137471572 | C10: 90.97642162 | D10: =C10-D$5 -> 89.96912162 | E10: =C10-E$5 -> 72.94262162 | F10: 147607.4898 | G10: 51449248.79 | H10: 55458180.18 | I10: 58258029.03 | J10: 63253195.7 | K10: 47687027.02 | L10: =STDEV(E10:G10) -> 29661697.7 | M10: =STDEV(F10:H10) -> 30841501.75 | N10: =STDEV(H10:J10) -> 3948694.102 | O10: =STDEV(I10:K10) -> 7947781.463 | P10: =K10-L10 -> 18025329.32 | Q10: =K10+L10 -> 77348724.72 | R10: =M10-N10 -> 26892807.65 | S10: =M10+N10 -> 34790195.86 | T10: =R10-Q10 -> -50455917.07 | U10: =S10-P10 -> 16764866.54 | V10: =T10-Q10 -> -127804641.8
A11: 443 | B11: 3.065561798 | C11: 820.6210958 | D11: =C11-D$5 -> 819.6137958 | E11: =C11-E$5 -> 802.5872958 | F11: 16837044.32 | G11: 15602591.28 | H11: 14313503.43 | I11: 11743150.24 | J11: 10816941.07 | K11: 11788592.81 | L11: =STDEV(E11:G11) -> 9384372.829 | M11: =STDEV(F11:H11) -> 1261869.015 | N11: =STDEV(H11:J11) -> 1811561.354 | O11: =STDEV(I11:K11) -> 548336.2024 | P11: =K11-L11 -> 2404219.978 | Q11: =K11+L11 -> 21172965.64 | R11: =M11-N11 -> -549692.3382 | S11: =M11+N11 -> 3073430.369 | T11: =R11-Q11 -> -21722657.98 | U11: =S11-P11 -> 669210.3911 | V11: =T11-Q11 -> -42895623.61
A12: 6 | B12: 9.508001818 | C12: 91.11297087 | D12: =C12-D$5 -> 90.10567087 | E12: =C12-E$5 -> 73.07917087 | F12: 49295581.73 | G12: 48762.05913 | H12: 5797.253263 | I12: 21081.50468 | J12: -134296.3117 | K12: -20386.9663 | L12: =STDEV(E12:G12) -> 28446730.31 | M12: =STDEV(F12:H12) -> 28445075.58 | N12: =STDEV(H12:J12) -> 85636.90898 | O12: =STDEV(I12:K12) -> 80454.16796 | P12: =K12-L12 -> -28467117.27 | Q12: =K12+L12 -> 28426343.34 | R12: =M12-N12 -> 28359438.67 | S12: =M12+N12 -> 28530712.48 | T12: =R12-Q12 -> -66904.67431 | U12: =S12-P12 -> 56997829.76 | V12: =T12-Q12 -> -28493248.02
A13: 7 | B13: 11.02222989 | C13: 102.0546717 | D13: =C13-D$5 -> 101.0473717 | E13: =C13-E$5 -> 84.02087172 | F13: 49256908.82 | G13: 98966.63377 | H13: 2923213.543 | I13: -50922.33772 | J13: 35512.33945 | K13: 887872.4736 | L13: =STDEV(E13:G13) -> 28409939.13 | M13: =STDEV(F13:H13) -> 27602206.94 | N13: =STDEV(H13:J13) -> 1692718.397 | O13: =STDEV(I13:K13) -> 518864.8587 | P13: =K13-L13 -> -27522066.65 | Q13: =K13+L13 -> 29297811.6 | R13: =M13-N13 -> 25909488.54 | S13: =M13+N13 -> 29294925.34 | T13: =R13-Q13 -> -3388323.054 | U13: =S13-P13 -> 56816991.99 | V13: =T13-Q13 -> -32686134.65
A14: 8 | B14: 14.40177647 | C14: 104.0703655 | D14: =C14-D$5 -> 103.0630655 | E14: =C14-E$5 -> 86.03656546 | F14: 7484004.576 | G14: -113234.3812 | H14: -34118.29006 | I14: 13080.91846 | J14: 60651.47977 | K14: -45409.11613 | L14: =STDEV(E14:G14) -> 4353923.862 | M14: =STDEV(F14:H14) -> 4363608.418 | N14: =STDEV(H14:J14) -> 47385.00617 | O14: =STDEV(I14:K14) -> 53123.89991 | P14: =K14-L14 -> -4399332.979 | Q14: =K14+L14 -> 4308514.746 | R14: =M14-N14 -> 4316223.412 | S14: =M14+N14 -> 4410993.424 | T14: =R14-Q14 -> 7708.665689 | U14: =S14-P14 -> 8810326.403 | V14: =T14-Q14 -> -4300806.081
A15: 9 | B15: 12.73155662 | C15: 104.1067836 | D15: =C15-D$5 -> 103.0994836 | E15: =C15-E$5 -> 86.07298364 | F15: 35120796.37 | G15: 224628187 | H15: 327380877.4 | I15: 236222907.2 | J15: 400434744.2 | K15: 433739218 | L15: =STDEV(E15:G15) -> 120833424.7 | M15: =STDEV(F15:H15) -> 148260537.3 | N15: =STDEV(H15:J15) -> 82272079.5 | O15: =STDEV(I15:K15) -> 105741357.7 | P15: =K15-L15 -> 312905793.3 | Q15: =K15+L15 -> 554572642.6 | R15: =M15-N15 -> 65988457.77 | S15: =M15+N15 -> 230532616.8 | T15: =R15-Q15 -> -488584184.9 | U15: =S15-P15 -> -82373176.56 | V15: =T15-Q15 -> -1043156828
A16: 60 | B16: 3.330205075 | C16: 195.1489498 | D16: =C16-D$5 -> 194.1416498 | E16: =C16-E$5 -> 177.1151498 | F16: 29420522.89 | G16: 36663715.12 | H16: 25639801.34 | I16: 11039270.98 | J16: 12300727.24 | K16: 16718153.73 | L16: =STDEV(E16:G16) -> 19417498.97 | M16: =STDEV(F16:H16) -> 5601850.348 | N16: =STDEV(H16:J16) -> 8090093.289 | O16: =STDEV(I16:K16) -> 2982019.392 | P16: =K16-L16 -> -2699345.245 | Q16: =K16+L16 -> 36135652.7 | R16: =M16-N16 -> -2488242.94 | S16: =M16+N16 -> 13691943.64 | T16: =R16-Q16 -> -38623895.64 | U16: =S16-P16 -> 16391288.88 | V16: =T16-Q16 -> -74759548.34
A17: 74 | B17: 3.342501797 | C17: 222.1598222 | D17: =C17-D$5 -> 221.1525222 | E17: =C17-E$5 -> 204.1260222 | F17: 32561755.89 | G17: 43185495.11 | H17: 27823084.89 | I17: 12500512.26 | J17: 12341270.46 | K17: 17532212.84 | L17: =STDEV(E17:G17) -> 22502177.1 | M17: =STDEV(F17:H17) -> 7866834.239 | N17: =STDEV(H17:J17) -> 8892817.027 | O17: =STDEV(I17:K17) -> 2952096.751 | P17: =K17-L17 -> -4969964.264 | Q17: =K17+L17 -> 40034389.94 | R17: =M17-N17 -> -1025982.788 | S17: =M17+N17 -> 16759651.27 | T17: =R17-Q17 -> -41060372.73 | U17: =S17-P17 -> 21729615.53 | V17: =T17-Q17 -> -81094762.67
A18: 12 | B18: 7.765341724 | C18: 114.0659901 | D18: =C18-D$5 -> 113.0586901 | E18: =C18-E$5 -> 96.03219005 | F18: 6300485.907 | G18: 98976.30011 | H18: 1139943.406 | I18: 128298.3001 | J18: 75875.14085 | K18: 1907961.17 | L18: =STDEV(E18:G18) -> 3609326.144 | M18: =STDEV(F18:H18) -> 3320982.104 | N18: =STDEV(H18:J18) -> 599779.86 | O18: =STDEV(I18:K18) -> 1042951.528 | P18: =K18-L18 -> -1701364.974 | Q18: =K18+L18 -> 5517287.314 | R18: =M18-N18 -> 2721202.244 | S18: =M18+N18 -> 3920761.964 | T18: =R18-Q18 -> -2796085.07 | U18: =S18-P18 -> 5622126.938 | V18: =T18-Q18 -> -8313372.384
A19: 13 | B19: 12.58860787 | C19: 116.0703943 | D19: =C19-D$5 -> 115.0630943 | E19: =C19-E$5 -> 98.03659426 | F19: 320876608.1 | G19: 28593.84633 | H19: 35691.98414 | I19: 12752.00058 | J19: -99369.51726 | K19: 41728.14081 | L19: =STDEV(E19:G19) -> 185249914 | M19: =STDEV(F19:H19) -> 185239638.4 | N19: =STDEV(H19:J19) -> 72271.57898 | O19: =STDEV(I19:K19) -> 74520.02033 | P19: =K19-L19 -> -185208185.8 | Q19: =K19+L19 -> 185291642.1 | R19: =M19-N19 -> 185167366.8 | S19: =M19+N19 -> 185311909.9 | T19: =R19-Q19 -> -124275.3213 | U19: =S19-P19 -> 370520095.8 | V19: =T19-Q19 -> -185415917.4
A20: 14 | B20: 11.88035315 | C20: 118.0860179 | D20: =C20-D$5 -> 117.0787179 | E20: =C20-E$5 -> 100.0522179 | F20: 118638456.8 | G20: 39333.52492 | H20: 2593074.289 | I20: 67574.92908 | J20: -10418.83153 | K20: 474861.0331 | L20: =STDEV(E20:G20) -> 68484564.29 | M20: =STDEV(F20:H20) -> 67748068.17 | N20: =STDEV(H20:J20) -> 1481126.062 | O20: =STDEV(I20:K20) -> 260595.9658 | P20: =K20-L20 -> -68009703.26 | Q20: =K20+L20 -> 68959425.33 | R20: =M20-N20 -> 66266942.1 | S20: =M20+N20 -> 69229194.23 | T20: =R20-Q20 -> -2692483.222 | U20: =S20-P20 -> 137238897.5 | V20: =T20-Q20 -> -71651908.55
A21: 15 | B21: 3.768011875 | C21: 119.0853114 | D21: =C21-D$5 -> 118.0780114 | E21: =C21-E$5 -> 101.0515114 | F21: -82890.88181 | G21: 4649566.857 | H21: -40122.93484 | I21: 526459.6101 | J21: 205827.0281 | K21: -51768.27675 | L21: =STDEV(E21:G21) -> 2708645.916 | M21: =STDEV(F21:H21) -> 2720023.765 | N21: =STDEV(H21:J21) -> 284110.4296 | O21: =STDEV(I21:K21) -> 289686.0608 | P21: =K21-L21 -> -2760414.193 | Q21: =K21+L21 -> 2656877.639 | R21: =M21-N21 -> 2435913.335 | S21: =M21+N21 -> 3004134.195 | T21: =R21-Q21 -> -220964.3038 | U21: =S21-P21 -> 5764548.387 | V21: =T21-Q21 -> -2877841.943
A22: 16 | B22: 8.877819231 | C22: 120.0806007 | D22: =C22-D$5 -> 119.0733007 | E22: =C22-E$5 -> 102.0468007 | F22: 19621343.64 | G22: 17810.59735 | H22: -65053.65694 | I22: 82702.50209 | J22: 15257.93175 | K22: 4122.277998 | L22: =STDEV(E22:G22) -> 11323220.56 | M22: =STDEV(F22:H22) -> 11342101.6 | N22: =STDEV(H22:J22) -> 73971.39523 | O22: =STDEV(I22:K22) -> 42519.84727 | P22: =K22-L22 -> -11319098.28 | Q22: =K22+L22 -> 11327342.84 | R22: =M22-N22 -> 11268130.21 | S22: =M22+N22 -> 11416073 | T22: =R22-Q22 -> -59212.62853 | U22: =S22-P22 -> 22735171.28 | V22: =T22-Q22 -> -11386555.47
A23: 429 | B23: 3.128451823 | C23: 810.6014101 | D23: =C23-D$5 -> 809.5941101 | E23: =C23-E$5 -> 792.5676101 | F23: 44760555.82 | G23: 40083370.96 | H23: 36993098.58 | I23: 35828633.54 | J23: 30477086.5 | K23: 30239178.74 | L23: =STDEV(E23:G23) -> 24603270.63 | M23: =STDEV(F23:H23) -> 3910652.834 | N23: =STDEV(H23:J23) -> 3474992.757 | O23: =STDEV(I23:K23) -> 3160634.453 | P23: =K23-L23 -> 5635908.104 | Q23: =K23+L23 -> 54842449.37 | R23: =M23-N23 -> 435660.0768 | S23: =M23+N23 -> 7385645.59 | T23: =R23-Q23 -> -54406789.29 | U23: =S23-P23 -> 1749737.486 | V23: =T23-Q23 -> -109249238.7
A24: 399 | B24: 3.075558571 | C24: 769.5934884 | D24: =C24-D$5 -> 768.5861884 | E24: =C24-E$5 -> 751.5596884 | F24: 3128415.707 | G24: 3575360.448 | H24: 2522548.053 | I24: 1878028.754 | J24: 1778986.313 | K24: 2348932.023 | L24: =STDEV(E24:G24) -> 1947642.649 | M24: =STDEV(F24:H24) -> 528401.5446 | N24: =STDEV(H24:J24) -> 403752.9349 | O24: =STDEV(I24:K24) -> 304520.773 | P24: =K24-L24 -> 401289.3745 | Q24: =K24+L24 -> 4296574.672 | R24: =M24-N24 -> 124648.6096 | S24: =M24+N24 -> 932154.4795 | T24: =R24-Q24 -> -4171926.062 | U24: =S24-P24 -> 530865.105 | V24: =T24-Q24 -> -8468500.735
A25: 398 | B25: 3.102951882 | C25: 768.5909017 | D25: =C25-D$5 -> 767.5836017 | E25: =C25-E$5 -> 750.5571017 | F25: 15934048.07 | G25: 17107462.2 | H25: 13924823.72 | I25: 13811158.37 | J25: 11749288.69 | K25: 11639196.06 | L25: =STDEV(E25:G25) -> 9555857.309 | M25: =STDEV(F25:H25) -> 1609506.696 | N25: =STDEV(H25:J25) -> 1224552.913 | O25: =STDEV(I25:K25) -> 1223440.994 | P25: =K25-L25 -> 2083338.751 | Q25: =K25+L25 -> 21195053.37 | R25: =M25-N25 -> 384953.7825 | S25: =M25+N25 -> 2834059.609 | T25: =R25-Q25 -> -20810099.59 | U25: =S25-P25 -> 750720.8573 | V25: =T25-Q25 -> -42005152.95
A26: 20 | B26: 8.736212 | C26: 129.0599998 | D26: =C26-D$5 -> 128.0526998 | E26: =C26-E$5 -> 111.0261998 | F26: 3394126.789 | G26: 833023.2638 | H26: 30482.03705 | I26: 279320.9626 | J26: 1845082.74 | K26: -58796.71035 | L26: =STDEV(E26:G26) -> 1768819.619 | M26: =STDEV(F26:H26) -> 1756769.275 | N26: =STDEV(H26:J26) -> 983726.4582 | O26: =STDEV(I26:K26) -> 1015766.58 | P26: =K26-L26 -> -1827616.329 | Q26: =K26+L26 -> 1710022.909 | R26: =M26-N26 -> 773042.8167 | S26: =M26+N26 -> 2740495.733 | T26: =R26-Q26 -> -936980.0919 | U26: =S26-P26 -> 4568112.062 | V26: =T26-Q26 -> -2647003.001
A27: 21 | B27: 10.99994176 | C27: 130.0496046 | D27: =C27-D$5 -> 129.0423046 | E27: =C27-E$5 -> 112.0158046 | F27: 50649286.79 | G27: 55336.84294 | H27: 2782520.046 | I27: 1296.034265 | J27: 89390.21194 | K27: 1037173.447 | L27: =STDEV(E27:G27) -> 29226385.7 | M27: =STDEV(F27:H27) -> 28455850.77 | N27: =STDEV(H27:J27) -> 1580923.564 | O27: =STDEV(I27:K27) -> 574325.0618 | P27: =K27-L27 -> -28189212.25 | Q27: =K27+L27 -> 30263559.15 | R27: =M27-N27 -> 26874927.21 | S27: =M27+N27 -> 30036774.33 | T27: =R27-Q27 -> -3388631.941 | U27: =S27-P27 -> 58225986.59 | V27: =T27-Q27 -> -33652191.09
A28: 430 | B28: 3.096829895 | C28: 811.6046881 | D28: =C28-D$5 -> 810.5973881 | E28: =C28-E$5 -> 793.5708881 | F28: 16849668.73 | G28: 16079630.57 | H28: 13478998.17 | I28: 12563497.92 | J28: 11332329.62 | K28: 11669099.24 | L28: =STDEV(E28:G28) -> 9513206.19 | M28: =STDEV(F28:H28) -> 1766242.133 | N28: =STDEV(H28:J28) -> 1077195.588 | O28: =STDEV(I28:K28) -> 636283.2376 | P28: =K28-L28 -> 2155893.054 | Q28: =K28+L28 -> 21182305.43 | R28: =M28-N28 -> 689046.5452 | S28: =M28+N28 -> 2843437.721 | T28: =R28-Q28 -> -20493258.89 | U28: =S28-P28 -> 687544.667 | V28: =T28-Q28 -> -41675564.32
A29: 23 | B29: 9.042372899 | C29: 132.0842995 | D29: =C29-D$5 -> 131.0769995 | E29: =C29-E$5 -> 114.0504995 | F29: 315728299.4 | G29: 16881076.45 | H29: 11511230.26 | I29: 15739188.44 | J29: 17293682.79 | K29: 15383406.18 | L29: =STDEV(E29:G29) -> 177613305 | M29: =STDEV(F29:H29) -> 174110368.8 | N29: =STDEV(H29:J29) -> 2992458.308 | O29: =STDEV(I29:K29) -> 1015889.629 | P29: =K29-L29 -> -162229898.8 | Q29: =K29+L29 -> 192996711.1 | R29: =M29-N29 -> 171117910.5 | S29: =M29+N29 -> 177102827.1 | T29: =R29-Q29 -> -21878800.67 | U29: =S29-P29 -> 339332725.9 | V29: =T29-Q29 -> -214875511.8
A30: 24 | B30: 3.0015955 | C30: 135.0440002 | D30: =C30-D$5 -> 134.0367002 | E30: =C30-E$5 -> 117.0102002 | F30: -100133.6045 | G30: 7494043.898 | H30: 231119.7368 | I30: 6252012.63 | J30: 1058651.804 | K30: -15660.76785 | L30: =STDEV(E30:G30) -> 4355848.986 | M30: =STDEV(F30:H30) -> 4292072.694 | N30: =STDEV(H30:J30) -> 3263611.426 | O30: =STDEV(I30:K30) -> 3351837.158 | P30: =K30-L30 -> -4371509.753 | Q30: =K30+L30 -> 4340188.218 | R30: =M30-N30 -> 1028461.269 | S30: =M30+N30 -> 7555684.12 | T30: =R30-Q30 -> -3311726.949 | U30: =S30-P30 -> 11927193.87 | V30: =T30-Q30 -> -7651915.167
A31: 445 | B31: 3.050622857 | C31: 821.6253932 | D31: =C31-D$5 -> 820.6180932 | E31: =C31-E$5 -> 803.5915932 | F31: 4770838.847 | G31: 5484409.287 | H31: 3735959.693 | I31: 3153395.854 | J31: 2187273.94 | K31: 3471094.532 | L31: =STDEV(E31:G31) -> 2981396.5 | M31: =STDEV(F31:H31) -> 879131.5428 | N31: =STDEV(H31:J31) -> 782219.0381 | O31: =STDEV(I31:K31) -> 668645.3115 | P31: =K31-L31 -> 489698.0326 | Q31: =K31+L31 -> 6452491.032 | R31: =M31-N31 -> 96912.50478 | S31: =M31+N31 -> 1661350.581 | T31: =R31-Q31 -> -6355578.527 | U31: =S31-P31 -> 1171652.548 | V31: =T31-Q31 -> -12808069.56
A32: 26 | B32: 11.21772089 | C32: 137.0672108 | D32: =C32-D$5 -> 136.0599108 | E32: =C32-E$5 -> 119.0334108 | F32: 10428272.15 | G32: 202293181 | H32: 166459236.6 | I32: 289224626.9 | J32: 175931202.2 | K32: 163223620.3 | L32: =STDEV(E32:G32) -> 113903008.8 | M32: =STDEV(F32:H32) -> 102014604.1 | N32: =STDEV(H32:J32) -> 68308685.73 | O32: =STDEV(I32:K32) -> 69369945.94 | P32: =K32-L32 -> 49320611.47 | Q32: =K32+L32 -> 277126629.1 | R32: =M32-N32 -> 33705918.35 | S32: =M32+N32 -> 170323289.8 | T32: =R32-Q32 -> -243420710.8 | U32: =S32-P32 -> 121002678.3 | V32: =T32-Q32 -> -520547339.9
A33: 27 | B33: 9.499963375 | C33: 138.1217896 | D33: =C33-D$5 -> 137.1144896 | E33: =C33-E$5 -> 120.0879896 | F33: 41149430.31 | G33: 67771.21026 | H33: 86484.81111 | I33: 149051.2215 | J33: -11606.15282 | K33: -67470.82921 | L33: =STDEV(E33:G33) -> 23738060.24 | M33: =STDEV(F33:H33) -> 23713106.64 | N33: =STDEV(H33:J33) -> 80980.64053 | O33: =STDEV(I33:K33) -> 112408.0754 | P33: =K33-L33 -> -23805531.07 | Q33: =K33+L33 -> 23670589.41 | R33: =M33-N33 -> 23632126 | S33: =M33+N33 -> 23794087.28 | T33: =R33-Q33 -> -38463.41325 | U33: =S33-P33 -> 47599618.35 | V33: =T33-Q33 -> -23709052.82
A34: 28 | B34: 5.794191321 | C34: 139.0500301 | D34: =C34-D$5 -> 138.0427301 | E34: =C34-E$5 -> 121.0162301 | F34: 94872.05864 | G34: 1510639.316 | H34: 3256198.334 | I34: 15805998.44 | J34: -41611.1504 | K34: -83115.05271 | L34: =STDEV(E34:G34) -> 846073.3046 | M34: =STDEV(F34:H34) -> 1583527.551 | N34: =STDEV(H34:J34) -> 8361815.592 | O34: =STDEV(I34:K34) -> 9161626.312 | P34: =K34-L34 -> -929188.3573 | Q34: =K34+L34 -> 762958.2519 | R34: =M34-N34 -> -6778288.041 | S34: =M34+N34 -> 9945343.143 | T34: =R34-Q34 -> -7541246.293 | U34: =S34-P34 -> 10874531.5 | V34: =T34-Q34 -> -8304204.545
A35: 29 | B35: 11.95871705 | C35: 140.0680532 | D35: =C35-D$5 -> 139.0607532 | E35: =C35-E$5 -> 122.0342532 | F35: 8606.74506 | G35: 752434.4256 | H35: 11574765.38 | I35: 5247125.552 | J35: 5196093.543 | K35: 5525129.371 | L35: =STDEV(E35:G35) -> 431919.2716 | M35: =STDEV(F35:H35) -> 6473692.309 | N35: =STDEV(H35:J35) -> 3668084.981 | O35: =STDEV(I35:K35) -> 177085.1799 | P35: =K35-L35 -> 5093210.1 | Q35: =K35+L35 -> 5957048.643 | R35: =M35-N35 -> 2805607.328 | S35: =M35+N35 -> 10141777.29 | T35: =R35-Q35 -> -3151441.315 | U35: =S35-P35 -> 5048567.191 | V35: =T35-Q35 -> -9108489.958
A36: 420 | B36: 3.074815714 | C36: 795.6096088 | D36: =C36-D$5 -> 794.6023088 | E36: =C36-E$5 -> 777.5758088 | F36: 7674971.858 | G36: 9557625.881 | H36: 6924967.332 | I36: 6996869.151 | J36: 4826234.571 | K36: 5129912.404 | L36: =STDEV(E36:G36) -> 5062459.771 | M36: =STDEV(F36:H36) -> 1356329.852 | N36: =STDEV(H36:J36) -> 1232984.425 | O36: =STDEV(I36:K36) -> 1175400.797 | P36: =K36-L36 -> 67452.63341 | Q36: =K36+L36 -> 10192372.17 | R36: =M36-N36 -> 123345.427 | S36: =M36+N36 -> 2589314.276 | T36: =R36-Q36 -> -10069026.75 | U36: =S36-P36 -> 2521861.643 | V36: =T36-Q36 -> -20261398.92
A37: 455 | B37: 3.070185846 | C37: 836.616379 | D37: =C37-D$5 -> 835.609079 | E37: =C37-E$5 -> 818.582579 | F37: 9943509.936 | G37: 12194742.49 | H37: 8228668.86 | I37: 7678660.834 | J37: 5944297.886 | K37: 6805911.406 | L37: =STDEV(E37:G37) -> 6488668.837 | M37: =STDEV(F37:H37) -> 1989072.983 | N37: =STDEV(H37:J37) -> 1192257.971 | O37: =STDEV(I37:K37) -> 867187.4325 | P37: =K37-L37 -> 317242.5688 | Q37: =K37+L37 -> 13294580.24 | R37: =M37-N37 -> 796815.0122 | S37: =M37+N37 -> 3181330.954 | T37: =R37-Q37 -> -12497765.23 | U37: =S37-P37 -> 2864088.385 | V37: =T37-Q37 -> -25792345.47
A38: 419 | B38: 3.091346964 | C38: 794.6060573 | D38: =C38-D$5 -> 793.5987573 | E38: =C38-E$5 -> 776.5722573 | F38: 22273694.81 | G38: 26992714.24 | H38: 19526370.32 | I38: 18918658.56 | J38: 15819475.79 | K38: 15872816.98 | L38: =STDEV(E38:G38) -> 14415944.47 | M38: =STDEV(F38:H38) -> 3776312.747 | N38: =STDEV(H38:J38) -> 1988102.715 | O38: =STDEV(I38:K38) -> 1774116.216 | P38: =K38-L38 -> 1456872.504 | Q38: =K38+L38 -> 30288761.45 | R38: =M38-N38 -> 1788210.032 | S38: =M38+N38 -> 5764415.461 | T38: =R38-Q38 -> -28500551.42 | U38: =S38-P38 -> 4307542.958 | V38: =T38-Q38 -> -58789312.87
A39: 346 | B39: 3.166121462 | C39: 704.5228246 | D39: =C39-D$5 -> 703.5155246 | E39: =C39-E$5 -> 686.4890246 | F39: 9023899.511 | G39: 14677624.75 | H39: 9442517.78 | I39: 16227819.62 | J39: 16964756.96 | K39: 14270256.15 | L39: =STDEV(E39:G39) -> 7402651.541 | M39: =STDEV(F39:H39) -> 3150296.159 | N39: =STDEV(H39:J39) -> 4146634.78 | O39: =STDEV(I39:K39) -> 1392567.532 | P39: =K39-L39 -> 6867604.611 | Q39: =K39+L39 -> 21672907.69 | R39: =M39-N39 -> -996338.6208 | S39: =M39+N39 -> 7296930.939 | T39: =R39-Q39 -> -22669246.31 | U39: =S39-P39 -> 429326.3276 | V39: =T39-Q39 -> -44342154.01
A40: 34 | B40: 11.0918096 | C40: 148.0602067 | D40: =C40-D$5 -> 147.0529067 | E40: =C40-E$5 -> 130.0264067 | F40: 152864997.9 | G40: 294181.5314 | H40: 6838016.136 | I40: 24829.05276 | J40: 33269.10162 | K40: 4381789.753 | L40: =STDEV(E40:G40) -> 88171809.82 | M40: =STDEV(F40:H40) -> 86259835.34 | N40: =STDEV(H40:J40) -> 3931161.23 | O40: =STDEV(I40:K40) -> 2513059.544 | P40: =K40-L40 -> -83790020.06 | Q40: =K40+L40 -> 92553599.57 | R40: =M40-N40 -> 82328674.11 | S40: =M40+N40 -> 90190996.57 | T40: =R40-Q40 -> -10224925.46 | U40: =S40-P40 -> 173981016.6 | V40: =T40-Q40 -> -102778525
A41: 35 | B41: 12.36688214 | C41: 157.0969146 | D41: =C41-D$5 -> 156.0896146 | E41: =C41-E$5 -> 139.0631146 | F41: 9269986.538 | G41: 41172.80701 | H41: 92223.03439 | I41: 85670.06918 | J41: 149152.0332 | K41: 25565.48144 | L41: =STDEV(E41:G41) -> 5340142.926 | M41: =STDEV(F41:H41) -> 5313582.469 | N41: =STDEV(H41:J41) -> 34913.73184 | O41: =STDEV(I41:K41) -> 61800.96684 | P41: =K41-L41 -> -5314577.445 | Q41: =K41+L41 -> 5365708.408 | R41: =M41-N41 -> 5278668.737 | S41: =M41+N41 -> 5348496.201 | T41: =R41-Q41 -> -87039.67075 | U41: =S41-P41 -> 10663073.65 | V41: =T41-Q41 -> -5452748.079
A42: 36 | B42: 12.50319545 | C42: 160.0342768 | D42: =C42-D$5 -> 159.0269768 | E42: =C42-E$5 -> 142.0004768 | F42: -48435.59348 | G42: -112049.2329 | H42: 5385527.157 | I42: 44321.36046 | J42: -55913.22081 | K42: 1020846.87 | L42: =STDEV(E42:G42) -> 56263.29563 | M42: =STDEV(F42:H42) -> 3155823.823 | N42: =STDEV(H42:J42) -> 3113085.279 | O42: =STDEV(I42:K42) -> 594847.5066 | P42: =K42-L42 -> 964583.5748 | Q42: =K42+L42 -> 1077110.166 | R42: =M42-N42 -> 42738.54478 | S42: =M42+N42 -> 6268909.102 | T42: =R42-Q42 -> -1034371.621 | U42: =S42-P42 -> 5304325.527 | V42: =T42-Q42 -> -2111481.787
A43: 37 | B43: 10.81324831 | C43: 162.0217381 | D43: =C43-D$5 -> 161.0144381 | E43: =C43-E$5 -> 143.9879381 | F43: 53805004.36 | G43: 61928.02787 | H43: 1418239.019 | I43: -99231.13482 | J43: 110066.21 | K43: 923763.4566 | L43: =STDEV(E43:G43) -> 31046430.47 | M43: =STDEV(F43:H43) -> 30644550.95 | N43: =STDEV(H43:J43) -> 822378.3747 | O43: =STDEV(I43:K43) -> 540436.0156 | P43: =K43-L43 -> -30122667.02 | Q43: =K43+L43 -> 31970193.93 | R43: =M43-N43 -> 29822172.57 | S43: =M43+N43 -> 31466929.32 | T43: =R43-Q43 -> -2148021.358 | U43: =S43-P43 -> 61589596.34 | V43: =T43-Q43 -> -34118215.29
A44: 421 | B44: 3.076882967 | C44: 796.6205102 | D44: =C44-D$5 -> 795.6132102 | E44: =C44-E$5 -> 778.5867102 | F44: 8411426.697 | G44: 4720712.393 | H44: 6149184.31 | I44: 4246047.512 | J44: 2945368.509 | K44: 4842573.141 | L44: =STDEV(E44:G44) -> 4215806.543 | M44: =STDEV(F44:H44) -> 1860987.404 | N44: =STDEV(H44:J44) -> 1611320.95 | O44: =STDEV(I44:K44) -> 970136.9415 | P44: =K44-L44 -> 626766.5987 | Q44: =K44+L44 -> 9058379.684 | R44: =M44-N44 -> 249666.4537 | S44: =M44+N44 -> 3472308.354 | T44: =R44-Q44 -> -8808713.23 | U44: =S44-P44 -> 2845541.755 | V44: =T44-Q44 -> -17867092.91
A45: 39 | B45: 14.85009091 | C45: 163.1155049 | D45: =C45-D$5 -> 162.1082049 | E45: =C45-E$5 -> 145.0817049 | F45: 3888923.737 | G45: 119391.0625 | H45: -12223.64283 | I45: 34755.10164 | J45: -60937.63111 | K45: 29388.36901 | L45: =STDEV(E45:G45) -> 2211567.906 | M45: =STDEV(F45:H45) -> 2215312.239 | N45: =STDEV(H45:J45) -> 47848.98847 | O45: =STDEV(I45:K45) -> 53765.98556 | P45: =K45-L45 -> -2182179.537 | Q45: =K45+L45 -> 2240956.275 | R45: =M45-N45 -> 2167463.25 | S45: =M45+N45 -> 2263161.227 | T45: =R45-Q45 -> -73493.02465 | U45: =S45-P45 -> 4445340.765 | V45: =T45-Q45 -> -2314449.3
A46: 401 | B46: 3.1200102 | C46: 772.5862256 | D46: =C46-D$5 -> 771.5789256 | E46: =C46-E$5 -> 754.5524256 | F46: 16516609.64 | G46: 14980041.15 | H46: 13619116.59 | I46: 14047007.17 | J46: 12972801.68 | K46: 12526345.98 | L46: =STDEV(E46:G46) -> 9124267.452 | M46: =STDEV(F46:H46) -> 1449633.54 | N46: =STDEV(H46:J46) -> 540791.1991 | O46: =STDEV(I46:K46) -> 781627.6349 | P46: =K46-L46 -> 3402078.53 | Q46: =K46+L46 -> 21650613.43 | R46: =M46-N46 -> 908842.341 | S46: =M46+N46 -> 1990424.739 | T46: =R46-Q46 -> -20741771.09 | U46: =S46-P46 -> -1411653.791 | V46: =T46-Q46 -> -42392384.53
A47: 452 | B47: 3.092927968 | C47: 834.6004499 | D47: =C47-D$5 -> 833.5931499 | E47: =C47-E$5 -> 816.5666499 | F47: 42492600.36 | G47: 53277289.12 | H47: 37435532.26 | I47: 38211509.94 | J47: 34135777.75 | K47: 32634244.1 | L47: =STDEV(E47:G47) -> 28166894.66 | M47: =STDEV(F47:H47) -> 8091607.894 | N47: =STDEV(H47:J47) -> 2164182.451 | O47: =STDEV(I47:K47) -> 2885945.553 | P47: =K47-L47 -> 4467349.439 | Q47: =K47+L47 -> 60801138.76 | R47: =M47-N47 -> 5927425.443 | S47: =M47+N47 -> 10255790.35 | T47: =R47-Q47 -> -54873713.32 | U47: =S47-P47 -> 5788440.907 | V47: =T47-Q47 -> -115674852.1
A48: 42 | B48: 10.32894783 | C48: 165.9637486 | D48: =C48-D$5 -> 164.9564486 | E48: =C48-E$5 -> 147.9299486 | F48: -38205.77968 | G48: 8493021.869 | H48: 6020582.678 | I48: 41284.98612 | J48: 8930140.593 | K48: 2369420.891 | L48: =STDEV(E48:G48) -> 4914472.233 | M48: =STDEV(F48:H48) -> 4389451.718 | N48: =STDEV(H48:J48) -> 4531910.601 | O48: =STDEV(I48:K48) -> 4609320.518 | P48: =K48-L48 -> -2545051.342 | Q48: =K48+L48 -> 7283893.123 | R48: =M48-N48 -> -142458.8824 | S48: =M48+N48 -> 8921362.319 | T48: =R48-Q48 -> -7426352.006 | U48: =S48-P48 -> 11466413.66 | V48: =T48-Q48 -> -14710245.13
A49: 453 | B49: 3.072082646 | C49: 835.6063252 | D49: =C49-D$5 -> 834.5990252 | E49: =C49-E$5 -> 817.5725252 | F49: 17410426.85 | G49: 22355294.95 | H49: 15257454.02 | I49: 15808234.38 | J49: 13437258.97 | K49: 13569958.16 | L49: =STDEV(E49:G49) -> 11742152.52 | M49: =STDEV(F49:H49) -> 3639284.69 | N49: =STDEV(H49:J49) -> 1240832.612 | O49: =STDEV(I49:K49) -> 1332229.581 | P49: =K49-L49 -> 1827805.639 | Q49: =K49+L49 -> 25312110.67 | R49: =M49-N49 -> 2398452.078 | S49: =M49+N49 -> 4880117.303 | T49: =R49-Q49 -> -22913658.6 | U49: =S49-P49 -> 3052311.664 | V49: =T49-Q49 -> -48225769.27
A50: 361 | B50: 3.13826087 | C50: 718.5379179 | D50: =C50-D$5 -> 717.5306179 | E50: =C50-E$5 -> 700.5041179 | F50: 2896816.256 | G50: 3939978.964 | H50: 1897204.997 | I50: 4731351.728 | J50: 3665188.123 | K50: 3681484.707 | L50: =STDEV(E50:G50) -> 2040979.735 | M50: =STDEV(F50:H50) -> 1021464.356 | N50: =STDEV(H50:J50) -> 1431482.731 | O50: =STDEV(I50:K50) -> 610899.7696 | P50: =K50-L50 -> 1640504.972 | Q50: =K50+L50 -> 5722464.442 | R50: =M50-N50 -> -410018.3752 | S50: =M50+N50 -> 2452947.087 | T50: =R50-Q50 -> -6132482.817 | U50: =S50-P50 -> 812442.1143 | V50: =T50-Q50 -> -11854947.26
A51: 45 | B51: 10.9782431 | C51: 171.0761172 | D51: =C51-D$5 -> 170.0688172 | E51: =C51-E$5 -> 153.0423172 | F51: 32760222.7 | G51: 1958.120714 | H51: 36990.54401 | I51: 18879.66239 | J51: 73811.11509 | K51: -40452.95843 | L51: =STDEV(E51:G51) -> 18913513.98 | M51: =STDEV(F51:H51) -> 18902888 | N51: =STDEV(H51:J51) -> 27991.73385 | O51: =STDEV(I51:K51) -> 57146.16185 | P51: =K51-L51 -> -18953966.94 | Q51: =K51+L51 -> 18873061.02 | R51: =M51-N51 -> 18874896.27 | S51: =M51+N51 -> 18930879.74 | T51: =R51-Q51 -> 1835.247916 | U51: =S51-P51 -> 37884846.67 | V51: =T51-Q51 -> -18871225.77
A52: 432 | B52: 3.089797521 | C52: 812.6161843 | D52: =C52-D$5 -> 811.6088843 | E52: =C52-E$5 -> 794.5823843 | F52: 10216790.17 | G52: 6221188.704 | H52: 8094635.176 | I52: 6238358.13 | J52: 5549603.692 | K52: 6673160.663 | L52: =STDEV(E52:G52) -> 5148214.9 | M52: =STDEV(F52:H52) -> 1999090.4 | N52: =STDEV(H52:J52) -> 1316392.318 | O52: =STDEV(I52:K52) -> 566541.5823 | P52: =K52-L52 -> 1524945.764 | Q52: =K52+L52 -> 11821375.56 | R52: =M52-N52 -> 682698.0823 | S52: =M52+N52 -> 3315482.718 | T52: =R52-Q52 -> -11138677.48 | U52: =S52-P52 -> 1790536.954 | V52: =T52-Q52 -> -22960053.04
A53: 47 | B53: 9.467234878 | C53: 176.0655331 | D53: =C53-D$5 -> 175.0582331 | E53: =C53-E$5 -> 158.0317331 | F53: -67102.78327 | G53: -78049.74376 | H53: 4643877.957 | I53: 96709.41738 | J53: 5014.916856 | K53: 6685166.068 | L53: =STDEV(E53:G53) -> 42348.37527 | M53: =STDEV(F53:H53) -> 2723051.615 | N53: =STDEV(H53:J53) -> 2652175.205 | O53: =STDEV(I53:K53) -> 3830591.519 | P53: =K53-L53 -> 6642817.693 | Q53: =K53+L53 -> 6727514.444 | R53: =M53-N53 -> 70876.40964 | S53: =M53+N53 -> 5375226.82 | T53: =R53-Q53 -> -6656638.034 | U53: =S53-P53 -> -1267590.873 | V53: =T53-Q53 -> -13384152.48
A54: 48 | B54: 6.861026429 | C54: 177.0880912 | D54: =C54-D$5 -> 176.0807912 | E54: =C54-E$5 -> 159.0542912 | F54: 37424.1438 | G54: 16790.30432 | H54: 486903.1259 | I54: 1751075.848 | J54: 92939.15291 | K54: 1443036.79 | L54: =STDEV(E54:G54) -> 18668.33641 | M54: =STDEV(F54:H54) -> 265663.6896 | N54: =STDEV(H54:J54) -> 866290.7114 | O54: =STDEV(I54:K54) -> 881955.1187 | P54: =K54-L54 -> 1424368.454 | Q54: =K54+L54 -> 1461705.126 | R54: =M54-N54 -> -600627.0218 | S54: =M54+N54 -> 1131954.401 | T54: =R54-Q54 -> -2062332.148 | U54: =S54-P54 -> -292414.0526 | V54: =T54-Q54 -> -3524037.275
A55: 372 | B55: 3.190166415 | C55: 733.5575459 | D55: =C55-D$5 -> 732.5502459 | E55: =C55-E$5 -> 715.5237459 | F55: 80037223.16 | G55: 70342660.07 | H55: 64955756.49 | I55: 79596126.9 | J55: 81908584.95 | K55: 76462678.03 | L55: =STDEV(E55:G55) -> 43680308.82 | M55: =STDEV(F55:H55) -> 7642577.234 | N55: =STDEV(H55:J55) -> 9193170.478 | O55: =STDEV(I55:K55) -> 2733247.951 | P55: =K55-L55 -> 32782369.22 | Q55: =K55+L55 -> 120142986.9 | R55: =M55-N55 -> -1550593.244 | S55: =M55+N55 -> 16835747.71 | T55: =R55-Q55 -> -121693580.1 | U55: =S55-P55 -> -15946621.5 | V55: =T55-Q55 -> -241836567
A56: 50 | B56: 10.78158333 | C56: 180.0517654 | D56: =C56-D$5 -> 179.0444654 | E56: =C56-E$5 -> 162.0179654 | F56: 3891882.901 | G56: -38954.43219 | H56: 4633.86799 | I56: -27390.33516 | J56: -30562.4426 | K56: 8921.621831 | L56: =STDEV(E56:G56) -> 2258262.742 | M56: =STDEV(F56:H56) -> 2256992.362 | N56: =STDEV(H56:J56) -> 19469.6008 | O56: =STDEV(I56:K56) -> 21937.83577 | P56: =K56-L56 -> -2249341.12 | Q56: =K56+L56 -> 2267184.364 | R56: =M56-N56 -> 2237522.761 | S56: =M56+N56 -> 2276461.962 | T56: =R56-Q56 -> -29661.60281 | U56: =S56-P56 -> 4525803.082 | V56: =T56-Q56 -> -2296845.966
A57: 51 | B57: 15.5234642 | C57: 181.0282182 | D57: =C57-D$5 -> 180.0209182 | E57: =C57-E$5 -> 162.9944182 | F57: 169862125.2 | G57: 114224471.7 | H57: 17400121.67 | I57: 127308881.3 | J57: 197890991.9 | K57: 74319887.32 | L57: =STDEV(E57:G57) -> 86598525.2 | M57: =STDEV(F57:H57) -> 77152625.55 | N57: =STDEV(H57:J57) -> 90956696.66 | O57: =STDEV(I57:K57) -> 61993932.09 | P57: =K57-L57 -> -12278637.88 | Q57: =K57+L57 -> 160918412.5 | R57: =M57-N57 -> -13804071.11 | S57: =M57+N57 -> 168109322.2 | T57: =R57-Q57 -> -174722483.6 | U57: =S57-P57 -> 180387960.1 | V57: =T57-Q57 -> -335640896.2
A58: 370 | B58: 3.232861951 | C58: 732.5529454 | D58: =C58-D$5 -> 731.5456454 | E58: =C58-E$5 -> 714.5191454 | F58: 202497059.7 | G58: 174580659.5 | H58: 163686093.1 | I58: 203547482 | J58: 203536504.2 | K58: 189085523.1 | L58: =STDEV(E58:G58) -> 109743832.4 | M58: =STDEV(F58:H58) -> 20017942.4 | N58: =STDEV(H58:J58) -> 23010815.24 | O58: =STDEV(I58:K58) -> 8346448.665 | P58: =K58-L58 -> 79341690.73 | Q58: =K58+L58 -> 298829355.4 | R58: =M58-N58 -> -2992872.841 | S58: =M58+N58 -> 43028757.65 | T58: =R58-Q58 -> -301822228.3 | U58: =S58-P58 -> -36312933.08 | V58: =T58-Q58 -> -600651583.7
A59: 53 | B59: 10.88584939 | C59: 184.0746824 | D59: =C59-D$5 -> 183.0673824 | E59: =C59-E$5 -> 166.0408824 | F59: 11768170.33 | G59: 49755668.1 | H59: 23469842.63 | I59: 52081028.15 | J59: 49995619.44 | K59: 39434908.61 | L59: =STDEV(E59:G59) -> 26003672.49 | M59: =STDEV(F59:H59) -> 19454749.81 | N59: =STDEV(H59:J59) -> 15950787.35 | O59: =STDEV(I59:K59) -> 6779895.308 | P59: =K59-L59 -> 13431236.12 | Q59: =K59+L59 -> 65438581.1 | R59: =M59-N59 -> 3503962.467 | S59: =M59+N59 -> 35405537.16 | T59: =R59-Q59 -> -61934618.63 | U59: =S59-P59 -> 21974301.04 | V59: =T59-Q59 -> -127373199.7
A60: 244 | B60: 5.086558209 | C60: 499.0562626 | D60: =C60-D$5 -> 498.0489626 | E60: =C60-E$5 -> 481.0224626 | F60: 105349436.6 | G60: 69200517.56 | H60: 63619198.57 | I60: 48933481.25 | J60: 66985459.99 | K60: 60000018.4 | L60: =STDEV(E60:G60) -> 53531597.91 | M60: =STDEV(F60:H60) -> 22654316.14 | N60: =STDEV(H60:J60) -> 9599270.332 | O60: =STDEV(I60:K60) -> 9102550.695 | P60: =K60-L60 -> 6468420.482 | Q60: =K60+L60 -> 113531616.3 | R60: =M60-N60 -> 13055045.81 | S60: =M60+N60 -> 32253586.47 | T60: =R60-Q60 -> -100476570.5 | U60: =S60-P60 -> 25785165.99 | V60: =T60-Q60 -> -214008186.8
A61: 348 | B61: 3.142810714 | C61: 705.5250724 | D61: =C61-D$5 -> 704.5177724 | E61: =C61-E$5 -> 687.4912724 | F61: 235215.87 | G61: 3291588.873 | H61: 47661.40708 | I61: 3263307.742 | J61: 3473822.851 | K61: 1853493.003 | L61: =STDEV(E61:G61) -> 1836048.81 | M61: =STDEV(F61:H61) -> 1821156.135 | N61: =STDEV(H61:J61) -> 1920211.803 | O61: =STDEV(I61:K61) -> 881037.5538 | P61: =K61-L61 -> 17444.19261 | Q61: =K61+L61 -> 3689541.813 | R61: =M61-N61 -> -99055.66734 | S61: =M61+N61 -> 3741367.938 | T61: =R61-Q61 -> -3788597.48 | U61: =S61-P61 -> 3723923.746 | V61: =T61-Q61 -> -7478139.293
A62: 56 | B62: 9.168578723 | C62: 187.9984375 | D62: =C62-D$5 -> 186.9911375 | E62: =C62-E$5 -> 169.9646375 | F62: -105186.4951 | G62: 42043215.91 | H62: 44886672.2 | I62: 52468011.1 | J62: 56071551.17 | K62: 28992489.07 | L62: =STDEV(E62:G62) -> 24304034.77 | M62: =STDEV(F62:H62) -> 25195371.33 | N62: =STDEV(H62:J62) -> 5709111.403 | O62: =STDEV(I62:K62) -> 14704654.82 | P62: =K62-L62 -> 4688454.298 | Q62: =K62+L62 -> 53296523.84 | R62: =M62-N62 -> 19486259.92 | S62: =M62+N62 -> 30904482.73 | T62: =R62-Q62 -> -33810263.92 | U62: =S62-P62 -> 26216028.43 | V62: =T62-Q62 -> -87106787.76
A63: 57 | B63: 2.90833 | C63: 190.0495819 | D63: =C63-D$5 -> 189.0422819 | E63: =C63-E$5 -> 172.0157819 | F63: -42498.03024 | G63: 3857628.916 | H63: 8918.793811 | I63: 1775305.706 | J63: -49309.86319 | K63: 538605.4247 | L63: =STDEV(E63:G63) -> 2239523.189 | M63: =STDEV(F63:H63) -> 2237044.311 | N63: =STDEV(H63:J63) -> 1037041.889 | O63: =STDEV(I63:K63) -> 931333.6266 | P63: =K63-L63 -> -1700917.764 | Q63: =K63+L63 -> 2778128.613 | R63: =M63-N63 -> 1200002.422 | S63: =M63+N63 -> 3274086.2 | T63: =R63-Q63 -> -1578126.191 | U63: =S63-P63 -> 4975003.964 | V63: =T63-Q63 -> -4356254.804
A64: 440 | B64: 11.04228263 | C64: 818.3012156 | D64: =C64-D$5 -> 817.2939156 | E64: =C64-E$5 -> 800.2674156 | F64: 33300105.27 | G64: 37173872.08 | H64: 44994218.45 | I64: 53425965.55 | J64: 58370110.64 | K64: 35913669.11 | L64: =STDEV(E64:G64) -> 20435618.62 | M64: =STDEV(F64:H64) -> 5957015.047 | N64: =STDEV(H64:J64) -> 6763300.747 | O64: =STDEV(I64:K64) -> 11799836.61 | P64: =K64-L64 -> 15478050.49 | Q64: =K64+L64 -> 56349287.73 | R64: =M64-N64 -> -806285.6991 | S64: =M64+N64 -> 12720315.79 | T64: =R64-Q64 -> -57155573.43 | U64: =S64-P64 -> -2757734.696 | V64: =T64-Q64 -> -113504861.2
A65: 59 | B65: 6.18518623 | C65: 193.0856664 | D65: =C65-D$5 -> 192.0783664 | E65: =C65-E$5 -> 175.0518664 | F65: 376414277.2 | G65: 104432542.9 | H65: 121061031.2 | I65: 143427457.8 | J65: 118333946.7 | K65: 164148577.1 | L65: =STDEV(E65:G65) -> 194322652.5 | M65: =STDEV(F65:H65) -> 152455376.3 | N65: =STDEV(H65:J65) -> 13768189.95 | O65: =STDEV(I65:K65) -> 22942062.7 | P65: =K65-L65 -> -30174075.37 | Q65: =K65+L65 -> 358471229.6 | R65: =M65-N65 -> 138687186.4 | S65: =M65+N65 -> 166223566.3 | T65: =R65-Q65 -> -219784043.2 | U65: =S65-P65 -> 196397641.7 | V65: =T65-Q65 -> -578255272.7
A66: 437 | B66: 9.05571195 | C66: 814.9879713 | D66: =C66-D$5 -> 813.9806713 | E66: =C66-E$5 -> 796.9541713 | F66: -35479.29041 | G66: 31379253.9 | H66: 27211284.54 | I66: 51019642.47 | J66: 62418560.81 | K66: 15249211.75 | L66: =STDEV(E66:G66) -> 18126841.69 | M66: =STDEV(F66:H66) -> 17061865.71 | N66: =STDEV(H66:J66) -> 17964435 | O66: =STDEV(I66:K66) -> 24611672.51 | P66: =K66-L66 -> -2877629.933 | Q66: =K66+L66 -> 33376053.44 | R66: =M66-N66 -> -902569.2903 | S66: =M66+N66 -> 35026300.71 | T66: =R66-Q66 -> -34278622.73 | U66: =S66-P66 -> 37903930.64 | V66: =T66-Q66 -> -67654676.17
A67: 61 | B67: 16.86146477 | C67: 196.1693857 | D67: =C67-D$5 -> 195.1620857 | E67: =C67-E$5 -> 178.1355857 | F67: 13659065.06 | G67: 1101484.175 | H67: 933820.4564 | I67: 1098696.902 | J67: 372330.3024 | K67: 1918278.815 | L67: =STDEV(E67:G67) -> 7588048.771 | M67: =STDEV(F67:H67) -> 7299004.489 | N67: =STDEV(H67:J67) -> 380802.633 | O67: =STDEV(I67:K67) -> 773442.4945 | P67: =K67-L67 -> -5669769.955 | Q67: =K67+L67 -> 9506327.586 | R67: =M67-N67 -> 6918201.856 | S67: =M67+N67 -> 7679807.122 | T67: =R67-Q67 -> -2588125.73 | U67: =S67-P67 -> 13349577.08 | V67: =T67-Q67 -> -12094453.32
A68: 62 | B68: 17.80152776 | C68: 198.1850298 | D68: =C68-D$5 -> 197.1777298 | E68: =C68-E$5 -> 180.1512298 | F68: 108869964.4 | G68: 49167570.82 | H68: 51311000.69 | I68: 53883872.43 | J68: 49706333.49 | K68: 48133567.93 | L68: =STDEV(E68:G68) -> 54519779.32 | M68: =STDEV(F68:H68) -> 33867399.25 | N68: =STDEV(H68:J68) -> 2107386.117 | O68: =STDEV(I68:K68) -> 2971851.977 | P68: =K68-L68 -> -6386211.388 | Q68: =K68+L68 -> 102653347.2 | R68: =M68-N68 -> 31760013.13 | S68: =M68+N68 -> 35974785.37 | T68: =R68-Q68 -> -70893334.12 | U68: =S68-P68 -> 42360996.75 | V68: =T68-Q68 -> -173546681.4
A69: 63 | B69: 9.2823372 | C69: 204.0862769 | D69: =C69-D$5 -> 203.0789769 | E69: =C69-E$5 -> 186.0524769 | F69: 72369417.84 | G69: -29080.68839 | H69: 31509.63029 | I69: 42694.10747 | J69: -176946.957 | K69: 31574.8706 | L69: =STDEV(E69:G69) -> 41790846.59 | M69: =STDEV(F69:H69) -> 41781812.68 | N69: =STDEV(H69:J69) -> 123707.6113 | O69: =STDEV(I69:K69) -> 123724.9552 | P69: =K69-L69 -> -41759271.72 | Q69: =K69+L69 -> 41822421.47 | R69: =M69-N69 -> 41658105.07 | S69: =M69+N69 -> 41905520.29 | T69: =R69-Q69 -> -164316.3987 | U69: =S69-P69 -> 83664792.01 | V69: =T69-Q69 -> -41986737.86
A70: 64 | B70: 13.85632959 | C70: 204.1227851 | D70: =C70-D$5 -> 203.1154851 | E70: =C70-E$5 -> 186.0889851 | F70: 41348026.85 | G70: -56444.93296 | H70: 5522930.127 | I70: 43140.15174 | J70: 664487.8325 | K70: 5874166.556 | L70: =STDEV(E70:G70) -> 23888551.75 | M70: =STDEV(F70:H70) -> 22468115.43 | N70: =STDEV(H70:J70) -> 3000517.529 | O70: =STDEV(I70:K70) -> 3202282.891 | P70: =K70-L70 -> -18014385.19 | Q70: =K70+L70 -> 29762718.3 | R70: =M70-N70 -> 19467597.9 | S70: =M70+N70 -> 25468632.96 | T70: =R70-Q70 -> -10295120.4 | U70: =S70-P70 -> 43483018.15 | V70: =T70-Q70 -> -40057838.7
A71: 378 | B71: 9.83238458 | C71: 745.24021 | D71: =C71-D$5 -> 744.23291 | E71: =C71-E$5 -> 727.20641 | F71: 18920075.91 | G71: 40561884.52 | H71: 46750392.66 | I71: 53940228.12 | J71: 54455709.48 | K71: 38484384.43 | L71: =STDEV(E71:G71) -> 20295800.54 | M71: =STDEV(F71:H71) -> 14612734.42 | N71: =STDEV(H71:J71) -> 4307577.862 | O71: =STDEV(I71:K71) -> 9075902.613 | P71: =K71-L71 -> 18188583.89 | Q71: =K71+L71 -> 58780184.97 | R71: =M71-N71 -> 10305156.56 | S71: =M71+N71 -> 18920312.28 | T71: =R71-Q71 -> -48475028.41 | U71: =S71-P71 -> 731728.3925 | V71: =T71-Q71 -> -107255213.4
A72: 435 | B72: 17.58891494 | C72: 814.3490355 | D72: =C72-D$5 -> 813.3417355 | E72: =C72-E$5 -> 796.3152355 | F72: 6589695.352 | G72: 4651233.461 | H72: 3316941.37 | I72: 3941529.681 | J72: 3435896.359 | K72: 2825783.908 | L72: =STDEV(E72:G72) -> 3386192.322 | M72: =STDEV(F72:H72) -> 1645645.188 | N72: =STDEV(H72:J72) -> 331643.8613 | O72: =STDEV(I72:K72) -> 558687.5827 | P72: =K72-L72 -> -560408.4144 | Q72: =K72+L72 -> 6211976.23 | R72: =M72-N72 -> 1314001.327 | S72: =M72+N72 -> 1977289.049 | T72: =R72-Q72 -> -4897974.904 | U72: =S72-P72 -> 2537697.464 | V72: =T72-Q72 -> -11109951.13
A73: 67 | B73: 5.267420625 | C73: 206.1385612 | D73: =C73-D$5 -> 205.1312612 | E73: =C73-E$5 -> 188.1047612 | F73: 11395.23052 | G73: 4277651.359 | H73: 28496.64251 | I73: 785258.5452 | J73: 16408.2778 | K73: -92946.71052 | L73: =STDEV(E73:G73) -> 2466365.708 | M73: =STDEV(F73:H73) -> 2458202.243 | N73: =STDEV(H73:J73) -> 440447.7721 | O73: =STDEV(I73:K73) -> 478597.555 | P73: =K73-L73 -> -2559312.419 | Q73: =K73+L73 -> 2373418.998 | R73: =M73-N73 -> 2017754.471 | S73: =M73+N73 -> 2898650.015 | T73: =R73-Q73 -> -355664.5265 | U73: =S73-P73 -> 5457962.434 | V73: =T73-Q73 -> -2729083.524
A74: 436 | B74: 3.110436 | C74: 814.6318359 | D74: =C74-D$5 -> 813.6245359 | E74: =C74-E$5 -> 796.5980359 | F74: 2576709.91 | G74: 5993.770533 | H74: 2249743.386 | I74: -54189.56245 | J74: 255412.301 | K74: 1051868.156 | L74: =STDEV(E74:G74) -> 1485706.222 | M74: =STDEV(F74:H74) -> 1399398.735 | N74: =STDEV(H74:J74) -> 1250421.05 | O74: =STDEV(I74:K74) -> 570607.7053 | P74: =K74-L74 -> -433838.0658 | Q74: =K74+L74 -> 2537574.378 | R74: =M74-N74 -> 148977.6844 | S74: =M74+N74 -> 2649819.785 | T74: =R74-Q74 -> -2388596.694 | U74: =S74-P74 -> 3083657.851 | V74: =T74-Q74 -> -4926171.072
A75: 69 | B75: 9.523199677 | C75: 214.0060699 | D75: =C75-D$5 -> 212.9987699 | E75: =C75-E$5 -> 195.9722699 | F75: -8816.680622 | G75: 147164759.7 | H75: 175056222.7 | I75: 171638306.9 | J75: 167832879.2 | K75: 135447525.9 | L75: =STDEV(E75:G75) -> 84968102.35 | M75: =STDEV(F75:H75) -> 94061826.56 | N75: =STDEV(H75:J75) -> 3613403.704 | O75: =STDEV(I75:K75) -> 19887454.27 | P75: =K75-L75 -> 50479423.51 | Q75: =K75+L75 -> 220415628.2 | R75: =M75-N75 -> 90448422.86 | S75: =M75+N75 -> 97675230.27 | T75: =R75-Q75 -> -129967205.4 | U75: =S75-P75 -> 47195806.76 | V75: =T75-Q75 -> -350382833.6
A76: 70 | B76: 9.406948 | C76: 217.0920059 | D76: =C76-D$5 -> 216.0847059 | E76: =C76-E$5 -> 199.0582059 | F76: 46410.53376 | G76: 21319.91898 | H76: 4084469.5 | I76: 105177.4374 | J76: -44538.32683 | K76: 4406608.851 | L76: =STDEV(E76:G76) -> 23134.13849 | M76: =STDEV(F76:H76) -> 2338651.116 | N76: =STDEV(H76:J76) -> 2341861.288 | O76: =STDEV(I76:K76) -> 2527760.479 | P76: =K76-L76 -> 4383474.713 | Q76: =K76+L76 -> 4429742.99 | R76: =M76-N76 -> -3210.171748 | S76: =M76+N76 -> 4680512.405 | T76: =R76-Q76 -> -4432953.162 | U76: =S76-P76 -> 297037.6917 | V76: =T76-Q76 -> -8862696.151
A77: 71 | B77: 12.08321558 | C77: 218.1382942 | D77: =C77-D$5 -> 217.1309942 | E77: =C77-E$5 -> 200.1044942 | F77: 44594814.39 | G77: -10887.70335 | H77: 314724.7018 | I77: -57330.6007 | J77: 48637.33797 | K77: 6662.435788 | L77: =STDEV(E77:G77) -> 25749913.94 | M77: =STDEV(F77:H77) -> 25659634.4 | N77: =STDEV(H77:J77) -> 191684.1314 | O77: =STDEV(I77:K77) -> 53363.85349 | P77: =K77-L77 -> -25743251.5 | Q77: =K77+L77 -> 25756576.37 | R77: =M77-N77 -> 25467950.27 | S77: =M77+N77 -> 25851318.53 | T77: =R77-Q77 -> -288626.0998 | U77: =S77-P77 -> 51594570.03 | V77: =T77-Q77 -> -26045202.47
A78: 141 | B78: 4.904803375 | C78: 340.0473089 | D78: =C78-D$5 -> 339.0400089 | E78: =C78-E$5 -> 322.0135089 | F78: 196708399.6 | G78: 151956858.6 | H78: 126289545.6 | I78: 112770099.1 | J78: 147929980.2 | K78: 123188220 | L78: =STDEV(E78:G78) -> 103107999.4 | M78: =STDEV(F78:H78) -> 35637822.53 | N78: =STDEV(H78:J78) -> 17735562.56 | O78: =STDEV(I78:K78) -> 18059665.8 | P78: =K78-L78 -> 20080220.67 | Q78: =K78+L78 -> 226296219.4 | R78: =M78-N78 -> 17902259.97 | S78: =M78+N78 -> 53373385.1 | T78: =R78-Q78 -> -208393959.4 | U78: =S78-P78 -> 33293164.42 | V78: =T78-Q78 -> -434690178.8
A79: 73 | B79: 15.36062754 | C79: 222.0546826 | D79: =C79-D$5 -> 221.0473826 | E79: =C79-E$5 -> 204.0208826 | F79: 97073993.19 | G79: 44624161.18 | H79: 250106.8106 | I79: 64003560.72 | J79: 118010372.7 | K79: 24190716.62 | L79: =STDEV(E79:G79) -> 48589441.54 | M79: =STDEV(F79:H79) -> 48468041.97 | N79: =STDEV(H79:J79) -> 58947319.49 | O79: =STDEV(I79:K79) -> 47088438.36 | P79: =K79-L79 -> -24398724.92 | Q79: =K79+L79 -> 72780158.15 | R79: =M79-N79 -> -10479277.52 | S79: =M79+N79 -> 107415361.5 | T79: =R79-Q79 -> -83259435.68 | U79: =S79-P79 -> 131814086.4 | V79: =T79-Q79 -> -156039593.8
A80: 358 | B80: 4.821972154 | C80: 715.0633908 | D80: =C80-D$5 -> 714.0560908 | E80: =C80-E$5 -> 697.0295908 | F80: 78981461.65 | G80: 60068235.52 | H80: 43705236.07 | I80: 39661687.33 | J80: 54925391.45 | K80: 43696599.18 | L80: =STDEV(E80:G80) -> 41238696.4 | M80: =STDEV(F80:H80) -> 17653469.74 | N80: =STDEV(H80:J80) -> 7908042.705 | O80: =STDEV(I80:K80) -> 7909350.51 | P80: =K80-L80 -> 2457902.78 | Q80: =K80+L80 -> 84935295.57 | R80: =M80-N80 -> 9745427.04 | S80: =M80+N80 -> 25561512.45 | T80: =R80-Q80 -> -75189868.53 | U80: =S80-P80 -> 23103609.67 | V80: =T80-Q80 -> -160125164.1
A81: 75 | B81: 16.21128333 | C81: 224.127632 | D81: =C81-D$5 -> 223.120332 | E81: =C81-E$5 -> 206.093832 | F81: 125990563.4 | G81: -47556.07137 | H81: 135879.1458 | I81: 46096.64179 | J81: 58099.21804 | K81: 2277925.811 | L81: =STDEV(E81:G81) -> 72754358.37 | M81: =STDEV(F81:H81) -> 72715246.86 | N81: =STDEV(H81:J81) -> 48741.96859 | O81: =STDEV(I81:K81) -> 1285096.339 | P81: =K81-L81 -> -70476432.56 | Q81: =K81+L81 -> 75032284.19 | R81: =M81-N81 -> 72666504.89 | S81: =M81+N81 -> 72763988.83 | T81: =R81-Q81 -> -2365779.293 | U81: =S81-P81 -> 143240421.4 | V81: =T81-Q81 -> -77398063.48
A82: 215 | B82: 4.781616564 | C82: 444.0561059 | D82: =C82-D$5 -> 443.0488059 | E82: =C82-E$5 -> 426.0223059 | F82: 224551110.2 | G82: 159525390.4 | H82: 134157531.7 | I82: 115915444.9 | J82: 157105417.3 | K82: 129477520.3 | L82: =STDEV(E82:G82) -> 115541888.7 | M82: =STDEV(F82:H82) -> 46624155.97 | N82: =STDEV(H82:J82) -> 20639739.24 | O82: =STDEV(I82:K82) -> 20991444.34 | P82: =K82-L82 -> 13935631.65 | Q82: =K82+L82 -> 245019409 | R82: =M82-N82 -> 25984416.73 | S82: =M82+N82 -> 67263895.21 | T82: =R82-Q82 -> -219034992.3 | U82: =S82-P82 -> 53328263.57 | V82: =T82-Q82 -> -464054401.4
A83: 143 | B83: 4.82850124 | C83: 342.043884 | D83: =C83-D$5 -> 341.036584 | E83: =C83-E$5 -> 324.010084 | F83: 71926104.49 | G83: 55820615.59 | H83: 44176103.54 | I83: 39459101.29 | J83: 53864375.37 | K83: 43758417.09 | L83: =STDEV(E83:G83) -> 37746102.72 | M83: =STDEV(F83:H83) -> 13934633.03 | N83: =STDEV(H83:J83) -> 7344211.354 | O83: =STDEV(I83:K83) -> 7395115.845 | P83: =K83-L83 -> 6012314.375 | Q83: =K83+L83 -> 81504519.81 | R83: =M83-N83 -> 6590421.681 | S83: =M83+N83 -> 21278844.39 | T83: =R83-Q83 -> -74914098.13 | U83: =S83-P83 -> 15266530.01 | V83: =T83-Q83 -> -156418617.9
A84: 78 | B84: 9.033853125 | C84: 229.0249914 | D84: =C84-D$5 -> 228.0176914 | E84: =C84-E$5 -> 210.9911914 | F84: -98080.84395 | G84: 540523.7258 | H84: 591398.1807 | I84: 4918530.825 | J84: 6603581.647 | K84: 11095.94689 | L84: =STDEV(E84:G84) -> 343854.3618 | M84: =STDEV(F84:H84) -> 384227.6522 | N84: =STDEV(H84:J84) -> 3101339.045 | O84: =STDEV(I84:K84) -> 3424986.157 | P84: =K84-L84 -> -332758.4149 | Q84: =K84+L84 -> 354950.3087 | R84: =M84-N84 -> -2717111.392 | S84: =M84+N84 -> 3485566.697 | T84: =R84-Q84 -> -3072061.701 | U84: =S84-P84 -> 3818325.112 | V84: =T84-Q84 -> -3427012.01
A85: 219 | B85: 4.788572068 | C85: 448.0499179 | D85: =C85-D$5 -> 447.0426179 | E85: =C85-E$5 -> 430.0161179 | F85: 158524283.5 | G85: 112038077 | H85: 94165849.91 | I85: 81594787.93 | J85: 110489722.8 | K85: 90976811.15 | L85: =STDEV(E85:G85) -> 81489481.79 | M85: =STDEV(F85:H85) -> 33222461.95 | N85: =STDEV(H85:J85) -> 14488027.73 | O85: =STDEV(I85:K85) -> 14740496.03 | P85: =K85-L85 -> 9487329.352 | Q85: =K85+L85 -> 172466292.9 | R85: =M85-N85 -> 18734434.23 | S85: =M85+N85 -> 47710489.68 | T85: =R85-Q85 -> -153731858.7 | U85: =S85-P85 -> 38223160.33 | V85: =T85-Q85 -> -326198151.7
A86: 80 | B86: 3.74415 | C86: 240.2318638 | D86: =C86-D$5 -> 239.2245638 | E86: =C86-E$5 -> 222.1980638 | F86: -23515.21485 | G86: 2647328.509 | H86: -15165.63176 | I86: 2110986.264 | J86: 26975.99838 | K86: 602033.7199 | L86: =STDEV(E86:G86) -> 1535205.821 | M86: =STDEV(F86:H86) -> 1539607.686 | N86: =STDEV(H86:J86) -> 1215551.767 | O86: =STDEV(I86:K86) -> 1076315.316 | P86: =K86-L86 -> -933172.1014 | Q86: =K86+L86 -> 2137239.541 | R86: =M86-N86 -> 324055.9191 | S86: =M86+N86 -> 2755159.453 | T86: =R86-Q86 -> -1813183.622 | U86: =S86-P86 -> 3688331.555 | V86: =T86-Q86 -> -3950423.163
A87: 212 | B87: 4.823678915 | C87: 442.0588391 | D87: =C87-D$5 -> 441.0515391 | E87: =C87-E$5 -> 424.0250391 | F87: 75339300.28 | G87: 50975930.88 | H87: 43225894.38 | I87: 35769072.75 | J87: 51006035.79 | K87: 41525941.48 | L87: =STDEV(E87:G87) -> 38444814.01 | M87: =STDEV(F87:H87) -> 16757623.5 | N87: =STDEV(H87:J87) -> 7619053.22 | O87: =STDEV(I87:K87) -> 7693923.667 | P87: =K87-L87 -> 3081127.47 | Q87: =K87+L87 -> 79970755.48 | R87: =M87-N87 -> 9138570.285 | S87: =M87+N87 -> 24376676.72 | T87: =R87-Q87 -> -70832185.2 | U87: =S87-P87 -> 21295549.25 | V87: =T87-Q87 -> -150802940.7
A88: 82 | B88: 10.781575 | C88: 245.058733 | D88: =C88-D$5 -> 244.051433 | E88: =C88-E$5 -> 227.024933 | F88: 5394540.421 | G88: -5491.683848 | H88: 36393.35432 | I88: -136442.9288 | J88: -57748.90206 | K88: 13227.69513 | L88: =STDEV(E88:G88) -> 3116060.452 | M88: =STDEV(F88:H88) -> 3105689.431 | N88: =STDEV(H88:J88) -> 86533.12955 | O88: =STDEV(I88:K88) -> 74868.46563 | P88: =K88-L88 -> -3102832.757 | Q88: =K88+L88 -> 3129288.147 | R88: =M88-N88 -> 3019156.302 | S88: =M88+N88 -> 3192222.561 | T88: =R88-Q88 -> -110131.8452 | U88: =S88-P88 -> 6295055.318 | V88: =T88-Q88 -> -3239419.992
A89: 220 | B89: 4.908048312 | C89: 450.0467423 | D89: =C89-D$5 -> 449.0394423 | E89: =C89-E$5 -> 432.0129423 | F89: 50095756.14 | G89: 32492110.8 | H89: 27705903.42 | I89: 21972590.08 | J89: 32086769.71 | K89: 27357050.67 | L89: =STDEV(E89:G89) -> 25413706.99 | M89: =STDEV(F89:H89) -> 11790544.34 | N89: =STDEV(H89:J89) -> 5072137.958 | O89: =STDEV(I89:K89) -> 5060620.639 | P89: =K89-L89 -> 1943343.677 | Q89: =K89+L89 -> 52770757.66 | R89: =M89-N89 -> 6718406.383 | S89: =M89+N89 -> 16862682.3 | T89: =R89-Q89 -> -46052351.28 | U89: =S89-P89 -> 14919338.62 | V89: =T89-Q89 -> -98823108.95
A90: 84 | B90: 3.156217143 | C90: 250.1774259 | D90: =C90-D$5 -> 249.1701259 | E90: =C90-E$5 -> 232.1436259 | F90: -114349.5272 | G90: 30448.17524 | H90: -107267.42 | I90: 196409.215 | J90: 4121565.362 | K90: 138060.1121 | L90: =STDEV(E90:G90) -> 76385.36345 | M90: =STDEV(F90:H90) -> 81631.40332 | N90: =STDEV(H90:J90) -> 2358746.029 | O90: =STDEV(I90:K90) -> 2283220.294 | P90: =K90-L90 -> 61674.74863 | Q90: =K90+L90 -> 214445.4755 | R90: =M90-N90 -> -2277114.626 | S90: =M90+N90 -> 2440377.432 | T90: =R90-Q90 -> -2491560.101 | U90: =S90-P90 -> 2378702.684 | V90: =T90-Q90 -> -2706005.577
A91: 217 | B91: 4.784539839 | C91: 446.0534861 | D91: =C91-D$5 -> 445.0461861 | E91: =C91-E$5 -> 428.0196861 | F91: 258220664.7 | G91: 184587424.1 | H91: 153924807 | I91: 135049819.3 | J91: 180513155.2 | K91: 150539428.3 | L91: =STDEV(E91:G91) -> 133023747.2 | M91: =STDEV(F91:H91) -> 53602979 | N91: =STDEV(H91:J91) -> 22840462.37 | O91: =STDEV(I91:K91) -> 23113009.32 | P91: =K91-L91 -> 17515681.09 | Q91: =K91+L91 -> 283563175.4 | R91: =M91-N91 -> 30762516.63 | S91: =M91+N91 -> 76443441.38 | T91: =R91-Q91 -> -252800658.8 | U91: =S91-P91 -> 58927760.29 | V91: =T91-Q91 -> -536363834.2
A92: 324 | B92: 9.180324455 | C92: 664.9974252 | D92: =C92-D$5 -> 663.9901252 | E92: =C92-E$5 -> 646.9636252 | F92: 111986.3373 | G92: 142428045.7 | H92: 138139361.3 | I92: 183740841.9 | J92: 195795998.4 | K92: 104167507.3 | L92: =STDEV(E92:G92) -> 82198374.96 | M92: =STDEV(F92:H92) -> 80956582.81 | N92: =STDEV(H92:J92) -> 30411373.01 | O92: =STDEV(I92:K92) -> 49787921.51 | P92: =K92-L92 -> 21969132.34 | Q92: =K92+L92 -> 186365882.3 | R92: =M92-N92 -> 50545209.8 | S92: =M92+N92 -> 111367955.8 | T92: =R92-Q92 -> -135820672.5 | U92: =S92-P92 -> 89398823.49 | V92: =T92-Q92 -> -322186554.7
A93: 87 | B93: 11.04573913 | C93: 255.0324389 | D93: =C93-D$5 -> 254.0251389 | E93: =C93-E$5 -> 236.9986389 | F93: -81928.15111 | G93: 223631.4759 | H93: 9757384.376 | I93: -60314.34643 | J93: 1483792.072 | K93: 3752174.267 | L93: =STDEV(E93:G93) -> 158125.9466 | M93: =STDEV(F93:H93) -> 5594608.745 | N93: =STDEV(H93:J93) -> 5279264.507 | O93: =STDEV(I93:K93) -> 1917676.191 | P93: =K93-L93 -> 3594048.321 | Q93: =K93+L93 -> 3910300.214 | R93: =M93-N93 -> 315344.2372 | S93: =M93+N93 -> 10873873.25 | T93: =R93-Q93 -> -3594955.977 | U93: =S93-P93 -> 7279824.931 | V93: =T93-Q93 -> -7505256.191
A94: 88 | B94: 5.34162392 | C94: 255.1012358 | D94: =C94-D$5 -> 254.0939358 | E94: =C94-E$5 -> 237.0674358 | F94: 23435948.49 | G94: 4979811.887 | H94: 6225490.521 | I94: 6392973.191 | J94: 7226841.488 | K94: 10170817.77 | L94: =STDEV(E94:G94) -> 12346779.02 | M94: =STDEV(F94:H94) -> 10314880.49 | N94: =STDEV(H94:J94) -> 536359.7271 | O94: =STDEV(I94:K94) -> 1984709.985 | P94: =K94-L94 -> -2175961.254 | Q94: =K94+L94 -> 22517596.79 | R94: =M94-N94 -> 9778520.762 | S94: =M94+N94 -> 10851240.22 | T94: =R94-Q94 -> -12739076.03 | U94: =S94-P94 -> 13027201.47 | V94: =T94-Q94 -> -35256672.82
A95: 135 | B95: 10.20965486 | C95: 336.9019755 | D95: =C95-D$5 -> 335.8946755 | E95: =C95-E$5 -> 318.8681755 | F95: 41970.6992 | G95: 1052789.501 | H95: 5512597.269 | I95: 7048840.329 | J95: 5910315.911 | K95: 1893661.771 | L95: =STDEV(E95:G95) -> 595984.3341 | M95: =STDEV(F95:H95) -> 2910881.74 | N95: =STDEV(H95:J95) -> 797335.2191 | O95: =STDEV(I95:K95) -> 2708185.564 | P95: =K95-L95 -> 1297677.437 | Q95: =K95+L95 -> 2489646.105 | R95: =M95-N95 -> 2113546.521 | S95: =M95+N95 -> 3708216.959 | T95: =R95-Q95 -> -376099.5842 | U95: =S95-P95 -> 2410539.522 | V95: =T95-Q95 -> -2865745.69
A96: 322 | B96: 12.73957479 | C96: 664.1156341 | D96: =C96-D$5 -> 663.1083341 | E96: =C96-E$5 -> 646.0818341 | F96: 110791999.2 | G96: 21654267.27 | H96: 44897186.79 | I96: 16400009.85 | J96: 16590920.97 | K96: 33107848.99 | L96: =STDEV(E96:G96) -> 58721288.72 | M96: =STDEV(F96:H96) -> 46238322.61 | N96: =STDEV(H96:J96) -> 16398019.32 | O96: =STDEV(I96:K96) -> 9591639.127 | P96: =K96-L96 -> -25613439.73 | Q96: =K96+L96 -> 91829137.71 | R96: =M96-N96 -> 29840303.29 | S96: =M96+N96 -> 62636341.93 | T96: =R96-Q96 -> -61988834.42 | U96: =S96-P96 -> 88249781.66 | V96: =T96-Q96 -> -153817972.1
A97: 91 | B97: 14.94005625 | C97: 259.1128569 | D97: =C97-D$5 -> 258.1055569 | E97: =C97-E$5 -> 241.0790569 | F97: 9698216.092 | G97: -21809.32336 | H97: 3049342.425 | I97: -93805.80546 | J97: -50105.32765 | K97: 2095309.868 | L97: =STDEV(E97:G97) -> 5605504.73 | M97: =STDEV(F97:H97) -> 4968540.835 | N97: =STDEV(H97:J97) -> 1802214.698 | O97: =STDEV(I97:K97) -> 1251462.047 | P97: =K97-L97 -> -3510194.862 | Q97: =K97+L97 -> 7700814.598 | R97: =M97-N97 -> 3166326.137 | S97: =M97+N97 -> 6770755.533 | T97: =R97-Q97 -> -4534488.461 | U97: =S97-P97 -> 10280950.4 | V97: =T97-Q97 -> -12235303.06
